Workbook

Sheet desc stat
A1: sample | G1: ordered array | I1: Written by Peter Nagy
A2: 9 | D2: mean | E2: =roundit(AVERAGE(sample),3) -> 5.429 | G2: =IF(ISERROR(INDEX(sample, MATCH(SMALL(COUNTIF(sample, "<"&sample), ROW(1:1)+30-COUNT(sample)), COUNTIF(sample, "<"&sample), 0))),"",INDEX(sample, MATCH(SMALL(COUNTIF(sample, "<"&sample), ROW(1:1)+30-COUNT(sample)), COUNTIF(sample, "<"&sample), 0))) -> 2 | I2: peter.v.nagy@gmail.com | K2: =IF(ISERROR(INDEX(sample, MATCH(SMALL(COUNTIF(sample, "<"&sample), ROW(2:2)+20-COUNT(sample)), COUNTIF(sample, "<"&sample), 0))),"",INDEX(sample, MATCH(SMALL(COUNTIF(sample, "<"&sample), ROW(2:2)+20-COUNT(sample)), COUNTIF(sample, "<"&sample), 0))) -> 
A3: 6 | D3: SD | E3: =roundit(_xlfn.STDEV.S(sample),3) -> 2.299 | G3: =IF(ISERROR(INDEX(sample, MATCH(SMALL(COUNTIF(sample, "<"&sample), ROW(2:2)+30-COUNT(sample)), COUNTIF(sample, "<"&sample), 0))),"",INDEX(sample, MATCH(SMALL(COUNTIF(sample, "<"&sample), ROW(2:2)+30-COUNT(sample)), COUNTIF(sample, "<"&sample), 0))) -> 4
A4: 4 | D4: variance | E4: =roundit(E3^2,3) -> 5.285 | G4: =IF(ISERROR(INDEX(sample, MATCH(SMALL(COUNTIF(sample, "<"&sample), ROW(3:3)+30-COUNT(sample)), COUNTIF(sample, "<"&sample), 0))),"",INDEX(sample, MATCH(SMALL(COUNTIF(sample, "<"&sample), ROW(3:3)+30-COUNT(sample)), COUNTIF(sample, "<"&sample), 0))) -> 4
A5: 6 | D5: SEM | E5: =roundit(E3/SQRT(COUNT(A2:A31)),3) -> 0.8689 | G5: =IF(ISERROR(INDEX(sample, MATCH(SMALL(COUNTIF(sample, "<"&sample), ROW(4:4)+30-COUNT(sample)), COUNTIF(sample, "<"&sample), 0))),"",INDEX(sample, MATCH(SMALL(COUNTIF(sample, "<"&sample), ROW(4:4)+30-COUNT(sample)), COUNTIF(sample, "<"&sample), 0))) -> 6
A6: 7 | D6: median | E6: =roundit(MEDIAN(sample),3) -> 6 | G6: =IF(ISERROR(INDEX(sample, MATCH(SMALL(COUNTIF(sample, "<"&sample), ROW(5:5)+30-COUNT(sample)), COUNTIF(sample, "<"&sample), 0))),"",INDEX(sample, MATCH(SMALL(COUNTIF(sample, "<"&sample), ROW(5:5)+30-COUNT(sample)), COUNTIF(sample, "<"&sample), 0))) -> 6
A7: 2 | D7: mode 1 | E7: =IF(ROWS(E$7:E7)>COUNT(_xlfn.MODE.MULT(sample)),"",INDEX(_xlfn.MODE.MULT(sample),ROWS(E$7:E7))) -> 6 | G7: =IF(ISERROR(INDEX(sample, MATCH(SMALL(COUNTIF(sample, "<"&sample), ROW(6:6)+30-COUNT(sample)), COUNTIF(sample, "<"&sample), 0))),"",INDEX(sample, MATCH(SMALL(COUNTIF(sample, "<"&sample), ROW(6:6)+30-COUNT(sample)), COUNTIF(sample, "<"&sample), 0))) -> 7
A8: 4 | D8: mode 2 | E8: =IF(ROWS(E$7:E8)>COUNT(_xlfn.MODE.MULT(sample)),"",INDEX(_xlfn.MODE.MULT(sample),ROWS(E$7:E8))) -> 4 | G8: =IF(ISERROR(INDEX(sample, MATCH(SMALL(COUNTIF(sample, "<"&sample), ROW(7:7)+30-COUNT(sample)), COUNTIF(sample, "<"&sample), 0))),"",INDEX(sample, MATCH(SMALL(COUNTIF(sample, "<"&sample), ROW(7:7)+30-COUNT(sample)), COUNTIF(sample, "<"&sample), 0))) -> 9
D9: mode 3 | E9: =IF(ROWS(E$7:E9)>COUNT(_xlfn.MODE.MULT(sample)),"",INDEX(_xlfn.MODE.MULT(sample),ROWS(E$7:E9))) ->  | G9: =IF(ISERROR(INDEX(sample, MATCH(SMALL(COUNTIF(sample, "<"&sample), ROW(8:8)+30-COUNT(sample)), COUNTIF(sample, "<"&sample), 0))),"",INDEX(sample, MATCH(SMALL(COUNTIF(sample, "<"&sample), ROW(8:8)+30-COUNT(sample)), COUNTIF(sample, "<"&sample), 0))) -> 
D10: mode 4 | E10: =IF(ROWS(E$7:E10)>COUNT(_xlfn.MODE.MULT(sample)),"",INDEX(_xlfn.MODE.MULT(sample),ROWS(E$7:E10))) ->  | G10: =IF(ISERROR(INDEX(sample, MATCH(SMALL(COUNTIF(sample, "<"&sample), ROW(9:9)+30-COUNT(sample)), COUNTIF(sample, "<"&sample), 0))),"",INDEX(sample, MATCH(SMALL(COUNTIF(sample, "<"&sample), ROW(9:9)+30-COUNT(sample)), COUNTIF(sample, "<"&sample), 0))) -> 
D11: skewness | E11: =roundit(SKEW(sample),3) -> 0.07053 | G11: =IF(ISERROR(INDEX(sample, MATCH(SMALL(COUNTIF(sample, "<"&sample), ROW(10:10)+30-COUNT(sample)), COUNTIF(sample, "<"&sample), 0))),"",INDEX(sample, MATCH(SMALL(COUNTIF(sample, "<"&sample), ROW(10:10)+30-COUNT(sample)), COUNTIF(sample, "<"&sample), 0))) -> 
D12: kurtosis | E12: =roundit(KURT(sample),3) -> -0.1299 | G12: =IF(ISERROR(INDEX(sample, MATCH(SMALL(COUNTIF(sample, "<"&sample), ROW(11:11)+30-COUNT(sample)), COUNTIF(sample, "<"&sample), 0))),"",INDEX(sample, MATCH(SMALL(COUNTIF(sample, "<"&sample), ROW(11:11)+30-COUNT(sample)), COUNTIF(sample, "<"&sample), 0))) -> 
G13: =IF(ISERROR(INDEX(sample, MATCH(SMALL(COUNTIF(sample, "<"&sample), ROW(12:12)+30-COUNT(sample)), COUNTIF(sample, "<"&sample), 0))),"",INDEX(sample, MATCH(SMALL(COUNTIF(sample, "<"&sample), ROW(12:12)+30-COUNT(sample)), COUNTIF(sample, "<"&sample), 0))) -> 
G14: =IF(ISERROR(INDEX(sample, MATCH(SMALL(COUNTIF(sample, "<"&sample), ROW(13:13)+30-COUNT(sample)), COUNTIF(sample, "<"&sample), 0))),"",INDEX(sample, MATCH(SMALL(COUNTIF(sample, "<"&sample), ROW(13:13)+30-COUNT(sample)), COUNTIF(sample, "<"&sample), 0))) -> 
G15: =IF(ISERROR(INDEX(sample, MATCH(SMALL(COUNTIF(sample, "<"&sample), ROW(14:14)+30-COUNT(sample)), COUNTIF(sample, "<"&sample), 0))),"",INDEX(sample, MATCH(SMALL(COUNTIF(sample, "<"&sample), ROW(14:14)+30-COUNT(sample)), COUNTIF(sample, "<"&sample), 0))) -> 
G16: =IF(ISERROR(INDEX(sample, MATCH(SMALL(COUNTIF(sample, "<"&sample), ROW(15:15)+30-COUNT(sample)), COUNTIF(sample, "<"&sample), 0))),"",INDEX(sample, MATCH(SMALL(COUNTIF(sample, "<"&sample), ROW(15:15)+30-COUNT(sample)), COUNTIF(sample, "<"&sample), 0))) -> 
G17: =IF(ISERROR(INDEX(sample, MATCH(SMALL(COUNTIF(sample, "<"&sample), ROW(16:16)+30-COUNT(sample)), COUNTIF(sample, "<"&sample), 0))),"",INDEX(sample, MATCH(SMALL(COUNTIF(sample, "<"&sample), ROW(16:16)+30-COUNT(sample)), COUNTIF(sample, "<"&sample), 0))) -> 
G18: =IF(ISERROR(INDEX(sample, MATCH(SMALL(COUNTIF(sample, "<"&sample), ROW(17:17)+30-COUNT(sample)), COUNTIF(sample, "<"&sample), 0))),"",INDEX(sample, MATCH(SMALL(COUNTIF(sample, "<"&sample), ROW(17:17)+30-COUNT(sample)), COUNTIF(sample, "<"&sample), 0))) -> 
G19: =IF(ISERROR(INDEX(sample, MATCH(SMALL(COUNTIF(sample, "<"&sample), ROW(18:18)+30-COUNT(sample)), COUNTIF(sample, "<"&sample), 0))),"",INDEX(sample, MATCH(SMALL(COUNTIF(sample, "<"&sample), ROW(18:18)+30-COUNT(sample)), COUNTIF(sample, "<"&sample), 0))) -> 
G20: =IF(ISERROR(INDEX(sample, MATCH(SMALL(COUNTIF(sample, "<"&sample), ROW(19:19)+30-COUNT(sample)), COUNTIF(sample, "<"&sample), 0))),"",INDEX(sample, MATCH(SMALL(COUNTIF(sample, "<"&sample), ROW(19:19)+30-COUNT(sample)), COUNTIF(sample, "<"&sample), 0))) -> 
G21: =IF(ISERROR(INDEX(sample, MATCH(SMALL(COUNTIF(sample, "<"&sample), ROW(20:20)+30-COUNT(sample)), COUNTIF(sample, "<"&sample), 0))),"",INDEX(sample, MATCH(SMALL(COUNTIF(sample, "<"&sample), ROW(20:20)+30-COUNT(sample)), COUNTIF(sample, "<"&sample), 0))) -> 
G22: =IF(ISERROR(INDEX(sample, MATCH(SMALL(COUNTIF(sample, "<"&sample), ROW(21:21)+30-COUNT(sample)), COUNTIF(sample, "<"&sample), 0))),"",INDEX(sample, MATCH(SMALL(COUNTIF(sample, "<"&sample), ROW(21:21)+30-COUNT(sample)), COUNTIF(sample, "<"&sample), 0))) -> 
G23: =IF(ISERROR(INDEX(sample, MATCH(SMALL(COUNTIF(sample, "<"&sample), ROW(22:22)+30-COUNT(sample)), COUNTIF(sample, "<"&sample), 0))),"",INDEX(sample, MATCH(SMALL(COUNTIF(sample, "<"&sample), ROW(22:22)+30-COUNT(sample)), COUNTIF(sample, "<"&sample), 0))) -> 
G24: =IF(ISERROR(INDEX(sample, MATCH(SMALL(COUNTIF(sample, "<"&sample), ROW(23:23)+30-COUNT(sample)), COUNTIF(sample, "<"&sample), 0))),"",INDEX(sample, MATCH(SMALL(COUNTIF(sample, "<"&sample), ROW(23:23)+30-COUNT(sample)), COUNTIF(sample, "<"&sample), 0))) -> 
G25: =IF(ISERROR(INDEX(sample, MATCH(SMALL(COUNTIF(sample, "<"&sample), ROW(24:24)+30-COUNT(sample)), COUNTIF(sample, "<"&sample), 0))),"",INDEX(sample, MATCH(SMALL(COUNTIF(sample, "<"&sample), ROW(24:24)+30-COUNT(sample)), COUNTIF(sample, "<"&sample), 0))) -> 
G26: =IF(ISERROR(INDEX(sample, MATCH(SMALL(COUNTIF(sample, "<"&sample), ROW(25:25)+30-COUNT(sample)), COUNTIF(sample, "<"&sample), 0))),"",INDEX(sample, MATCH(SMALL(COUNTIF(sample, "<"&sample), ROW(25:25)+30-COUNT(sample)), COUNTIF(sample, "<"&sample), 0))) -> 
G27: =IF(ISERROR(INDEX(sample, MATCH(SMALL(COUNTIF(sample, "<"&sample), ROW(26:26)+30-COUNT(sample)), COUNTIF(sample, "<"&sample), 0))),"",INDEX(sample, MATCH(SMALL(COUNTIF(sample, "<"&sample), ROW(26:26)+30-COUNT(sample)), COUNTIF(sample, "<"&sample), 0))) -> 
G28: =IF(ISERROR(INDEX(sample, MATCH(SMALL(COUNTIF(sample, "<"&sample), ROW(27:27)+30-COUNT(sample)), COUNTIF(sample, "<"&sample), 0))),"",INDEX(sample, MATCH(SMALL(COUNTIF(sample, "<"&sample), ROW(27:27)+30-COUNT(sample)), COUNTIF(sample, "<"&sample), 0))) -> 
G29: =IF(ISERROR(INDEX(sample, MATCH(SMALL(COUNTIF(sample, "<"&sample), ROW(28:28)+30-COUNT(sample)), COUNTIF(sample, "<"&sample), 0))),"",INDEX(sample, MATCH(SMALL(COUNTIF(sample, "<"&sample), ROW(28:28)+30-COUNT(sample)), COUNTIF(sample, "<"&sample), 0))) -> 
G30: =IF(ISERROR(INDEX(sample, MATCH(SMALL(COUNTIF(sample, "<"&sample), ROW(29:29)+30-COUNT(sample)), COUNTIF(sample, "<"&sample), 0))),"",INDEX(sample, MATCH(SMALL(COUNTIF(sample, "<"&sample), ROW(29:29)+30-COUNT(sample)), COUNTIF(sample, "<"&sample), 0))) -> 
G31: =IF(ISERROR(INDEX(sample, MATCH(SMALL(COUNTIF(sample, "<"&sample), ROW(30:30)+30-COUNT(sample)), COUNTIF(sample, "<"&sample), 0))),"",INDEX(sample, MATCH(SMALL(COUNTIF(sample, "<"&sample), ROW(30:30)+30-COUNT(sample)), COUNTIF(sample, "<"&sample), 0))) -> 

Sheet histogram
A1: Sample | B1: Sorted unique values | C1: Freq with 0 | D1: Freq. | E1: Rel. freq. | F1: Cum. rel. freq. | G1: RF (fract.) | H1: Cum. RF (fract.) | T1: Written by Peter Nagy
A2: 7 | B2: =INDEX(tbl,SMALL(IF(SMALL(IF(COUNTIF($B$1:B1,tbl)+ISBLANK(tbl)=0,COUNTIF(tbl,"<"&tbl)+1,""),1)=IF(ISBLANK(tbl),"",COUNTIF(tbl,"<"&tbl)+1),ROW(tbl)-MIN(ROW(tbl))+1),1),MATCH(MIN(IF(COUNTIF($B$1:B1,tbl)+ISBLANK(tbl)>0,"",COUNTIF(tbl,"<"&tbl)+1)),INDEX(IF(ISBLANK(tbl),"",COUNTIF(tbl,"<"&tbl)+1),SMALL(IF(SMALL(IF(COUNTIF($B$1:B1,tbl)+ISBLANK(tbl)=0,COUNTIF(tbl,"<"&tbl)+1,""),1)=IF(ISBLANK(tbl),"",COUNTIF(tbl,"<"&tbl)+1),ROW(tbl)-MIN(ROW(tbl))+1),1),,1),0),1) -> 4 | C2: =FREQUENCY(A2:A101,B2:B101) -> 1 | D2: =IF(ISNUMBER(B2),C2,"") -> 1 | E2: =IF(D2<>"",D2/COUNTA(tbl),"") -> 0.1 | F2: =IF(E2<>"",SUM(E$2:E2),"") -> 0.1 | G2: =IF(E2<>"",CONCATENATE(D2,"/",SUM(nonempty_freq)),"") -> 1/10 | H2: =IF(E2<>"",CONCATENATE(SUM(D$2:D2),"/",SUM(nonempty_freq)),"") -> 1/10 | T2: peter.v.nagy@gmail.com | U2: =CONCATENATE(D2,", ",G2) -> 1, 1/10 | V2: =CONCATENATE(B2,", ",H2) -> 4, 1/10
A3: 4 | B3: =INDEX(tbl,SMALL(IF(SMALL(IF(COUNTIF($B$1:B2,tbl)+ISBLANK(tbl)=0,COUNTIF(tbl,"<"&tbl)+1,""),1)=IF(ISBLANK(tbl),"",COUNTIF(tbl,"<"&tbl)+1),ROW(tbl)-MIN(ROW(tbl))+1),1),MATCH(MIN(IF(COUNTIF($B$1:B2,tbl)+ISBLANK(tbl)>0,"",COUNTIF(tbl,"<"&tbl)+1)),INDEX(IF(ISBLANK(tbl),"",COUNTIF(tbl,"<"&tbl)+1),SMALL(IF(SMALL(IF(COUNTIF($B$1:B2,tbl)+ISBLANK(tbl)=0,COUNTIF(tbl,"<"&tbl)+1,""),1)=IF(ISBLANK(tbl),"",COUNTIF(tbl,"<"&tbl)+1),ROW(tbl)-MIN(ROW(tbl))+1),1),,1),0),1) -> 5 | C3: 3 | D3: =IF(ISNUMBER(B3),C3,"") -> 3 | E3: =IF(D3<>"",D3/COUNTA(tbl),"") -> 0.3 | F3: =IF(E3<>"",SUM(E$2:E3),"") -> 0.4 | G3: 3/10 | H3: =IF(E3<>"",CONCATENATE(SUM(D$2:D3),"/",SUM(nonempty_freq)),"") -> 4/10 | U3: =CONCATENATE(D3,", ",G3) -> 3, 3/10 | V3: =CONCATENATE(B3,", ",H3) -> 5, 4/10
A4: 5 | B4: =INDEX(tbl,SMALL(IF(SMALL(IF(COUNTIF($B$1:B3,tbl)+ISBLANK(tbl)=0,COUNTIF(tbl,"<"&tbl)+1,""),1)=IF(ISBLANK(tbl),"",COUNTIF(tbl,"<"&tbl)+1),ROW(tbl)-MIN(ROW(tbl))+1),1),MATCH(MIN(IF(COUNTIF($B$1:B3,tbl)+ISBLANK(tbl)>0,"",COUNTIF(tbl,"<"&tbl)+1)),INDEX(IF(ISBLANK(tbl),"",COUNTIF(tbl,"<"&tbl)+1),SMALL(IF(SMALL(IF(COUNTIF($B$1:B3,tbl)+ISBLANK(tbl)=0,COUNTIF(tbl,"<"&tbl)+1,""),1)=IF(ISBLANK(tbl),"",COUNTIF(tbl,"<"&tbl)+1),ROW(tbl)-MIN(ROW(tbl))+1),1),,1),0),1) -> 6 | C4: 3 | D4: 3 | E4: =IF(D4<>"",D4/COUNTA(tbl),"") -> 0.3 | F4: =IF(E4<>"",SUM(E$2:E4),"") -> 0.7 | G4: 3/10 | H4: =IF(E4<>"",CONCATENATE(SUM(D$2:D4),"/",SUM(nonempty_freq)),"") -> 7/10 | U4: 3, 3/10 | V4: 6, 7/10
A5: 6 | B5: =INDEX(tbl,SMALL(IF(SMALL(IF(COUNTIF($B$1:B4,tbl)+ISBLANK(tbl)=0,COUNTIF(tbl,"<"&tbl)+1,""),1)=IF(ISBLANK(tbl),"",COUNTIF(tbl,"<"&tbl)+1),ROW(tbl)-MIN(ROW(tbl))+1),1),MATCH(MIN(IF(COUNTIF($B$1:B4,tbl)+ISBLANK(tbl)>0,"",COUNTIF(tbl,"<"&tbl)+1)),INDEX(IF(ISBLANK(tbl),"",COUNTIF(tbl,"<"&tbl)+1),SMALL(IF(SMALL(IF(COUNTIF($B$1:B4,tbl)+ISBLANK(tbl)=0,COUNTIF(tbl,"<"&tbl)+1,""),1)=IF(ISBLANK(tbl),"",COUNTIF(tbl,"<"&tbl)+1),ROW(tbl)-MIN(ROW(tbl))+1),1),,1),0),1) -> 7 | C5: 2 | D5: 2 | E5: =IF(D5<>"",D5/COUNTA(tbl),"") -> 0.2 | F5: =IF(E5<>"",SUM(E$2:E5),"") -> 0.9 | G5: 2/10 | H5: =IF(E5<>"",CONCATENATE(SUM(D$2:D5),"/",SUM(nonempty_freq)),"") -> 9/10 | U5: 2, 2/10 | V5: 7, 9/10
A6: 5 | B6: =INDEX(tbl,SMALL(IF(SMALL(IF(COUNTIF($B$1:B5,tbl)+ISBLANK(tbl)=0,COUNTIF(tbl,"<"&tbl)+1,""),1)=IF(ISBLANK(tbl),"",COUNTIF(tbl,"<"&tbl)+1),ROW(tbl)-MIN(ROW(tbl))+1),1),MATCH(MIN(IF(COUNTIF($B$1:B5,tbl)+ISBLANK(tbl)>0,"",COUNTIF(tbl,"<"&tbl)+1)),INDEX(IF(ISBLANK(tbl),"",COUNTIF(tbl,"<"&tbl)+1),SMALL(IF(SMALL(IF(COUNTIF($B$1:B5,tbl)+ISBLANK(tbl)=0,COUNTIF(tbl,"<"&tbl)+1,""),1)=IF(ISBLANK(tbl),"",COUNTIF(tbl,"<"&tbl)+1),ROW(tbl)-MIN(ROW(tbl))+1),1),,1),0),1) -> 8 | C6: 1 | D6: 1 | E6: =IF(D6<>"",D6/COUNTA(tbl),"") -> 0.1 | F6: =IF(E6<>"",SUM(E$2:E6),"") -> 1 | G6: 1/10 | H6: =IF(E6<>"",CONCATENATE(SUM(D$2:D6),"/",SUM(nonempty_freq)),"") -> 10/10 | U6: 1, 1/10 | V6: 8, 10/10
A7: 8 | B7: =INDEX(tbl,SMALL(IF(SMALL(IF(COUNTIF($B$1:B6,tbl)+ISBLANK(tbl)=0,COUNTIF(tbl,"<"&tbl)+1,""),1)=IF(ISBLANK(tbl),"",COUNTIF(tbl,"<"&tbl)+1),ROW(tbl)-MIN(ROW(tbl))+1),1),MATCH(MIN(IF(COUNTIF($B$1:B6,tbl)+ISBLANK(tbl)>0,"",COUNTIF(tbl,"<"&tbl)+1)),INDEX(IF(ISBLANK(tbl),"",COUNTIF(tbl,"<"&tbl)+1),SMALL(IF(SMALL(IF(COUNTIF($B$1:B6,tbl)+ISBLANK(tbl)=0,COUNTIF(tbl,"<"&tbl)+1,""),1)=IF(ISBLANK(tbl),"",COUNTIF(tbl,"<"&tbl)+1),ROW(tbl)-MIN(ROW(tbl))+1),1),,1),0),1) ->  | C7: 0 | E7: =IF(D7<>"",D7/COUNTA(tbl),"") ->  | F7: =IF(E7<>"",SUM(E$2:E7),"") ->  | H7: =IF(E7<>"",CONCATENATE(SUM(D$2:D7),"/",SUM(nonempty_freq)),"") ->  | U7: ,
A8: 6 | B8: =INDEX(tbl,SMALL(IF(SMALL(IF(COUNTIF($B$1:B7,tbl)+ISBLANK(tbl)=0,COUNTIF(tbl,"<"&tbl)+1,""),1)=IF(ISBLANK(tbl),"",COUNTIF(tbl,"<"&tbl)+1),ROW(tbl)-MIN(ROW(tbl))+1),1),MATCH(MIN(IF(COUNTIF($B$1:B7,tbl)+ISBLANK(tbl)>0,"",COUNTIF(tbl,"<"&tbl)+1)),INDEX(IF(ISBLANK(tbl),"",COUNTIF(tbl,"<"&tbl)+1),SMALL(IF(SMALL(IF(COUNTIF($B$1:B7,tbl)+ISBLANK(tbl)=0,COUNTIF(tbl,"<"&tbl)+1,""),1)=IF(ISBLANK(tbl),"",COUNTIF(tbl,"<"&tbl)+1),ROW(tbl)-MIN(ROW(tbl))+1),1),,1),0),1) ->  | E8: =IF(D8<>"",D8/COUNTA(tbl),"") ->  | F8: =IF(E8<>"",SUM(E$2:E8),"") ->  | H8: =IF(E8<>"",CONCATENATE(SUM(D$2:D8),"/",SUM(nonempty_freq)),"") ->  | U8: ,
A9: 7 | B9: =INDEX(tbl,SMALL(IF(SMALL(IF(COUNTIF($B$1:B8,tbl)+ISBLANK(tbl)=0,COUNTIF(tbl,"<"&tbl)+1,""),1)=IF(ISBLANK(tbl),"",COUNTIF(tbl,"<"&tbl)+1),ROW(tbl)-MIN(ROW(tbl))+1),1),MATCH(MIN(IF(COUNTIF($B$1:B8,tbl)+ISBLANK(tbl)>0,"",COUNTIF(tbl,"<"&tbl)+1)),INDEX(IF(ISBLANK(tbl),"",COUNTIF(tbl,"<"&tbl)+1),SMALL(IF(SMALL(IF(COUNTIF($B$1:B8,tbl)+ISBLANK(tbl)=0,COUNTIF(tbl,"<"&tbl)+1,""),1)=IF(ISBLANK(tbl),"",COUNTIF(tbl,"<"&tbl)+1),ROW(tbl)-MIN(ROW(tbl))+1),1),,1),0),1) ->  | E9: =IF(D9<>"",D9/COUNTA(tbl),"") ->  | F9: =IF(E9<>"",SUM(E$2:E9),"") ->  | H9: =IF(E9<>"",CONCATENATE(SUM(D$2:D9),"/",SUM(nonempty_freq)),"") ->  | U9: ,
A10: 5 | B10: =INDEX(tbl,SMALL(IF(SMALL(IF(COUNTIF($B$1:B9,tbl)+ISBLANK(tbl)=0,COUNTIF(tbl,"<"&tbl)+1,""),1)=IF(ISBLANK(tbl),"",COUNTIF(tbl,"<"&tbl)+1),ROW(tbl)-MIN(ROW(tbl))+1),1),MATCH(MIN(IF(COUNTIF($B$1:B9,tbl)+ISBLANK(tbl)>0,"",COUNTIF(tbl,"<"&tbl)+1)),INDEX(IF(ISBLANK(tbl),"",COUNTIF(tbl,"<"&tbl)+1),SMALL(IF(SMALL(IF(COUNTIF($B$1:B9,tbl)+ISBLANK(tbl)=0,COUNTIF(tbl,"<"&tbl)+1,""),1)=IF(ISBLANK(tbl),"",COUNTIF(tbl,"<"&tbl)+1),ROW(tbl)-MIN(ROW(tbl))+1),1),,1),0),1) ->  | E10: =IF(D10<>"",D10/COUNTA(tbl),"") ->  | F10: =IF(E10<>"",SUM(E$2:E10),"") ->  | H10: =IF(E10<>"",CONCATENATE(SUM(D$2:D10),"/",SUM(nonempty_freq)),"") ->  | U10: ,
A11: 6 | B11: =INDEX(tbl,SMALL(IF(SMALL(IF(COUNTIF($B$1:B10,tbl)+ISBLANK(tbl)=0,COUNTIF(tbl,"<"&tbl)+1,""),1)=IF(ISBLANK(tbl),"",COUNTIF(tbl,"<"&tbl)+1),ROW(tbl)-MIN(ROW(tbl))+1),1),MATCH(MIN(IF(COUNTIF($B$1:B10,tbl)+ISBLANK(tbl)>0,"",COUNTIF(tbl,"<"&tbl)+1)),INDEX(IF(ISBLANK(tbl),"",COUNTIF(tbl,"<"&tbl)+1),SMALL(IF(SMALL(IF(COUNTIF($B$1:B10,tbl)+ISBLANK(tbl)=0,COUNTIF(tbl,"<"&tbl)+1,""),1)=IF(ISBLANK(tbl),"",COUNTIF(tbl,"<"&tbl)+1),ROW(tbl)-MIN(ROW(tbl))+1),1),,1),0),1) ->  | E11: =IF(D11<>"",D11/COUNTA(tbl),"") ->  | F11: =IF(E11<>"",SUM(E$2:E11),"") ->  | H11: =IF(E11<>"",CONCATENATE(SUM(D$2:D11),"/",SUM(nonempty_freq)),"") ->  | U11: ,
B12: =INDEX(tbl,SMALL(IF(SMALL(IF(COUNTIF($B$1:B11,tbl)+ISBLANK(tbl)=0,COUNTIF(tbl,"<"&tbl)+1,""),1)=IF(ISBLANK(tbl),"",COUNTIF(tbl,"<"&tbl)+1),ROW(tbl)-MIN(ROW(tbl))+1),1),MATCH(MIN(IF(COUNTIF($B$1:B11,tbl)+ISBLANK(tbl)>0,"",COUNTIF(tbl,"<"&tbl)+1)),INDEX(IF(ISBLANK(tbl),"",COUNTIF(tbl,"<"&tbl)+1),SMALL(IF(SMALL(IF(COUNTIF($B$1:B11,tbl)+ISBLANK(tbl)=0,COUNTIF(tbl,"<"&tbl)+1,""),1)=IF(ISBLANK(tbl),"",COUNTIF(tbl,"<"&tbl)+1),ROW(tbl)-MIN(ROW(tbl))+1),1),,1),0),1) ->  | E12: =IF(D12<>"",D12/COUNTA(tbl),"") ->  | F12: =IF(E12<>"",SUM(E$2:E12),"") ->  | H12: =IF(E12<>"",CONCATENATE(SUM(D$2:D12),"/",SUM(nonempty_freq)),"") ->  | U12: ,
B13: =INDEX(tbl,SMALL(IF(SMALL(IF(COUNTIF($B$1:B12,tbl)+ISBLANK(tbl)=0,COUNTIF(tbl,"<"&tbl)+1,""),1)=IF(ISBLANK(tbl),"",COUNTIF(tbl,"<"&tbl)+1),ROW(tbl)-MIN(ROW(tbl))+1),1),MATCH(MIN(IF(COUNTIF($B$1:B12,tbl)+ISBLANK(tbl)>0,"",COUNTIF(tbl,"<"&tbl)+1)),INDEX(IF(ISBLANK(tbl),"",COUNTIF(tbl,"<"&tbl)+1),SMALL(IF(SMALL(IF(COUNTIF($B$1:B12,tbl)+ISBLANK(tbl)=0,COUNTIF(tbl,"<"&tbl)+1,""),1)=IF(ISBLANK(tbl),"",COUNTIF(tbl,"<"&tbl)+1),ROW(tbl)-MIN(ROW(tbl))+1),1),,1),0),1) ->  | E13: =IF(D13<>"",D13/COUNTA(tbl),"") ->  | F13: =IF(E13<>"",SUM(E$2:E13),"") ->  | H13: =IF(E13<>"",CONCATENATE(SUM(D$2:D13),"/",SUM(nonempty_freq)),"") ->  | U13: ,
B14: =INDEX(tbl,SMALL(IF(SMALL(IF(COUNTIF($B$1:B13,tbl)+ISBLANK(tbl)=0,COUNTIF(tbl,"<"&tbl)+1,""),1)=IF(ISBLANK(tbl),"",COUNTIF(tbl,"<"&tbl)+1),ROW(tbl)-MIN(ROW(tbl))+1),1),MATCH(MIN(IF(COUNTIF($B$1:B13,tbl)+ISBLANK(tbl)>0,"",COUNTIF(tbl,"<"&tbl)+1)),INDEX(IF(ISBLANK(tbl),"",COUNTIF(tbl,"<"&tbl)+1),SMALL(IF(SMALL(IF(COUNTIF($B$1:B13,tbl)+ISBLANK(tbl)=0,COUNTIF(tbl,"<"&tbl)+1,""),1)=IF(ISBLANK(tbl),"",COUNTIF(tbl,"<"&tbl)+1),ROW(tbl)-MIN(ROW(tbl))+1),1),,1),0),1) ->  | E14: =IF(D14<>"",D14/COUNTA(tbl),"") ->  | F14: =IF(E14<>"",SUM(E$2:E14),"") ->  | H14: =IF(E14<>"",CONCATENATE(SUM(D$2:D14),"/",SUM(nonempty_freq)),"") ->  | U14: ,
B15: =INDEX(tbl,SMALL(IF(SMALL(IF(COUNTIF($B$1:B14,tbl)+ISBLANK(tbl)=0,COUNTIF(tbl,"<"&tbl)+1,""),1)=IF(ISBLANK(tbl),"",COUNTIF(tbl,"<"&tbl)+1),ROW(tbl)-MIN(ROW(tbl))+1),1),MATCH(MIN(IF(COUNTIF($B$1:B14,tbl)+ISBLANK(tbl)>0,"",COUNTIF(tbl,"<"&tbl)+1)),INDEX(IF(ISBLANK(tbl),"",COUNTIF(tbl,"<"&tbl)+1),SMALL(IF(SMALL(IF(COUNTIF($B$1:B14,tbl)+ISBLANK(tbl)=0,COUNTIF(tbl,"<"&tbl)+1,""),1)=IF(ISBLANK(tbl),"",COUNTIF(tbl,"<"&tbl)+1),ROW(tbl)-MIN(ROW(tbl))+1),1),,1),0),1) ->  | E15: =IF(D15<>"",D15/COUNTA(tbl),"") ->  | F15: =IF(E15<>"",SUM(E$2:E15),"") ->  | H15: =IF(E15<>"",CONCATENATE(SUM(D$2:D15),"/",SUM(nonempty_freq)),"") ->  | U15: ,
B16: =INDEX(tbl,SMALL(IF(SMALL(IF(COUNTIF($B$1:B15,tbl)+ISBLANK(tbl)=0,COUNTIF(tbl,"<"&tbl)+1,""),1)=IF(ISBLANK(tbl),"",COUNTIF(tbl,"<"&tbl)+1),ROW(tbl)-MIN(ROW(tbl))+1),1),MATCH(MIN(IF(COUNTIF($B$1:B15,tbl)+ISBLANK(tbl)>0,"",COUNTIF(tbl,"<"&tbl)+1)),INDEX(IF(ISBLANK(tbl),"",COUNTIF(tbl,"<"&tbl)+1),SMALL(IF(SMALL(IF(COUNTIF($B$1:B15,tbl)+ISBLANK(tbl)=0,COUNTIF(tbl,"<"&tbl)+1,""),1)=IF(ISBLANK(tbl),"",COUNTIF(tbl,"<"&tbl)+1),ROW(tbl)-MIN(ROW(tbl))+1),1),,1),0),1) ->  | E16: =IF(D16<>"",D16/COUNTA(tbl),"") ->  | F16: =IF(E16<>"",SUM(E$2:E16),"") ->  | H16: =IF(E16<>"",CONCATENATE(SUM(D$2:D16),"/",SUM(nonempty_freq)),"") ->  | U16: ,
B17: =INDEX(tbl,SMALL(IF(SMALL(IF(COUNTIF($B$1:B16,tbl)+ISBLANK(tbl)=0,COUNTIF(tbl,"<"&tbl)+1,""),1)=IF(ISBLANK(tbl),"",COUNTIF(tbl,"<"&tbl)+1),ROW(tbl)-MIN(ROW(tbl))+1),1),MATCH(MIN(IF(COUNTIF($B$1:B16,tbl)+ISBLANK(tbl)>0,"",COUNTIF(tbl,"<"&tbl)+1)),INDEX(IF(ISBLANK(tbl),"",COUNTIF(tbl,"<"&tbl)+1),SMALL(IF(SMALL(IF(COUNTIF($B$1:B16,tbl)+ISBLANK(tbl)=0,COUNTIF(tbl,"<"&tbl)+1,""),1)=IF(ISBLANK(tbl),"",COUNTIF(tbl,"<"&tbl)+1),ROW(tbl)-MIN(ROW(tbl))+1),1),,1),0),1) ->  | E17: =IF(D17<>"",D17/COUNTA(tbl),"") ->  | F17: =IF(E17<>"",SUM(E$2:E17),"") ->  | H17: =IF(E17<>"",CONCATENATE(SUM(D$2:D17),"/",SUM(nonempty_freq)),"") ->  | U17: ,
B18: =INDEX(tbl,SMALL(IF(SMALL(IF(COUNTIF($B$1:B17,tbl)+ISBLANK(tbl)=0,COUNTIF(tbl,"<"&tbl)+1,""),1)=IF(ISBLANK(tbl),"",COUNTIF(tbl,"<"&tbl)+1),ROW(tbl)-MIN(ROW(tbl))+1),1),MATCH(MIN(IF(COUNTIF($B$1:B17,tbl)+ISBLANK(tbl)>0,"",COUNTIF(tbl,"<"&tbl)+1)),INDEX(IF(ISBLANK(tbl),"",COUNTIF(tbl,"<"&tbl)+1),SMALL(IF(SMALL(IF(COUNTIF($B$1:B17,tbl)+ISBLANK(tbl)=0,COUNTIF(tbl,"<"&tbl)+1,""),1)=IF(ISBLANK(tbl),"",COUNTIF(tbl,"<"&tbl)+1),ROW(tbl)-MIN(ROW(tbl))+1),1),,1),0),1) ->  | E18: =IF(D18<>"",D18/COUNTA(tbl),"") ->  | F18: =IF(E18<>"",SUM(E$2:E18),"") ->  | H18: =IF(E18<>"",CONCATENATE(SUM(D$2:D18),"/",SUM(nonempty_freq)),"") ->  | U18: ,
B19: =INDEX(tbl,SMALL(IF(SMALL(IF(COUNTIF($B$1:B18,tbl)+ISBLANK(tbl)=0,COUNTIF(tbl,"<"&tbl)+1,""),1)=IF(ISBLANK(tbl),"",COUNTIF(tbl,"<"&tbl)+1),ROW(tbl)-MIN(ROW(tbl))+1),1),MATCH(MIN(IF(COUNTIF($B$1:B18,tbl)+ISBLANK(tbl)>0,"",COUNTIF(tbl,"<"&tbl)+1)),INDEX(IF(ISBLANK(tbl),"",COUNTIF(tbl,"<"&tbl)+1),SMALL(IF(SMALL(IF(COUNTIF($B$1:B18,tbl)+ISBLANK(tbl)=0,COUNTIF(tbl,"<"&tbl)+1,""),1)=IF(ISBLANK(tbl),"",COUNTIF(tbl,"<"&tbl)+1),ROW(tbl)-MIN(ROW(tbl))+1),1),,1),0),1) ->  | E19: =IF(D19<>"",D19/COUNTA(tbl),"") ->  | F19: =IF(E19<>"",SUM(E$2:E19),"") ->  | H19: =IF(E19<>"",CONCATENATE(SUM(D$2:D19),"/",SUM(nonempty_freq)),"") ->  | U19: ,
B20: =INDEX(tbl,SMALL(IF(SMALL(IF(COUNTIF($B$1:B19,tbl)+ISBLANK(tbl)=0,COUNTIF(tbl,"<"&tbl)+1,""),1)=IF(ISBLANK(tbl),"",COUNTIF(tbl,"<"&tbl)+1),ROW(tbl)-MIN(ROW(tbl))+1),1),MATCH(MIN(IF(COUNTIF($B$1:B19,tbl)+ISBLANK(tbl)>0,"",COUNTIF(tbl,"<"&tbl)+1)),INDEX(IF(ISBLANK(tbl),"",COUNTIF(tbl,"<"&tbl)+1),SMALL(IF(SMALL(IF(COUNTIF($B$1:B19,tbl)+ISBLANK(tbl)=0,COUNTIF(tbl,"<"&tbl)+1,""),1)=IF(ISBLANK(tbl),"",COUNTIF(tbl,"<"&tbl)+1),ROW(tbl)-MIN(ROW(tbl))+1),1),,1),0),1) ->  | E20: =IF(D20<>"",D20/COUNTA(tbl),"") ->  | F20: =IF(E20<>"",SUM(E$2:E20),"") ->  | H20: =IF(E20<>"",CONCATENATE(SUM(D$2:D20),"/",SUM(nonempty_freq)),"") ->  | U20: ,
B21: =INDEX(tbl,SMALL(IF(SMALL(IF(COUNTIF($B$1:B20,tbl)+ISBLANK(tbl)=0,COUNTIF(tbl,"<"&tbl)+1,""),1)=IF(ISBLANK(tbl),"",COUNTIF(tbl,"<"&tbl)+1),ROW(tbl)-MIN(ROW(tbl))+1),1),MATCH(MIN(IF(COUNTIF($B$1:B20,tbl)+ISBLANK(tbl)>0,"",COUNTIF(tbl,"<"&tbl)+1)),INDEX(IF(ISBLANK(tbl),"",COUNTIF(tbl,"<"&tbl)+1),SMALL(IF(SMALL(IF(COUNTIF($B$1:B20,tbl)+ISBLANK(tbl)=0,COUNTIF(tbl,"<"&tbl)+1,""),1)=IF(ISBLANK(tbl),"",COUNTIF(tbl,"<"&tbl)+1),ROW(tbl)-MIN(ROW(tbl))+1),1),,1),0),1) ->  | E21: =IF(D21<>"",D21/COUNTA(tbl),"") ->  | F21: =IF(E21<>"",SUM(E$2:E21),"") ->  | H21: =IF(E21<>"",CONCATENATE(SUM(D$2:D21),"/",SUM(nonempty_freq)),"") ->  | U21: ,
B22: =INDEX(tbl,SMALL(IF(SMALL(IF(COUNTIF($B$1:B21,tbl)+ISBLANK(tbl)=0,COUNTIF(tbl,"<"&tbl)+1,""),1)=IF(ISBLANK(tbl),"",COUNTIF(tbl,"<"&tbl)+1),ROW(tbl)-MIN(ROW(tbl))+1),1),MATCH(MIN(IF(COUNTIF($B$1:B21,tbl)+ISBLANK(tbl)>0,"",COUNTIF(tbl,"<"&tbl)+1)),INDEX(IF(ISBLANK(tbl),"",COUNTIF(tbl,"<"&tbl)+1),SMALL(IF(SMALL(IF(COUNTIF($B$1:B21,tbl)+ISBLANK(tbl)=0,COUNTIF(tbl,"<"&tbl)+1,""),1)=IF(ISBLANK(tbl),"",COUNTIF(tbl,"<"&tbl)+1),ROW(tbl)-MIN(ROW(tbl))+1),1),,1),0),1) ->  | E22: =IF(D22<>"",D22/COUNTA(tbl),"") ->  | F22: =IF(E22<>"",SUM(E$2:E22),"") ->  | H22: =IF(E22<>"",CONCATENATE(SUM(D$2:D22),"/",SUM(nonempty_freq)),"") ->  | L22: Update cumulative relative frequency chart with CTRL+u | U22: ,
B23: =INDEX(tbl,SMALL(IF(SMALL(IF(COUNTIF($B$1:B22,tbl)+ISBLANK(tbl)=0,COUNTIF(tbl,"<"&tbl)+1,""),1)=IF(ISBLANK(tbl),"",COUNTIF(tbl,"<"&tbl)+1),ROW(tbl)-MIN(ROW(tbl))+1),1),MATCH(MIN(IF(COUNTIF($B$1:B22,tbl)+ISBLANK(tbl)>0,"",COUNTIF(tbl,"<"&tbl)+1)),INDEX(IF(ISBLANK(tbl),"",COUNTIF(tbl,"<"&tbl)+1),SMALL(IF(SMALL(IF(COUNTIF($B$1:B22,tbl)+ISBLANK(tbl)=0,COUNTIF(tbl,"<"&tbl)+1,""),1)=IF(ISBLANK(tbl),"",COUNTIF(tbl,"<"&tbl)+1),ROW(tbl)-MIN(ROW(tbl))+1),1),,1),0),1) ->  | E23: =IF(D23<>"",D23/COUNTA(tbl),"") ->  | F23: =IF(E23<>"",SUM(E$2:E23),"") ->  | H23: =IF(E23<>"",CONCATENATE(SUM(D$2:D23),"/",SUM(nonempty_freq)),"") ->  | U23: ,
B24: =INDEX(tbl,SMALL(IF(SMALL(IF(COUNTIF($B$1:B23,tbl)+ISBLANK(tbl)=0,COUNTIF(tbl,"<"&tbl)+1,""),1)=IF(ISBLANK(tbl),"",COUNTIF(tbl,"<"&tbl)+1),ROW(tbl)-MIN(ROW(tbl))+1),1),MATCH(MIN(IF(COUNTIF($B$1:B23,tbl)+ISBLANK(tbl)>0,"",COUNTIF(tbl,"<"&tbl)+1)),INDEX(IF(ISBLANK(tbl),"",COUNTIF(tbl,"<"&tbl)+1),SMALL(IF(SMALL(IF(COUNTIF($B$1:B23,tbl)+ISBLANK(tbl)=0,COUNTIF(tbl,"<"&tbl)+1,""),1)=IF(ISBLANK(tbl),"",COUNTIF(tbl,"<"&tbl)+1),ROW(tbl)-MIN(ROW(tbl))+1),1),,1),0),1) ->  | E24: =IF(D24<>"",D24/COUNTA(tbl),"") ->  | F24: =IF(E24<>"",SUM(E$2:E24),"") ->  | H24: =IF(E24<>"",CONCATENATE(SUM(D$2:D24),"/",SUM(nonempty_freq)),"") ->  | U24: ,
B25: =INDEX(tbl,SMALL(IF(SMALL(IF(COUNTIF($B$1:B24,tbl)+ISBLANK(tbl)=0,COUNTIF(tbl,"<"&tbl)+1,""),1)=IF(ISBLANK(tbl),"",COUNTIF(tbl,"<"&tbl)+1),ROW(tbl)-MIN(ROW(tbl))+1),1),MATCH(MIN(IF(COUNTIF($B$1:B24,tbl)+ISBLANK(tbl)>0,"",COUNTIF(tbl,"<"&tbl)+1)),INDEX(IF(ISBLANK(tbl),"",COUNTIF(tbl,"<"&tbl)+1),SMALL(IF(SMALL(IF(COUNTIF($B$1:B24,tbl)+ISBLANK(tbl)=0,COUNTIF(tbl,"<"&tbl)+1,""),1)=IF(ISBLANK(tbl),"",COUNTIF(tbl,"<"&tbl)+1),ROW(tbl)-MIN(ROW(tbl))+1),1),,1),0),1) ->  | E25: =IF(D25<>"",D25/COUNTA(tbl),"") ->  | F25: =IF(E25<>"",SUM(E$2:E25),"") ->  | H25: =IF(E25<>"",CONCATENATE(SUM(D$2:D25),"/",SUM(nonempty_freq)),"") ->  | U25: ,
B26: =INDEX(tbl,SMALL(IF(SMALL(IF(COUNTIF($B$1:B25,tbl)+ISBLANK(tbl)=0,COUNTIF(tbl,"<"&tbl)+1,""),1)=IF(ISBLANK(tbl),"",COUNTIF(tbl,"<"&tbl)+1),ROW(tbl)-MIN(ROW(tbl))+1),1),MATCH(MIN(IF(COUNTIF($B$1:B25,tbl)+ISBLANK(tbl)>0,"",COUNTIF(tbl,"<"&tbl)+1)),INDEX(IF(ISBLANK(tbl),"",COUNTIF(tbl,"<"&tbl)+1),SMALL(IF(SMALL(IF(COUNTIF($B$1:B25,tbl)+ISBLANK(tbl)=0,COUNTIF(tbl,"<"&tbl)+1,""),1)=IF(ISBLANK(tbl),"",COUNTIF(tbl,"<"&tbl)+1),ROW(tbl)-MIN(ROW(tbl))+1),1),,1),0),1) ->  | E26: =IF(D26<>"",D26/COUNTA(tbl),"") ->  | F26: =IF(E26<>"",SUM(E$2:E26),"") ->  | H26: =IF(E26<>"",CONCATENATE(SUM(D$2:D26),"/",SUM(nonempty_freq)),"") ->  | U26: ,
B27: =INDEX(tbl,SMALL(IF(SMALL(IF(COUNTIF($B$1:B26,tbl)+ISBLANK(tbl)=0,COUNTIF(tbl,"<"&tbl)+1,""),1)=IF(ISBLANK(tbl),"",COUNTIF(tbl,"<"&tbl)+1),ROW(tbl)-MIN(ROW(tbl))+1),1),MATCH(MIN(IF(COUNTIF($B$1:B26,tbl)+ISBLANK(tbl)>0,"",COUNTIF(tbl,"<"&tbl)+1)),INDEX(IF(ISBLANK(tbl),"",COUNTIF(tbl,"<"&tbl)+1),SMALL(IF(SMALL(IF(COUNTIF($B$1:B26,tbl)+ISBLANK(tbl)=0,COUNTIF(tbl,"<"&tbl)+1,""),1)=IF(ISBLANK(tbl),"",COUNTIF(tbl,"<"&tbl)+1),ROW(tbl)-MIN(ROW(tbl))+1),1),,1),0),1) ->  | E27: =IF(D27<>"",D27/COUNTA(tbl),"") ->  | F27: =IF(E27<>"",SUM(E$2:E27),"") ->  | H27: =IF(E27<>"",CONCATENATE(SUM(D$2:D27),"/",SUM(nonempty_freq)),"") ->  | U27: ,
B28: =INDEX(tbl,SMALL(IF(SMALL(IF(COUNTIF($B$1:B27,tbl)+ISBLANK(tbl)=0,COUNTIF(tbl,"<"&tbl)+1,""),1)=IF(ISBLANK(tbl),"",COUNTIF(tbl,"<"&tbl)+1),ROW(tbl)-MIN(ROW(tbl))+1),1),MATCH(MIN(IF(COUNTIF($B$1:B27,tbl)+ISBLANK(tbl)>0,"",COUNTIF(tbl,"<"&tbl)+1)),INDEX(IF(ISBLANK(tbl),"",COUNTIF(tbl,"<"&tbl)+1),SMALL(IF(SMALL(IF(COUNTIF($B$1:B27,tbl)+ISBLANK(tbl)=0,COUNTIF(tbl,"<"&tbl)+1,""),1)=IF(ISBLANK(tbl),"",COUNTIF(tbl,"<"&tbl)+1),ROW(tbl)-MIN(ROW(tbl))+1),1),,1),0),1) ->  | E28: =IF(D28<>"",D28/COUNTA(tbl),"") ->  | F28: =IF(E28<>"",SUM(E$2:E28),"") ->  | H28: =IF(E28<>"",CONCATENATE(SUM(D$2:D28),"/",SUM(nonempty_freq)),"") ->  | U28: ,
B29: =INDEX(tbl,SMALL(IF(SMALL(IF(COUNTIF($B$1:B28,tbl)+ISBLANK(tbl)=0,COUNTIF(tbl,"<"&tbl)+1,""),1)=IF(ISBLANK(tbl),"",COUNTIF(tbl,"<"&tbl)+1),ROW(tbl)-MIN(ROW(tbl))+1),1),MATCH(MIN(IF(COUNTIF($B$1:B28,tbl)+ISBLANK(tbl)>0,"",COUNTIF(tbl,"<"&tbl)+1)),INDEX(IF(ISBLANK(tbl),"",COUNTIF(tbl,"<"&tbl)+1),SMALL(IF(SMALL(IF(COUNTIF($B$1:B28,tbl)+ISBLANK(tbl)=0,COUNTIF(tbl,"<"&tbl)+1,""),1)=IF(ISBLANK(tbl),"",COUNTIF(tbl,"<"&tbl)+1),ROW(tbl)-MIN(ROW(tbl))+1),1),,1),0),1) ->  | E29: =IF(D29<>"",D29/COUNTA(tbl),"") ->  | F29: =IF(E29<>"",SUM(E$2:E29),"") ->  | H29: =IF(E29<>"",CONCATENATE(SUM(D$2:D29),"/",SUM(nonempty_freq)),"") ->  | U29: ,
B30: =INDEX(tbl,SMALL(IF(SMALL(IF(COUNTIF($B$1:B29,tbl)+ISBLANK(tbl)=0,COUNTIF(tbl,"<"&tbl)+1,""),1)=IF(ISBLANK(tbl),"",COUNTIF(tbl,"<"&tbl)+1),ROW(tbl)-MIN(ROW(tbl))+1),1),MATCH(MIN(IF(COUNTIF($B$1:B29,tbl)+ISBLANK(tbl)>0,"",COUNTIF(tbl,"<"&tbl)+1)),INDEX(IF(ISBLANK(tbl),"",COUNTIF(tbl,"<"&tbl)+1),SMALL(IF(SMALL(IF(COUNTIF($B$1:B29,tbl)+ISBLANK(tbl)=0,COUNTIF(tbl,"<"&tbl)+1,""),1)=IF(ISBLANK(tbl),"",COUNTIF(tbl,"<"&tbl)+1),ROW(tbl)-MIN(ROW(tbl))+1),1),,1),0),1) ->  | E30: =IF(D30<>"",D30/COUNTA(tbl),"") ->  | F30: =IF(E30<>"",SUM(E$2:E30),"") ->  | H30: =IF(E30<>"",CONCATENATE(SUM(D$2:D30),"/",SUM(nonempty_freq)),"") ->  | U30: ,
B31: =INDEX(tbl,SMALL(IF(SMALL(IF(COUNTIF($B$1:B30,tbl)+ISBLANK(tbl)=0,COUNTIF(tbl,"<"&tbl)+1,""),1)=IF(ISBLANK(tbl),"",COUNTIF(tbl,"<"&tbl)+1),ROW(tbl)-MIN(ROW(tbl))+1),1),MATCH(MIN(IF(COUNTIF($B$1:B30,tbl)+ISBLANK(tbl)>0,"",COUNTIF(tbl,"<"&tbl)+1)),INDEX(IF(ISBLANK(tbl),"",COUNTIF(tbl,"<"&tbl)+1),SMALL(IF(SMALL(IF(COUNTIF($B$1:B30,tbl)+ISBLANK(tbl)=0,COUNTIF(tbl,"<"&tbl)+1,""),1)=IF(ISBLANK(tbl),"",COUNTIF(tbl,"<"&tbl)+1),ROW(tbl)-MIN(ROW(tbl))+1),1),,1),0),1) ->  | E31: =IF(D31<>"",D31/COUNTA(tbl),"") ->  | F31: =IF(E31<>"",SUM(E$2:E31),"") ->  | H31: =IF(E31<>"",CONCATENATE(SUM(D$2:D31),"/",SUM(nonempty_freq)),"") ->  | U31: ,
B32: =INDEX(tbl,SMALL(IF(SMALL(IF(COUNTIF($B$1:B31,tbl)+ISBLANK(tbl)=0,COUNTIF(tbl,"<"&tbl)+1,""),1)=IF(ISBLANK(tbl),"",COUNTIF(tbl,"<"&tbl)+1),ROW(tbl)-MIN(ROW(tbl))+1),1),MATCH(MIN(IF(COUNTIF($B$1:B31,tbl)+ISBLANK(tbl)>0,"",COUNTIF(tbl,"<"&tbl)+1)),INDEX(IF(ISBLANK(tbl),"",COUNTIF(tbl,"<"&tbl)+1),SMALL(IF(SMALL(IF(COUNTIF($B$1:B31,tbl)+ISBLANK(tbl)=0,COUNTIF(tbl,"<"&tbl)+1,""),1)=IF(ISBLANK(tbl),"",COUNTIF(tbl,"<"&tbl)+1),ROW(tbl)-MIN(ROW(tbl))+1),1),,1),0),1) ->  | E32: =IF(D32<>"",D32/COUNTA(tbl),"") ->  | F32: =IF(E32<>"",SUM(E$2:E32),"") ->  | H32: =IF(E32<>"",CONCATENATE(SUM(D$2:D32),"/",SUM(nonempty_freq)),"") ->  | U32: ,
B33: =INDEX(tbl,SMALL(IF(SMALL(IF(COUNTIF($B$1:B32,tbl)+ISBLANK(tbl)=0,COUNTIF(tbl,"<"&tbl)+1,""),1)=IF(ISBLANK(tbl),"",COUNTIF(tbl,"<"&tbl)+1),ROW(tbl)-MIN(ROW(tbl))+1),1),MATCH(MIN(IF(COUNTIF($B$1:B32,tbl)+ISBLANK(tbl)>0,"",COUNTIF(tbl,"<"&tbl)+1)),INDEX(IF(ISBLANK(tbl),"",COUNTIF(tbl,"<"&tbl)+1),SMALL(IF(SMALL(IF(COUNTIF($B$1:B32,tbl)+ISBLANK(tbl)=0,COUNTIF(tbl,"<"&tbl)+1,""),1)=IF(ISBLANK(tbl),"",COUNTIF(tbl,"<"&tbl)+1),ROW(tbl)-MIN(ROW(tbl))+1),1),,1),0),1) ->  | E33: =IF(D33<>"",D33/COUNTA(tbl),"") ->  | F33: =IF(E33<>"",SUM(E$2:E33),"") ->  | H33: =IF(E33<>"",CONCATENATE(SUM(D$2:D33),"/",SUM(nonempty_freq)),"") ->  | U33: ,
B34: =INDEX(tbl,SMALL(IF(SMALL(IF(COUNTIF($B$1:B33,tbl)+ISBLANK(tbl)=0,COUNTIF(tbl,"<"&tbl)+1,""),1)=IF(ISBLANK(tbl),"",COUNTIF(tbl,"<"&tbl)+1),ROW(tbl)-MIN(ROW(tbl))+1),1),MATCH(MIN(IF(COUNTIF($B$1:B33,tbl)+ISBLANK(tbl)>0,"",COUNTIF(tbl,"<"&tbl)+1)),INDEX(IF(ISBLANK(tbl),"",COUNTIF(tbl,"<"&tbl)+1),SMALL(IF(SMALL(IF(COUNTIF($B$1:B33,tbl)+ISBLANK(tbl)=0,COUNTIF(tbl,"<"&tbl)+1,""),1)=IF(ISBLANK(tbl),"",COUNTIF(tbl,"<"&tbl)+1),ROW(tbl)-MIN(ROW(tbl))+1),1),,1),0),1) ->  | E34: =IF(D34<>"",D34/COUNTA(tbl),"") ->  | F34: =IF(E34<>"",SUM(E$2:E34),"") ->  | G34: =IF(E34<>"",CONCATENATE(D34,"/",SUM(nonempty_freq)),"") ->  | H34: =IF(E34<>"",CONCATENATE(SUM(D$2:D34),"/",SUM(nonempty_freq)),"") ->  | U34: ,
B35: =INDEX(tbl,SMALL(IF(SMALL(IF(COUNTIF($B$1:B34,tbl)+ISBLANK(tbl)=0,COUNTIF(tbl,"<"&tbl)+1,""),1)=IF(ISBLANK(tbl),"",COUNTIF(tbl,"<"&tbl)+1),ROW(tbl)-MIN(ROW(tbl))+1),1),MATCH(MIN(IF(COUNTIF($B$1:B34,tbl)+ISBLANK(tbl)>0,"",COUNTIF(tbl,"<"&tbl)+1)),INDEX(IF(ISBLANK(tbl),"",COUNTIF(tbl,"<"&tbl)+1),SMALL(IF(SMALL(IF(COUNTIF($B$1:B34,tbl)+ISBLANK(tbl)=0,COUNTIF(tbl,"<"&tbl)+1,""),1)=IF(ISBLANK(tbl),"",COUNTIF(tbl,"<"&tbl)+1),ROW(tbl)-MIN(ROW(tbl))+1),1),,1),0),1) ->  | E35: =IF(D35<>"",D35/COUNTA(tbl),"") ->  | F35: =IF(E35<>"",SUM(E$2:E35),"") ->  | H35: =IF(E35<>"",CONCATENATE(SUM(D$2:D35),"/",SUM(nonempty_freq)),"") ->  | U35: ,
B36: =INDEX(tbl,SMALL(IF(SMALL(IF(COUNTIF($B$1:B35,tbl)+ISBLANK(tbl)=0,COUNTIF(tbl,"<"&tbl)+1,""),1)=IF(ISBLANK(tbl),"",COUNTIF(tbl,"<"&tbl)+1),ROW(tbl)-MIN(ROW(tbl))+1),1),MATCH(MIN(IF(COUNTIF($B$1:B35,tbl)+ISBLANK(tbl)>0,"",COUNTIF(tbl,"<"&tbl)+1)),INDEX(IF(ISBLANK(tbl),"",COUNTIF(tbl,"<"&tbl)+1),SMALL(IF(SMALL(IF(COUNTIF($B$1:B35,tbl)+ISBLANK(tbl)=0,COUNTIF(tbl,"<"&tbl)+1,""),1)=IF(ISBLANK(tbl),"",COUNTIF(tbl,"<"&tbl)+1),ROW(tbl)-MIN(ROW(tbl))+1),1),,1),0),1) ->  | E36: =IF(D36<>"",D36/COUNTA(tbl),"") ->  | F36: =IF(E36<>"",SUM(E$2:E36),"") ->  | H36: =IF(E36<>"",CONCATENATE(SUM(D$2:D36),"/",SUM(nonempty_freq)),"") ->  | U36: ,
B37: =INDEX(tbl,SMALL(IF(SMALL(IF(COUNTIF($B$1:B36,tbl)+ISBLANK(tbl)=0,COUNTIF(tbl,"<"&tbl)+1,""),1)=IF(ISBLANK(tbl),"",COUNTIF(tbl,"<"&tbl)+1),ROW(tbl)-MIN(ROW(tbl))+1),1),MATCH(MIN(IF(COUNTIF($B$1:B36,tbl)+ISBLANK(tbl)>0,"",COUNTIF(tbl,"<"&tbl)+1)),INDEX(IF(ISBLANK(tbl),"",COUNTIF(tbl,"<"&tbl)+1),SMALL(IF(SMALL(IF(COUNTIF($B$1:B36,tbl)+ISBLANK(tbl)=0,COUNTIF(tbl,"<"&tbl)+1,""),1)=IF(ISBLANK(tbl),"",COUNTIF(tbl,"<"&tbl)+1),ROW(tbl)-MIN(ROW(tbl))+1),1),,1),0),1) ->  | E37: =IF(D37<>"",D37/COUNTA(tbl),"") ->  | F37: =IF(E37<>"",SUM(E$2:E37),"") ->  | H37: =IF(E37<>"",CONCATENATE(SUM(D$2:D37),"/",SUM(nonempty_freq)),"") ->  | U37: ,
B38: =INDEX(tbl,SMALL(IF(SMALL(IF(COUNTIF($B$1:B37,tbl)+ISBLANK(tbl)=0,COUNTIF(tbl,"<"&tbl)+1,""),1)=IF(ISBLANK(tbl),"",COUNTIF(tbl,"<"&tbl)+1),ROW(tbl)-MIN(ROW(tbl))+1),1),MATCH(MIN(IF(COUNTIF($B$1:B37,tbl)+ISBLANK(tbl)>0,"",COUNTIF(tbl,"<"&tbl)+1)),INDEX(IF(ISBLANK(tbl),"",COUNTIF(tbl,"<"&tbl)+1),SMALL(IF(SMALL(IF(COUNTIF($B$1:B37,tbl)+ISBLANK(tbl)=0,COUNTIF(tbl,"<"&tbl)+1,""),1)=IF(ISBLANK(tbl),"",COUNTIF(tbl,"<"&tbl)+1),ROW(tbl)-MIN(ROW(tbl))+1),1),,1),0),1) ->  | E38: =IF(D38<>"",D38/COUNTA(tbl),"") ->  | F38: =IF(E38<>"",SUM(E$2:E38),"") ->  | H38: =IF(E38<>"",CONCATENATE(SUM(D$2:D38),"/",SUM(nonempty_freq)),"") ->  | U38: ,
B39: =INDEX(tbl,SMALL(IF(SMALL(IF(COUNTIF($B$1:B38,tbl)+ISBLANK(tbl)=0,COUNTIF(tbl,"<"&tbl)+1,""),1)=IF(ISBLANK(tbl),"",COUNTIF(tbl,"<"&tbl)+1),ROW(tbl)-MIN(ROW(tbl))+1),1),MATCH(MIN(IF(COUNTIF($B$1:B38,tbl)+ISBLANK(tbl)>0,"",COUNTIF(tbl,"<"&tbl)+1)),INDEX(IF(ISBLANK(tbl),"",COUNTIF(tbl,"<"&tbl)+1),SMALL(IF(SMALL(IF(COUNTIF($B$1:B38,tbl)+ISBLANK(tbl)=0,COUNTIF(tbl,"<"&tbl)+1,""),1)=IF(ISBLANK(tbl),"",COUNTIF(tbl,"<"&tbl)+1),ROW(tbl)-MIN(ROW(tbl))+1),1),,1),0),1) ->  | E39: =IF(D39<>"",D39/COUNTA(tbl),"") ->  | F39: =IF(E39<>"",SUM(E$2:E39),"") ->  | H39: =IF(E39<>"",CONCATENATE(SUM(D$2:D39),"/",SUM(nonempty_freq)),"") ->  | U39: ,
B40: =INDEX(tbl,SMALL(IF(SMALL(IF(COUNTIF($B$1:B39,tbl)+ISBLANK(tbl)=0,COUNTIF(tbl,"<"&tbl)+1,""),1)=IF(ISBLANK(tbl),"",COUNTIF(tbl,"<"&tbl)+1),ROW(tbl)-MIN(ROW(tbl))+1),1),MATCH(MIN(IF(COUNTIF($B$1:B39,tbl)+ISBLANK(tbl)>0,"",COUNTIF(tbl,"<"&tbl)+1)),INDEX(IF(ISBLANK(tbl),"",COUNTIF(tbl,"<"&tbl)+1),SMALL(IF(SMALL(IF(COUNTIF($B$1:B39,tbl)+ISBLANK(tbl)=0,COUNTIF(tbl,"<"&tbl)+1,""),1)=IF(ISBLANK(tbl),"",COUNTIF(tbl,"<"&tbl)+1),ROW(tbl)-MIN(ROW(tbl))+1),1),,1),0),1) ->  | E40: =IF(D40<>"",D40/COUNTA(tbl),"") ->  | F40: =IF(E40<>"",SUM(E$2:E40),"") ->  | H40: =IF(E40<>"",CONCATENATE(SUM(D$2:D40),"/",SUM(nonempty_freq)),"") ->  | U40: ,
B41: =INDEX(tbl,SMALL(IF(SMALL(IF(COUNTIF($B$1:B40,tbl)+ISBLANK(tbl)=0,COUNTIF(tbl,"<"&tbl)+1,""),1)=IF(ISBLANK(tbl),"",COUNTIF(tbl,"<"&tbl)+1),ROW(tbl)-MIN(ROW(tbl))+1),1),MATCH(MIN(IF(COUNTIF($B$1:B40,tbl)+ISBLANK(tbl)>0,"",COUNTIF(tbl,"<"&tbl)+1)),INDEX(IF(ISBLANK(tbl),"",COUNTIF(tbl,"<"&tbl)+1),SMALL(IF(SMALL(IF(COUNTIF($B$1:B40,tbl)+ISBLANK(tbl)=0,COUNTIF(tbl,"<"&tbl)+1,""),1)=IF(ISBLANK(tbl),"",COUNTIF(tbl,"<"&tbl)+1),ROW(tbl)-MIN(ROW(tbl))+1),1),,1),0),1) ->  | E41: =IF(D41<>"",D41/COUNTA(tbl),"") ->  | F41: =IF(E41<>"",SUM(E$2:E41),"") ->  | H41: =IF(E41<>"",CONCATENATE(SUM(D$2:D41),"/",SUM(nonempty_freq)),"") ->  | U41: ,
B42: =INDEX(tbl,SMALL(IF(SMALL(IF(COUNTIF($B$1:B41,tbl)+ISBLANK(tbl)=0,COUNTIF(tbl,"<"&tbl)+1,""),1)=IF(ISBLANK(tbl),"",COUNTIF(tbl,"<"&tbl)+1),ROW(tbl)-MIN(ROW(tbl))+1),1),MATCH(MIN(IF(COUNTIF($B$1:B41,tbl)+ISBLANK(tbl)>0,"",COUNTIF(tbl,"<"&tbl)+1)),INDEX(IF(ISBLANK(tbl),"",COUNTIF(tbl,"<"&tbl)+1),SMALL(IF(SMALL(IF(COUNTIF($B$1:B41,tbl)+ISBLANK(tbl)=0,COUNTIF(tbl,"<"&tbl)+1,""),1)=IF(ISBLANK(tbl),"",COUNTIF(tbl,"<"&tbl)+1),ROW(tbl)-MIN(ROW(tbl))+1),1),,1),0),1) ->  | E42: =IF(D42<>"",D42/COUNTA(tbl),"") ->  | F42: =IF(E42<>"",SUM(E$2:E42),"") ->  | H42: =IF(E42<>"",CONCATENATE(SUM(D$2:D42),"/",SUM(nonempty_freq)),"") ->  | U42: ,
B43: =INDEX(tbl,SMALL(IF(SMALL(IF(COUNTIF($B$1:B42,tbl)+ISBLANK(tbl)=0,COUNTIF(tbl,"<"&tbl)+1,""),1)=IF(ISBLANK(tbl),"",COUNTIF(tbl,"<"&tbl)+1),ROW(tbl)-MIN(ROW(tbl))+1),1),MATCH(MIN(IF(COUNTIF($B$1:B42,tbl)+ISBLANK(tbl)>0,"",COUNTIF(tbl,"<"&tbl)+1)),INDEX(IF(ISBLANK(tbl),"",COUNTIF(tbl,"<"&tbl)+1),SMALL(IF(SMALL(IF(COUNTIF($B$1:B42,tbl)+ISBLANK(tbl)=0,COUNTIF(tbl,"<"&tbl)+1,""),1)=IF(ISBLANK(tbl),"",COUNTIF(tbl,"<"&tbl)+1),ROW(tbl)-MIN(ROW(tbl))+1),1),,1),0),1) ->  | E43: =IF(D43<>"",D43/COUNTA(tbl),"") ->  | F43: =IF(E43<>"",SUM(E$2:E43),"") ->  | H43: =IF(E43<>"",CONCATENATE(SUM(D$2:D43),"/",SUM(nonempty_freq)),"") ->  | U43: ,
B44: =INDEX(tbl,SMALL(IF(SMALL(IF(COUNTIF($B$1:B43,tbl)+ISBLANK(tbl)=0,COUNTIF(tbl,"<"&tbl)+1,""),1)=IF(ISBLANK(tbl),"",COUNTIF(tbl,"<"&tbl)+1),ROW(tbl)-MIN(ROW(tbl))+1),1),MATCH(MIN(IF(COUNTIF($B$1:B43,tbl)+ISBLANK(tbl)>0,"",COUNTIF(tbl,"<"&tbl)+1)),INDEX(IF(ISBLANK(tbl),"",COUNTIF(tbl,"<"&tbl)+1),SMALL(IF(SMALL(IF(COUNTIF($B$1:B43,tbl)+ISBLANK(tbl)=0,COUNTIF(tbl,"<"&tbl)+1,""),1)=IF(ISBLANK(tbl),"",COUNTIF(tbl,"<"&tbl)+1),ROW(tbl)-MIN(ROW(tbl))+1),1),,1),0),1) ->  | E44: =IF(D44<>"",D44/COUNTA(tbl),"") ->  | F44: =IF(E44<>"",SUM(E$2:E44),"") ->  | H44: =IF(E44<>"",CONCATENATE(SUM(D$2:D44),"/",SUM(nonempty_freq)),"") ->  | U44: ,
B45: =INDEX(tbl,SMALL(IF(SMALL(IF(COUNTIF($B$1:B44,tbl)+ISBLANK(tbl)=0,COUNTIF(tbl,"<"&tbl)+1,""),1)=IF(ISBLANK(tbl),"",COUNTIF(tbl,"<"&tbl)+1),ROW(tbl)-MIN(ROW(tbl))+1),1),MATCH(MIN(IF(COUNTIF($B$1:B44,tbl)+ISBLANK(tbl)>0,"",COUNTIF(tbl,"<"&tbl)+1)),INDEX(IF(ISBLANK(tbl),"",COUNTIF(tbl,"<"&tbl)+1),SMALL(IF(SMALL(IF(COUNTIF($B$1:B44,tbl)+ISBLANK(tbl)=0,COUNTIF(tbl,"<"&tbl)+1,""),1)=IF(ISBLANK(tbl),"",COUNTIF(tbl,"<"&tbl)+1),ROW(tbl)-MIN(ROW(tbl))+1),1),,1),0),1) ->  | E45: =IF(D45<>"",D45/COUNTA(tbl),"") ->  | F45: =IF(E45<>"",SUM(E$2:E45),"") ->  | H45: =IF(E45<>"",CONCATENATE(SUM(D$2:D45),"/",SUM(nonempty_freq)),"") ->  | U45: ,
B46: =INDEX(tbl,SMALL(IF(SMALL(IF(COUNTIF($B$1:B45,tbl)+ISBLANK(tbl)=0,COUNTIF(tbl,"<"&tbl)+1,""),1)=IF(ISBLANK(tbl),"",COUNTIF(tbl,"<"&tbl)+1),ROW(tbl)-MIN(ROW(tbl))+1),1),MATCH(MIN(IF(COUNTIF($B$1:B45,tbl)+ISBLANK(tbl)>0,"",COUNTIF(tbl,"<"&tbl)+1)),INDEX(IF(ISBLANK(tbl),"",COUNTIF(tbl,"<"&tbl)+1),SMALL(IF(SMALL(IF(COUNTIF($B$1:B45,tbl)+ISBLANK(tbl)=0,COUNTIF(tbl,"<"&tbl)+1,""),1)=IF(ISBLANK(tbl),"",COUNTIF(tbl,"<"&tbl)+1),ROW(tbl)-MIN(ROW(tbl))+1),1),,1),0),1) ->  | E46: =IF(D46<>"",D46/COUNTA(tbl),"") ->  | F46: =IF(E46<>"",SUM(E$2:E46),"") ->  | H46: =IF(E46<>"",CONCATENATE(SUM(D$2:D46),"/",SUM(nonempty_freq)),"") ->  | U46: ,
B47: =INDEX(tbl,SMALL(IF(SMALL(IF(COUNTIF($B$1:B46,tbl)+ISBLANK(tbl)=0,COUNTIF(tbl,"<"&tbl)+1,""),1)=IF(ISBLANK(tbl),"",COUNTIF(tbl,"<"&tbl)+1),ROW(tbl)-MIN(ROW(tbl))+1),1),MATCH(MIN(IF(COUNTIF($B$1:B46,tbl)+ISBLANK(tbl)>0,"",COUNTIF(tbl,"<"&tbl)+1)),INDEX(IF(ISBLANK(tbl),"",COUNTIF(tbl,"<"&tbl)+1),SMALL(IF(SMALL(IF(COUNTIF($B$1:B46,tbl)+ISBLANK(tbl)=0,COUNTIF(tbl,"<"&tbl)+1,""),1)=IF(ISBLANK(tbl),"",COUNTIF(tbl,"<"&tbl)+1),ROW(tbl)-MIN(ROW(tbl))+1),1),,1),0),1) ->  | E47: =IF(D47<>"",D47/COUNTA(tbl),"") ->  | F47: =IF(E47<>"",SUM(E$2:E47),"") ->  | H47: =IF(E47<>"",CONCATENATE(SUM(D$2:D47),"/",SUM(nonempty_freq)),"") ->  | U47: ,
B48: =INDEX(tbl,SMALL(IF(SMALL(IF(COUNTIF($B$1:B47,tbl)+ISBLANK(tbl)=0,COUNTIF(tbl,"<"&tbl)+1,""),1)=IF(ISBLANK(tbl),"",COUNTIF(tbl,"<"&tbl)+1),ROW(tbl)-MIN(ROW(tbl))+1),1),MATCH(MIN(IF(COUNTIF($B$1:B47,tbl)+ISBLANK(tbl)>0,"",COUNTIF(tbl,"<"&tbl)+1)),INDEX(IF(ISBLANK(tbl),"",COUNTIF(tbl,"<"&tbl)+1),SMALL(IF(SMALL(IF(COUNTIF($B$1:B47,tbl)+ISBLANK(tbl)=0,COUNTIF(tbl,"<"&tbl)+1,""),1)=IF(ISBLANK(tbl),"",COUNTIF(tbl,"<"&tbl)+1),ROW(tbl)-MIN(ROW(tbl))+1),1),,1),0),1) ->  | E48: =IF(D48<>"",D48/COUNTA(tbl),"") ->  | F48: =IF(E48<>"",SUM(E$2:E48),"") ->  | H48: =IF(E48<>"",CONCATENATE(SUM(D$2:D48),"/",SUM(nonempty_freq)),"") ->  | U48: ,
B49: =INDEX(tbl,SMALL(IF(SMALL(IF(COUNTIF($B$1:B48,tbl)+ISBLANK(tbl)=0,COUNTIF(tbl,"<"&tbl)+1,""),1)=IF(ISBLANK(tbl),"",COUNTIF(tbl,"<"&tbl)+1),ROW(tbl)-MIN(ROW(tbl))+1),1),MATCH(MIN(IF(COUNTIF($B$1:B48,tbl)+ISBLANK(tbl)>0,"",COUNTIF(tbl,"<"&tbl)+1)),INDEX(IF(ISBLANK(tbl),"",COUNTIF(tbl,"<"&tbl)+1),SMALL(IF(SMALL(IF(COUNTIF($B$1:B48,tbl)+ISBLANK(tbl)=0,COUNTIF(tbl,"<"&tbl)+1,""),1)=IF(ISBLANK(tbl),"",COUNTIF(tbl,"<"&tbl)+1),ROW(tbl)-MIN(ROW(tbl))+1),1),,1),0),1) ->  | E49: =IF(D49<>"",D49/COUNTA(tbl),"") ->  | F49: =IF(E49<>"",SUM(E$2:E49),"") ->  | H49: =IF(E49<>"",CONCATENATE(SUM(D$2:D49),"/",SUM(nonempty_freq)),"") ->  | U49: ,
B50: =INDEX(tbl,SMALL(IF(SMALL(IF(COUNTIF($B$1:B49,tbl)+ISBLANK(tbl)=0,COUNTIF(tbl,"<"&tbl)+1,""),1)=IF(ISBLANK(tbl),"",COUNTIF(tbl,"<"&tbl)+1),ROW(tbl)-MIN(ROW(tbl))+1),1),MATCH(MIN(IF(COUNTIF($B$1:B49,tbl)+ISBLANK(tbl)>0,"",COUNTIF(tbl,"<"&tbl)+1)),INDEX(IF(ISBLANK(tbl),"",COUNTIF(tbl,"<"&tbl)+1),SMALL(IF(SMALL(IF(COUNTIF($B$1:B49,tbl)+ISBLANK(tbl)=0,COUNTIF(tbl,"<"&tbl)+1,""),1)=IF(ISBLANK(tbl),"",COUNTIF(tbl,"<"&tbl)+1),ROW(tbl)-MIN(ROW(tbl))+1),1),,1),0),1) ->  | E50: =IF(D50<>"",D50/COUNTA(tbl),"") ->  | F50: =IF(E50<>"",SUM(E$2:E50),"") ->  | H50: =IF(E50<>"",CONCATENATE(SUM(D$2:D50),"/",SUM(nonempty_freq)),"") ->  | U50: ,
B51: =INDEX(tbl,SMALL(IF(SMALL(IF(COUNTIF($B$1:B50,tbl)+ISBLANK(tbl)=0,COUNTIF(tbl,"<"&tbl)+1,""),1)=IF(ISBLANK(tbl),"",COUNTIF(tbl,"<"&tbl)+1),ROW(tbl)-MIN(ROW(tbl))+1),1),MATCH(MIN(IF(COUNTIF($B$1:B50,tbl)+ISBLANK(tbl)>0,"",COUNTIF(tbl,"<"&tbl)+1)),INDEX(IF(ISBLANK(tbl),"",COUNTIF(tbl,"<"&tbl)+1),SMALL(IF(SMALL(IF(COUNTIF($B$1:B50,tbl)+ISBLANK(tbl)=0,COUNTIF(tbl,"<"&tbl)+1,""),1)=IF(ISBLANK(tbl),"",COUNTIF(tbl,"<"&tbl)+1),ROW(tbl)-MIN(ROW(tbl))+1),1),,1),0),1) ->  | E51: =IF(D51<>"",D51/COUNTA(tbl),"") ->  | F51: =IF(E51<>"",SUM(E$2:E51),"") ->  | H51: =IF(E51<>"",CONCATENATE(SUM(D$2:D51),"/",SUM(nonempty_freq)),"") ->  | U51: ,
B52: =INDEX(tbl,SMALL(IF(SMALL(IF(COUNTIF($B$1:B51,tbl)+ISBLANK(tbl)=0,COUNTIF(tbl,"<"&tbl)+1,""),1)=IF(ISBLANK(tbl),"",COUNTIF(tbl,"<"&tbl)+1),ROW(tbl)-MIN(ROW(tbl))+1),1),MATCH(MIN(IF(COUNTIF($B$1:B51,tbl)+ISBLANK(tbl)>0,"",COUNTIF(tbl,"<"&tbl)+1)),INDEX(IF(ISBLANK(tbl),"",COUNTIF(tbl,"<"&tbl)+1),SMALL(IF(SMALL(IF(COUNTIF($B$1:B51,tbl)+ISBLANK(tbl)=0,COUNTIF(tbl,"<"&tbl)+1,""),1)=IF(ISBLANK(tbl),"",COUNTIF(tbl,"<"&tbl)+1),ROW(tbl)-MIN(ROW(tbl))+1),1),,1),0),1) ->  | E52: =IF(D52<>"",D52/COUNTA(tbl),"") ->  | F52: =IF(E52<>"",SUM(E$2:E52),"") ->  | H52: =IF(E52<>"",CONCATENATE(SUM(D$2:D52),"/",SUM(nonempty_freq)),"") ->  | U52: ,
B53: =INDEX(tbl,SMALL(IF(SMALL(IF(COUNTIF($B$1:B52,tbl)+ISBLANK(tbl)=0,COUNTIF(tbl,"<"&tbl)+1,""),1)=IF(ISBLANK(tbl),"",COUNTIF(tbl,"<"&tbl)+1),ROW(tbl)-MIN(ROW(tbl))+1),1),MATCH(MIN(IF(COUNTIF($B$1:B52,tbl)+ISBLANK(tbl)>0,"",COUNTIF(tbl,"<"&tbl)+1)),INDEX(IF(ISBLANK(tbl),"",COUNTIF(tbl,"<"&tbl)+1),SMALL(IF(SMALL(IF(COUNTIF($B$1:B52,tbl)+ISBLANK(tbl)=0,COUNTIF(tbl,"<"&tbl)+1,""),1)=IF(ISBLANK(tbl),"",COUNTIF(tbl,"<"&tbl)+1),ROW(tbl)-MIN(ROW(tbl))+1),1),,1),0),1) ->  | E53: =IF(D53<>"",D53/COUNTA(tbl),"") ->  | F53: =IF(E53<>"",SUM(E$2:E53),"") ->  | H53: =IF(E53<>"",CONCATENATE(SUM(D$2:D53),"/",SUM(nonempty_freq)),"") ->  | U53: ,
B54: =INDEX(tbl,SMALL(IF(SMALL(IF(COUNTIF($B$1:B53,tbl)+ISBLANK(tbl)=0,COUNTIF(tbl,"<"&tbl)+1,""),1)=IF(ISBLANK(tbl),"",COUNTIF(tbl,"<"&tbl)+1),ROW(tbl)-MIN(ROW(tbl))+1),1),MATCH(MIN(IF(COUNTIF($B$1:B53,tbl)+ISBLANK(tbl)>0,"",COUNTIF(tbl,"<"&tbl)+1)),INDEX(IF(ISBLANK(tbl),"",COUNTIF(tbl,"<"&tbl)+1),SMALL(IF(SMALL(IF(COUNTIF($B$1:B53,tbl)+ISBLANK(tbl)=0,COUNTIF(tbl,"<"&tbl)+1,""),1)=IF(ISBLANK(tbl),"",COUNTIF(tbl,"<"&tbl)+1),ROW(tbl)-MIN(ROW(tbl))+1),1),,1),0),1) ->  | E54: =IF(D54<>"",D54/COUNTA(tbl),"") ->  | F54: =IF(E54<>"",SUM(E$2:E54),"") ->  | H54: =IF(E54<>"",CONCATENATE(SUM(D$2:D54),"/",SUM(nonempty_freq)),"") ->  | U54: ,
B55: =INDEX(tbl,SMALL(IF(SMALL(IF(COUNTIF($B$1:B54,tbl)+ISBLANK(tbl)=0,COUNTIF(tbl,"<"&tbl)+1,""),1)=IF(ISBLANK(tbl),"",COUNTIF(tbl,"<"&tbl)+1),ROW(tbl)-MIN(ROW(tbl))+1),1),MATCH(MIN(IF(COUNTIF($B$1:B54,tbl)+ISBLANK(tbl)>0,"",COUNTIF(tbl,"<"&tbl)+1)),INDEX(IF(ISBLANK(tbl),"",COUNTIF(tbl,"<"&tbl)+1),SMALL(IF(SMALL(IF(COUNTIF($B$1:B54,tbl)+ISBLANK(tbl)=0,COUNTIF(tbl,"<"&tbl)+1,""),1)=IF(ISBLANK(tbl),"",COUNTIF(tbl,"<"&tbl)+1),ROW(tbl)-MIN(ROW(tbl))+1),1),,1),0),1) ->  | E55: =IF(D55<>"",D55/COUNTA(tbl),"") ->  | F55: =IF(E55<>"",SUM(E$2:E55),"") ->  | H55: =IF(E55<>"",CONCATENATE(SUM(D$2:D55),"/",SUM(nonempty_freq)),"") ->  | U55: ,
B56: =INDEX(tbl,SMALL(IF(SMALL(IF(COUNTIF($B$1:B55,tbl)+ISBLANK(tbl)=0,COUNTIF(tbl,"<"&tbl)+1,""),1)=IF(ISBLANK(tbl),"",COUNTIF(tbl,"<"&tbl)+1),ROW(tbl)-MIN(ROW(tbl))+1),1),MATCH(MIN(IF(COUNTIF($B$1:B55,tbl)+ISBLANK(tbl)>0,"",COUNTIF(tbl,"<"&tbl)+1)),INDEX(IF(ISBLANK(tbl),"",COUNTIF(tbl,"<"&tbl)+1),SMALL(IF(SMALL(IF(COUNTIF($B$1:B55,tbl)+ISBLANK(tbl)=0,COUNTIF(tbl,"<"&tbl)+1,""),1)=IF(ISBLANK(tbl),"",COUNTIF(tbl,"<"&tbl)+1),ROW(tbl)-MIN(ROW(tbl))+1),1),,1),0),1) ->  | E56: =IF(D56<>"",D56/COUNTA(tbl),"") ->  | F56: =IF(E56<>"",SUM(E$2:E56),"") ->  | H56: =IF(E56<>"",CONCATENATE(SUM(D$2:D56),"/",SUM(nonempty_freq)),"") ->  | U56: ,
B57: =INDEX(tbl,SMALL(IF(SMALL(IF(COUNTIF($B$1:B56,tbl)+ISBLANK(tbl)=0,COUNTIF(tbl,"<"&tbl)+1,""),1)=IF(ISBLANK(tbl),"",COUNTIF(tbl,"<"&tbl)+1),ROW(tbl)-MIN(ROW(tbl))+1),1),MATCH(MIN(IF(COUNTIF($B$1:B56,tbl)+ISBLANK(tbl)>0,"",COUNTIF(tbl,"<"&tbl)+1)),INDEX(IF(ISBLANK(tbl),"",COUNTIF(tbl,"<"&tbl)+1),SMALL(IF(SMALL(IF(COUNTIF($B$1:B56,tbl)+ISBLANK(tbl)=0,COUNTIF(tbl,"<"&tbl)+1,""),1)=IF(ISBLANK(tbl),"",COUNTIF(tbl,"<"&tbl)+1),ROW(tbl)-MIN(ROW(tbl))+1),1),,1),0),1) ->  | E57: =IF(D57<>"",D57/COUNTA(tbl),"") ->  | F57: =IF(E57<>"",SUM(E$2:E57),"") ->  | H57: =IF(E57<>"",CONCATENATE(SUM(D$2:D57),"/",SUM(nonempty_freq)),"") ->  | U57: ,
B58: =INDEX(tbl,SMALL(IF(SMALL(IF(COUNTIF($B$1:B57,tbl)+ISBLANK(tbl)=0,COUNTIF(tbl,"<"&tbl)+1,""),1)=IF(ISBLANK(tbl),"",COUNTIF(tbl,"<"&tbl)+1),ROW(tbl)-MIN(ROW(tbl))+1),1),MATCH(MIN(IF(COUNTIF($B$1:B57,tbl)+ISBLANK(tbl)>0,"",COUNTIF(tbl,"<"&tbl)+1)),INDEX(IF(ISBLANK(tbl),"",COUNTIF(tbl,"<"&tbl)+1),SMALL(IF(SMALL(IF(COUNTIF($B$1:B57,tbl)+ISBLANK(tbl)=0,COUNTIF(tbl,"<"&tbl)+1,""),1)=IF(ISBLANK(tbl),"",COUNTIF(tbl,"<"&tbl)+1),ROW(tbl)-MIN(ROW(tbl))+1),1),,1),0),1) ->  | E58: =IF(D58<>"",D58/COUNTA(tbl),"") ->  | F58: =IF(E58<>"",SUM(E$2:E58),"") ->  | H58: =IF(E58<>"",CONCATENATE(SUM(D$2:D58),"/",SUM(nonempty_freq)),"") ->  | U58: ,
B59: =INDEX(tbl,SMALL(IF(SMALL(IF(COUNTIF($B$1:B58,tbl)+ISBLANK(tbl)=0,COUNTIF(tbl,"<"&tbl)+1,""),1)=IF(ISBLANK(tbl),"",COUNTIF(tbl,"<"&tbl)+1),ROW(tbl)-MIN(ROW(tbl))+1),1),MATCH(MIN(IF(COUNTIF($B$1:B58,tbl)+ISBLANK(tbl)>0,"",COUNTIF(tbl,"<"&tbl)+1)),INDEX(IF(ISBLANK(tbl),"",COUNTIF(tbl,"<"&tbl)+1),SMALL(IF(SMALL(IF(COUNTIF($B$1:B58,tbl)+ISBLANK(tbl)=0,COUNTIF(tbl,"<"&tbl)+1,""),1)=IF(ISBLANK(tbl),"",COUNTIF(tbl,"<"&tbl)+1),ROW(tbl)-MIN(ROW(tbl))+1),1),,1),0),1) ->  | E59: =IF(D59<>"",D59/COUNTA(tbl),"") ->  | F59: =IF(E59<>"",SUM(E$2:E59),"") ->  | H59: =IF(E59<>"",CONCATENATE(SUM(D$2:D59),"/",SUM(nonempty_freq)),"") ->  | U59: ,
B60: =INDEX(tbl,SMALL(IF(SMALL(IF(COUNTIF($B$1:B59,tbl)+ISBLANK(tbl)=0,COUNTIF(tbl,"<"&tbl)+1,""),1)=IF(ISBLANK(tbl),"",COUNTIF(tbl,"<"&tbl)+1),ROW(tbl)-MIN(ROW(tbl))+1),1),MATCH(MIN(IF(COUNTIF($B$1:B59,tbl)+ISBLANK(tbl)>0,"",COUNTIF(tbl,"<"&tbl)+1)),INDEX(IF(ISBLANK(tbl),"",COUNTIF(tbl,"<"&tbl)+1),SMALL(IF(SMALL(IF(COUNTIF($B$1:B59,tbl)+ISBLANK(tbl)=0,COUNTIF(tbl,"<"&tbl)+1,""),1)=IF(ISBLANK(tbl),"",COUNTIF(tbl,"<"&tbl)+1),ROW(tbl)-MIN(ROW(tbl))+1),1),,1),0),1) ->  | E60: =IF(D60<>"",D60/COUNTA(tbl),"") ->  | F60: =IF(E60<>"",SUM(E$2:E60),"") ->  | H60: =IF(E60<>"",CONCATENATE(SUM(D$2:D60),"/",SUM(nonempty_freq)),"") ->  | U60: ,
B61: =INDEX(tbl,SMALL(IF(SMALL(IF(COUNTIF($B$1:B60,tbl)+ISBLANK(tbl)=0,COUNTIF(tbl,"<"&tbl)+1,""),1)=IF(ISBLANK(tbl),"",COUNTIF(tbl,"<"&tbl)+1),ROW(tbl)-MIN(ROW(tbl))+1),1),MATCH(MIN(IF(COUNTIF($B$1:B60,tbl)+ISBLANK(tbl)>0,"",COUNTIF(tbl,"<"&tbl)+1)),INDEX(IF(ISBLANK(tbl),"",COUNTIF(tbl,"<"&tbl)+1),SMALL(IF(SMALL(IF(COUNTIF($B$1:B60,tbl)+ISBLANK(tbl)=0,COUNTIF(tbl,"<"&tbl)+1,""),1)=IF(ISBLANK(tbl),"",COUNTIF(tbl,"<"&tbl)+1),ROW(tbl)-MIN(ROW(tbl))+1),1),,1),0),1) ->  | E61: =IF(D61<>"",D61/COUNTA(tbl),"") ->  | F61: =IF(E61<>"",SUM(E$2:E61),"") ->  | H61: =IF(E61<>"",CONCATENATE(SUM(D$2:D61),"/",SUM(nonempty_freq)),"") ->  | U61: ,
B62: =INDEX(tbl,SMALL(IF(SMALL(IF(COUNTIF($B$1:B61,tbl)+ISBLANK(tbl)=0,COUNTIF(tbl,"<"&tbl)+1,""),1)=IF(ISBLANK(tbl),"",COUNTIF(tbl,"<"&tbl)+1),ROW(tbl)-MIN(ROW(tbl))+1),1),MATCH(MIN(IF(COUNTIF($B$1:B61,tbl)+ISBLANK(tbl)>0,"",COUNTIF(tbl,"<"&tbl)+1)),INDEX(IF(ISBLANK(tbl),"",COUNTIF(tbl,"<"&tbl)+1),SMALL(IF(SMALL(IF(COUNTIF($B$1:B61,tbl)+ISBLANK(tbl)=0,COUNTIF(tbl,"<"&tbl)+1,""),1)=IF(ISBLANK(tbl),"",COUNTIF(tbl,"<"&tbl)+1),ROW(tbl)-MIN(ROW(tbl))+1),1),,1),0),1) ->  | E62: =IF(D62<>"",D62/COUNTA(tbl),"") ->  | F62: =IF(E62<>"",SUM(E$2:E62),"") ->  | H62: =IF(E62<>"",CONCATENATE(SUM(D$2:D62),"/",SUM(nonempty_freq)),"") ->  | U62: ,
B63: =INDEX(tbl,SMALL(IF(SMALL(IF(COUNTIF($B$1:B62,tbl)+ISBLANK(tbl)=0,COUNTIF(tbl,"<"&tbl)+1,""),1)=IF(ISBLANK(tbl),"",COUNTIF(tbl,"<"&tbl)+1),ROW(tbl)-MIN(ROW(tbl))+1),1),MATCH(MIN(IF(COUNTIF($B$1:B62,tbl)+ISBLANK(tbl)>0,"",COUNTIF(tbl,"<"&tbl)+1)),INDEX(IF(ISBLANK(tbl),"",COUNTIF(tbl,"<"&tbl)+1),SMALL(IF(SMALL(IF(COUNTIF($B$1:B62,tbl)+ISBLANK(tbl)=0,COUNTIF(tbl,"<"&tbl)+1,""),1)=IF(ISBLANK(tbl),"",COUNTIF(tbl,"<"&tbl)+1),ROW(tbl)-MIN(ROW(tbl))+1),1),,1),0),1) ->  | E63: =IF(D63<>"",D63/COUNTA(tbl),"") ->  | F63: =IF(E63<>"",SUM(E$2:E63),"") ->  | H63: =IF(E63<>"",CONCATENATE(SUM(D$2:D63),"/",SUM(nonempty_freq)),"") ->  | U63: ,
B64: =INDEX(tbl,SMALL(IF(SMALL(IF(COUNTIF($B$1:B63,tbl)+ISBLANK(tbl)=0,COUNTIF(tbl,"<"&tbl)+1,""),1)=IF(ISBLANK(tbl),"",COUNTIF(tbl,"<"&tbl)+1),ROW(tbl)-MIN(ROW(tbl))+1),1),MATCH(MIN(IF(COUNTIF($B$1:B63,tbl)+ISBLANK(tbl)>0,"",COUNTIF(tbl,"<"&tbl)+1)),INDEX(IF(ISBLANK(tbl),"",COUNTIF(tbl,"<"&tbl)+1),SMALL(IF(SMALL(IF(COUNTIF($B$1:B63,tbl)+ISBLANK(tbl)=0,COUNTIF(tbl,"<"&tbl)+1,""),1)=IF(ISBLANK(tbl),"",COUNTIF(tbl,"<"&tbl)+1),ROW(tbl)-MIN(ROW(tbl))+1),1),,1),0),1) ->  | E64: =IF(D64<>"",D64/COUNTA(tbl),"") ->  | F64: =IF(E64<>"",SUM(E$2:E64),"") ->  | H64: =IF(E64<>"",CONCATENATE(SUM(D$2:D64),"/",SUM(nonempty_freq)),"") ->  | U64: ,
B65: =INDEX(tbl,SMALL(IF(SMALL(IF(COUNTIF($B$1:B64,tbl)+ISBLANK(tbl)=0,COUNTIF(tbl,"<"&tbl)+1,""),1)=IF(ISBLANK(tbl),"",COUNTIF(tbl,"<"&tbl)+1),ROW(tbl)-MIN(ROW(tbl))+1),1),MATCH(MIN(IF(COUNTIF($B$1:B64,tbl)+ISBLANK(tbl)>0,"",COUNTIF(tbl,"<"&tbl)+1)),INDEX(IF(ISBLANK(tbl),"",COUNTIF(tbl,"<"&tbl)+1),SMALL(IF(SMALL(IF(COUNTIF($B$1:B64,tbl)+ISBLANK(tbl)=0,COUNTIF(tbl,"<"&tbl)+1,""),1)=IF(ISBLANK(tbl),"",COUNTIF(tbl,"<"&tbl)+1),ROW(tbl)-MIN(ROW(tbl))+1),1),,1),0),1) ->  | E65: =IF(D65<>"",D65/COUNTA(tbl),"") ->  | F65: =IF(E65<>"",SUM(E$2:E65),"") ->  | H65: =IF(E65<>"",CONCATENATE(SUM(D$2:D65),"/",SUM(nonempty_freq)),"") ->  | U65: ,
B66: =INDEX(tbl,SMALL(IF(SMALL(IF(COUNTIF($B$1:B65,tbl)+ISBLANK(tbl)=0,COUNTIF(tbl,"<"&tbl)+1,""),1)=IF(ISBLANK(tbl),"",COUNTIF(tbl,"<"&tbl)+1),ROW(tbl)-MIN(ROW(tbl))+1),1),MATCH(MIN(IF(COUNTIF($B$1:B65,tbl)+ISBLANK(tbl)>0,"",COUNTIF(tbl,"<"&tbl)+1)),INDEX(IF(ISBLANK(tbl),"",COUNTIF(tbl,"<"&tbl)+1),SMALL(IF(SMALL(IF(COUNTIF($B$1:B65,tbl)+ISBLANK(tbl)=0,COUNTIF(tbl,"<"&tbl)+1,""),1)=IF(ISBLANK(tbl),"",COUNTIF(tbl,"<"&tbl)+1),ROW(tbl)-MIN(ROW(tbl))+1),1),,1),0),1) ->  | E66: =IF(D66<>"",D66/COUNTA(tbl),"") ->  | F66: =IF(E66<>"",SUM(E$2:E66),"") ->  | G66: =IF(E66<>"",CONCATENATE(D66,"/",SUM(nonempty_freq)),"") ->  | H66: =IF(E66<>"",CONCATENATE(SUM(D$2:D66),"/",SUM(nonempty_freq)),"") ->  | U66: ,
B67: =INDEX(tbl,SMALL(IF(SMALL(IF(COUNTIF($B$1:B66,tbl)+ISBLANK(tbl)=0,COUNTIF(tbl,"<"&tbl)+1,""),1)=IF(ISBLANK(tbl),"",COUNTIF(tbl,"<"&tbl)+1),ROW(tbl)-MIN(ROW(tbl))+1),1),MATCH(MIN(IF(COUNTIF($B$1:B66,tbl)+ISBLANK(tbl)>0,"",COUNTIF(tbl,"<"&tbl)+1)),INDEX(IF(ISBLANK(tbl),"",COUNTIF(tbl,"<"&tbl)+1),SMALL(IF(SMALL(IF(COUNTIF($B$1:B66,tbl)+ISBLANK(tbl)=0,COUNTIF(tbl,"<"&tbl)+1,""),1)=IF(ISBLANK(tbl),"",COUNTIF(tbl,"<"&tbl)+1),ROW(tbl)-MIN(ROW(tbl))+1),1),,1),0),1) ->  | D67: =IF(ISNUMBER(B67),C67,"") ->  | E67: =IF(D67<>"",D67/COUNTA(tbl),"") ->  | F67: =IF(E67<>"",SUM(E$2:E67),"") ->  | H67: =IF(E67<>"",CONCATENATE(SUM(D$2:D67),"/",SUM(nonempty_freq)),"") ->  | U67: =CONCATENATE(D67,", ",G67) -> , | V67: =CONCATENATE(B67,", ",H67) -> 
B68: =INDEX(tbl,SMALL(IF(SMALL(IF(COUNTIF($B$1:B67,tbl)+ISBLANK(tbl)=0,COUNTIF(tbl,"<"&tbl)+1,""),1)=IF(ISBLANK(tbl),"",COUNTIF(tbl,"<"&tbl)+1),ROW(tbl)-MIN(ROW(tbl))+1),1),MATCH(MIN(IF(COUNTIF($B$1:B67,tbl)+ISBLANK(tbl)>0,"",COUNTIF(tbl,"<"&tbl)+1)),INDEX(IF(ISBLANK(tbl),"",COUNTIF(tbl,"<"&tbl)+1),SMALL(IF(SMALL(IF(COUNTIF($B$1:B67,tbl)+ISBLANK(tbl)=0,COUNTIF(tbl,"<"&tbl)+1,""),1)=IF(ISBLANK(tbl),"",COUNTIF(tbl,"<"&tbl)+1),ROW(tbl)-MIN(ROW(tbl))+1),1),,1),0),1) ->  | E68: =IF(D68<>"",D68/COUNTA(tbl),"") ->  | F68: =IF(E68<>"",SUM(E$2:E68),"") ->  | H68: =IF(E68<>"",CONCATENATE(SUM(D$2:D68),"/",SUM(nonempty_freq)),"") ->  | U68: ,
B69: =INDEX(tbl,SMALL(IF(SMALL(IF(COUNTIF($B$1:B68,tbl)+ISBLANK(tbl)=0,COUNTIF(tbl,"<"&tbl)+1,""),1)=IF(ISBLANK(tbl),"",COUNTIF(tbl,"<"&tbl)+1),ROW(tbl)-MIN(ROW(tbl))+1),1),MATCH(MIN(IF(COUNTIF($B$1:B68,tbl)+ISBLANK(tbl)>0,"",COUNTIF(tbl,"<"&tbl)+1)),INDEX(IF(ISBLANK(tbl),"",COUNTIF(tbl,"<"&tbl)+1),SMALL(IF(SMALL(IF(COUNTIF($B$1:B68,tbl)+ISBLANK(tbl)=0,COUNTIF(tbl,"<"&tbl)+1,""),1)=IF(ISBLANK(tbl),"",COUNTIF(tbl,"<"&tbl)+1),ROW(tbl)-MIN(ROW(tbl))+1),1),,1),0),1) ->  | E69: =IF(D69<>"",D69/COUNTA(tbl),"") ->  | F69: =IF(E69<>"",SUM(E$2:E69),"") ->  | H69: =IF(E69<>"",CONCATENATE(SUM(D$2:D69),"/",SUM(nonempty_freq)),"") ->  | U69: ,
B70: =INDEX(tbl,SMALL(IF(SMALL(IF(COUNTIF($B$1:B69,tbl)+ISBLANK(tbl)=0,COUNTIF(tbl,"<"&tbl)+1,""),1)=IF(ISBLANK(tbl),"",COUNTIF(tbl,"<"&tbl)+1),ROW(tbl)-MIN(ROW(tbl))+1),1),MATCH(MIN(IF(COUNTIF($B$1:B69,tbl)+ISBLANK(tbl)>0,"",COUNTIF(tbl,"<"&tbl)+1)),INDEX(IF(ISBLANK(tbl),"",COUNTIF(tbl,"<"&tbl)+1),SMALL(IF(SMALL(IF(COUNTIF($B$1:B69,tbl)+ISBLANK(tbl)=0,COUNTIF(tbl,"<"&tbl)+1,""),1)=IF(ISBLANK(tbl),"",COUNTIF(tbl,"<"&tbl)+1),ROW(tbl)-MIN(ROW(tbl))+1),1),,1),0),1) ->  | E70: =IF(D70<>"",D70/COUNTA(tbl),"") ->  | F70: =IF(E70<>"",SUM(E$2:E70),"") ->  | H70: =IF(E70<>"",CONCATENATE(SUM(D$2:D70),"/",SUM(nonempty_freq)),"") ->  | U70: ,
B71: =INDEX(tbl,SMALL(IF(SMALL(IF(COUNTIF($B$1:B70,tbl)+ISBLANK(tbl)=0,COUNTIF(tbl,"<"&tbl)+1,""),1)=IF(ISBLANK(tbl),"",COUNTIF(tbl,"<"&tbl)+1),ROW(tbl)-MIN(ROW(tbl))+1),1),MATCH(MIN(IF(COUNTIF($B$1:B70,tbl)+ISBLANK(tbl)>0,"",COUNTIF(tbl,"<"&tbl)+1)),INDEX(IF(ISBLANK(tbl),"",COUNTIF(tbl,"<"&tbl)+1),SMALL(IF(SMALL(IF(COUNTIF($B$1:B70,tbl)+ISBLANK(tbl)=0,COUNTIF(tbl,"<"&tbl)+1,""),1)=IF(ISBLANK(tbl),"",COUNTIF(tbl,"<"&tbl)+1),ROW(tbl)-MIN(ROW(tbl))+1),1),,1),0),1) ->  | E71: =IF(D71<>"",D71/COUNTA(tbl),"") ->  | F71: =IF(E71<>"",SUM(E$2:E71),"") ->  | H71: =IF(E71<>"",CONCATENATE(SUM(D$2:D71),"/",SUM(nonempty_freq)),"") ->  | U71: ,
B72: =INDEX(tbl,SMALL(IF(SMALL(IF(COUNTIF($B$1:B71,tbl)+ISBLANK(tbl)=0,COUNTIF(tbl,"<"&tbl)+1,""),1)=IF(ISBLANK(tbl),"",COUNTIF(tbl,"<"&tbl)+1),ROW(tbl)-MIN(ROW(tbl))+1),1),MATCH(MIN(IF(COUNTIF($B$1:B71,tbl)+ISBLANK(tbl)>0,"",COUNTIF(tbl,"<"&tbl)+1)),INDEX(IF(ISBLANK(tbl),"",COUNTIF(tbl,"<"&tbl)+1),SMALL(IF(SMALL(IF(COUNTIF($B$1:B71,tbl)+ISBLANK(tbl)=0,COUNTIF(tbl,"<"&tbl)+1,""),1)=IF(ISBLANK(tbl),"",COUNTIF(tbl,"<"&tbl)+1),ROW(tbl)-MIN(ROW(tbl))+1),1),,1),0),1) ->  | E72: =IF(D72<>"",D72/COUNTA(tbl),"") ->  | F72: =IF(E72<>"",SUM(E$2:E72),"") ->  | H72: =IF(E72<>"",CONCATENATE(SUM(D$2:D72),"/",SUM(nonempty_freq)),"") ->  | U72: ,
B73: =INDEX(tbl,SMALL(IF(SMALL(IF(COUNTIF($B$1:B72,tbl)+ISBLANK(tbl)=0,COUNTIF(tbl,"<"&tbl)+1,""),1)=IF(ISBLANK(tbl),"",COUNTIF(tbl,"<"&tbl)+1),ROW(tbl)-MIN(ROW(tbl))+1),1),MATCH(MIN(IF(COUNTIF($B$1:B72,tbl)+ISBLANK(tbl)>0,"",COUNTIF(tbl,"<"&tbl)+1)),INDEX(IF(ISBLANK(tbl),"",COUNTIF(tbl,"<"&tbl)+1),SMALL(IF(SMALL(IF(COUNTIF($B$1:B72,tbl)+ISBLANK(tbl)=0,COUNTIF(tbl,"<"&tbl)+1,""),1)=IF(ISBLANK(tbl),"",COUNTIF(tbl,"<"&tbl)+1),ROW(tbl)-MIN(ROW(tbl))+1),1),,1),0),1) ->  | E73: =IF(D73<>"",D73/COUNTA(tbl),"") ->  | F73: =IF(E73<>"",SUM(E$2:E73),"") ->  | H73: =IF(E73<>"",CONCATENATE(SUM(D$2:D73),"/",SUM(nonempty_freq)),"") ->  | U73: ,
B74: =INDEX(tbl,SMALL(IF(SMALL(IF(COUNTIF($B$1:B73,tbl)+ISBLANK(tbl)=0,COUNTIF(tbl,"<"&tbl)+1,""),1)=IF(ISBLANK(tbl),"",COUNTIF(tbl,"<"&tbl)+1),ROW(tbl)-MIN(ROW(tbl))+1),1),MATCH(MIN(IF(COUNTIF($B$1:B73,tbl)+ISBLANK(tbl)>0,"",COUNTIF(tbl,"<"&tbl)+1)),INDEX(IF(ISBLANK(tbl),"",COUNTIF(tbl,"<"&tbl)+1),SMALL(IF(SMALL(IF(COUNTIF($B$1:B73,tbl)+ISBLANK(tbl)=0,COUNTIF(tbl,"<"&tbl)+1,""),1)=IF(ISBLANK(tbl),"",COUNTIF(tbl,"<"&tbl)+1),ROW(tbl)-MIN(ROW(tbl))+1),1),,1),0),1) ->  | E74: =IF(D74<>"",D74/COUNTA(tbl),"") ->  | F74: =IF(E74<>"",SUM(E$2:E74),"") ->  | H74: =IF(E74<>"",CONCATENATE(SUM(D$2:D74),"/",SUM(nonempty_freq)),"") ->  | U74: ,
B75: =INDEX(tbl,SMALL(IF(SMALL(IF(COUNTIF($B$1:B74,tbl)+ISBLANK(tbl)=0,COUNTIF(tbl,"<"&tbl)+1,""),1)=IF(ISBLANK(tbl),"",COUNTIF(tbl,"<"&tbl)+1),ROW(tbl)-MIN(ROW(tbl))+1),1),MATCH(MIN(IF(COUNTIF($B$1:B74,tbl)+ISBLANK(tbl)>0,"",COUNTIF(tbl,"<"&tbl)+1)),INDEX(IF(ISBLANK(tbl),"",COUNTIF(tbl,"<"&tbl)+1),SMALL(IF(SMALL(IF(COUNTIF($B$1:B74,tbl)+ISBLANK(tbl)=0,COUNTIF(tbl,"<"&tbl)+1,""),1)=IF(ISBLANK(tbl),"",COUNTIF(tbl,"<"&tbl)+1),ROW(tbl)-MIN(ROW(tbl))+1),1),,1),0),1) ->  | E75: =IF(D75<>"",D75/COUNTA(tbl),"") ->  | F75: =IF(E75<>"",SUM(E$2:E75),"") ->  | H75: =IF(E75<>"",CONCATENATE(SUM(D$2:D75),"/",SUM(nonempty_freq)),"") ->  | U75: ,
B76: =INDEX(tbl,SMALL(IF(SMALL(IF(COUNTIF($B$1:B75,tbl)+ISBLANK(tbl)=0,COUNTIF(tbl,"<"&tbl)+1,""),1)=IF(ISBLANK(tbl),"",COUNTIF(tbl,"<"&tbl)+1),ROW(tbl)-MIN(ROW(tbl))+1),1),MATCH(MIN(IF(COUNTIF($B$1:B75,tbl)+ISBLANK(tbl)>0,"",COUNTIF(tbl,"<"&tbl)+1)),INDEX(IF(ISBLANK(tbl),"",COUNTIF(tbl,"<"&tbl)+1),SMALL(IF(SMALL(IF(COUNTIF($B$1:B75,tbl)+ISBLANK(tbl)=0,COUNTIF(tbl,"<"&tbl)+1,""),1)=IF(ISBLANK(tbl),"",COUNTIF(tbl,"<"&tbl)+1),ROW(tbl)-MIN(ROW(tbl))+1),1),,1),0),1) ->  | E76: =IF(D76<>"",D76/COUNTA(tbl),"") ->  | F76: =IF(E76<>"",SUM(E$2:E76),"") ->  | H76: =IF(E76<>"",CONCATENATE(SUM(D$2:D76),"/",SUM(nonempty_freq)),"") ->  | U76: ,
B77: =INDEX(tbl,SMALL(IF(SMALL(IF(COUNTIF($B$1:B76,tbl)+ISBLANK(tbl)=0,COUNTIF(tbl,"<"&tbl)+1,""),1)=IF(ISBLANK(tbl),"",COUNTIF(tbl,"<"&tbl)+1),ROW(tbl)-MIN(ROW(tbl))+1),1),MATCH(MIN(IF(COUNTIF($B$1:B76,tbl)+ISBLANK(tbl)>0,"",COUNTIF(tbl,"<"&tbl)+1)),INDEX(IF(ISBLANK(tbl),"",COUNTIF(tbl,"<"&tbl)+1),SMALL(IF(SMALL(IF(COUNTIF($B$1:B76,tbl)+ISBLANK(tbl)=0,COUNTIF(tbl,"<"&tbl)+1,""),1)=IF(ISBLANK(tbl),"",COUNTIF(tbl,"<"&tbl)+1),ROW(tbl)-MIN(ROW(tbl))+1),1),,1),0),1) ->  | E77: =IF(D77<>"",D77/COUNTA(tbl),"") ->  | F77: =IF(E77<>"",SUM(E$2:E77),"") ->  | H77: =IF(E77<>"",CONCATENATE(SUM(D$2:D77),"/",SUM(nonempty_freq)),"") ->  | U77: ,
B78: =INDEX(tbl,SMALL(IF(SMALL(IF(COUNTIF($B$1:B77,tbl)+ISBLANK(tbl)=0,COUNTIF(tbl,"<"&tbl)+1,""),1)=IF(ISBLANK(tbl),"",COUNTIF(tbl,"<"&tbl)+1),ROW(tbl)-MIN(ROW(tbl))+1),1),MATCH(MIN(IF(COUNTIF($B$1:B77,tbl)+ISBLANK(tbl)>0,"",COUNTIF(tbl,"<"&tbl)+1)),INDEX(IF(ISBLANK(tbl),"",COUNTIF(tbl,"<"&tbl)+1),SMALL(IF(SMALL(IF(COUNTIF($B$1:B77,tbl)+ISBLANK(tbl)=0,COUNTIF(tbl,"<"&tbl)+1,""),1)=IF(ISBLANK(tbl),"",COUNTIF(tbl,"<"&tbl)+1),ROW(tbl)-MIN(ROW(tbl))+1),1),,1),0),1) ->  | E78: =IF(D78<>"",D78/COUNTA(tbl),"") ->  | F78: =IF(E78<>"",SUM(E$2:E78),"") ->  | H78: =IF(E78<>"",CONCATENATE(SUM(D$2:D78),"/",SUM(nonempty_freq)),"") ->  | U78: ,
B79: =INDEX(tbl,SMALL(IF(SMALL(IF(COUNTIF($B$1:B78,tbl)+ISBLANK(tbl)=0,COUNTIF(tbl,"<"&tbl)+1,""),1)=IF(ISBLANK(tbl),"",COUNTIF(tbl,"<"&tbl)+1),ROW(tbl)-MIN(ROW(tbl))+1),1),MATCH(MIN(IF(COUNTIF($B$1:B78,tbl)+ISBLANK(tbl)>0,"",COUNTIF(tbl,"<"&tbl)+1)),INDEX(IF(ISBLANK(tbl),"",COUNTIF(tbl,"<"&tbl)+1),SMALL(IF(SMALL(IF(COUNTIF($B$1:B78,tbl)+ISBLANK(tbl)=0,COUNTIF(tbl,"<"&tbl)+1,""),1)=IF(ISBLANK(tbl),"",COUNTIF(tbl,"<"&tbl)+1),ROW(tbl)-MIN(ROW(tbl))+1),1),,1),0),1) ->  | E79: =IF(D79<>"",D79/COUNTA(tbl),"") ->  | F79: =IF(E79<>"",SUM(E$2:E79),"") ->  | H79: =IF(E79<>"",CONCATENATE(SUM(D$2:D79),"/",SUM(nonempty_freq)),"") ->  | U79: ,
B80: =INDEX(tbl,SMALL(IF(SMALL(IF(COUNTIF($B$1:B79,tbl)+ISBLANK(tbl)=0,COUNTIF(tbl,"<"&tbl)+1,""),1)=IF(ISBLANK(tbl),"",COUNTIF(tbl,"<"&tbl)+1),ROW(tbl)-MIN(ROW(tbl))+1),1),MATCH(MIN(IF(COUNTIF($B$1:B79,tbl)+ISBLANK(tbl)>0,"",COUNTIF(tbl,"<"&tbl)+1)),INDEX(IF(ISBLANK(tbl),"",COUNTIF(tbl,"<"&tbl)+1),SMALL(IF(SMALL(IF(COUNTIF($B$1:B79,tbl)+ISBLANK(tbl)=0,COUNTIF(tbl,"<"&tbl)+1,""),1)=IF(ISBLANK(tbl),"",COUNTIF(tbl,"<"&tbl)+1),ROW(tbl)-MIN(ROW(tbl))+1),1),,1),0),1) ->  | E80: =IF(D80<>"",D80/COUNTA(tbl),"") ->  | F80: =IF(E80<>"",SUM(E$2:E80),"") ->  | H80: =IF(E80<>"",CONCATENATE(SUM(D$2:D80),"/",SUM(nonempty_freq)),"") ->  | U80: ,
B81: =INDEX(tbl,SMALL(IF(SMALL(IF(COUNTIF($B$1:B80,tbl)+ISBLANK(tbl)=0,COUNTIF(tbl,"<"&tbl)+1,""),1)=IF(ISBLANK(tbl),"",COUNTIF(tbl,"<"&tbl)+1),ROW(tbl)-MIN(ROW(tbl))+1),1),MATCH(MIN(IF(COUNTIF($B$1:B80,tbl)+ISBLANK(tbl)>0,"",COUNTIF(tbl,"<"&tbl)+1)),INDEX(IF(ISBLANK(tbl),"",COUNTIF(tbl,"<"&tbl)+1),SMALL(IF(SMALL(IF(COUNTIF($B$1:B80,tbl)+ISBLANK(tbl)=0,COUNTIF(tbl,"<"&tbl)+1,""),1)=IF(ISBLANK(tbl),"",COUNTIF(tbl,"<"&tbl)+1),ROW(tbl)-MIN(ROW(tbl))+1),1),,1),0),1) ->  | E81: =IF(D81<>"",D81/COUNTA(tbl),"") ->  | F81: =IF(E81<>"",SUM(E$2:E81),"") ->  | H81: =IF(E81<>"",CONCATENATE(SUM(D$2:D81),"/",SUM(nonempty_freq)),"") ->  | U81: ,
B82: =INDEX(tbl,SMALL(IF(SMALL(IF(COUNTIF($B$1:B81,tbl)+ISBLANK(tbl)=0,COUNTIF(tbl,"<"&tbl)+1,""),1)=IF(ISBLANK(tbl),"",COUNTIF(tbl,"<"&tbl)+1),ROW(tbl)-MIN(ROW(tbl))+1),1),MATCH(MIN(IF(COUNTIF($B$1:B81,tbl)+ISBLANK(tbl)>0,"",COUNTIF(tbl,"<"&tbl)+1)),INDEX(IF(ISBLANK(tbl),"",COUNTIF(tbl,"<"&tbl)+1),SMALL(IF(SMALL(IF(COUNTIF($B$1:B81,tbl)+ISBLANK(tbl)=0,COUNTIF(tbl,"<"&tbl)+1,""),1)=IF(ISBLANK(tbl),"",COUNTIF(tbl,"<"&tbl)+1),ROW(tbl)-MIN(ROW(tbl))+1),1),,1),0),1) ->  | E82: =IF(D82<>"",D82/COUNTA(tbl),"") ->  | F82: =IF(E82<>"",SUM(E$2:E82),"") ->  | H82: =IF(E82<>"",CONCATENATE(SUM(D$2:D82),"/",SUM(nonempty_freq)),"") ->  | U82: ,
B83: =INDEX(tbl,SMALL(IF(SMALL(IF(COUNTIF($B$1:B82,tbl)+ISBLANK(tbl)=0,COUNTIF(tbl,"<"&tbl)+1,""),1)=IF(ISBLANK(tbl),"",COUNTIF(tbl,"<"&tbl)+1),ROW(tbl)-MIN(ROW(tbl))+1),1),MATCH(MIN(IF(COUNTIF($B$1:B82,tbl)+ISBLANK(tbl)>0,"",COUNTIF(tbl,"<"&tbl)+1)),INDEX(IF(ISBLANK(tbl),"",COUNTIF(tbl,"<"&tbl)+1),SMALL(IF(SMALL(IF(COUNTIF($B$1:B82,tbl)+ISBLANK(tbl)=0,COUNTIF(tbl,"<"&tbl)+1,""),1)=IF(ISBLANK(tbl),"",COUNTIF(tbl,"<"&tbl)+1),ROW(tbl)-MIN(ROW(tbl))+1),1),,1),0),1) ->  | E83: =IF(D83<>"",D83/COUNTA(tbl),"") ->  | F83: =IF(E83<>"",SUM(E$2:E83),"") ->  | H83: =IF(E83<>"",CONCATENATE(SUM(D$2:D83),"/",SUM(nonempty_freq)),"") ->  | U83: ,
B84: =INDEX(tbl,SMALL(IF(SMALL(IF(COUNTIF($B$1:B83,tbl)+ISBLANK(tbl)=0,COUNTIF(tbl,"<"&tbl)+1,""),1)=IF(ISBLANK(tbl),"",COUNTIF(tbl,"<"&tbl)+1),ROW(tbl)-MIN(ROW(tbl))+1),1),MATCH(MIN(IF(COUNTIF($B$1:B83,tbl)+ISBLANK(tbl)>0,"",COUNTIF(tbl,"<"&tbl)+1)),INDEX(IF(ISBLANK(tbl),"",COUNTIF(tbl,"<"&tbl)+1),SMALL(IF(SMALL(IF(COUNTIF($B$1:B83,tbl)+ISBLANK(tbl)=0,COUNTIF(tbl,"<"&tbl)+1,""),1)=IF(ISBLANK(tbl),"",COUNTIF(tbl,"<"&tbl)+1),ROW(tbl)-MIN(ROW(tbl))+1),1),,1),0),1) ->  | E84: =IF(D84<>"",D84/COUNTA(tbl),"") ->  | F84: =IF(E84<>"",SUM(E$2:E84),"") ->  | H84: =IF(E84<>"",CONCATENATE(SUM(D$2:D84),"/",SUM(nonempty_freq)),"") ->  | U84: ,
B85: =INDEX(tbl,SMALL(IF(SMALL(IF(COUNTIF($B$1:B84,tbl)+ISBLANK(tbl)=0,COUNTIF(tbl,"<"&tbl)+1,""),1)=IF(ISBLANK(tbl),"",COUNTIF(tbl,"<"&tbl)+1),ROW(tbl)-MIN(ROW(tbl))+1),1),MATCH(MIN(IF(COUNTIF($B$1:B84,tbl)+ISBLANK(tbl)>0,"",COUNTIF(tbl,"<"&tbl)+1)),INDEX(IF(ISBLANK(tbl),"",COUNTIF(tbl,"<"&tbl)+1),SMALL(IF(SMALL(IF(COUNTIF($B$1:B84,tbl)+ISBLANK(tbl)=0,COUNTIF(tbl,"<"&tbl)+1,""),1)=IF(ISBLANK(tbl),"",COUNTIF(tbl,"<"&tbl)+1),ROW(tbl)-MIN(ROW(tbl))+1),1),,1),0),1) ->  | E85: =IF(D85<>"",D85/COUNTA(tbl),"") ->  | F85: =IF(E85<>"",SUM(E$2:E85),"") ->  | H85: =IF(E85<>"",CONCATENATE(SUM(D$2:D85),"/",SUM(nonempty_freq)),"") ->  | U85: ,
B86: =INDEX(tbl,SMALL(IF(SMALL(IF(COUNTIF($B$1:B85,tbl)+ISBLANK(tbl)=0,COUNTIF(tbl,"<"&tbl)+1,""),1)=IF(ISBLANK(tbl),"",COUNTIF(tbl,"<"&tbl)+1),ROW(tbl)-MIN(ROW(tbl))+1),1),MATCH(MIN(IF(COUNTIF($B$1:B85,tbl)+ISBLANK(tbl)>0,"",COUNTIF(tbl,"<"&tbl)+1)),INDEX(IF(ISBLANK(tbl),"",COUNTIF(tbl,"<"&tbl)+1),SMALL(IF(SMALL(IF(COUNTIF($B$1:B85,tbl)+ISBLANK(tbl)=0,COUNTIF(tbl,"<"&tbl)+1,""),1)=IF(ISBLANK(tbl),"",COUNTIF(tbl,"<"&tbl)+1),ROW(tbl)-MIN(ROW(tbl))+1),1),,1),0),1) ->  | E86: =IF(D86<>"",D86/COUNTA(tbl),"") ->  | F86: =IF(E86<>"",SUM(E$2:E86),"") ->  | H86: =IF(E86<>"",CONCATENATE(SUM(D$2:D86),"/",SUM(nonempty_freq)),"") ->  | U86: ,
B87: =INDEX(tbl,SMALL(IF(SMALL(IF(COUNTIF($B$1:B86,tbl)+ISBLANK(tbl)=0,COUNTIF(tbl,"<"&tbl)+1,""),1)=IF(ISBLANK(tbl),"",COUNTIF(tbl,"<"&tbl)+1),ROW(tbl)-MIN(ROW(tbl))+1),1),MATCH(MIN(IF(COUNTIF($B$1:B86,tbl)+ISBLANK(tbl)>0,"",COUNTIF(tbl,"<"&tbl)+1)),INDEX(IF(ISBLANK(tbl),"",COUNTIF(tbl,"<"&tbl)+1),SMALL(IF(SMALL(IF(COUNTIF($B$1:B86,tbl)+ISBLANK(tbl)=0,COUNTIF(tbl,"<"&tbl)+1,""),1)=IF(ISBLANK(tbl),"",COUNTIF(tbl,"<"&tbl)+1),ROW(tbl)-MIN(ROW(tbl))+1),1),,1),0),1) ->  | E87: =IF(D87<>"",D87/COUNTA(tbl),"") ->  | F87: =IF(E87<>"",SUM(E$2:E87),"") ->  | H87: =IF(E87<>"",CONCATENATE(SUM(D$2:D87),"/",SUM(nonempty_freq)),"") ->  | U87: ,
B88: =INDEX(tbl,SMALL(IF(SMALL(IF(COUNTIF($B$1:B87,tbl)+ISBLANK(tbl)=0,COUNTIF(tbl,"<"&tbl)+1,""),1)=IF(ISBLANK(tbl),"",COUNTIF(tbl,"<"&tbl)+1),ROW(tbl)-MIN(ROW(tbl))+1),1),MATCH(MIN(IF(COUNTIF($B$1:B87,tbl)+ISBLANK(tbl)>0,"",COUNTIF(tbl,"<"&tbl)+1)),INDEX(IF(ISBLANK(tbl),"",COUNTIF(tbl,"<"&tbl)+1),SMALL(IF(SMALL(IF(COUNTIF($B$1:B87,tbl)+ISBLANK(tbl)=0,COUNTIF(tbl,"<"&tbl)+1,""),1)=IF(ISBLANK(tbl),"",COUNTIF(tbl,"<"&tbl)+1),ROW(tbl)-MIN(ROW(tbl))+1),1),,1),0),1) ->  | E88: =IF(D88<>"",D88/COUNTA(tbl),"") ->  | F88: =IF(E88<>"",SUM(E$2:E88),"") ->  | H88: =IF(E88<>"",CONCATENATE(SUM(D$2:D88),"/",SUM(nonempty_freq)),"") ->  | U88: ,
B89: =INDEX(tbl,SMALL(IF(SMALL(IF(COUNTIF($B$1:B88,tbl)+ISBLANK(tbl)=0,COUNTIF(tbl,"<"&tbl)+1,""),1)=IF(ISBLANK(tbl),"",COUNTIF(tbl,"<"&tbl)+1),ROW(tbl)-MIN(ROW(tbl))+1),1),MATCH(MIN(IF(COUNTIF($B$1:B88,tbl)+ISBLANK(tbl)>0,"",COUNTIF(tbl,"<"&tbl)+1)),INDEX(IF(ISBLANK(tbl),"",COUNTIF(tbl,"<"&tbl)+1),SMALL(IF(SMALL(IF(COUNTIF($B$1:B88,tbl)+ISBLANK(tbl)=0,COUNTIF(tbl,"<"&tbl)+1,""),1)=IF(ISBLANK(tbl),"",COUNTIF(tbl,"<"&tbl)+1),ROW(tbl)-MIN(ROW(tbl))+1),1),,1),0),1) ->  | E89: =IF(D89<>"",D89/COUNTA(tbl),"") ->  | F89: =IF(E89<>"",SUM(E$2:E89),"") ->  | H89: =IF(E89<>"",CONCATENATE(SUM(D$2:D89),"/",SUM(nonempty_freq)),"") ->  | U89: ,
B90: =INDEX(tbl,SMALL(IF(SMALL(IF(COUNTIF($B$1:B89,tbl)+ISBLANK(tbl)=0,COUNTIF(tbl,"<"&tbl)+1,""),1)=IF(ISBLANK(tbl),"",COUNTIF(tbl,"<"&tbl)+1),ROW(tbl)-MIN(ROW(tbl))+1),1),MATCH(MIN(IF(COUNTIF($B$1:B89,tbl)+ISBLANK(tbl)>0,"",COUNTIF(tbl,"<"&tbl)+1)),INDEX(IF(ISBLANK(tbl),"",COUNTIF(tbl,"<"&tbl)+1),SMALL(IF(SMALL(IF(COUNTIF($B$1:B89,tbl)+ISBLANK(tbl)=0,COUNTIF(tbl,"<"&tbl)+1,""),1)=IF(ISBLANK(tbl),"",COUNTIF(tbl,"<"&tbl)+1),ROW(tbl)-MIN(ROW(tbl))+1),1),,1),0),1) ->  | E90: =IF(D90<>"",D90/COUNTA(tbl),"") ->  | F90: =IF(E90<>"",SUM(E$2:E90),"") ->  | H90: =IF(E90<>"",CONCATENATE(SUM(D$2:D90),"/",SUM(nonempty_freq)),"") ->  | U90: ,
B91: =INDEX(tbl,SMALL(IF(SMALL(IF(COUNTIF($B$1:B90,tbl)+ISBLANK(tbl)=0,COUNTIF(tbl,"<"&tbl)+1,""),1)=IF(ISBLANK(tbl),"",COUNTIF(tbl,"<"&tbl)+1),ROW(tbl)-MIN(ROW(tbl))+1),1),MATCH(MIN(IF(COUNTIF($B$1:B90,tbl)+ISBLANK(tbl)>0,"",COUNTIF(tbl,"<"&tbl)+1)),INDEX(IF(ISBLANK(tbl),"",COUNTIF(tbl,"<"&tbl)+1),SMALL(IF(SMALL(IF(COUNTIF($B$1:B90,tbl)+ISBLANK(tbl)=0,COUNTIF(tbl,"<"&tbl)+1,""),1)=IF(ISBLANK(tbl),"",COUNTIF(tbl,"<"&tbl)+1),ROW(tbl)-MIN(ROW(tbl))+1),1),,1),0),1) ->  | E91: =IF(D91<>"",D91/COUNTA(tbl),"") ->  | F91: =IF(E91<>"",SUM(E$2:E91),"") ->  | H91: =IF(E91<>"",CONCATENATE(SUM(D$2:D91),"/",SUM(nonempty_freq)),"") ->  | U91: ,
B92: =INDEX(tbl,SMALL(IF(SMALL(IF(COUNTIF($B$1:B91,tbl)+ISBLANK(tbl)=0,COUNTIF(tbl,"<"&tbl)+1,""),1)=IF(ISBLANK(tbl),"",COUNTIF(tbl,"<"&tbl)+1),ROW(tbl)-MIN(ROW(tbl))+1),1),MATCH(MIN(IF(COUNTIF($B$1:B91,tbl)+ISBLANK(tbl)>0,"",COUNTIF(tbl,"<"&tbl)+1)),INDEX(IF(ISBLANK(tbl),"",COUNTIF(tbl,"<"&tbl)+1),SMALL(IF(SMALL(IF(COUNTIF($B$1:B91,tbl)+ISBLANK(tbl)=0,COUNTIF(tbl,"<"&tbl)+1,""),1)=IF(ISBLANK(tbl),"",COUNTIF(tbl,"<"&tbl)+1),ROW(tbl)-MIN(ROW(tbl))+1),1),,1),0),1) ->  | E92: =IF(D92<>"",D92/COUNTA(tbl),"") ->  | F92: =IF(E92<>"",SUM(E$2:E92),"") ->  | H92: =IF(E92<>"",CONCATENATE(SUM(D$2:D92),"/",SUM(nonempty_freq)),"") ->  | U92: ,
B93: =INDEX(tbl,SMALL(IF(SMALL(IF(COUNTIF($B$1:B92,tbl)+ISBLANK(tbl)=0,COUNTIF(tbl,"<"&tbl)+1,""),1)=IF(ISBLANK(tbl),"",COUNTIF(tbl,"<"&tbl)+1),ROW(tbl)-MIN(ROW(tbl))+1),1),MATCH(MIN(IF(COUNTIF($B$1:B92,tbl)+ISBLANK(tbl)>0,"",COUNTIF(tbl,"<"&tbl)+1)),INDEX(IF(ISBLANK(tbl),"",COUNTIF(tbl,"<"&tbl)+1),SMALL(IF(SMALL(IF(COUNTIF($B$1:B92,tbl)+ISBLANK(tbl)=0,COUNTIF(tbl,"<"&tbl)+1,""),1)=IF(ISBLANK(tbl),"",COUNTIF(tbl,"<"&tbl)+1),ROW(tbl)-MIN(ROW(tbl))+1),1),,1),0),1) ->  | E93: =IF(D93<>"",D93/COUNTA(tbl),"") ->  | F93: =IF(E93<>"",SUM(E$2:E93),"") ->  | H93: =IF(E93<>"",CONCATENATE(SUM(D$2:D93),"/",SUM(nonempty_freq)),"") ->  | U93: ,
B94: =INDEX(tbl,SMALL(IF(SMALL(IF(COUNTIF($B$1:B93,tbl)+ISBLANK(tbl)=0,COUNTIF(tbl,"<"&tbl)+1,""),1)=IF(ISBLANK(tbl),"",COUNTIF(tbl,"<"&tbl)+1),ROW(tbl)-MIN(ROW(tbl))+1),1),MATCH(MIN(IF(COUNTIF($B$1:B93,tbl)+ISBLANK(tbl)>0,"",COUNTIF(tbl,"<"&tbl)+1)),INDEX(IF(ISBLANK(tbl),"",COUNTIF(tbl,"<"&tbl)+1),SMALL(IF(SMALL(IF(COUNTIF($B$1:B93,tbl)+ISBLANK(tbl)=0,COUNTIF(tbl,"<"&tbl)+1,""),1)=IF(ISBLANK(tbl),"",COUNTIF(tbl,"<"&tbl)+1),ROW(tbl)-MIN(ROW(tbl))+1),1),,1),0),1) ->  | E94: =IF(D94<>"",D94/COUNTA(tbl),"") ->  | F94: =IF(E94<>"",SUM(E$2:E94),"") ->  | H94: =IF(E94<>"",CONCATENATE(SUM(D$2:D94),"/",SUM(nonempty_freq)),"") ->  | U94: ,
B95: =INDEX(tbl,SMALL(IF(SMALL(IF(COUNTIF($B$1:B94,tbl)+ISBLANK(tbl)=0,COUNTIF(tbl,"<"&tbl)+1,""),1)=IF(ISBLANK(tbl),"",COUNTIF(tbl,"<"&tbl)+1),ROW(tbl)-MIN(ROW(tbl))+1),1),MATCH(MIN(IF(COUNTIF($B$1:B94,tbl)+ISBLANK(tbl)>0,"",COUNTIF(tbl,"<"&tbl)+1)),INDEX(IF(ISBLANK(tbl),"",COUNTIF(tbl,"<"&tbl)+1),SMALL(IF(SMALL(IF(COUNTIF($B$1:B94,tbl)+ISBLANK(tbl)=0,COUNTIF(tbl,"<"&tbl)+1,""),1)=IF(ISBLANK(tbl),"",COUNTIF(tbl,"<"&tbl)+1),ROW(tbl)-MIN(ROW(tbl))+1),1),,1),0),1) ->  | E95: =IF(D95<>"",D95/COUNTA(tbl),"") ->  | F95: =IF(E95<>"",SUM(E$2:E95),"") ->  | H95: =IF(E95<>"",CONCATENATE(SUM(D$2:D95),"/",SUM(nonempty_freq)),"") ->  | U95: ,
B96: =INDEX(tbl,SMALL(IF(SMALL(IF(COUNTIF($B$1:B95,tbl)+ISBLANK(tbl)=0,COUNTIF(tbl,"<"&tbl)+1,""),1)=IF(ISBLANK(tbl),"",COUNTIF(tbl,"<"&tbl)+1),ROW(tbl)-MIN(ROW(tbl))+1),1),MATCH(MIN(IF(COUNTIF($B$1:B95,tbl)+ISBLANK(tbl)>0,"",COUNTIF(tbl,"<"&tbl)+1)),INDEX(IF(ISBLANK(tbl),"",COUNTIF(tbl,"<"&tbl)+1),SMALL(IF(SMALL(IF(COUNTIF($B$1:B95,tbl)+ISBLANK(tbl)=0,COUNTIF(tbl,"<"&tbl)+1,""),1)=IF(ISBLANK(tbl),"",COUNTIF(tbl,"<"&tbl)+1),ROW(tbl)-MIN(ROW(tbl))+1),1),,1),0),1) ->  | E96: =IF(D96<>"",D96/COUNTA(tbl),"") ->  | F96: =IF(E96<>"",SUM(E$2:E96),"") ->  | H96: =IF(E96<>"",CONCATENATE(SUM(D$2:D96),"/",SUM(nonempty_freq)),"") ->  | U96: ,
B97: =INDEX(tbl,SMALL(IF(SMALL(IF(COUNTIF($B$1:B96,tbl)+ISBLANK(tbl)=0,COUNTIF(tbl,"<"&tbl)+1,""),1)=IF(ISBLANK(tbl),"",COUNTIF(tbl,"<"&tbl)+1),ROW(tbl)-MIN(ROW(tbl))+1),1),MATCH(MIN(IF(COUNTIF($B$1:B96,tbl)+ISBLANK(tbl)>0,"",COUNTIF(tbl,"<"&tbl)+1)),INDEX(IF(ISBLANK(tbl),"",COUNTIF(tbl,"<"&tbl)+1),SMALL(IF(SMALL(IF(COUNTIF($B$1:B96,tbl)+ISBLANK(tbl)=0,COUNTIF(tbl,"<"&tbl)+1,""),1)=IF(ISBLANK(tbl),"",COUNTIF(tbl,"<"&tbl)+1),ROW(tbl)-MIN(ROW(tbl))+1),1),,1),0),1) ->  | E97: =IF(D97<>"",D97/COUNTA(tbl),"") ->  | F97: =IF(E97<>"",SUM(E$2:E97),"") ->  | H97: =IF(E97<>"",CONCATENATE(SUM(D$2:D97),"/",SUM(nonempty_freq)),"") ->  | U97: ,
B98: =INDEX(tbl,SMALL(IF(SMALL(IF(COUNTIF($B$1:B97,tbl)+ISBLANK(tbl)=0,COUNTIF(tbl,"<"&tbl)+1,""),1)=IF(ISBLANK(tbl),"",COUNTIF(tbl,"<"&tbl)+1),ROW(tbl)-MIN(ROW(tbl))+1),1),MATCH(MIN(IF(COUNTIF($B$1:B97,tbl)+ISBLANK(tbl)>0,"",COUNTIF(tbl,"<"&tbl)+1)),INDEX(IF(ISBLANK(tbl),"",COUNTIF(tbl,"<"&tbl)+1),SMALL(IF(SMALL(IF(COUNTIF($B$1:B97,tbl)+ISBLANK(tbl)=0,COUNTIF(tbl,"<"&tbl)+1,""),1)=IF(ISBLANK(tbl),"",COUNTIF(tbl,"<"&tbl)+1),ROW(tbl)-MIN(ROW(tbl))+1),1),,1),0),1) ->  | E98: =IF(D98<>"",D98/COUNTA(tbl),"") ->  | F98: =IF(E98<>"",SUM(E$2:E98),"") ->  | H98: =IF(E98<>"",CONCATENATE(SUM(D$2:D98),"/",SUM(nonempty_freq)),"") ->  | U98: ,
B99: =INDEX(tbl,SMALL(IF(SMALL(IF(COUNTIF($B$1:B98,tbl)+ISBLANK(tbl)=0,COUNTIF(tbl,"<"&tbl)+1,""),1)=IF(ISBLANK(tbl),"",COUNTIF(tbl,"<"&tbl)+1),ROW(tbl)-MIN(ROW(tbl))+1),1),MATCH(MIN(IF(COUNTIF($B$1:B98,tbl)+ISBLANK(tbl)>0,"",COUNTIF(tbl,"<"&tbl)+1)),INDEX(IF(ISBLANK(tbl),"",COUNTIF(tbl,"<"&tbl)+1),SMALL(IF(SMALL(IF(COUNTIF($B$1:B98,tbl)+ISBLANK(tbl)=0,COUNTIF(tbl,"<"&tbl)+1,""),1)=IF(ISBLANK(tbl),"",COUNTIF(tbl,"<"&tbl)+1),ROW(tbl)-MIN(ROW(tbl))+1),1),,1),0),1) ->  | E99: =IF(D99<>"",D99/COUNTA(tbl),"") ->  | F99: =IF(E99<>"",SUM(E$2:E99),"") ->  | H99: =IF(E99<>"",CONCATENATE(SUM(D$2:D99),"/",SUM(nonempty_freq)),"") ->  | U99: ,
B100: =INDEX(tbl,SMALL(IF(SMALL(IF(COUNTIF($B$1:B99,tbl)+ISBLANK(tbl)=0,COUNTIF(tbl,"<"&tbl)+1,""),1)=IF(ISBLANK(tbl),"",COUNTIF(tbl,"<"&tbl)+1),ROW(tbl)-MIN(ROW(tbl))+1),1),MATCH(MIN(IF(COUNTIF($B$1:B99,tbl)+ISBLANK(tbl)>0,"",COUNTIF(tbl,"<"&tbl)+1)),INDEX(IF(ISBLANK(tbl),"",COUNTIF(tbl,"<"&tbl)+1),SMALL(IF(SMALL(IF(COUNTIF($B$1:B99,tbl)+ISBLANK(tbl)=0,COUNTIF(tbl,"<"&tbl)+1,""),1)=IF(ISBLANK(tbl),"",COUNTIF(tbl,"<"&tbl)+1),ROW(tbl)-MIN(ROW(tbl))+1),1),,1),0),1) ->  | E100: =IF(D100<>"",D100/COUNTA(tbl),"") ->  | F100: =IF(E100<>"",SUM(E$2:E100),"") ->  | H100: =IF(E100<>"",CONCATENATE(SUM(D$2:D100),"/",SUM(nonempty_freq)),"") ->  | U100: ,
B101: =INDEX(tbl,SMALL(IF(SMALL(IF(COUNTIF($B$1:B100,tbl)+ISBLANK(tbl)=0,COUNTIF(tbl,"<"&tbl)+1,""),1)=IF(ISBLANK(tbl),"",COUNTIF(tbl,"<"&tbl)+1),ROW(tbl)-MIN(ROW(tbl))+1),1),MATCH(MIN(IF(COUNTIF($B$1:B100,tbl)+ISBLANK(tbl)>0,"",COUNTIF(tbl,"<"&tbl)+1)),INDEX(IF(ISBLANK(tbl),"",COUNTIF(tbl,"<"&tbl)+1),SMALL(IF(SMALL(IF(COUNTIF($B$1:B100,tbl)+ISBLANK(tbl)=0,COUNTIF(tbl,"<"&tbl)+1,""),1)=IF(ISBLANK(tbl),"",COUNTIF(tbl,"<"&tbl)+1),ROW(tbl)-MIN(ROW(tbl))+1),1),,1),0),1) ->  | E101: =IF(D101<>"",D101/COUNTA(tbl),"") ->  | F101: =IF(E101<>"",SUM(E$2:E101),"") ->  | H101: =IF(E101<>"",CONCATENATE(SUM(D$2:D101),"/",SUM(nonempty_freq)),"") ->  | U101: ,

Sheet Gauss-binom-Poisson
D1: Written by Peter Nagy
D2: peter.v.nagy@gmail.com
A3: Normal
A4: m | B4: 4.5
A5: s | B5: 0.5
A6: x1 | B6: 4
A7: x2 | B7: 5.5
C8: non-rounded results | D8: results rounded to 2 and 4 digits
A9: (x1-m)/s | B9: =CONCATENATE("z(",B6,")") -> z(4) | C9: =(B6-B$4)/B$5 -> -1 | D9: =ROUND(C9,2) -> -1
A10: (x2-m)/s | B10: =CONCATENATE("z(",B7,")") -> z(5.5) | C10: =(B7-B$4)/B$5 -> 2 | D10: =ROUND(C10,2) -> 2
A12: P(x<x1) | B12: =CONCATENATE("less than ",B6) -> less than 4 | C12: =_xlfn.NORM.DIST(C9,0,1,TRUE) -> 0.1586552539 | D12: =ROUND(_xlfn.NORM.DIST(D9,0,1,TRUE),4) -> 0.1587
A13: P(x<x2) | B13: =CONCATENATE("less than ",B7) -> less than 5.5 | C13: =_xlfn.NORM.DIST(C10,0,1,TRUE) -> 0.9772498681 | D13: =ROUND(_xlfn.NORM.DIST(D10,0,1,TRUE),4) -> 0.9772
A15: P(x>x1) | B15: =CONCATENATE("larger than ",B6) -> larger than 4 | C15: =1-C12 -> 0.8413447461 | D15: =1-D12 -> 0.8413
A16: P(x>x2) | B16: =CONCATENATE("larger than ",B7) -> larger than 5.5 | C16: =1-C13 -> 0.02275013195 | D16: =1-D13 -> 0.0228
A18: P(x1<x<x2) | B18: =CONCATENATE("inside range of ",$B$6," and ",$B$7) -> inside range of 4 and 5.5 | C18: =IF($B$7>$B$6,C13-C12,"x2 should be less than x1") -> 0.8185946141 | D18: =IF($B$7>$B$6,D13-D12,"x2 should be less than x1") -> 0.8185
A19: P(x1<x È x>x2) | B19: =CONCATENATE("outside range of ",$B$6," and ",$B$7) -> outside range of 4 and 5.5 | C19: =IF($B$7>$B$6,1-C18,"x2 should be less than x1") -> 0.1814053859 | D19: =IF($B$7>$B$6,1-D18,"x2 should be less than x1") -> 0.1815
A21: Normal | D21: Round z (number of digits OR no)
A22: m | B22: 178 | C22: =LEN(B28) -> 67 | D22: 2
A23: s | B23: 6 | C23: =LEN(B31) -> 44
A24: x | B24: 175,180
A25: relationship (<,>,in,out) | B25: in
A26: percentile (%) | B26: 80
A28: full expression for prob. | B28: =calcNormal(B22,B23,B24,B25,D22,2) -> P( 175<x< 180)=P(x< 180)-P(x< 175)=P(z< .33)-P(z<-.5)= .6293- .3085
B29: =
A30: probability | B30: =calcNormal(B22,B23,B24,B25,D22,1) -> 0.3208
A31: full expression for percentile | B31: =calcNormalPerc(B22,B23,B26,D22,2) -> F(z)= .8 => z= .84 => (x- 178)/ 6= .84 => x=
B32: =
A33: percentile | B33: =calcNormalPerc(B22,B23,B26,D22,1) -> 183.04
A35: Binomial
A36: n | B36: 10 | C36: =LEN(B41) -> 49
A37: p | B37: 0.73
A38: k | B38: 9
A39: relationship (=,<,<=,>,>=,in,out) | B39: <=
A41: full expression for prob. | B41: =calcBinomial(B36,B37,B38,B39,2) -> 1 - nCr( 10, 10) * .73^ 10 * .27^ 0 = 1 - .043
B42: =
A43: probability | B43: =calcBinomial(B36,B37,B38,B39,1) -> 0.957
A45: Poisson
A46: l | B46: 3 | C46: =LEN(B50) -> 49
A47: k | B47: 1
A48: relationship (=,<,<=,>,>=,in,out) | B48: <=
A50: full expression for prob. | B50: =calcPoisson(B46,B47,B48,2) -> Exp(- 3)*( 3^ 0/ 0! + 3^ 1/ 1!) = .0498 + .149
B51: =
A52: probability | B52: =calcPoisson(B46,B47,B48,1) -> 0.199

Sheet normality test
A1: sample | B1: sorted sample | C1: i/(n+1) | D1: F(xi)=i/(n+1)®xi | E1: mean | F1: standardized sample | G1: min | H1: histogram bins | I1: P(<=bin) | J1: P(bin<x<=next bin) | K1: fitted cdf | L1: fitted histogram | M1: (obs-exp)^2/exp | N1: c2 test | O1: unique elements | P1: sorted unique elements | Q1: empirical CDF | R1: fitted CDF | S1: D1 | T1: D2 | U1: max(D) | AA1: 1 | AB1: =EXP(-((2*AA1-1)^2*PI()^2/(8*$U$5^2))) -> 0.03312439974 | AC1: Cum. KS dist.
A2: 18 | B2: 1 | C2: 0.1111111111 | D2: -1.220640349 | E2: =AVERAGE(A2:A1025) -> 11.125 | F2: 0.985199419 | G2: =MIN(F2:F1025) -> -1.450930053 | H2: =IF(ROWS(H$2:H2)<=G$8,G$2+ROWS(H$2:H2)*G$11,"") -> -0.8060722519 | I2: =IF(H2<>"",COUNTIF(F$2:F$501,"<="&H2)/E$8,"") -> 0.25 | J2: =IF(H2<>"",I2,"") -> 0.25 | K2: =IF(H2<>"",_xlfn.NORM.DIST(H2,0,1,TRUE),"") -> 0.210100595 | L2: =IF(H2<>"",K2,"") -> 0.210100595 | M2: =IF(H2<>"",(J2-L2)^2/L2*E$8,"") -> 0.06061715415 | N2: =SUM(M2:M11) -> 2.146492165 | P2: 1 | Q2: 0.125 | R2: 0.07339966916 | S2: 0.05160033084 | T2: 0.07339966916 | U2: =MAX(S2:T1025) -> 0.212736937 | AA2: 2 | AB2: 4.801004946e-14 | AC2: =SQRT(2*PI())/U5*SUM(AB1:AB50) -> 0.1379907756
A3: 1 | B3: 4 | C3: 0.2222222222 | D3: -0.7647096738 | F3: -1.450930053 | H3: =IF(ROWS(H$2:H3)<=G$8,G$2+ROWS(H$2:H3)*G$11,"") -> -0.1612144504 | I3: =IF(H3<>"",COUNTIF(F$2:F$501,"<="&H3)/E$8,"") -> 0.5 | J3: =IF(H3<>"",I3-I2,"") -> 0.25 | K3: =IF(H3<>"",_xlfn.NORM.DIST(H3,0,1,TRUE),"") -> 0.4359622501 | L3: =IF(H3<>"",K3-K2,"") -> 0.2258616551 | M3: =IF(H3<>"",(J3-L3)^2/L3*E$8,"") -> 0.02063775521 | P3: 4 | Q3: 0.25 | R3: 0.1536213321 | S3: 0.09637866785 | T3: 0.02862133215 | AA3: 3 | AB3: 1.008556949e-37
A4: 4 | B4: 6 | C4: 0.3333333333 | D4: -0.4307272993 | E4: SD | F4: -1.021024852 | G4: max | H4: =IF(ROWS(H$2:H4)<=G$8,G$2+ROWS(H$2:H4)*G$11,"") -> 0.4836433511 | I4: 0.625 | J4: =IF(H4<>"",I4-I3,"") -> 0.125 | K4: 0.6856804985 | L4: =IF(H4<>"",K4-K3,"") -> 0.2497182484 | M4: 0.498310126 | N4: d.f. | P4: 6 | Q4: 0.375 | R4: 0.2313459786 | S4: 0.1436540214 | T4: -0.01865402138 | U4: max(D)corrected | AA4: 4 | AB4: 3.070809214e-73
A5: 6 | B5: 10 | C5: 0.4444444444 | D5: -0.1397102989 | E5: =_xlfn.STDEV.S(A2:A1025) -> 6.978282638 | F5: -0.734421385 | G5: =MAX(F2:F1025) -> 1.128501153 | H5: =IF(ROWS(H$2:H5)<=G$8,G$2+ROWS(H$2:H5)*G$11,"") -> 1.128501153 | I5: 1 | J5: 0.375 | K5: 0.8704458348 | L5: 0.1847653363 | M5: 1.566927129 | N5: =COUNT(H2:H11)-1-2 -> 1 | P5: 10 | Q5: 0.5 | R5: 0.4359622501 | S5: 0.06403774988 | T5: 0.06096225012 | U5: =U2*SQRT(E8) -> 0.6017109231 | AA5: 5 | AB5: 1.355156275e-120
A6: 13 | B6: 13 | C6: 0.5555555556 | D6: 0.1397102989 | F6: 0.2686907506 | H6: =IF(ROWS(H$2:H6)<=G$8,G$2+ROWS(H$2:H6)*G$11,"") ->  | P6: 13 | Q6: 0.625 | R6: 0.605916165 | S6: 0.01908383503 | T6: 0.105916165 | AA6: 6 | AB6: 8.667823553e-180
A7: 10 | B7: 18 | C7: 0.6666666667 | D7: 0.4307272993 | E7: # of elements | F7: -0.1612144504 | G7: # of bins | H7: =IF(ROWS(H$2:H7)<=G$8,G$2+ROWS(H$2:H7)*G$11,"") ->  | N7: p | P7: 18 | Q7: 0.875 | R7: 0.837736937 | S7: 0.03726306299 | T7: 0.212736937 | U7: p | AA7: 7 | AB7: 8.035536534e-251
A8: 18 | B8: 18 | C8: 0.7777777778 | D8: 0.7647096738 | E8: =COUNT(A2:A1025) -> 8 | F8: 0.985199419 | G8: =ROUND(1+3.322*LOG10(E8),0) -> 4 | H8: =IF(ROWS(H$2:H8)<=G$8,G$2+ROWS(H$2:H8)*G$11,"") ->  | N8: =_xlfn.CHISQ.DIST.RT(N2,N5) -> 0.1428960428 | P8: 19 | Q8: 1 | R8: 0.8704458348 | S8: 0.1295541652 | T8: -0.004554165181 | U8: =1-AC2 -> 0.8620092244 | AA8: 8 | AB8: 0
A9: 19 | B9: 19 | C9: 0.8888888889 | D9: 1.220640349 | F9: 1.128501153 | H9: =IF(ROWS(H$2:H9)<=G$8,G$2+ROWS(H$2:H9)*G$11,"") ->  | AA9: 9 | AB9: 0
E10: skewness | G10: bin size | H10: =IF(ROWS(H$2:H10)<=G$8,G$2+ROWS(H$2:H10)*G$11,"") ->  | N10: c2 test | U10: KS test | AA10: 10 | AB10: 0
E11: =SKEW(A2:A1025) -> -0.2190777146 | G11: =(G5-G2)/G8 -> 0.6448578015 | H11: =IF(ROWS(H$2:H11)<=G$8,G$2+ROWS(H$2:H11)*G$11,"") ->  | AA11: 11 | AB11: 0
H12: =IF(ROWS(H$2:H12)<=G$8,G$2+ROWS(H$2:H12)*G$11,"") ->  | I12: =IF(H12<>"",COUNTIF(F$2:F$501,"<="&H12)/E$8,"") ->  | J12: =IF(H12<>"",I12-I11,"") ->  | K12: =IF(H12<>"",_xlfn.NORM.DIST(H12,0,1,TRUE),"") ->  | L12: =IF(H12<>"",K12-K11,"") ->  | M12: =IF(H12<>"",(J12-L12)^2/L12*E$8,"") ->  | AA12: 12 | AB12: 0
E13: kurtosis | AA13: 13 | AB13: 0
E14: =KURT(A2:A1025) -> -1.704057578 | AA14: 14 | AB14: 0
AA15: 15 | AB15: 0
E16: Written by Peter Nagy | AA16: 16 | AB16: 0
E17: peter.v.nagy@gmail.com | AA17: 17 | AB17: 0
AA18: 18 | AB18: 0
AA19: 19 | AB19: 0
AA20: 20 | AB20: 0
AA21: 21 | AB21: 0
AA22: 22 | AB22: 0
AA23: 23 | AB23: 0
AA24: 24 | AB24: 0
AA25: 25 | AB25: 0
AA26: 26 | AB26: 0
AA27: 27 | AB27: 0
AA28: 28 | AB28: 0
AA29: 29 | AB29: 0
AA30: 30 | AB30: 0
AA31: 31 | AB31: 0
AA32: 32 | AB32: 0
AA33: 33 | AB33: =EXP(-((2*AA33-1)^2*PI()^2/(8*$U$5^2))) -> 0
AA34: 34 | AB34: 0
AA35: 35 | AB35: 0
AA36: 36 | AB36: 0
AA37: 37 | AB37: 0
AA38: 38 | AB38: 0
AA39: 39 | AB39: 0
AA40: 40 | AB40: 0
AA41: 41 | AB41: 0
AA42: 42 | AB42: 0
AA43: 43 | AB43: 0
AA44: 44 | AB44: 0
AA45: 45 | AB45: 0
AA46: 46 | AB46: 0
AA47: 47 | AB47: 0
AA48: 48 | AB48: 0
AA49: 49 | AB49: 0
AA50: 50 | AB50: 0

Sheet t-z (1)
A1: Sample | C1: Written by Peter Nagy
A2: 12 | C2: peter.v.nagy@gmail.com
A3: 10
A4: 8
A5: 4
A6: 6
A33: mean | B33: =AVERAGE(A2:A31) -> 8 | G33: mean | H33: 98
A34: SD | B34: =_xlfn.STDEV.S(A2:A31) -> 3.16227766 | G34: SD (for t and z test) | H34: 18
A35: variance | B35: =B34^2 -> 10 | G35: variance | H35: =H34^2 -> 324
A36: SEM | B36: =B34/SQRT(B37) -> 1.414213562 | G36: SEM | H36: =H34/SQRT(H37) -> 4.647580015
A37: # of elements | B37: =COUNT(A2:A31) -> 5 | G37: # of elements | H37: 15
A39: assumed mean | B39: 5 | C39: SD of the population (for z-test) | D39: 3 | G39: assumed mean | H39: 110
A41: t-test | D41: z-test | G41: t-test | J41: z-test
A42: t(calc) | B42: =roundit((B33-B39)/B36,3) -> 2.121 | C42: =(B33-B39)/B36 -> 2.121320344 | D42: z-calc | E42: =roundit((B33-B39)/(D39/SQRT(B37)),3) -> 2.236 | F42: =(B33-B39)/(D39/SQRT(B37)) -> 2.236067977 | G42: t(calc) | H42: =roundit((H33-H39)/H36,3) -> -2.582 | I42: =(H33-H39)/H36 -> -2.581988897 | J42: z(calc) | K42: =roundit((H33-H39)/H36,3) -> -2.582 | L42: =(H33-H39)/H36 -> -2.581988897
A43: d.f. | B43: =B37-1 -> 4 | D43: sidedness | E43: =B44 -> 1 | G43: d.f. | H43: =H37-1 -> 14 | J43: sidedness | K43: =H44 -> 1
A44: sidedness | B44: 1 | D44: z(critical) | E44: =roundit(-_xlfn.NORM.S.INV(E45/E43),2) -> 1.64 | G44: sidedness | H44: 1 | J44: z(critical) | K44: =roundit(-_xlfn.NORM.S.INV(K45/K43),2) -> 1.64
A45: t(critical) | B45: =roundit(IF(B44=2,_xlfn.T.INV.2T(B46,B43),-_xlfn.T.INV(B46,B43)),3) -> 2.132 | D45: alpha | E45: =B46 -> 0.05 | G45: t(critical) | H45: =roundit(IF(H44=2,_xlfn.T.INV.2T(H46,H43),-_xlfn.T.INV(H46,H43)),3) -> 1.761 | J45: alpha | K45: =H46 -> 0.05
A46: alpha | B46: 0.05 | D46: p value | E46: =roundit((1-_xlfn.NORM.DIST(ABS(F42),0,1,TRUE))*(1+(E43=2)),2) -> 0.0127 | G46: alpha | H46: 0.05 | J46: p value | K46: =roundit((1-_xlfn.NORM.DIST(ABS(L42),0,1,TRUE))*(1+(K43=2)),2) -> 0.00491
A47: p value | B47: =roundit(IF(B44=2,_xlfn.T.DIST.2T(ABS(C42),B43),_xlfn.T.DIST.RT(ABS(C42),B43)),2) -> 0.0506 | D47: =calcPValue("z",E42,E43) -> F( 2.24)= .9873=> p=(1- .9873)* 1= .013 | G47: p value | H47: =roundit(IF(H44=2,_xlfn.T.DIST.2T(ABS(I42),H43),_xlfn.T.DIST.RT(ABS(I42),H43)),2) -> 0.0109 | J47: =calcPValue("z",K42,K43) -> F( 2.58)= .9951=> p=(1- .9951)* 1= .005
A49: IF SAMPLE ELEMENTS ARE GIVEN | G49: IF THE MEANS AND SDs ARE GIVEN

Sheet t-F (2)
B1: Sample 1 | C1: Sample 2 | G1: Diff | I1: Written by Peter Nagy
B2: 0.9353 | C2: 2.1746 | G2: =IF(COUNTA(B$2:B$31)=COUNTA(C$2:C$31),IF(OR(ISBLANK(B2),ISBLANK(C2)),"",C2-B2),"N.A") -> 1.2393 | I2: peter.v.nagy@gmail.com
B3: 0.8362 | C3: 1.9574 | G3: =IF(COUNTA(B$2:B$31)=COUNTA(C$2:C$31),IF(OR(ISBLANK(B3),ISBLANK(C3)),"",C3-B3),"N.A") -> 1.1212
B4: 1.2859 | C4: 1.8974 | G4: 0.6115
B5: 1.2754 | C5: 1.7482 | G5: 0.4728
B6: 1.4824 | C6: 1.9946 | G6: 0.5122
B33: Sample 1 | C33: Sample 2 | G33: Diff
A34: mean | B34: =roundit(AVERAGE(B2:B31),3) -> 1.163 | C34: =roundit(AVERAGE(C2:C31),3) -> 1.954 | G34: =roundit(IF(COUNTA(B2:B31)=COUNTA(C2:C31),AVERAGE(G2:G31),"N.A."),3) -> 0.7914 | H34: =AVERAGE(G2:G31) -> 0.7914 | J34: mean | K34: 92 | L34: 105
A35: SD | B35: =roundit(_xlfn.STDEV.S(B2:B31),2) -> 0.269 | C35: =roundit(_xlfn.STDEV.S(C2:C31),2) -> 0.155 | G35: =roundit(IF(COUNTA(B2:B31)=COUNTA(C2:C31),_xlfn.STDEV.S(G2:G31),"N.A."),2) -> 0.361 | J35: SD | K35: 4 | L35: 5
A36: variance | B36: =roundit(_xlfn.VAR.S(B2:B31),2) -> 0.0721 | C36: =roundit(_xlfn.VAR.S(C2:C31),2) -> 0.024 | G36: =roundit(IF(COUNTA(B2:B31)=COUNTA(C2:C31),_xlfn.STDEV.S(G2:G31)^2,"N.A."),2) -> 0.13 | J36: variance | K36: =roundit(K35^2,2) -> 16 | L36: =roundit(L35^2,2) -> 25
A37: SEM | B37: =roundit(_xlfn.STDEV.S(B2:B31)/SQRT(B38),2) -> 0.12 | C37: =roundit(_xlfn.STDEV.S(C2:C31)/SQRT(C38),2) -> 0.0692 | G37: =roundit(IF(COUNTA(B2:B31)=COUNTA(C2:C31),_xlfn.STDEV.S(G2:G31)/SQRT(G38),"N.A."),2) -> 0.161 | H37: =_xlfn.STDEV.S(G2:G31)/SQRT(G38) -> 0.1614318835 | J37: SEM | K37: =roundit(K35/SQRT(K38),2) -> 1.51 | L37: =roundit(L35/SQRT(L38),2) -> 1.77
A38: # of elements | B38: =COUNT(B2:B31) -> 5 | C38: =COUNT(C2:C31) -> 5 | G38: =IF(COUNTA(B2:B31)=COUNTA(C2:C31),COUNT(G2:G31),"N.A.") -> 5 | J38: # of elements | K38: 7 | L38: 8
B39: Student's t-test | C39: Welch's t-test | K39: Student's t-test | L39: Welch's t-test
A40: pooled variance | B40: =roundit(((B38-1)*_xlfn.STDEV.S(B2:B31)^2+(C38-1)*_xlfn.STDEV.S(C2:C31)^2)/(B38+C38-2),2) -> 0.048 | C40: =roundit(B35^2/B38+C35^2/C38,2) -> 0.0193 | J40: pooled variance | K40: =roundit(((K38-1)*K35^2+(L38-1)*L35^2)/(K38+L38-2),2) -> 20.8 | L40: =roundit(K35^2/K38+L35^2/L38,2) -> 5.41
A41: pooled SD | B41: =roundit(SQRT(B40),2) -> 0.219 | C41: =roundit(SQRT(C40),2) -> 0.139 | J41: pooled SD | K41: =roundit(SQRT(K40),2) -> 4.56 | L41: =roundit(SQRT(L40),2) -> 2.33
A42: t(calc) | B42: =roundit((AVERAGE(C2:C31)-AVERAGE(B2:B31))/SQRT(B40*(1/B38+1/C38)),3) -> 5.711 | C42: =roundit((C34-B34)/C41,2) -> 5.69 | D42: =(AVERAGE(C2:C31)-AVERAGE(B2:B31))/SQRT(B40*(1/B38+1/C38)) -> 5.711437538 | E42: =(C34-B34)/C41 -> 5.690647482 | F42: t(calc) | G42: =roundit(IF(COUNTA(B2:B31)=COUNTA(C2:C31),H34/H37,"N.A."),3) -> 4.902 | J42: t(calc) | K42: =roundit((L34-K34)/SQRT(K40*(1/K38+1/L38)),2) -> 5.51 | L42: =roundit((L34-K34)/L41,2) -> 5.58 | M42: =(L34-K34)/SQRT(K40*(1/K38+1/L38)) -> 5.507570547 | N42: =(L34-K34)/L41 -> 5.579399142
A43: d.f. | B43: =B38+C38-2 -> 8 | C43: =roundit((B35^2/B38+C35^2/C38)^2/(B35^4/(B38^2*(B38-1))+C35^4/(C38^2*(C38-1))),2) -> 6.39 | E43: =(B35^2/B38+C35^2/C38)^2/(B35^4/(B38^2*(B38-1))+C35^4/(C38^2*(C38-1))) -> 6.392401638 | F43: d.f. | G43: =IF(COUNTA(B2:B31)=COUNTA(C2:C31),G38-1,"N.A.") -> 4 | J43: d.f. | K43: =K38+L38-2 -> 13 | L43: =roundit((K35^2/K38+L35^2/L38)^2/(K35^4/(K38^2*(K38-1))+L35^4/(L38^2*(L38-1))),2) -> 12.9 | N43: =(K35^2/K38+L35^2/L38)^2/(K35^4/(K38^2*(K38-1))+L35^4/(L38^2*(L38-1))) -> 12.92053291
A44: sidedness | B44: 1 | C44: =B44 -> 1 | J44: sidedness | K44: 1 | L44: =K44 -> 1
A45: t(critical) | B45: =ROUND(IF(B44=2,_xlfn.T.INV.2T(B46,B43),-_xlfn.T.INV(B46,B43)),3) -> 1.86 | C45: =ROUND(IF(C44=2,_xlfn.T.INV.2T(C46,E43),-_xlfn.T.INV(C46,E43)),3) -> 1.943 | F45: t(critical) | G45: =ROUND(IF(COUNTA(B2:B31)=COUNTA(C2:C31),IF(B44=2,_xlfn.T.INV.2T(B46,G43),-_xlfn.T.INV(B46,G43)),"N.A."),3) -> 2.132 | J45: t(critical) | K45: =ROUND(IF(K44=2,_xlfn.T.INV.2T(K46,K43),-_xlfn.T.INV(K46,K43)),3) -> 1.771 | L45: =ROUND(IF(L44=2,_xlfn.T.INV.2T(L46,N43),-_xlfn.T.INV(L46,N43)),3) -> 1.782
A46: alpha | B46: 0.05 | C46: =B46 -> 0.05 | F46: p value (paired) | G46: =roundit(IF(COUNTA(B2:B31)=COUNTA(C2:C31),_xlfn.T.TEST(B2:B31,C2:C31,B44,1),"N.A."),2) -> 0.00402 | J46: alpha | K46: 0.05 | L46: =K46 -> 0.05
A47: p value (2-sample) | B47: =roundit(IF(B44=2,_xlfn.T.DIST.2T(ABS(D42),B43),_xlfn.T.DIST.RT(ABS(D42),B43)),2) -> 0.000224 | C47: =roundit(IF(C44=2,_xlfn.T.DIST.2T(ABS(E42),E43),_xlfn.T.DIST.RT(ABS(E42),E43)),2) -> 0.000635 | J47: p value (2 sample) | K47: =roundit(IF(K44=2,_xlfn.T.DIST.2T(ABS(M42),K43),_xlfn.T.DIST.RT(ABS(M42),K43)),2) -> 5.04e-05 | L47: =roundit(IF(L44=2,_xlfn.T.DIST.2T(ABS(N42),N43),_xlfn.T.DIST.RT(ABS(N42),N43)),2) -> 6e-05
A49: F | B49: =roundit(IF(B36>C36,B36/C36,C36/B36),3) -> 3.004 | J49: F | K49: =roundit(IF(K36>L36,K36/L36,L36/K36),3) -> 1.563
A50: F(critical) | B50: =ROUND(IF(B36>C36,_xlfn.F.INV.RT(B46/2,B38-1,C38-1),_xlfn.F.INV.RT(B46/2,C38-1,B38-1)),3) -> 9.605 | J50: F(critical) | K50: =roundit(IF(K36>L36,_xlfn.F.INV.RT(K46/2,K38-1,L38-1),_xlfn.F.INV.RT(K46/2,L38-1,K38-1)),2) -> 5.7
A51: d.f. | B51: =IF(B36>C36,CONCATENATE(B38-1,", ",C38-1),CONCATENATE(C38-1,", ",B38-1)) -> 4, 4 | J51: d.f. | K51: =IF(K36>L36,CONCATENATE(K38-1,", ",L38-1),CONCATENATE(L38-1,", ",K38-1)) -> 7, 6
A52: p value (F test) | B52: =roundit(_xlfn.F.TEST(B2:B31,C2:C31),2) -> 0.311 | J52: p value (F test) | K52: =roundit(IF(K35>L35,_xlfn.F.DIST.RT(K49,K38-1,L38-1)*2,_xlfn.F.DIST.RT(K49,L38-1,K38-1)*2),2) -> 0.603
A54: 2-SAMPLE T-TEST | F54: PAIRED T-TEST | J54: =IF(K52<K46,"Welch's t-test is appropriate due to significant difference between the variances.","Student's t-test is appropriate due to insignificant difference between the variances.") -> Student's t-test is appropriate due to insignificant difference between the variances.
A55: =IF(B52<B46,"Welch's t-test is appropriate due to significant difference between the variances.","Student's t-test is appropriate due to insignificant difference between the variances.") -> Student's t-test is appropriate due to insignificant difference between the variances.
A56: IF SAMPLE ELEMENTS ARE GIVEN | J56: IF THE MEANS AND SDs ARE GIVEN

Sheet Sample size & power
A1: Effect | B1: 1 | D1: Written by Peter Nagy
A2: SD | B2: 1 | D2: peter.v.nagy@gmail.com
A3: Level of significance (a) | B3: 0.05
A4: Sidedness (1 or 2) | B4: 1
A5: Power of test (1-b) | B5: 0.8
A6: Ratio of sample sizes | B6: 1
A9: Size of sample 1 | B9: 14
A10: Size of sample 2 | B10: 14 | D10: ta | E10: value where the cumulative t distrubution function is 1-a or 1-a/2 for a one-sided and two-sided test, respectively
D11: tncq,b | E11: value where the cumulative distribution function of the noncentral t distribution, with a noncentrality parameter of q, is b
A18: effect | B18: 1
A19: SD | B19: 1
A20: N | B20: 14
A21: Ratio of sample sizes | B21: 1
A22: Level of significance (a) | B22: 0.05
A23: Sidedness (1 or 2) | B23: 1
A25: Power of two-sample t test (1-b) | B25: =1-nctcdf(_xlfn.T.INV(1-B22/B23,B20+B20*B21-2),B20+B20*B21-2,B18/(B19*SQRT(1/B20+1/(B20*B21)))) -> 0.8240858546

Sheet FDR
A1: a (Level of significance) | B1: 0.05 | D1: Based on a, b and C | J1: Written by Peter Nagy
A2: b (probability of accepting a false H0) | B2: 0.31 | F2: Null hypothesis | J2: peter.v.nagy@gmail.com
F3: True | G3: False | H3: S
A4: C (fraction of correct null hypotheses) | B4: 0.9 | D4: Decision | E4: Accept H0 | F4: =B4*(1-B1) -> 0.855 | G4: False negative (type 2 error) | H4: =G5+F4 -> 0.886 | J4: Based on:
G5: =(1-B4)*B2 -> 0.031 | J5: Colquhoun, D. 2017. The reproducibility of research and the misinterpretation of p-values. R Soc Open Sci 4:171085.
A6: tcalc | B6: 2.064 | E6: Reject H0 | F6: False discovery (type 1 error) | G6: =(1-B4)*(1-B2) -> 0.069 | H6: =G6+F7 -> 0.114
A7: Size of sample 1 | B7: 13 | F7: =B4*B1 -> 0.045
A8: Size of sample 2 | B8: 13 | E8: S | F8: =F7+F4 -> 0.9 | G8: =G6+G5 -> 0.1 | H8: =H6+H4 -> 1
A9: sidedness (1/2) | B9: 2
A10: Dxeffect | B10: 1 | D10: FDR (false discovery rate): fraction of incorrectly rejected null hypotheses from among all rejected null hypotheses
A11: SD | B11: 1 | D11: =F7/(F7+G6) -> 0.3947368421
A13: desired FDR | B13: 0.05 | D13: FNR (false negative rate): fraction of incorrectly accepted null hypotheses from among all accepted null hypotheses
D14: =G5/(G5+F4) -> 0.03498871332
A15: degree of freedom | B15: =B7+B8-2 -> 24
A16: ta (given a, sidedness and d.f.) | B16: =_xlfn.T.INV(1-B1/B9,B15) -> 2.063898562 | D16: Based on C, tcalc, sample sizes, sidedness, Dxeffect and SD
A17: b (given a, sidedness, d.f., Dxeffect and SD) | B17: =nctcdf(_xlfn.T.INV(1-B1/B9,B15),B15,B10/(B11*SQRT(1/B7+1/B8))) -> 0.3132944942 | D17: Prior odds
D18: =(1-B4)/B4 -> 0.1111111111
E20: P(data|HA) | F20: P(data|H0) | G20: likelihood ratio
D21: p-equals | E21: =nctpdf(B6,B15,B10/(B11*SQRT(1/B7+1/B8))) -> 0.3426454961 | F21: =_xlfn.T.DIST(B6,B15,FALSE)*B9 -> 0.1024206619 | G21: =E21/F21 -> 3.345472386
D22: p-less than | E22: =1-nctcdf(B6,B15,B10/(B11*SQRT(1/B7+1/B8))) -> 0.6866707491 | F22: =(1-_xlfn.T.DIST(B6,B15,TRUE))*B9 -> 0.04998960965 | G22: =E22/F22 -> 13.73626947
E24: Posterior odds
D25: p-equals | E25: =G21*D18 -> 0.371719154
D26: p-less than | E26: =G22*D18 -> 1.526252164
E28: FDR | F28: FNR
D29: p-equals | E29: =F21*B4/(F21*B4+E21*(1-B4)) -> 0.7290122013 | F29: =(1-B$4)*(1-E21)/((1-B$4)*(1-E21)+B$4*(1-F21)) -> 0.07525034008
D30: p-less than | E30: =F22*B4/(F22*B4+E22*(1-B4)) -> 0.3958433027 | F30: =(1-B$4)*(1-E22)/((1-B$4)*(1-E22)+B$4*(1-F22)) -> 0.03535081867
D32: Based on tcalc, sample sizes, sidedness, Dxeffect, SD and desired FDR
D33: Required prior probability that HA is true to reach the desired FDR
D34: p-equals | E34: =(1-$B$13)*F21/(E21*$B$13+(1-$B$13)*F21) -> 0.8502841055
D35: p-less than | E35: =(1-$B$13)*F22/(E22*$B$13+(1-$B$13)*F22) -> 0.5803960044

Sheet Controlling FDR
A1: Input | D1: Desired FDR for the Benjamini-Hochberg procedure | F1: Output according to Benjamini-Hochberg | M1: Output according to Storey | U1: Histogram of p-values | X1: P0 vs l plot
A2: p-values | B2: Description | D2: 0.05 | F2: Sorted p-values | G2: Description | H2: Rank | I2: B-H crit. value | J2: Significant | K2: q-values | M2: sorted p-values | N2: Description | O2: FDR | P2: q-values | R2: P0 | S2: 0.3301 | U2: p | V2: rel. freq. | X2: l | Y2: P0 | Z2: fitted P0
A3: 0.45561898 | B3: ENSMUSG00000067879 | F3: 4.6274293e-21 | G3: ENSMUSG00000026227 | H3: 2 | I3: 0.0001821493625 | J3: Yes | K3: 1.27e-18 | M3: 4.6274293e-21 | N3: ENSMUSG00000026227 | O3: 4.194e-19 | P3: 4.194e-19 | U3: 0 | V3: 86 | X3: 0.01 | Y3: 0.8518702508 | Z3: 0.8283133026
A4: 0.05265915 | B4: NEWGENE218 | F4: 4.6274293e-21 | G4: ENSMUSG00000029320 | H4: 2 | I4: 0.0001821493625 | J4: Yes | K4: 1.27e-18 | M4: 4.6274293e-21 | N4: ENSMUSG00000029320 | O4: 4.194e-19 | P4: 4.194e-19 | U4: 0.01 | V4: 20 | X4: 0.02 | Y4: 0.8233894651 | Z4: 0.8107354896
A5: 0.10448192 | B5: ENSMUSG00000026109 | F5: 5.651547e-13 | G5: ENSMUSG00000001657 | H5: 3 | I5: 0.0002732240437 | J5: Yes | K5: 1.034e-10 | M5: 5.651547e-13 | N5: ENSMUSG00000001657 | O5: 3.414e-11 | P5: 3.414e-11 | U5: 0.02 | V5: 21 | X5: 0.03 | Y5: 0.7924436182 | Z5: 0.7938385187
A6: 0.38984287 | B6: ENSMUSG00000072324 | F6: 2.3329392e-12 | G6: ENSMUSG00000049491 | H6: 4 | I6: 0.000364298725 | J6: Yes | K6: 3.202e-10 | M6: 2.3329392e-12 | N6: ENSMUSG00000049491 | O6: 1.057e-10 | P6: 1.057e-10 | U6: 0.03 | V6: 10 | X6: 0.04 | Y6: 0.7817243473 | Z6: 0.7776087988
A7: 0.59364355 | B7: ENSMUSG00000026011 | F7: 1.08785356e-10 | G7: ENSMUSG00000029491 | H7: 6 | I7: 0.0005464480874 | J7: Yes | K7: 9.954e-09 | M7: 1.08785356e-10 | N7: ENSMUSG00000029491 | O7: 3.286e-09 | P7: 3.286e-09 | U7: 0.04 | V7: 13 | X7: 0.05 | Y7: 0.7650273224 | Z7: 0.7620327388
A8: 0.06949283 | B8: ENSMUSG00000026196 | D8: Written by Peter Nagy | F8: 1.08785356e-10 | G8: ENSMUSG00000056399 | H8: 6 | I8: 0.0005464480874 | J8: Yes | K8: 9.954e-09 | M8: 1.08785356e-10 | N8: ENSMUSG00000056399 | O8: 3.286e-09 | P8: 3.286e-09 | U8: 0.05 | V8: 16 | X8: 0.06 | Y8: 0.7421617641 | Z8: 0.7470967473
A9: 0.2330518 | B9: ENSMUSG00000039323 | D9: peter.v.nagy@gmail.com | F9: 8.166015e-09 | G9: ENSMUSG00000095241 | H9: 7 | I9: 0.0006375227687 | J9: Yes | K9: 6.404e-07 | M9: 8.166015e-09 | N9: ENSMUSG00000095241 | O9: 2.114e-07 | P9: 2.114e-07 | U9: 0.06 | V9: 17 | X9: 0.07 | Y9: 0.7168458781 | Z9: 0.7327872333
A10: 0.768624 | B10: ENSMUSG00000026202 | F10: 9.630643e-08 | G10: ENSMUSG00000090364 | H10: 8 | I10: 0.0007285974499 | J10: Yes | K10: 6.609e-06 | M10: 9.630643e-08 | N10: ENSMUSG00000090364 | O10: 2.182e-06 | P10: 2.182e-06 | U10: 0.07 | V10: 13 | X10: 0.08 | Y10: 0.6988991843 | Z10: 0.7190906056
A11: 0.3898669 | B11: ENSMUSG00000072978 | F11: 1.6379927e-07 | G11: ENSMUSG00000097709 | H11: 9 | I11: 0.0008196721311 | J11: Yes | K11: 9.992e-06 | M11: 1.6379927e-07 | N11: ENSMUSG00000097709 | O11: 3.299e-06 | P11: 3.299e-06 | U11: 0.08 | V11: 10 | X11: 0.09 | Y11: 0.6865629816 | Z11: 0.705993273
A12: 0.124296606 | B12: ENSMUSG00000026249 | F12: 3.8447158e-07 | G12: ENSMUSG00000075316 | H12: 10 | I12: 0.0009107468124 | J12: Yes | K12: 2.111e-05 | M12: 3.8447158e-07 | N12: ENSMUSG00000075316 | O12: 6.969e-06 | P12: 6.969e-06 | U12: 0.09 | V12: 11 | X12: 0.1 | Y12: 0.6719287594 | Z12: 0.6934816443
A13: 0.11351337 | B13: NEWGENE247 | F13: 2.7600222e-06 | G13: ENSMUSG00000083988 | H13: 11 | I13: 0.001001821494 | J13: Yes | K13: 0.0001378 | M13: 2.7600222e-06 | N13: ENSMUSG00000083988 | O13: 4.548e-05 | P13: 4.548e-05 | U13: 0.1 | V13: 10 | X13: 0.11 | Y13: 0.6590123002 | Z13: 0.6815421284
A14: 0.019059442 | B14: ENSMUSG00000043230 | F14: 5.7834436e-06 | G14: ENSMUSG00000059824 | H14: 12 | I14: 0.001092896175 | J14: Yes | K14: 0.0002646 | M14: 5.7834436e-06 | N14: ENSMUSG00000059824 | O14: 8.735e-05 | P14: 8.735e-05 | U14: 0.11 | V14: 7 | X14: 0.12 | Y14: 0.6520119225 | Z14: 0.670161134
A15: 0.2773422 | B15: ENSMUSG00000022591 | F15: 6.5042022e-06 | G15: ENSMUSG00000060878 | H15: 13 | I15: 0.001183970856 | J15: Yes | K15: 0.0002747 | M15: 6.5042022e-06 | N15: ENSMUSG00000060878 | O15: 9.068e-05 | P15: 9.068e-05 | U15: 0.12 | V15: 7 | X15: 0.13 | Y15: 0.6448506166 | Z15: 0.65932507
A16: 0.86512285 | B16: ENSMUSG00000026220 | F16: 9.352705e-06 | G16: ENSMUSG00000072494 | H16: 14 | I16: 0.001275045537 | J16: Yes | K16: 0.0003668 | M16: 9.352705e-06 | N16: ENSMUSG00000072494 | O16: 0.0001211 | P16: 0.0001211 | U16: 0.13 | V16: 13 | X16: 0.14 | Y16: 0.6248146736 | Z16: 0.6490203452
A17: 0.30270347 | B17: ENSMUSG00000026223 | F17: 1.7461314e-05 | G17: ENSMUSG00000071089 | H17: 15 | I17: 0.001366120219 | J17: Yes | K17: 0.0006391 | M17: 1.7461314e-05 | N17: ENSMUSG00000071089 | O17: 0.000211 | P17: 0.000211 | U17: 0.14 | V17: 4 | X17: 0.15 | Y17: 0.6235936998 | Z17: 0.6392333684
A18: 4.6274293e-21 | B18: ENSMUSG00000026227 | F18: 4.1425825e-05 | G18: ENSMUSG00000040866 | H18: 16 | I18: 0.0014571949 | J18: Yes | K18: 0.001421 | M18: 4.1425825e-05 | N18: ENSMUSG00000040866 | O18: 0.0004693 | P18: 0.0004693 | U18: 0.15 | V18: 2 | X18: 0.16 | Y18: 0.6266805447 | Z18: 0.6299505485
A19: 0.3535684 | B19: ENSMUSG00000079429 | F19: 4.4841832e-05 | G19: ENSMUSG00000085287 | H19: 17 | I19: 0.001548269581 | J19: Yes | K19: 0.001448 | M19: 4.4841832e-05 | N19: ENSMUSG00000085287 | O19: 0.0004781 | P19: 0.0004781 | U19: 0.16 | V19: 4 | X19: 0.17 | Y19: 0.6254526302 | Z19: 0.6211582942
A20: 0.05969709 | B20: ENSMUSG00000097612 | F20: 5.4907927e-05 | G20: ENSMUSG00000039851 | H20: 18 | I20: 0.001639344262 | J20: Yes | K20: 0.001675 | M20: 5.4907927e-05 | N20: ENSMUSG00000039851 | O20: 0.0005529 | P20: 0.0005529 | U20: 0.17 | V20: 4 | X20: 0.18 | Y20: 0.6241947665 | Z20: 0.6128430145
A21: 0.8662454 | B21: ENSMUSG00000044594 | F21: 7.323036e-05 | G21: ENSMUSG00000073753 | H21: 19 | I21: 0.001730418944 | J21: Yes | K21: 0.002116 | M21: 7.323036e-05 | N21: ENSMUSG00000073753 | O21: 0.0006986 | P21: 0.0006986 | U21: 0.18 | V21: 7 | X21: 0.19 | Y21: 0.6161595718 | Z21: 0.6049911181
A22: 0.013053215 | B22: ENSMUSG00000091876 | F22: 8.35814e-05 | G22: ENSMUSG00000045009 | H22: 20 | I22: 0.001821493625 | J22: Yes | K22: 0.002294 | M22: 8.35814e-05 | N22: ENSMUSG00000045009 | O22: 0.0007575 | P22: 0.0007575 | U22: 0.19 | V22: 7 | X22: 0.2 | Y22: 0.6079234973 | Z22: 0.5975890138
A23: 0.21432115 | B23: ENSMUSG00000026436 | F23: 9.651285e-05 | G23: ENSMUSG00000096847 | H23: 21 | I23: 0.001912568306 | J23: Yes | K23: 0.002523 | M23: 9.651285e-05 | N23: ENSMUSG00000096847 | O23: 0.000833 | P23: 0.000833 | U23: 0.2 | V23: 5 | X23: 0.21 | Y23: 0.6040902907 | Z23: 0.5906231105
A24: 0.08022896 | B24: ENSMUSG00000026413 | F24: 0.00010283125 | G24: ENSMUSG00000026809 | H24: 22 | I24: 0.002003642987 | J24: Yes | K24: 0.002566 | M24: 0.00010283125 | N24: ENSMUSG00000026809 | O24: 0.0008472 | P24: 0.0008472 | U24: 0.21 | V24: 9 | X24: 0.22 | Y24: 0.5908178039 | Z24: 0.584079817
A25: 0.02779404 | B25: ENSMUSG00000051985 | F25: 0.00015918765 | G25: ENSMUSG00000088015 | H25: 23 | I25: 0.002094717668 | J25: Yes | K25: 0.0038 | M25: 0.00015918765 | N25: ENSMUSG00000088015 | O25: 0.001254 | P25: 0.001254 | U25: 0.22 | V25: 5 | X25: 0.23 | Y25: 0.5866628817 | Z25: 0.5779455421
A26: 0.023759712 | B26: ENSMUSG00000051079 | F26: 0.00018932726 | G26: ENSMUSG00000060257 | H26: 24 | I26: 0.00218579235 | J26: Yes | K26: 0.004331 | M26: 0.00018932726 | N26: ENSMUSG00000060257 | O26: 0.00143 | P26: 0.00143 | U26: 0.23 | V26: 3 | X26: 0.24 | Y26: 0.5871920238 | Z26: 0.5722066946
A27: 0.107758276 | B27: ENSMUSG00000065787 | F27: 0.00020789877 | G27: ENSMUSG00000059991 | H27: 25 | I27: 0.002276867031 | J27: Yes | K27: 0.004565 | M27: 0.00020789877 | N27: ENSMUSG00000059991 | O27: 0.001507 | P27: 0.001507 | U27: 0.24 | V27: 5 | X27: 0.25 | Y27: 0.5828779599 | Z27: 0.5668496834
A28: 0.32924306 | B28: ENSMUSG00000097130 | F28: 0.00022383103 | G28: ENSMUSG00000020872 | H28: 26 | I28: 0.002367941712 | J28: Yes | K28: 0.004572 | M28: 0.00022383103 | N28: ENSMUSG00000020872 | O28: 0.00156 | P28: 0.001509 | U28: 0.25 | V28: 4 | X28: 0.26 | Y28: 0.5809087776 | Z28: 0.5618609172
A29: 0.008314201 | B29: ENSMUSG00000097028 | F29: 0.0002248402 | G29: ENSMUSG00000097602 | H29: 27 | I29: 0.002459016393 | J29: Yes | K29: 0.004572 | M29: 0.0002248402 | N29: ENSMUSG00000097602 | O29: 0.001509 | P29: 0.001509 | U29: 0.26 | V29: 4 | X29: 0.27 | Y29: 0.5788856451 | Z29: 0.557226805
A30: 0.109786935 | B30: ENSMUSG00000042641 | F30: 0.0003471452 | G30: ENSMUSG00000037738 | H30: 28 | I30: 0.002550091075 | J30: Yes | K30: 0.006807 | M30: 0.0003471452 | N30: ENSMUSG00000037738 | O30: 0.002247 | P30: 0.002247 | U30: 0.27 | V30: 4 | X30: 0.28 | Y30: 0.5768063145 | Z30: 0.5529337555
A31: 0.696893 | B31: ENSMUSG00000015829 | F31: 0.00052767777 | G31: ENSMUSG00000086354 | H31: 29 | I31: 0.002641165756 | J31: Yes | K31: 0.009783 | M31: 0.00052767777 | N31: ENSMUSG00000086354 | O31: 0.003298 | P31: 0.00323 | U31: 0.28 | V31: 6 | X31: 0.29 | Y31: 0.5695374432 | Z31: 0.5489681775
A32: 0.007252764 | B32: ENSMUSG00000026729 | F32: 0.0005345836 | G32: ENSMUSG00000003341 | H32: 30 | I32: 0.002732240437 | J32: Yes | K32: 0.009783 | M32: 0.0005345836 | N32: ENSMUSG00000003341 | O32: 0.00323 | P32: 0.00323 | U32: 0.29 | V32: 3 | X32: 0.3 | Y32: 0.5698672912 | Z32: 0.5453164799
A33: 0.80421066 | B33: ENSMUSG00000040323 | F33: 0.00067268295 | G33: ENSMUSG00000033316 | H33: 31 | I33: 0.002823315118 | J33: Yes | K33: 0.01191 | M33: 0.00067268295 | N33: ENSMUSG00000033316 | O33: 0.003933 | P33: 0.003933 | U33: 0.3 | V33: 3 | X33: 0.31 | Y33: 0.5702066999 | Z33: 0.5419650715
A34: 0.00945358 | B34: ENSMUSG00000038370 | F34: 0.0007692407 | G34: ENSMUSG00000082852 | H34: 32 | I34: 0.0029143898 | J34: Yes | K34: 0.0132 | M34: 0.0007692407 | N34: ENSMUSG00000082852 | O34: 0.004357 | P34: 0.004357 | U34: 0.31 | V34: 9 | X34: 0.32 | Y34: 0.5544840887 | Z34: 0.5389003612
A35: 0.13781148 | B35: ENSMUSG00000073492 | F35: 0.0008563915 | G35: ENSMUSG00000089686 | H35: 33 | I35: 0.003005464481 | J35: Yes | K35: 0.01415 | M35: 0.0008563915 | N35: ENSMUSG00000089686 | O35: 0.004704 | P35: 0.004704 | U35: 0.32 | V35: 5 | X35: 0.33 | Y35: 0.5491667346 | Z35: 0.5361087576
A36: 0.036496844 | B36: ENSMUSG00000037461 | F36: 0.00091111724 | G36: ENSMUSG00000053388 | H36: 34 | I36: 0.003096539162 | J36: Yes | K36: 0.01415 | M36: 0.00091111724 | N36: ENSMUSG00000053388 | O36: 0.004857 | P36: 0.004673 | U36: 0.33 | V36: 3 | X36: 0.34 | Y36: 0.5492079263 | Z36: 0.5335766697
A37: 0.92618775 | B37: ENSMUSG00000065548 | F37: 0.00091569516 | G37: ENSMUSG00000028801 | H37: 35 | I37: 0.003187613843 | J37: Yes | K37: 0.01415 | M37: 0.00091569516 | N37: ENSMUSG00000028801 | O37: 0.004742 | P37: 0.004673 | U37: 0.34 | V37: 5 | X37: 0.35 | Y37: 0.5436457895 | Z37: 0.5312905063
A38: 0.0011460743 | B38: ENSMUSG00000093823 | F38: 0.00092807965 | G38: ENSMUSG00000055116 | H38: 36 | I38: 0.003278688525 | J38: Yes | K38: 0.01415 | M38: 0.00092807965 | N38: ENSMUSG00000055116 | O38: 0.004673 | P38: 0.004673 | U38: 0.35 | V38: 4 | X38: 0.36 | Y38: 0.5407559199 | Z38: 0.5292366762
A39: 0.08226012 | B39: ENSMUSG00000049630 | F39: 0.0010070662 | G39: ENSMUSG00000044017 | H39: 37 | I39: 0.003369763206 | J39: Yes | K39: 0.01494 | M39: 0.0010070662 | N39: ENSMUSG00000044017 | O39: 0.004933 | P39: 0.004933 | U39: 0.36 | V39: 4 | X39: 0.37 | Y39: 0.5377743083 | Z39: 0.5274015882
A40: 0.082195975 | B40: ENSMUSG00000086358 | F40: 0.0010603602 | G40: ENSMUSG00000073809 | H40: 38 | I40: 0.003460837887 | J40: Yes | K40: 0.01525 | M40: 0.0010603602 | N40: ENSMUSG00000073809 | O40: 0.005058 | P40: 0.005058 | U40: 0.37 | V40: 4 | X40: 0.38 | Y40: 0.5346965157 | Z40: 0.5257716512
A41: 0.26635012 | B41: ENSMUSG00000026940 | F41: 0.0011030115 | G41: ENSMUSG00000088219 | H41: 39 | I41: 0.003551912568 | J41: Yes | K41: 0.01525 | M41: 0.0011030115 | N41: ENSMUSG00000088219 | O41: 0.005126 | P41: 0.005066 | U41: 0.38 | V41: 4 | X41: 0.39 | Y41: 0.5315178118 | Z41: 0.524333274
A42: 0.05566584 | B42: ENSMUSG00000014852 | F42: 0.0011183396 | G42: ENSMUSG00000081137 | H42: 40 | I42: 0.00364298725 | J42: Yes | K42: 0.01525 | M42: 0.0011183396 | N42: ENSMUSG00000081137 | O42: 0.005067 | P42: 0.005066 | U42: 0.39 | V42: 7 | X42: 0.4 | Y42: 0.5191256831 | Z42: 0.5230728653
A43: 0.00010283125 | B43: ENSMUSG00000026809 | F43: 0.0011460743 | G43: ENSMUSG00000093823 | H43: 41 | I43: 0.003734061931 | J43: Yes | K43: 0.01525 | M43: 0.0011460743 | N43: ENSMUSG00000093823 | O43: 0.005066 | P43: 0.005066 | U43: 0.4 | V43: 4 | X43: 0.41 | Y43: 0.5155753141 | Z43: 0.5219768341
A44: 0.074463576 | B44: ENSMUSG00000075416 | F44: 0.0011901981 | G44: ENSMUSG00000030103 | H44: 42 | I44: 0.003825136612 | J44: Yes | K44: 0.01525 | M44: 0.0011901981 | N44: ENSMUSG00000030103 | O44: 0.005136 | P44: 0.005136 | U44: 0.41 | V44: 3 | X44: 0.42 | Y44: 0.5150430249 | Z44: 0.5210315891
A45: 0.02124124 | B45: ENSMUSG00000044320 | F45: 0.0012354419 | G45: ENSMUSG00000056436 | H45: 43 | I45: 0.003916211293 | J45: Yes | K45: 0.01525 | M45: 0.0012354419 | N45: ENSMUSG00000056436 | O45: 0.005208 | P45: 0.005034 | U45: 0.42 | V45: 2 | X45: 0.43 | Y45: 0.5176876618 | Z45: 0.5202235392
A46: 0.15112339 | B46: ENSMUSG00000052951 | F46: 0.0012538445 | G46: ENSMUSG00000018167 | H46: 44 | I46: 0.004007285974 | J46: Yes | K46: 0.01525 | M46: 0.0012538445 | N46: ENSMUSG00000018167 | O46: 0.005165 | P46: 0.005034 | U46: 0.43 | V46: 2 | X46: 0.44 | Y46: 0.5204267499 | Z46: 0.5195390931
A47: 0.68297297 | B47: ENSMUSG00000053475 | F47: 0.001275871 | G47: ENSMUSG00000031936 | H47: 45 | I47: 0.004098360656 | J47: Yes | K47: 0.01525 | M47: 0.001275871 | N47: ENSMUSG00000031936 | O47: 0.005139 | P47: 0.005034 | U47: 0.44 | V47: 6 | X47: 0.45 | Y47: 0.5100182149 | Z47: 0.5189646598
A48: 0.22509992 | B48: ENSMUSG00000044647 | F48: 0.0012775218 | G48: ENSMUSG00000090023 | H48: 46 | I48: 0.004189435337 | J48: Yes | K48: 0.01525 | M48: 0.0012775218 | N48: ENSMUSG00000090023 | O48: 0.005034 | P48: 0.005034 | U48: 0.45 | V48: 5 | X48: 0.46 | Y48: 0.502597315 | Z48: 0.518486648
A49: 3.8447158e-07 | B49: ENSMUSG00000075316 | F49: 0.0013300776 | G49: ENSMUSG00000004540 | H49: 47 | I49: 0.004280510018 | J49: Yes | K49: 0.01554 | M49: 0.0013300776 | N49: ENSMUSG00000004540 | O49: 0.005129 | P49: 0.005129 | U49: 0.46 | V49: 3 | X49: 0.47 | Y49: 0.5017699419 | Z49: 0.5180914665
A50: 0.16318417 | B50: ENSMUSG00000087467 | F50: 0.0014451771 | G50: ENSMUSG00000034616 | H50: 48 | I50: 0.004371584699 | J50: Yes | K50: 0.01653 | M50: 0.0014451771 | N50: ENSMUSG00000034616 | O50: 0.005457 | P50: 0.005457 | U50: 0.47 | V50: 4 | X50: 0.48 | Y50: 0.4974078745 | Z50: 0.5177655242
A51: 0.3622893 | B51: ENSMUSG00000085768 | F51: 0.0015267201 | G51: ENSMUSG00000071690 | H51: 49 | I51: 0.004462659381 | J51: Yes | K51: 0.01711 | M51: 0.0015267201 | N51: ENSMUSG00000071690 | O51: 0.005647 | P51: 0.005647 | U51: 0.48 | V51: 3 | X51: 0.49 | Y51: 0.4964463017 | Z51: 0.51749523
A52: 0.34890294 | B52: ENSMUSG00000027107 | F52: 0.0018413761 | G52: ENSMUSG00000064494 | H52: 50 | I52: 0.004553734062 | J52: Yes | K52: 0.02022 | M52: 0.0018413761 | N52: ENSMUSG00000064494 | O52: 0.006675 | P52: 0.006675 | U52: 0.49 | V52: 2 | X52: 0.5 | Y52: 0.4990892532 | Z52: 0.5172669925
A53: 0.0019739014 | B53: ENSMUSG00000097377 | F53: 0.0019739014 | G53: ENSMUSG00000097377 | H53: 51 | I53: 0.004644808743 | J53: Yes | K53: 0.02085 | M53: 0.0019739014 | N53: ENSMUSG00000097377 | O53: 0.007015 | P53: 0.006884 | U53: 0.5 | V53: 6 | X53: 0.51 | Y53: 0.4869707446 | Z53: 0.5170672207
A54: 0.0012354419 | B54: ENSMUSG00000056436 | F54: 0.0019751003 | G54: ENSMUSG00000073102 | H54: 52 | I54: 0.004735883424 | J54: Yes | K54: 0.02085 | M54: 0.0019751003 | N54: ENSMUSG00000073102 | O54: 0.006884 | P54: 0.006884 | U54: 0.51 | V54: 2 | X54: 0.52 | Y54: 0.4895264117 | Z54: 0.5168823233
A55: 0.00052767777 | B55: ENSMUSG00000086354 | F55: 0.0020644385 | G55: ENSMUSG00000082376 | H55: 53 | I55: 0.004826958106 | J55: Yes | K55: 0.02138 | M55: 0.0020644385 | N55: ENSMUSG00000082376 | O55: 0.00706 | P55: 0.00706 | U55: 0.52 | V55: 3 | X55: 0.53 | Y55: 0.4883153122 | Z55: 0.5166987093
A56: 0.005943233 | B56: ENSMUSG00000075025 | F56: 0.0023011027 | G56: ENSMUSG00000005883 | H56: 54 | I56: 0.004918032787 | J56: Yes | K56: 0.02326 | M56: 0.0023011027 | N56: ENSMUSG00000005883 | O56: 0.007724 | P56: 0.007724 | U56: 0.53 | V56: 2 | X56: 0.54 | Y56: 0.4910113249 | Z56: 0.5165027873
A57: 0.10221129 | B57: ENSMUSG00000084313 | F57: 0.0023486768 | G57: ENSMUSG00000042564 | H57: 55 | I57: 0.005009107468 | J57: Yes | K57: 0.02326 | M57: 0.0023486768 | N57: ENSMUSG00000042564 | O57: 0.00774 | P57: 0.00768 | U57: 0.54 | V57: 2 | X57: 0.55 | Y57: 0.4938271605 | Z57: 0.5162809663
A58: 0.34310672 | B58: ENSMUSG00000085218 | F58: 0.0023730136 | G58: ENSMUSG00000078302 | H58: 56 | I58: 0.005100182149 | J58: Yes | K58: 0.02326 | M58: 0.0023730136 | N58: ENSMUSG00000078302 | O58: 0.00768 | P58: 0.00768 | U58: 0.55 | V58: 0 | X58: 0.56 | Y58: 0.5050505051 | Z58: 0.5160196551
A59: 0.33172098 | B59: ENSMUSG00000048482 | F59: 0.0025909964 | G59: ENSMUSG00000096995 | H59: 57 | I59: 0.005191256831 | J59: Yes | K59: 0.02496 | M59: 0.0025909964 | N59: ENSMUSG00000096995 | O59: 0.008239 | P59: 0.008239 | U59: 0.56 | V59: 2 | X59: 0.57 | Y59: 0.5083238023 | Z59: 0.5157052624
A60: 0.28642282 | B60: ENSMUSG00000086308 | F60: 0.0034784167 | G60: ENSMUSG00000024505 | H60: 58 | I60: 0.005282331512 | J60: Yes | K60: 0.03293 | M60: 0.0034784167 | N60: ENSMUSG00000024505 | O60: 0.01087 | P60: 0.01087 | U60: 0.57 | V60: 3 | X60: 0.58 | Y60: 0.5074160812 | Z60: 0.5153241971
A61: 0.06238687 | B61: ENSMUSG00000074918 | F61: 0.003918707 | G61: ENSMUSG00000088856 | H61: 59 | I61: 0.005373406193 | J61: Yes | K61: 0.03646 | M61: 0.003918707 | N61: ENSMUSG00000088856 | O61: 0.01204 | P61: 0.01204 | U61: 0.58 | V61: 3 | X61: 0.59 | Y61: 0.506464081 | Z61: 0.5148628681
A62: 0.33319792 | B62: ENSMUSG00000027324 | F62: 0.004333297 | G62: ENSMUSG00000028753 | H62: 60 | I62: 0.005464480874 | J62: Yes | K62: 0.03965 | M62: 0.004333297 | N62: ENSMUSG00000028753 | O62: 0.01309 | P62: 0.01309 | U62: 0.59 | V62: 4 | X62: 0.6 | Y62: 0.5009107468 | Z62: 0.5143076841
A63: 0.526501 | B63: ENSMUSG00000034800 | F63: 0.0046775015 | G63: ENSMUSG00000077222 | H63: 61 | I63: 0.005555555556 | J63: Yes | K63: 0.0421 | M63: 0.0046775015 | N63: ENSMUSG00000077222 | O63: 0.0139 | P63: 0.0139 | U63: 0.6 | V63: 2 | X63: 0.61 | Y63: 0.5044136192 | Z63: 0.5136450539
A64: 0.45831925 | B64: ENSMUSG00000086329 | F64: 0.004776868 | G64: ENSMUSG00000023041 | H64: 62 | I64: 0.005646630237 | J64: Yes | K64: 0.0423 | M64: 0.004776868 | N64: ENSMUSG00000023041 | O64: 0.01396 | P64: 0.01396 | U64: 0.61 | V64: 3 | X64: 0.62 | Y64: 0.503307449 | Z64: 0.5128613865
A65: 0.7839163 | B65: ENSMUSG00000027353 | F65: 0.0048703854 | G65: ENSMUSG00000090468 | H65: 63 | I65: 0.005737704918 | J65: Yes | K65: 0.04244 | M65: 0.0048703854 | N65: ENSMUSG00000090468 | O65: 0.01401 | P65: 0.01401 | U65: 0.62 | V65: 2 | X65: 0.63 | Y65: 0.5070644415 | Z65: 0.5119430906
A66: 0.030398805 | B66: ENSMUSG00000083689 | F66: 0.004993198 | G66: ENSMUSG00000085129 | H66: 64 | I66: 0.005828779599 | J66: Yes | K66: 0.04283 | M66: 0.004993198 | N66: ENSMUSG00000085129 | O66: 0.01414 | P66: 0.01414 | U66: 0.63 | V66: 3 | X66: 0.64 | Y66: 0.5059704513 | Z66: 0.510876575
A67: 0.57595193 | B67: ENSMUSG00000085071 | F67: 0.005072864 | G67: ENSMUSG00000030670 | H67: 65 | I67: 0.005919854281 | J67: Yes | K67: 0.04285 | M67: 0.005072864 | N67: ENSMUSG00000030670 | O67: 0.01415 | P67: 0.01415 | U67: 0.64 | V67: 2 | X67: 0.65 | Y67: 0.5100182149 | Z67: 0.5096482485
A68: 0.7425958 | B68: ENSMUSG00000087594 | F68: 0.005270237 | G68: ENSMUSG00000078876 | H68: 66 | I68: 0.006010928962 | J68: Yes | K68: 0.04384 | M68: 0.005270237 | N68: ENSMUSG00000078876 | O68: 0.01447 | P68: 0.01447 | U68: 0.65 | V68: 3 | X68: 0.66 | Y68: 0.5089467481 | Z68: 0.5082445201
A69: 0.32534438 | B69: ENSMUSG00000086407 | F69: 0.005572615 | G69: ENSMUSG00000001021 | H69: 67 | I69: 0.006102003643 | J69: Yes | K69: 0.04566 | M69: 0.005572615 | N69: ENSMUSG00000001021 | O69: 0.01508 | P69: 0.01508 | U69: 0.66 | V69: 3 | X69: 0.67 | Y69: 0.5078103439 | Z69: 0.5066517985
A70: 0.67185515 | B70: ENSMUSG00000082341 | F70: 0.005697389 | G70: ENSMUSG00000076940 | H70: 68 | I70: 0.006193078324 | J70: Yes | K70: 0.046 | M70: 0.005697389 | N70: ENSMUSG00000076940 | O70: 0.01519 | P70: 0.01519 | U70: 0.67 | V70: 4 | X70: 0.68 | Y70: 0.5009107468 | Z70: 0.5048564924
A71: 0.00018932726 | B71: ENSMUSG00000060257 | F71: 0.005943233 | G71: ENSMUSG00000075025 | H71: 69 | I71: 0.006284153005 | J71: Yes | K71: 0.04729 | M71: 0.005943233 | N71: ENSMUSG00000075025 | O71: 0.01561 | P71: 0.01561 | U71: 0.68 | V71: 2 | X71: 0.69 | Y71: 0.5053175862 | Z71: 0.5028450109
A72: 0.0002248402 | B72: ENSMUSG00000097602 | F72: 0.0063597127 | G72: ENSMUSG00000086155 | H72: 70 | I72: 0.006375227687 | J72: Yes | K72: 0.04988 | M72: 0.0063597127 | N72: ENSMUSG00000086155 | O72: 0.01647 | P72: 0.01647 | U72: 0.69 | V72: 2 | X72: 0.7 | Y72: 0.5100182149 | Z72: 0.5006037626
A73: 0.3165719 | B73: ENSMUSG00000050700 | F73: 0.0070475414 | G73: ENSMUSG00000034057 | H73: 71 | I73: 0.006466302368 | J73: No | K73: 0.05381 | M73: 0.0070475414 | N73: ENSMUSG00000034057 | O73: 0.01799 | P73: 0.01776 | U73: 0.7 | V73: 2 | X73: 0.71 | Y73: 0.5150430249 | Z73: 0.4981191564
A74: 0.0412303 | B74: ENSMUSG00000082296 | F74: 0.007056791 | G74: ENSMUSG00000025784 | H74: 72 | I74: 0.006557377049 | J74: No | K74: 0.05381 | M74: 0.007056791 | N74: ENSMUSG00000025784 | O74: 0.01776 | P74: 0.01776 | U74: 0.71 | V74: 4 | X74: 0.72 | Y74: 0.5074160812 | Z74: 0.4953776011
A75: 0.73698527 | B75: ENSMUSG00000087129 | F75: 0.007252764 | G75: ENSMUSG00000026729 | H75: 73 | I75: 0.00664845173 | J75: No | K75: 0.05454 | M75: 0.007252764 | N75: ENSMUSG00000026729 | O75: 0.01801 | P75: 0.01801 | U75: 0.72 | V75: 4 | X75: 0.73 | Y75: 0.4992241786 | Z75: 0.4923655056
A76: 0.09886752 | B76: ENSMUSG00000018459 | F76: 0.008190703 | G76: ENSMUSG00000030310 | H76: 74 | I76: 0.006739526412 | J76: No | K76: 0.05945 | M76: 0.008190703 | N76: ENSMUSG00000030310 | O76: 0.02006 | P76: 0.02006 | U76: 0.73 | V76: 2 | X76: 0.74 | Y76: 0.5044136192 | Z76: 0.4890692786
A77: 0.004993198 | B77: ENSMUSG00000085129 | F77: 0.008314201 | G77: ENSMUSG00000097028 | H77: 75 | I77: 0.006830601093 | J77: No | K77: 0.05945 | M77: 0.008314201 | N77: ENSMUSG00000097028 | O77: 0.02009 | P77: 0.01963 | U77: 0.74 | V77: 6 | X77: 0.75 | Y77: 0.4808743169 | Z77: 0.485475329
A78: 0.59917206 | B78: ENSMUSG00000052368 | F78: 0.0083929105 | G78: ENSMUSG00000094491 | H78: 76 | I78: 0.006921675774 | J78: No | K78: 0.05945 | M78: 0.0083929105 | N78: ENSMUSG00000094491 | O78: 0.02002 | P78: 0.01963 | U78: 0.75 | V78: 4 | X78: 0.76 | Y78: 0.4705525197 | Z78: 0.4815700656
A79: 0.0023011027 | B79: ENSMUSG00000005883 | F79: 0.008417285 | G79: ENSMUSG00000083534 | H79: 77 | I79: 0.007012750455 | J79: No | K79: 0.05945 | M79: 0.008417285 | N79: ENSMUSG00000083534 | O79: 0.01981 | P79: 0.01963 | U79: 0.76 | V79: 2 | X79: 0.77 | Y79: 0.4751722499 | Z79: 0.4773398973
A80: 0.0020644385 | B80: ENSMUSG00000082376 | F80: 0.008447888 | G80: ENSMUSG00000034706 | H80: 78 | I80: 0.007103825137 | J80: No | K80: 0.05945 | M80: 0.008447888 | N80: ENSMUSG00000034706 | O80: 0.01963 | P80: 0.01963 | U80: 0.77 | V80: 2 | X80: 0.78 | Y80: 0.4802119556 | Z80: 0.4727712328
A81: 0.7450134 | B81: ENSMUSG00000078886 | F81: 0.008655465 | G81: ENSMUSG00000091243 | H81: 79 | I81: 0.007194899818 | J81: No | K81: 0.05945 | M81: 0.008655465 | N81: ENSMUSG00000091243 | O81: 0.01986 | P81: 0.01963 | U81: 0.78 | V81: 5 | X81: 0.79 | Y81: 0.4597102958 | Z81: 0.4678504809
A82: 0.72403187 | B82: ENSMUSG00000089951 | F82: 0.0086635845 | G82: ENSMUSG00000028558 | H82: 80 | I82: 0.007285974499 | J82: No | K82: 0.05945 | M82: 0.0086635845 | N82: ENSMUSG00000028558 | O82: 0.01963 | P82: 0.01963 | U82: 0.79 | V82: 3 | X82: 0.8 | Y82: 0.4553734062 | Z82: 0.4625640506
A83: 0.42186683 | B83: ENSMUSG00000095199 | F83: 0.009157296 | G83: ENSMUSG00000041377 | H83: 81 | I83: 0.00737704918 | J83: No | K83: 0.06207 | M83: 0.009157296 | N83: ENSMUSG00000041377 | O83: 0.02049 | P83: 0.02049 | U83: 0.8 | V83: 3 | X83: 0.81 | Y83: 0.4505800019 | Z83: 0.4568983506
A84: 0.005270237 | B84: ENSMUSG00000078876 | F84: 0.00945358 | G84: ENSMUSG00000038370 | H84: 82 | I84: 0.007468123862 | J84: No | K84: 0.06287 | M84: 0.00945358 | N84: ENSMUSG00000038370 | O84: 0.0209 | P84: 0.02076 | U84: 0.81 | V84: 1 | X84: 0.82 | Y84: 0.4654928152 | Z84: 0.4508397898
A85: 0.22015356 | B85: NEWGENE18 | F85: 0.009505518 | G85: ENSMUSG00000029570 | H85: 83 | I85: 0.007559198543 | J85: No | K85: 0.06287 | M85: 0.009505518 | N85: ENSMUSG00000029570 | O85: 0.02076 | P85: 0.02076 | U85: 0.82 | V85: 3 | X85: 0.83 | Y85: 0.4607307404 | Z85: 0.4443747769
A86: 0.17490022 | B86: ENSMUSG00000090300 | F86: 0.00967177 | G86: ENSMUSG00000080907 | H86: 84 | I86: 0.007650273224 | J86: No | K86: 0.06313 | M86: 0.00967177 | N86: ENSMUSG00000080907 | O86: 0.02087 | P86: 0.02085 | U86: 0.83 | V86: 1 | X86: 0.84 | Y86: 0.4781420765 | Z86: 0.4374897208
A87: 0.21537195 | B87: ENSMUSG00000025128 | F87: 0.009776518 | G87: ENSMUSG00000076578 | H87: 85 | I87: 0.007741347905 | J87: No | K87: 0.06313 | M87: 0.009776518 | N87: ENSMUSG00000076578 | O87: 0.02085 | P87: 0.02085 | U87: 0.84 | V87: 2 | X87: 0.85 | Y87: 0.4857316333 | Z87: 0.4301710303
A88: 0.1344144 | B88: NEWGENE21 | F88: 0.009903528 | G88: ENSMUSG00000063087 | H88: 86 | I88: 0.007832422587 | J88: No | K88: 0.06313 | M88: 0.009903528 | N88: ENSMUSG00000063087 | O88: 0.02087 | P88: 0.02084 | U88: 0.85 | V88: 1 | X88: 0.86 | Y88: 0.5074160812 | Z88: 0.4224051142
A89: 0.47636026 | B89: ENSMUSG00000027676 | F89: 0.010004538 | G89: ENSMUSG00000097290 | H89: 87 | I89: 0.007923497268 | J89: No | K89: 0.06313 | M89: 0.010004538 | N89: ENSMUSG00000097290 | O89: 0.02084 | P89: 0.02084 | U89: 0.86 | V89: 8 | X89: 0.87 | Y89: 0.4343561721 | Z89: 0.4141783814
A90: 0.09481691 | B90: ENSMUSG00000074619 | F90: 0.010485891 | G90: ENSMUSG00000082500 | H90: 88 | I90: 0.008014571949 | J90: No | K90: 0.06542 | M90: 0.010485891 | N90: ENSMUSG00000082500 | O90: 0.0216 | P90: 0.0216 | U90: 0.87 | V90: 3 | X90: 0.88 | Y90: 0.4250151791 | Z90: 0.4054772407
A91: 0.25086465 | B91: NEWGENE37 | F91: 0.010669301 | G91: ENSMUSG00000059244 | H91: 89 | I91: 0.00810564663 | J91: No | K91: 0.06545 | M91: 0.010669301 | N91: ENSMUSG00000059244 | O91: 0.02173 | P91: 0.02161 | U91: 0.88 | V91: 3 | X91: 0.89 | Y91: 0.4139758238 | Z91: 0.3962881009
A92: 0.8009549 | B92: ENSMUSG00000065018 | F92: 0.01072933 | G92: ENSMUSG00000081448 | H92: 90 | I92: 0.008196721311 | J92: No | K92: 0.06545 | M92: 0.01072933 | N92: ENSMUSG00000081448 | O92: 0.02161 | P92: 0.02161 | U92: 0.89 | V92: 4 | X92: 0.9 | Y92: 0.3825136612 | Z92: 0.3865973708
A93: 0.078555614 | B93: NEWGENE40 | F93: 0.011445018 | G93: ENSMUSG00000089810 | H93: 91 | I93: 0.008287795993 | J93: No | K93: 0.06841 | M93: 0.011445018 | N93: ENSMUSG00000089810 | O93: 0.0228 | P93: 0.02259 | U93: 0.9 | V93: 2 | X93: 0.91 | Y93: 0.384537543 | Z93: 0.3763914592
A94: 0.8708374 | B94: ENSMUSG00000095832 | F94: 0.011464006 | G94: ENSMUSG00000080875 | H94: 92 | I94: 0.008378870674 | J94: No | K94: 0.06841 | M94: 0.011464006 | N94: ENSMUSG00000080875 | O94: 0.02259 | P94: 0.02259 | U94: 0.91 | V94: 2 | X94: 0.92 | Y94: 0.3870673953 | Z94: 0.365656775
A95: 0.06912231 | B95: ENSMUSG00000077366 | F95: 0.01213973 | G95: ENSMUSG00000087207 | H95: 93 | I95: 0.008469945355 | J95: No | K95: 0.07166 | M95: 0.01213973 | N95: ENSMUSG00000087207 | O95: 0.02366 | P95: 0.02366 | U95: 0.92 | V95: 5 | X95: 0.93 | Y95: 0.31225605 | Z95: 0.354379727
A96: 0.44522884 | B96: ENSMUSG00000028071 | F96: 0.012880473 | G96: ENSMUSG00000091650 | H96: 94 | I96: 0.008561020036 | J96: No | K96: 0.07465 | M96: 0.012880473 | N96: ENSMUSG00000091650 | O96: 0.02484 | P96: 0.02484 | U96: 0.93 | V96: 3 | X96: 0.94 | Y96: 0.2732240437 | Z96: 0.3425467241
A97: 0.043105893 | B97: ENSMUSG00000096792 | F97: 0.013051015 | G97: ENSMUSG00000096977 | H97: 95 | I97: 0.008652094718 | J97: No | K97: 0.07465 | M97: 0.013051015 | N97: ENSMUSG00000096977 | O97: 0.0249 | P97: 0.02464 | U97: 0.94 | V97: 2 | X97: 0.95 | Y97: 0.2550091075 | Z97: 0.3301441749
A98: 0.88755125 | B98: ENSMUSG00000074480 | F98: 0.013053215 | G98: ENSMUSG00000091876 | H98: 96 | I98: 0.008743169399 | J98: No | K98: 0.07465 | M98: 0.013053215 | N98: ENSMUSG00000091876 | O98: 0.02464 | P98: 0.02464 | U98: 0.95 | V98: 2
A99: 0.005572615 | B99: ENSMUSG00000001021 | F99: 0.0140481405 | G99: ENSMUSG00000091388 | H99: 97 | I99: 0.00883424408 | J99: No | K99: 0.07951 | M99: 0.0140481405 | N99: ENSMUSG00000091388 | O99: 0.02625 | P99: 0.02625 | U99: 0.96 | V99: 2
A100: 0.77330685 | B100: ENSMUSG00000044165 | F100: 0.014465243 | G100: ENSMUSG00000091558 | H100: 98 | I100: 0.008925318761 | J100: No | K100: 0.08073 | M100: 0.014465243 | N100: ENSMUSG00000091558 | O100: 0.02675 | P100: 0.02665 | U100: 0.97 | V100: 1
A101: 0.48463458 | B101: ENSMUSG00000089998 | F101: 0.014558057 | G101: ENSMUSG00000094615 | H101: 99 | I101: 0.009016393443 | J101: No | K101: 0.08073 | M101: 0.014558057 | N101: ENSMUSG00000094615 | O101: 0.02665 | P101: 0.02665 | U101: 0.98 | V101: 2
A102: 0.2881221 | B102: ENSMUSG00000087357 | F102: 0.01538124 | G102: ENSMUSG00000091780 | H102: 100 | I102: 0.009107468124 | J102: No | K102: 0.08444 | M102: 0.01538124 | N102: ENSMUSG00000091780 | O102: 0.02788 | P102: 0.02788 | U102: 0.99 | V102: 0
A103: 0.44138092 | B103: ENSMUSG00000049565 | F103: 0.017324029 | G103: ENSMUSG00000034773 | H103: 101 | I103: 0.009198542805 | J103: No | K103: 0.09417 | M103: 0.017324029 | N103: ENSMUSG00000034773 | O103: 0.03109 | P103: 0.03109 | U103: 1 | V103: 0
A104: 0.08194055 | B104: NEWGENE72 | F104: 0.018057277 | G104: ENSMUSG00000074236 | H104: 102 | I104: 0.009289617486 | J104: No | K104: 0.09719 | M104: 0.018057277 | N104: ENSMUSG00000074236 | O104: 0.03209 | P104: 0.03209
A105: 0.00967177 | B105: ENSMUSG00000080907 | F105: 0.018511571 | G105: ENSMUSG00000068086 | H105: 103 | I105: 0.009380692168 | J105: No | K105: 0.09858 | M105: 0.018511571 | N105: ENSMUSG00000068086 | O105: 0.03257 | P105: 0.03257
A106: 0.2559049 | B106: ENSMUSG00000091611 | F106: 0.018782496 | G106: ENSMUSG00000061482 | H106: 104 | I106: 0.009471766849 | J106: No | K106: 0.09858 | M106: 0.018782496 | N106: ENSMUSG00000061482 | O106: 0.03273 | P106: 0.03255
A107: 0.018057277 | B107: ENSMUSG00000074236 | F107: 0.018854398 | G107: ENSMUSG00000004846 | H107: 105 | I107: 0.00956284153 | J107: No | K107: 0.09858 | M107: 0.018854398 | N107: ENSMUSG00000004846 | O107: 0.03255 | P107: 0.03255
A108: 0.9039491 | B108: ENSMUSG00000004127 | F108: 0.019059442 | G108: ENSMUSG00000043230 | H108: 106 | I108: 0.009653916211 | J108: No | K108: 0.09871 | M108: 0.019059442 | N108: ENSMUSG00000043230 | O108: 0.03259 | P108: 0.03259
A109: 0.072834626 | B109: NEWGENE83 | F109: 0.020128008 | G109: ENSMUSG00000078815 | H109: 107 | I109: 0.009744990893 | J109: No | K109: 0.1033 | M109: 0.020128008 | N109: ENSMUSG00000078815 | O109: 0.0341 | P109: 0.0341
A110: 0.6254442 | B110: ENSMUSG00000039167 | F110: 0.02124124 | G110: ENSMUSG00000044320 | H110: 108 | I110: 0.009836065574 | J110: No | K110: 0.108 | M110: 0.02124124 | N110: ENSMUSG00000044320 | O110: 0.03565 | P110: 0.03565
A111: 0.33620217 | B111: ENSMUSG00000081660 | F111: 0.02148424 | G111: ENSMUSG00000097738 | H111: 109 | I111: 0.009927140255 | J111: No | K111: 0.1081 | M111: 0.02148424 | N111: ENSMUSG00000097738 | O111: 0.03572 | P111: 0.03568
A112: 0.8610171 | B112: ENSMUSG00000083997 | F112: 0.0216571 | G112: ENSMUSG00000003541 | H112: 110 | I112: 0.01001821494 | J112: No | K112: 0.1081 | M112: 0.0216571 | N112: ENSMUSG00000003541 | O112: 0.03568 | P112: 0.03568
A113: 0.13317232 | B113: ENSMUSG00000085632 | F113: 0.022241509 | G113: ENSMUSG00000088906 | H113: 111 | I113: 0.01010928962 | J113: No | K113: 0.11 | M113: 0.022241509 | N113: ENSMUSG00000088906 | O113: 0.03632 | P113: 0.03632
A114: 0.17115726 | B114: ENSMUSG00000078735 | F114: 0.0224715 | G114: ENSMUSG00000071553 | H114: 112 | I114: 0.0102003643 | J114: No | K114: 0.11 | M114: 0.0224715 | N114: ENSMUSG00000071553 | O114: 0.03637 | P114: 0.03637
A115: 0.9781548 | B115: ENSMUSG00000035649 | F115: 0.022812437 | G115: ENSMUSG00000037572 | H115: 113 | I115: 0.01029143898 | J115: No | K115: 0.11 | M115: 0.022812437 | N115: ENSMUSG00000037572 | O115: 0.03659 | P115: 0.03631
A116: 0.500697 | B116: ENSMUSG00000039813 | F116: 0.02288316 | G116: ENSMUSG00000030929 | H116: 114 | I116: 0.01038251366 | J116: No | K116: 0.11 | M116: 0.02288316 | N116: ENSMUSG00000030929 | O116: 0.03638 | P116: 0.03631
A117: 0.8128771 | B117: ENSMUSG00000087500 | F117: 0.02307737 | G117: NEWGENE419 | H117: 115 | I117: 0.01047358834 | J117: No | K117: 0.11 | M117: 0.02307737 | N117: NEWGENE419 | O117: 0.03637 | P117: 0.03631
A118: 0.07674935 | B118: ENSMUSG00000095935 | F118: 0.023240078 | G118: ENSMUSG00000095463 | H118: 116 | I118: 0.01056466302 | J118: No | K118: 0.11 | M118: 0.023240078 | N118: ENSMUSG00000095463 | O118: 0.03631 | P118: 0.03631
A119: 0.027813146 | B119: ENSMUSG00000083224 | F119: 0.023759712 | G119: ENSMUSG00000051079 | H119: 117 | I119: 0.0106557377 | J119: No | K119: 0.1108 | M119: 0.023759712 | N119: ENSMUSG00000051079 | O119: 0.03681 | P119: 0.03658
A120: 0.06328174 | B120: ENSMUSG00000081501 | F120: 0.023815997 | G120: ENSMUSG00000092006 | H120: 118 | I120: 0.01074681239 | J120: No | K120: 0.1108 | M120: 0.023815997 | N120: ENSMUSG00000092006 | O120: 0.03658 | P120: 0.03658
A121: 0.0010603602 | B121: ENSMUSG00000073809 | F121: 0.025709974 | G121: ENSMUSG00000055945 | H121: 119 | I121: 0.01083788707 | J121: No | K121: 0.1186 | M121: 0.025709974 | N121: ENSMUSG00000055945 | O121: 0.03916 | P121: 0.03916
A122: 0.09580638 | B122: ENSMUSG00000094376 | F122: 0.02615878 | G122: ENSMUSG00000014782 | H122: 120 | I122: 0.01092896175 | J122: No | K122: 0.1197 | M122: 0.02615878 | N122: ENSMUSG00000014782 | O122: 0.03951 | P122: 0.03951
A123: 0.045114197 | B123: ENSMUSG00000028573 | F123: 0.026581869 | G123: ENSMUSG00000081046 | H123: 121 | I123: 0.01102003643 | J123: No | K123: 0.1206 | M123: 0.026581869 | N123: ENSMUSG00000081046 | O123: 0.03982 | P123: 0.03982
A124: 0.06776566 | B124: ENSMUSG00000046683 | F124: 0.02779404 | G124: ENSMUSG00000051985 | H124: 122 | I124: 0.01111111111 | J124: No | K124: 0.1227 | M124: 0.02779404 | N124: ENSMUSG00000051985 | O124: 0.04129 | P124: 0.04052
A125: 0.026581869 | B125: ENSMUSG00000081046 | F125: 0.027813146 | G125: ENSMUSG00000083224 | H125: 123 | I125: 0.01120218579 | J125: No | K125: 0.1227 | M125: 0.027813146 | N125: ENSMUSG00000083224 | O125: 0.04098 | P125: 0.04052
A126: 0.24225478 | B126: ENSMUSG00000078612 | F126: 0.027927173 | G126: ENSMUSG00000020773 | H126: 124 | I126: 0.01129326047 | J126: No | K126: 0.1227 | M126: 0.027927173 | N126: ENSMUSG00000020773 | O126: 0.04082 | P126: 0.04052
A127: 0.13798787 | B127: ENSMUSG00000083783 | F127: 0.027944598 | G127: ENSMUSG00000039620 | H127: 125 | I127: 0.01138433515 | J127: No | K127: 0.1227 | M127: 0.027944598 | N127: ENSMUSG00000039620 | O127: 0.04052 | P127: 0.04052
A128: 0.0086635845 | B128: ENSMUSG00000028558 | F128: 0.028613927 | G128: ENSMUSG00000072915 | H128: 126 | I128: 0.01147540984 | J128: No | K128: 0.1244 | M128: 0.028613927 | N128: ENSMUSG00000072915 | O128: 0.04116 | P128: 0.04105
A129: 0.6168525 | B129: ENSMUSG00000060288 | F129: 0.028766384 | G129: ENSMUSG00000031253 | H129: 127 | I129: 0.01156648452 | J129: No | K129: 0.1244 | M129: 0.028766384 | N129: ENSMUSG00000031253 | O129: 0.04105 | P129: 0.04105
A130: 0.1899204 | B130: ENSMUSG00000032978 | F130: 0.030242287 | G130: ENSMUSG00000090099 | H130: 128 | I130: 0.0116575592 | J130: No | K130: 0.1294 | M130: 0.030242287 | N130: ENSMUSG00000090099 | O130: 0.04282 | P130: 0.04271
A131: 0.3941069 | B131: ENSMUSG00000032643 | F131: 0.030398805 | G131: ENSMUSG00000083689 | H131: 129 | I131: 0.01174863388 | J131: No | K131: 0.1294 | M131: 0.030398805 | N131: ENSMUSG00000083689 | O131: 0.04271 | P131: 0.04271
A132: 0.72138125 | B132: ENSMUSG00000086589 | F132: 0.031185886 | G132: ENSMUSG00000086236 | H132: 130 | I132: 0.01183970856 | J132: No | K132: 0.1317 | M132: 0.031185886 | N132: ENSMUSG00000086236 | O132: 0.04348 | P132: 0.04348
A133: 0.7086749 | B133: ENSMUSG00000028845 | F133: 0.034459833 | G133: ENSMUSG00000034917 | H133: 131 | I133: 0.01193078324 | J133: No | K133: 0.1444 | M133: 0.034459833 | N133: ENSMUSG00000034917 | O133: 0.04768 | P133: 0.04768
A134: 7.323036e-05 | B134: ENSMUSG00000073753 | F134: 0.035852946 | G134: ENSMUSG00000040640 | H134: 132 | I134: 0.01202185792 | J134: No | K134: 0.1491 | M134: 0.035852946 | N134: ENSMUSG00000040640 | O134: 0.04923 | P134: 0.04923
A135: 0.6332288 | B135: ENSMUSG00000028581 | F135: 0.036496844 | G135: ENSMUSG00000037461 | H135: 133 | I135: 0.0121129326 | J135: No | K135: 0.1495 | M135: 0.036496844 | N135: ENSMUSG00000037461 | O135: 0.04974 | P135: 0.04935
A136: 0.5866391 | B136: ENSMUSG00000028840 | F136: 0.03668841 | G136: ENSMUSG00000054263 | H136: 134 | I136: 0.01220400729 | J136: No | K136: 0.1495 | M136: 0.03668841 | N136: ENSMUSG00000054263 | O136: 0.04962 | P136: 0.04935
A137: 0.10263078 | B137: ENSMUSG00000086322 | F137: 0.036757275 | G137: ENSMUSG00000024306 | H137: 135 | I137: 0.01229508197 | J137: No | K137: 0.1495 | M137: 0.036757275 | N137: ENSMUSG00000024306 | O137: 0.04935 | P137: 0.04935
A138: 0.04472866 | B138: ENSMUSG00000028836 | F138: 0.03733725 | G138: ENSMUSG00000094935 | H138: 136 | I138: 0.01238615665 | J138: No | K138: 0.1507 | M138: 0.03733725 | N138: ENSMUSG00000094935 | O138: 0.04976 | P138: 0.04976
A139: 0.00091569516 | B139: ENSMUSG00000028801 | F139: 0.03963117 | G139: ENSMUSG00000051940 | H139: 137 | I139: 0.01247723133 | J139: No | K139: 0.1588 | M139: 0.03963117 | N139: ENSMUSG00000051940 | O139: 0.05243 | P139: 0.05243
A140: 0.004333297 | B140: ENSMUSG00000028753 | F140: 0.040645983 | G140: ENSMUSG00000022066 | H140: 138 | I140: 0.01256830601 | J140: No | K140: 0.1617 | M140: 0.040645983 | N140: ENSMUSG00000022066 | O140: 0.05338 | P140: 0.05338
A141: 0.01072933 | B141: ENSMUSG00000081448 | F141: 0.0412303 | G141: ENSMUSG00000082296 | H141: 139 | I141: 0.01265938069 | J141: No | K141: 0.1628 | M141: 0.0412303 | N141: ENSMUSG00000082296 | O141: 0.05376 | P141: 0.05376
A142: 0.7138913 | B142: ENSMUSG00000096979 | F142: 0.042734843 | G142: ENSMUSG00000086676 | H142: 140 | I142: 0.01275045537 | J142: No | K142: 0.167 | M142: 0.042734843 | N142: ENSMUSG00000086676 | O142: 0.05533 | P142: 0.05533
A143: 0.01213973 | B143: ENSMUSG00000087207 | F143: 0.043105893 | G143: ENSMUSG00000096792 | H143: 141 | I143: 0.01284153005 | J143: No | K143: 0.167 | M143: 0.043105893 | N143: ENSMUSG00000096792 | O143: 0.05541 | P143: 0.05514
A144: 0.2912893 | B144: ENSMUSG00000086810 | F144: 0.04319572 | G144: ENSMUSG00000083319 | H144: 142 | I144: 0.01293260474 | J144: No | K144: 0.167 | M144: 0.04319572 | N144: ENSMUSG00000083319 | O144: 0.05514 | P144: 0.05514
A145: 0.06636915 | B145: ENSMUSG00000064916 | F145: 0.04366993 | G145: ENSMUSG00000031537 | H145: 143 | I145: 0.01302367942 | J145: No | K145: 0.1677 | M145: 0.04366993 | N145: ENSMUSG00000031537 | O145: 0.05535 | P145: 0.05535
A146: 0.011464006 | B146: ENSMUSG00000080875 | F146: 0.044255413 | G146: ENSMUSG00000022054 | H146: 144 | I146: 0.0131147541 | J146: No | K146: 0.1682 | M146: 0.044255413 | N146: ENSMUSG00000022054 | O146: 0.0557 | P146: 0.0557
A147: 0.010669301 | B147: ENSMUSG00000059244 | F147: 0.04472866 | G147: ENSMUSG00000028836 | H147: 145 | I147: 0.01320582878 | J147: No | K147: 0.1682 | M147: 0.04472866 | N147: ENSMUSG00000028836 | O147: 0.05591 | P147: 0.05554
A148: 0.03963117 | B148: ENSMUSG00000051940 | F148: 0.044737477 | G148: ENSMUSG00000024107 | H148: 146 | I148: 0.01329690346 | J148: No | K148: 0.1682 | M148: 0.044737477 | N148: ENSMUSG00000024107 | O148: 0.05554 | P148: 0.05554
A149: 0.101002686 | B149: NEWGENE166 | F149: 0.045114197 | G149: ENSMUSG00000028573 | H149: 147 | I149: 0.01338797814 | J149: No | K149: 0.1685 | M149: 0.045114197 | N149: ENSMUSG00000028573 | O149: 0.05563 | P149: 0.05563
A150: 0.49303836 | B150: ENSMUSG00000045294 | F150: 0.046713956 | G150: ENSMUSG00000097127 | H150: 148 | I150: 0.01347905282 | J150: No | K150: 0.1733 | M150: 0.046713956 | N150: ENSMUSG00000097127 | O150: 0.05721 | P150: 0.05721
A151: 0.0019751003 | B151: ENSMUSG00000073102 | F151: 0.048810918 | G151: ENSMUSG00000044170 | H151: 149 | I151: 0.0135701275 | J151: No | K151: 0.1798 | M151: 0.048810918 | N151: ENSMUSG00000044170 | O151: 0.05938 | P151: 0.05938
A152: 0.86742777 | B152: ENSMUSG00000037224 | F152: 0.04970595 | G152: ENSMUSG00000069441 | H152: 150 | I152: 0.01366120219 | J152: No | K152: 0.1819 | M152: 0.04970595 | N152: ENSMUSG00000069441 | O152: 0.06006 | P152: 0.06006
A153: 0.43454787 | B153: ENSMUSG00000052783 | F153: 0.050756082 | G153: ENSMUSG00000081317 | H153: 151 | I153: 0.01375227687 | J153: No | K153: 0.1845 | M153: 0.050756082 | N153: ENSMUSG00000081317 | O153: 0.06092 | P153: 0.06092
A154: 0.5644191 | B154: ENSMUSG00000087703 | F154: 0.051418304 | G154: ENSMUSG00000079357 | H154: 152 | I154: 0.01384335155 | J154: No | K154: 0.1852 | M154: 0.051418304 | N154: ENSMUSG00000079357 | O154: 0.06131 | P154: 0.06113
A155: 0.2774781 | B155: ENSMUSG00000090138 | F155: 0.051603843 | G155: ENSMUSG00000094114 | H155: 153 | I155: 0.01393442623 | J155: No | K155: 0.1852 | M155: 0.051603843 | N155: ENSMUSG00000094114 | O155: 0.06113 | P155: 0.06113
A156: 0.70194536 | B156: ENSMUSG00000093400 | F156: 0.051989876 | G156: ENSMUSG00000008822 | H156: 154 | I156: 0.01402550091 | J156: No | K156: 0.1853 | M156: 0.051989876 | N156: ENSMUSG00000008822 | O156: 0.06119 | P156: 0.06119
A157: 0.0048703854 | B157: ENSMUSG00000090468 | F157: 0.052356172 | G157: ENSMUSG00000003872 | H157: 155 | I157: 0.01411657559 | J157: No | K157: 0.1853 | M157: 0.052356172 | N157: ENSMUSG00000003872 | O157: 0.06122 | P157: 0.06118
A158: 4.6274293e-21 | B158: ENSMUSG00000029320 | F158: 0.05265915 | G158: NEWGENE218 | H158: 156 | I158: 0.01420765027 | J158: No | K158: 0.1853 | M158: 0.05265915 | N158: NEWGENE218 | O158: 0.06118 | P158: 0.06118
A159: 0.0046775015 | B159: ENSMUSG00000077222 | F159: 0.05424126 | G159: ENSMUSG00000086736 | H159: 157 | I159: 0.01429872495 | J159: No | K159: 0.1876 | M159: 0.05424126 | N159: ENSMUSG00000086736 | O159: 0.06262 | P159: 0.06194
A160: 1.08785356e-10 | B160: ENSMUSG00000029491 | F160: 0.054453705 | G160: ENSMUSG00000023918 | H160: 158 | I160: 0.01438979964 | J160: No | K160: 0.1876 | M160: 0.054453705 | N160: ENSMUSG00000023918 | O160: 0.06247 | P160: 0.06194
A161: 0.00067268295 | B161: ENSMUSG00000033316 | F161: 0.054454867 | G161: ENSMUSG00000090227 | H161: 159 | I161: 0.01448087432 | J161: No | K161: 0.1876 | M161: 0.054454867 | N161: ENSMUSG00000090227 | O161: 0.06207 | P161: 0.06194
A162: 0.11871486 | B162: ENSMUSG00000042190 | F162: 0.05467664 | G162: ENSMUSG00000082608 | H162: 160 | I162: 0.014571949 | J162: No | K162: 0.1876 | M162: 0.05467664 | N162: ENSMUSG00000082608 | O162: 0.06194 | P162: 0.06194
A163: 0.86442125 | B163: ENSMUSG00000084243 | F163: 0.05566584 | G163: ENSMUSG00000014852 | H163: 161 | I163: 0.01466302368 | J163: No | K163: 0.1898 | M163: 0.05566584 | N163: ENSMUSG00000014852 | O163: 0.06267 | P163: 0.06267
A164: 0.2655531 | B164: ENSMUSG00000032690 | F164: 0.05720655 | G164: ENSMUSG00000020216 | H164: 162 | I164: 0.01475409836 | J164: No | K164: 0.1939 | M164: 0.05720655 | N164: ENSMUSG00000020216 | O164: 0.064 | P164: 0.064
A165: 0.19188672 | B165: ENSMUSG00000061882 | F165: 0.057770703 | G165: ENSMUSG00000020904 | H165: 163 | I165: 0.01484517304 | J165: No | K165: 0.1939 | M165: 0.057770703 | N165: ENSMUSG00000020904 | O165: 0.06424 | P165: 0.06402
A166: 0.11199971 | B166: ENSMUSG00000029402 | F166: 0.05793092 | G166: ENSMUSG00000081543 | H166: 164 | I166: 0.01493624772 | J166: No | K166: 0.1939 | M166: 0.05793092 | N166: ENSMUSG00000081543 | O166: 0.06402 | P166: 0.06402
A167: 0.0010070662 | B167: ENSMUSG00000044017 | F167: 0.05969709 | G167: ENSMUSG00000097612 | H167: 165 | I167: 0.0150273224 | J167: No | K167: 0.1976 | M167: 0.05969709 | N167: ENSMUSG00000097612 | O167: 0.06558 | P167: 0.06525
A168: 0.00091111724 | B168: ENSMUSG00000053388 | F168: 0.059756123 | G168: ENSMUSG00000097134 | H168: 166 | I168: 0.01511839709 | J168: No | K168: 0.1976 | M168: 0.059756123 | N168: ENSMUSG00000097134 | O168: 0.06525 | P168: 0.06525
A169: 0.018854398 | B169: ENSMUSG00000004846 | F169: 0.062182363 | G169: ENSMUSG00000044276 | H169: 167 | I169: 0.01520947177 | J169: No | K169: 0.2029 | M169: 0.062182363 | N169: ENSMUSG00000044276 | O169: 0.06749 | P169: 0.06731
A170: 0.39819625 | B170: ENSMUSG00000056966 | F170: 0.06238687 | G170: ENSMUSG00000074918 | H170: 168 | I170: 0.01530054645 | J170: No | K170: 0.2029 | M170: 0.06238687 | N170: ENSMUSG00000074918 | O170: 0.06731 | P170: 0.06731
A171: 0.67237055 | B171: NEWGENE201 | F171: 0.06276931 | G171: ENSMUSG00000074240 | H171: 169 | I171: 0.01539162113 | J171: No | K171: 0.2029 | M171: 0.06276931 | N171: ENSMUSG00000074240 | O171: 0.06732 | P171: 0.06707
A172: 0.009505518 | B172: ENSMUSG00000029570 | F172: 0.06328174 | G172: ENSMUSG00000081501 | H172: 171 | I172: 0.01557377049 | J172: No | K172: 0.2029 | M172: 0.06328174 | N172: ENSMUSG00000081501 | O172: 0.06707 | P172: 0.06707
A173: 0.09714731 | B173: ENSMUSG00000086894 | F173: 0.06328174 | G173: ENSMUSG00000064580 | H173: 171 | I173: 0.01557377049 | J173: No | K173: 0.2029 | M173: 0.06328174 | N173: ENSMUSG00000064580 | O173: 0.06707 | P173: 0.06699
A174: 0.00020789877 | B174: ENSMUSG00000059991 | F174: 0.06357122 | G174: ENSMUSG00000060808 | H174: 172 | I174: 0.01566484517 | J174: No | K174: 0.2029 | M174: 0.06357122 | N174: ENSMUSG00000060808 | O174: 0.06699 | P174: 0.06699
A175: 2.7600222e-06 | B175: ENSMUSG00000083988 | F175: 0.065218255 | G175: ENSMUSG00000030137 | H175: 173 | I175: 0.01575591985 | J175: No | K175: 0.207 | M175: 0.065218255 | N175: ENSMUSG00000030137 | O175: 0.06833 | P175: 0.06833
A176: 0.7568885 | B176: ENSMUSG00000041147 | F176: 0.065613486 | G176: ENSMUSG00000097876 | H176: 174 | I176: 0.01584699454 | J176: No | K176: 0.207 | M176: 0.065613486 | N176: ENSMUSG00000097876 | O176: 0.06835 | P176: 0.06835
A177: 0.21385974 | B177: ENSMUSG00000029670 | F177: 0.066033706 | G177: ENSMUSG00000091040 | H177: 175 | I177: 0.01593806922 | J177: No | K177: 0.207 | M177: 0.066033706 | N177: ENSMUSG00000091040 | O177: 0.06839 | P177: 0.06835
A178: 0.0224715 | B178: ENSMUSG00000071553 | F178: 0.06636915 | G178: ENSMUSG00000064916 | H178: 176 | I178: 0.0160291439 | J178: No | K178: 0.207 | M178: 0.06636915 | N178: ENSMUSG00000064916 | O178: 0.06835 | P178: 0.06835
A179: 0.21244645 | B179: ENSMUSG00000085382 | F179: 0.06776566 | G179: ENSMUSG00000046683 | H179: 177 | I179: 0.01612021858 | J179: No | K179: 0.2091 | M179: 0.06776566 | N179: ENSMUSG00000046683 | O179: 0.06939 | P179: 0.06939
A180: 0.66873145 | B180: ENSMUSG00000038641 | F180: 0.068174995 | G180: ENSMUSG00000086920 | H180: 178 | I180: 0.01621129326 | J180: No | K180: 0.2091 | M180: 0.068174995 | N180: ENSMUSG00000086920 | O180: 0.06942 | P180: 0.06942
A181: 0.24352677 | B181: ENSMUSG00000029844 | F181: 0.06905568 | G181: ENSMUSG00000049460 | H181: 179 | I181: 0.01630236794 | J181: No | K181: 0.2091 | M181: 0.06905568 | N181: ENSMUSG00000049460 | O181: 0.06992 | P181: 0.06903
A182: 0.11760376 | B182: ENSMUSG00000037788 | F182: 0.06912231 | G182: ENSMUSG00000077366 | H182: 180 | I182: 0.01639344262 | J182: No | K182: 0.2091 | M182: 0.06912231 | N182: ENSMUSG00000077366 | O182: 0.0696 | P182: 0.06903
A183: 0.4627053 | B183: ENSMUSG00000086176 | F183: 0.06946438 | G183: ENSMUSG00000055125 | H183: 181 | I183: 0.0164845173 | J183: No | K183: 0.2091 | M183: 0.06946438 | N183: ENSMUSG00000055125 | O183: 0.06956 | P183: 0.06903
A184: 0.0083929105 | B184: ENSMUSG00000094491 | F184: 0.06949283 | G184: ENSMUSG00000026196 | H184: 182 | I184: 0.01657559199 | J184: No | K184: 0.2091 | M184: 0.06949283 | N184: ENSMUSG00000026196 | O184: 0.06921 | P184: 0.06903
A185: 0.009776518 | B185: ENSMUSG00000076578 | F185: 0.06969239 | G185: ENSMUSG00000030553 | H185: 183 | I185: 0.01666666667 | J185: No | K185: 0.2091 | M185: 0.06969239 | N185: ENSMUSG00000030553 | O185: 0.06903 | P185: 0.06903
A186: 0.59177834 | B186: ENSMUSG00000035125 | F186: 0.07092816 | G186: ENSMUSG00000057767 | H186: 184 | I186: 0.01675774135 | J186: No | K186: 0.2116 | M186: 0.07092816 | N186: ENSMUSG00000057767 | O186: 0.06987 | P186: 0.06987
A187: 0.7426701 | B187: ENSMUSG00000097462 | F187: 0.07171489 | G187: ENSMUSG00000072963 | H187: 185 | I187: 0.01684881603 | J187: No | K187: 0.2128 | M187: 0.07171489 | N187: ENSMUSG00000072963 | O187: 0.07026 | P187: 0.07024
A188: 0.0011901981 | B188: ENSMUSG00000030103 | F188: 0.07208401 | G188: ENSMUSG00000010044 | H188: 186 | I188: 0.01693989071 | J188: No | K188: 0.2128 | M188: 0.07208401 | N188: ENSMUSG00000010044 | O188: 0.07024 | P188: 0.07024
A189: 8.35814e-05 | B189: ENSMUSG00000045009 | F189: 0.072834626 | G189: NEWGENE83 | H189: 187 | I189: 0.01703096539 | J189: No | K189: 0.2138 | M189: 0.072834626 | N189: NEWGENE83 | O189: 0.07059 | P189: 0.07059
A190: 0.7467926 | B190: ENSMUSG00000034023 | F190: 0.073744915 | G190: ENSMUSG00000085573 | H190: 188 | I190: 0.01712204007 | J190: No | K190: 0.2154 | M190: 0.073744915 | N190: ENSMUSG00000085573 | O190: 0.0711 | P190: 0.0711
A191: 0.008190703 | B191: ENSMUSG00000030310 | F191: 0.074463576 | G191: ENSMUSG00000075416 | H191: 189 | I191: 0.01721311475 | J191: No | K191: 0.2163 | M191: 0.074463576 | N191: ENSMUSG00000075416 | O191: 0.07141 | P191: 0.07141
A192: 0.67601305 | B192: ENSMUSG00000030166 | F192: 0.07556415 | G192: ENSMUSG00000095180 | H192: 190 | I192: 0.01730418944 | J192: No | K192: 0.2172 | M192: 0.07556415 | N192: ENSMUSG00000095180 | O192: 0.07208 | P192: 0.0717
A193: 0.009157296 | B193: ENSMUSG00000041377 | F193: 0.07559028 | G193: ENSMUSG00000043068 | H193: 191 | I193: 0.01739526412 | J193: No | K193: 0.2172 | M193: 0.07559028 | N193: ENSMUSG00000043068 | O193: 0.07173 | P193: 0.0717
A194: 0.065218255 | B194: ENSMUSG00000030137 | F194: 0.07595296 | G194: ENSMUSG00000048572 | H194: 192 | I194: 0.0174863388 | J194: No | K194: 0.2172 | M194: 0.07595296 | N194: ENSMUSG00000048572 | O194: 0.0717 | P194: 0.0717
A195: 0.86988056 | B195: ENSMUSG00000087327 | F195: 0.07674935 | G195: ENSMUSG00000095935 | H195: 193 | I195: 0.01757741348 | J195: No | K195: 0.2183 | M195: 0.07674935 | N195: ENSMUSG00000095935 | O195: 0.07208 | P195: 0.07208
A196: 0.38407135 | B196: ENSMUSG00000067599 | F196: 0.078555614 | G196: NEWGENE40 | H196: 194 | I196: 0.01766848816 | J196: No | K196: 0.2221 | M196: 0.078555614 | N196: NEWGENE40 | O196: 0.07339 | P196: 0.07332
A197: 0.030242287 | B197: ENSMUSG00000090099 | F197: 0.07888648 | G197: ENSMUSG00000093979 | H197: 195 | I197: 0.01775956284 | J197: No | K197: 0.2221 | M197: 0.07888648 | N197: ENSMUSG00000093979 | O197: 0.07332 | P197: 0.07332
A198: 0.34682086 | B198: NEWGENE155 | F198: 0.0797103 | G198: ENSMUSG00000030888 | H198: 196 | I198: 0.01785063752 | J198: No | K198: 0.2233 | M198: 0.0797103 | N198: ENSMUSG00000030888 | O198: 0.07371 | P198: 0.07371
A199: 0.56625956 | B199: ENSMUSG00000030219 | F199: 0.08022896 | G199: ENSMUSG00000026413 | H199: 197 | I199: 0.0179417122 | J199: No | K199: 0.2236 | M199: 0.08022896 | N199: ENSMUSG00000026413 | O199: 0.07381 | P199: 0.07381
A200: 0.32088003 | B200: ENSMUSG00000063171 | F200: 0.08194055 | G200: NEWGENE72 | H200: 198 | I200: 0.01803278689 | J200: No | K200: 0.2236 | M200: 0.08194055 | N200: NEWGENE72 | O200: 0.07501 | P200: 0.07381
... 351 more rows

Sheet indep.
A1: Observed values | C1: Variable 2 | O1: Written by Peter Nagy
C2: Value A | D2: Value B | E2: Value C | F2: Value D | G2: Value E | H2: Value F | I2: Value G | J2: Value H | K2: Value I | L2: Value J | M2: Marg. freq. | O2: peter.v.nagy@gmail.com
A3: Variable 1 | B3: Value a | C3: 4 | D3: 7 | E3: 2 | M3: =IF(C3<>"",SUM(C3:L3),"") -> 13 | O3: Recalculate Fisher's exact test | P3: Algorithm according to
B4: Value b | C4: 2 | D4: 2 | E4: 11 | M4: =IF(C4<>"",SUM(C4:L4),"") -> 15 | O4: with CTRL-I. | P4: http://www.discourses.org.uk/statistics/
B5: Value c | C5: 3 | D5: 4 | E5: 5 | M5: 12
B6: Value d
B7: Value e
B8: Value f
B9: Value g
B10: Value h
B11: Value i
B12: Value j
B13: Marg. freq. | C13: =IF(C3<>"",SUM(C3:C12),"") -> 9 | D13: =IF(D3<>"",SUM(D3:D12),"") -> 13 | E13: 18 | M13: =SUM(M3:M12) -> 40
A15: Expected values | C15: Variable 2
C16: Value A | D16: Value B | E16: Value C | F16: Value D | G16: Value E | H16: Value F | I16: Value G | J16: Value H | K16: Value I | L16: Value J
A17: Variable 1 | B17: Value a | C17: =IF(ISBLANK(C3),"",$M3*C$13/$M$13) -> 2.925 | D17: =IF(ISBLANK(D3),"",$M3*D$13/$M$13) -> 4.225 | E17: 5.85
B18: Value b | C18: =IF(ISBLANK(C4),"",$M4*C$13/$M$13) -> 3.375 | D18: 4.875 | E18: 6.75
B19: Value c | C19: =IF(ISBLANK(C5),"",$M5*C$13/$M$13) -> 2.7 | D19: 3.9 | E19: 5.4
B20: Value d | C20: =IF(ISBLANK(C6),"",$M6*C$13/$M$13) -> 
B21: Value e | C21: =IF(ISBLANK(C7),"",$M7*C$13/$M$13) -> 
B22: Value f | C22: =IF(ISBLANK(C8),"",$M8*C$13/$M$13) -> 
B23: Value g | C23: =IF(ISBLANK(C9),"",$M9*C$13/$M$13) -> 
B24: Value h | C24: =IF(ISBLANK(C10),"",$M10*C$13/$M$13) -> 
B25: Value i | C25: =IF(ISBLANK(C11),"",$M11*C$13/$M$13) -> 
B26: Value j | C26: =IF(ISBLANK(C12),"",$M12*C$13/$M$13) -> 
A28: Sum chi2 terms | C28: Variable 2
C29: Value A | D29: Value B | E29: Value C | F29: Value D | G29: Value E | H29: Value F | I29: Value G | J29: Value H | K29: Value I | L29: Value J
A30: Variable 1 | B30: Value a | C30: =IF(ISBLANK(C3),"",(C17-C3)^2/C17) -> 0.3950854701 | D30: =IF(ISBLANK(D3),"",(D17-D3)^2/D17) -> 1.822633136 | E30: 2.533760684
B31: Value b | C31: =IF(ISBLANK(C4),"",(C18-C4)^2/C18) -> 0.5601851852 | D31: 1.695512821 | E31: 2.675925926
B32: Value c | C32: =IF(ISBLANK(C5),"",(C19-C5)^2/C19) -> 0.03333333333 | D32: 0.002564102564 | E32: 0.02962962963
B33: Value d | C33: =IF(ISBLANK(C6),"",(C20-C6)^2/C20) -> 
B34: Value e | C34: =IF(ISBLANK(C7),"",(C21-C7)^2/C21) -> 
B35: Value f | C35: =IF(ISBLANK(C8),"",(C22-C8)^2/C22) -> 
B36: Value g | C36: =IF(ISBLANK(C9),"",(C23-C9)^2/C23) -> 
B37: Value h | C37: =IF(ISBLANK(C10),"",(C24-C10)^2/C24) -> 
B38: Value i | C38: =IF(ISBLANK(C11),"",(C25-C11)^2/C25) -> 
B39: Value j | C39: =IF(ISBLANK(C12),"",(C26-C12)^2/C26) -> 
A41: c2 test
A42: Sum chi2 | B42: =SUM(C30:L39) -> 9.748630287
A43: d.f. | B43: =(COUNT(C3:L3)-1)*(COUNT(C3:C12)-1) -> 4
A44: alpha | B44: 0.05
A45: chi(critical) | B45: =_xlfn.CHISQ.INV.RT(B44,B43) -> 9.487729037
A46: p value | B46: =1-_xlfn.CHISQ.DIST(B42,B43,TRUE) -> 0.04488167658
A48: c2 test (Yates correction)
A49: Sum chi2 | B49: =SUM(ABS(OFFSET(C3,0,0,COUNT($C$3:$C$12),COUNT($C$3:$L$3))-OFFSET(C17,0,0,COUNT($C$3:$C$12),COUNT($C$3:$L$3))-0.5)^2/OFFSET(C17,0,0,COUNT($C$3:$C$12),COUNT($C$3:$L$3))) -> 10.24002849
A50: p value | B50: =1-_xlfn.CHISQ.DIST(B49,B43,TRUE) -> 0.03657282426
A52: Fisher's exact test
A53: p value | B53: 0.008841557218
A55: Fraction of cells with exp. count<5 | B55: =COUNTIF(C17:L26,"<5")/COUNT(C17:L26) -> 0.6666666667

Sheet KS test
A1: x | B1: Histogram 1 | C1: Histogram 2 | D1: Rel freq 1 | E1: Rel freq 2 | H1: Cum. rel. freq 1 | I1: Cum. rel. freq 2 | J1: D | K1: max(D) | L1: NumEl(1) | M1: NumEl(2) | N1: p(2-sided) | O1: p(1-sided) | R1: 1 | S1: =EXP(-((2*R1-1)^2*PI()^2/(8*$K$8^2))) -> 0.7352244845 | T1: Cum KS dist
A2: 1 | B2: 55 | C2: 44 | D2: =IF(B2<>"",B2/SUM(B$2:B$101),"") -> 0.5392156863 | E2: =IF(C2<>"",C2/SUM(C$2:C$101),"") -> 0.2838709677 | F2: =IF(B2<>"",D2*$A2,"") -> 0.5392156863 | G2: =IF(C2<>"",E2*$A2,"") -> 0.2838709677 | H2: =IF(B2<>"",SUM(D$2:D2),"") -> 0.5392156863 | I2: =IF(C2<>"",SUM(E$2:E2),"") -> 0.2838709677 | J2: =IF(B2<>"",ABS(I2-H2),"") -> 0.2553447185 | K2: =MAX(J2:J1025) -> 0.2553447185 | L2: =SUM(B2:B1025) -> 102 | M2: =SUM(C2:C1025) -> 155 | N2: =1-T2 -> 0.0006563279763 | O2: =(1-T2)/2 -> 0.0003281639881 | R2: 2 | S2: =EXP(-((2*R2-1)^2*PI()^2/(8*$K$8^2))) -> 0.06277397845 | T2: =SQRT(2*PI())/K8*SUM(S1:S50) -> 0.999343672
A3: 2 | B3: 28 | C3: 45 | D3: =IF(B3<>"",B3/SUM(B$2:B$101),"") -> 0.2745098039 | E3: =IF(C3<>"",C3/SUM(C$2:C$101),"") -> 0.2903225806 | F3: =IF(B3<>"",D3*$A3,"") -> 0.5490196078 | G3: 0.5806451613 | H3: =IF(B3<>"",SUM(D$2:D3),"") -> 0.8137254902 | I3: =IF(C3<>"",SUM(E$2:E3),"") -> 0.5741935484 | J3: =IF(B3<>"",ABS(I3-H3),"") -> 0.2395319418 | R3: 3 | S3: 0.000457613722
A4: 3 | B4: 10 | C4: 44 | D4: 0.09803921569 | E4: 0.2838709677 | F4: 0.2941176471 | G4: 0.8516129032 | H4: =IF(B4<>"",SUM(D$2:D4),"") -> 0.9117647059 | I4: =IF(C4<>"",SUM(E$2:E4),"") -> 0.8580645161 | J4: 0.05370018975 | K4: NumCorrectionFactor | L4: mean(1) | M4: mean(2) | N4: calc. by macro (ctrl-k) | O4: calc. by macro (ctrl-k) | R4: 4 | S4: 2.848250065e-07
A5: 4 | B5: 9 | C5: 22 | D5: 0.08823529412 | E5: 0.1419354839 | F5: 0.3529411765 | G5: 0.5677419355 | H5: =IF(B5<>"",SUM(D$2:D5),"") -> 1 | I5: =IF(C5<>"",SUM(E$2:E5),"") -> 1 | J5: 0 | K5: =SQRT((L2+M2)/(L2*M2)) -> 0.127497194 | L5: =IF($A2<>"",SUM(F2:F1025),"") -> 1.735294118 | M5: =IF($A2<>"",SUM(G2:G1025),"") -> 2.283870968 | N5: 0.0006563279763 | O5: 0.0003281639881 | R5: 5 | S5: 1.513620097e-11
D6: =IF(B6<>"",B6/SUM(B$2:B$101),"") ->  | E6: =IF(C6<>"",C6/SUM(C$2:C$101),"") ->  | F6: =IF(B6<>"",D6*$A6,"") ->  | G6: =IF(C6<>"",E6*$A6,"") ->  | H6: =IF(B6<>"",SUM(D$2:D6),"") ->  | I6: =IF(C6<>"",SUM(E$2:E6),"") ->  | J6: =IF(B6<>"",ABS(I6-H6),"") ->  | R6: 6 | S6: 6.867763756e-17
H7: =IF(B7<>"",SUM(D$2:D7),"") ->  | I7: =IF(C7<>"",SUM(E$2:E7),"") ->  | K7: max(D)corrected | N7: Written by Peter Nagy | R7: 7 | S7: 2.660562722e-23
H8: =IF(B8<>"",SUM(D$2:D8),"") ->  | I8: =IF(C8<>"",SUM(E$2:E8),"") ->  | K8: =K2/K5 -> 2.002747751 | N8: peter.v.nagy@gmail.com | R8: 8 | S8: 8.80017581e-31
H9: =IF(B9<>"",SUM(D$2:D9),"") ->  | I9: =IF(C9<>"",SUM(E$2:E9),"") ->  | R9: 9 | S9: 2.485243163e-39
H10: =IF(B10<>"",SUM(D$2:D10),"") ->  | I10: =IF(C10<>"",SUM(E$2:E10),"") ->  | R10: 10 | S10: 5.99247346e-49
H11: =IF(B11<>"",SUM(D$2:D11),"") ->  | I11: =IF(C11<>"",SUM(E$2:E11),"") ->  | R11: 11 | S11: 1.233681474e-59
H12: =IF(B12<>"",SUM(D$2:D12),"") ->  | I12: =IF(C12<>"",SUM(E$2:E12),"") ->  | R12: 12 | S12: 2.168501164e-71
H13: =IF(B13<>"",SUM(D$2:D13),"") ->  | I13: =IF(C13<>"",SUM(E$2:E13),"") ->  | R13: 13 | S13: 3.254437745e-84
H14: =IF(B14<>"",SUM(D$2:D14),"") ->  | I14: =IF(C14<>"",SUM(E$2:E14),"") ->  | R14: 14 | S14: 4.170152809e-98
H15: =IF(B15<>"",SUM(D$2:D15),"") ->  | I15: =IF(C15<>"",SUM(E$2:E15),"") ->  | R15: 15 | S15: 4.562340165e-113
H16: =IF(B16<>"",SUM(D$2:D16),"") ->  | I16: =IF(C16<>"",SUM(E$2:E16),"") ->  | R16: 16 | S16: 4.26170171e-129
H17: =IF(B17<>"",SUM(D$2:D17),"") ->  | I17: =IF(C17<>"",SUM(E$2:E17),"") ->  | R17: 17 | S17: 3.398897964e-146
H18: =IF(B18<>"",SUM(D$2:D18),"") ->  | I18: =IF(C18<>"",SUM(E$2:E18),"") ->  | R18: 18 | S18: 2.314477151e-164
H19: =IF(B19<>"",SUM(D$2:D19),"") ->  | I19: =IF(C19<>"",SUM(E$2:E19),"") ->  | R19: 19 | S19: 1.345635267e-183
H20: =IF(B20<>"",SUM(D$2:D20),"") ->  | I20: =IF(C20<>"",SUM(E$2:E20),"") ->  | R20: 20 | S20: 6.679770113e-204
H21: =IF(B21<>"",SUM(D$2:D21),"") ->  | I21: =IF(C21<>"",SUM(E$2:E21),"") ->  | R21: 21 | S21: 2.831101007e-225
H22: =IF(B22<>"",SUM(D$2:D22),"") ->  | I22: =IF(C22<>"",SUM(E$2:E22),"") ->  | R22: 22 | S22: 1.024492786e-247
H23: =IF(B23<>"",SUM(D$2:D23),"") ->  | I23: =IF(C23<>"",SUM(E$2:E23),"") ->  | R23: 23 | S23: 3.165352909e-271
H24: =IF(B24<>"",SUM(D$2:D24),"") ->  | I24: =IF(C24<>"",SUM(E$2:E24),"") ->  | R24: 24 | S24: 8.350165094e-296
H25: =IF(B25<>"",SUM(D$2:D25),"") ->  | I25: =IF(C25<>"",SUM(E$2:E25),"") ->  | R25: 25 | S25: 0
H26: =IF(B26<>"",SUM(D$2:D26),"") ->  | I26: =IF(C26<>"",SUM(E$2:E26),"") ->  | R26: 26 | S26: 0
H27: =IF(B27<>"",SUM(D$2:D27),"") ->  | I27: =IF(C27<>"",SUM(E$2:E27),"") ->  | R27: 27 | S27: 0
H28: =IF(B28<>"",SUM(D$2:D28),"") ->  | I28: =IF(C28<>"",SUM(E$2:E28),"") ->  | R28: 28 | S28: 0
H29: =IF(B29<>"",SUM(D$2:D29),"") ->  | I29: =IF(C29<>"",SUM(E$2:E29),"") ->  | R29: 29 | S29: 0
H30: =IF(B30<>"",SUM(D$2:D30),"") ->  | I30: =IF(C30<>"",SUM(E$2:E30),"") ->  | R30: 30 | S30: 0
H31: =IF(B31<>"",SUM(D$2:D31),"") ->  | I31: =IF(C31<>"",SUM(E$2:E31),"") ->  | R31: 31 | S31: 0
H32: =IF(B32<>"",SUM(D$2:D32),"") ->  | I32: =IF(C32<>"",SUM(E$2:E32),"") ->  | R32: 32 | S32: 0
H33: =IF(B33<>"",SUM(D$2:D33),"") ->  | I33: =IF(C33<>"",SUM(E$2:E33),"") ->  | R33: 33 | S33: 0
H34: =IF(B34<>"",SUM(D$2:D34),"") ->  | I34: =IF(C34<>"",SUM(E$2:E34),"") ->  | R34: 34 | S34: 0
H35: =IF(B35<>"",SUM(D$2:D35),"") ->  | I35: =IF(C35<>"",SUM(E$2:E35),"") ->  | R35: 35 | S35: 0
H36: =IF(B36<>"",SUM(D$2:D36),"") ->  | I36: =IF(C36<>"",SUM(E$2:E36),"") ->  | R36: 36 | S36: 0
H37: =IF(B37<>"",SUM(D$2:D37),"") ->  | I37: =IF(C37<>"",SUM(E$2:E37),"") ->  | R37: 37 | S37: 0
H38: =IF(B38<>"",SUM(D$2:D38),"") ->  | I38: =IF(C38<>"",SUM(E$2:E38),"") ->  | R38: 38 | S38: 0
H39: =IF(B39<>"",SUM(D$2:D39),"") ->  | I39: =IF(C39<>"",SUM(E$2:E39),"") ->  | R39: 39 | S39: 0
H40: =IF(B40<>"",SUM(D$2:D40),"") ->  | I40: =IF(C40<>"",SUM(E$2:E40),"") ->  | R40: 40 | S40: 0
H41: =IF(B41<>"",SUM(D$2:D41),"") ->  | I41: =IF(C41<>"",SUM(E$2:E41),"") ->  | R41: 41 | S41: 0
H42: =IF(B42<>"",SUM(D$2:D42),"") ->  | I42: =IF(C42<>"",SUM(E$2:E42),"") ->  | R42: 42 | S42: 0
H43: =IF(B43<>"",SUM(D$2:D43),"") ->  | I43: =IF(C43<>"",SUM(E$2:E43),"") ->  | R43: 43 | S43: 0
H44: =IF(B44<>"",SUM(D$2:D44),"") ->  | I44: =IF(C44<>"",SUM(E$2:E44),"") ->  | R44: 44 | S44: 0
H45: =IF(B45<>"",SUM(D$2:D45),"") ->  | I45: =IF(C45<>"",SUM(E$2:E45),"") ->  | R45: 45 | S45: 0
H46: =IF(B46<>"",SUM(D$2:D46),"") ->  | I46: =IF(C46<>"",SUM(E$2:E46),"") ->  | R46: 46 | S46: 0
H47: =IF(B47<>"",SUM(D$2:D47),"") ->  | I47: =IF(C47<>"",SUM(E$2:E47),"") ->  | R47: 47 | S47: 0
H48: =IF(B48<>"",SUM(D$2:D48),"") ->  | I48: =IF(C48<>"",SUM(E$2:E48),"") ->  | R48: 48 | S48: 0
H49: =IF(B49<>"",SUM(D$2:D49),"") ->  | I49: =IF(C49<>"",SUM(E$2:E49),"") ->  | R49: 49 | S49: 0
H50: =IF(B50<>"",SUM(D$2:D50),"") ->  | I50: =IF(C50<>"",SUM(E$2:E50),"") ->  | R50: 50 | S50: 0
H51: =IF(B51<>"",SUM(D$2:D51),"") ->  | I51: =IF(C51<>"",SUM(E$2:E51),"") -> 
H52: =IF(B52<>"",SUM(D$2:D52),"") ->  | I52: =IF(C52<>"",SUM(E$2:E52),"") -> 
H53: =IF(B53<>"",SUM(D$2:D53),"") ->  | I53: =IF(C53<>"",SUM(E$2:E53),"") -> 
H54: =IF(B54<>"",SUM(D$2:D54),"") ->  | I54: =IF(C54<>"",SUM(E$2:E54),"") -> 
H55: =IF(B55<>"",SUM(D$2:D55),"") ->  | I55: =IF(C55<>"",SUM(E$2:E55),"") -> 
H56: =IF(B56<>"",SUM(D$2:D56),"") ->  | I56: =IF(C56<>"",SUM(E$2:E56),"") -> 
H57: =IF(B57<>"",SUM(D$2:D57),"") ->  | I57: =IF(C57<>"",SUM(E$2:E57),"") -> 
H58: =IF(B58<>"",SUM(D$2:D58),"") ->  | I58: =IF(C58<>"",SUM(E$2:E58),"") -> 
H59: =IF(B59<>"",SUM(D$2:D59),"") ->  | I59: =IF(C59<>"",SUM(E$2:E59),"") -> 
H60: =IF(B60<>"",SUM(D$2:D60),"") ->  | I60: =IF(C60<>"",SUM(E$2:E60),"") -> 
H61: =IF(B61<>"",SUM(D$2:D61),"") ->  | I61: =IF(C61<>"",SUM(E$2:E61),"") -> 
H62: =IF(B62<>"",SUM(D$2:D62),"") ->  | I62: =IF(C62<>"",SUM(E$2:E62),"") -> 
H63: =IF(B63<>"",SUM(D$2:D63),"") ->  | I63: =IF(C63<>"",SUM(E$2:E63),"") -> 
H64: =IF(B64<>"",SUM(D$2:D64),"") ->  | I64: =IF(C64<>"",SUM(E$2:E64),"") -> 
H65: =IF(B65<>"",SUM(D$2:D65),"") ->  | I65: =IF(C65<>"",SUM(E$2:E65),"") -> 
H66: =IF(B66<>"",SUM(D$2:D66),"") ->  | I66: =IF(C66<>"",SUM(E$2:E66),"") -> 
H67: =IF(B67<>"",SUM(D$2:D67),"") ->  | I67: =IF(C67<>"",SUM(E$2:E67),"") -> 
H68: =IF(B68<>"",SUM(D$2:D68),"") ->  | I68: =IF(C68<>"",SUM(E$2:E68),"") -> 
H69: =IF(B69<>"",SUM(D$2:D69),"") ->  | I69: =IF(C69<>"",SUM(E$2:E69),"") -> 
D70: =IF(B70<>"",B70/SUM(B$2:B$101),"") ->  | E70: =IF(C70<>"",C70/SUM(C$2:C$101),"") ->  | F70: =IF(B70<>"",D70*$A70,"") ->  | G70: =IF(C70<>"",E70*$A70,"") ->  | H70: =IF(B70<>"",SUM(D$2:D70),"") ->  | I70: =IF(C70<>"",SUM(E$2:E70),"") ->  | J70: =IF(B70<>"",ABS(I70-H70),"") -> 
H71: =IF(B71<>"",SUM(D$2:D71),"") ->  | I71: =IF(C71<>"",SUM(E$2:E71),"") -> 
H72: =IF(B72<>"",SUM(D$2:D72),"") ->  | I72: =IF(C72<>"",SUM(E$2:E72),"") -> 
H73: =IF(B73<>"",SUM(D$2:D73),"") ->  | I73: =IF(C73<>"",SUM(E$2:E73),"") -> 
H74: =IF(B74<>"",SUM(D$2:D74),"") ->  | I74: =IF(C74<>"",SUM(E$2:E74),"") -> 
H75: =IF(B75<>"",SUM(D$2:D75),"") ->  | I75: =IF(C75<>"",SUM(E$2:E75),"") -> 
H76: =IF(B76<>"",SUM(D$2:D76),"") ->  | I76: =IF(C76<>"",SUM(E$2:E76),"") -> 
H77: =IF(B77<>"",SUM(D$2:D77),"") ->  | I77: =IF(C77<>"",SUM(E$2:E77),"") -> 
H78: =IF(B78<>"",SUM(D$2:D78),"") ->  | I78: =IF(C78<>"",SUM(E$2:E78),"") -> 
H79: =IF(B79<>"",SUM(D$2:D79),"") ->  | I79: =IF(C79<>"",SUM(E$2:E79),"") -> 
H80: =IF(B80<>"",SUM(D$2:D80),"") ->  | I80: =IF(C80<>"",SUM(E$2:E80),"") -> 
H81: =IF(B81<>"",SUM(D$2:D81),"") ->  | I81: =IF(C81<>"",SUM(E$2:E81),"") -> 
H82: =IF(B82<>"",SUM(D$2:D82),"") ->  | I82: =IF(C82<>"",SUM(E$2:E82),"") -> 
H83: =IF(B83<>"",SUM(D$2:D83),"") ->  | I83: =IF(C83<>"",SUM(E$2:E83),"") -> 
H84: =IF(B84<>"",SUM(D$2:D84),"") ->  | I84: =IF(C84<>"",SUM(E$2:E84),"") -> 
H85: =IF(B85<>"",SUM(D$2:D85),"") ->  | I85: =IF(C85<>"",SUM(E$2:E85),"") -> 
H86: =IF(B86<>"",SUM(D$2:D86),"") ->  | I86: =IF(C86<>"",SUM(E$2:E86),"") -> 
H87: =IF(B87<>"",SUM(D$2:D87),"") ->  | I87: =IF(C87<>"",SUM(E$2:E87),"") -> 
H88: =IF(B88<>"",SUM(D$2:D88),"") ->  | I88: =IF(C88<>"",SUM(E$2:E88),"") -> 
H89: =IF(B89<>"",SUM(D$2:D89),"") ->  | I89: =IF(C89<>"",SUM(E$2:E89),"") -> 
H90: =IF(B90<>"",SUM(D$2:D90),"") ->  | I90: =IF(C90<>"",SUM(E$2:E90),"") -> 
H91: =IF(B91<>"",SUM(D$2:D91),"") ->  | I91: =IF(C91<>"",SUM(E$2:E91),"") -> 
H92: =IF(B92<>"",SUM(D$2:D92),"") ->  | I92: =IF(C92<>"",SUM(E$2:E92),"") -> 
H93: =IF(B93<>"",SUM(D$2:D93),"") ->  | I93: =IF(C93<>"",SUM(E$2:E93),"") -> 
H94: =IF(B94<>"",SUM(D$2:D94),"") ->  | I94: =IF(C94<>"",SUM(E$2:E94),"") -> 
H95: =IF(B95<>"",SUM(D$2:D95),"") ->  | I95: =IF(C95<>"",SUM(E$2:E95),"") -> 
H96: =IF(B96<>"",SUM(D$2:D96),"") ->  | I96: =IF(C96<>"",SUM(E$2:E96),"") -> 
H97: =IF(B97<>"",SUM(D$2:D97),"") ->  | I97: =IF(C97<>"",SUM(E$2:E97),"") -> 
H98: =IF(B98<>"",SUM(D$2:D98),"") ->  | I98: =IF(C98<>"",SUM(E$2:E98),"") -> 
H99: =IF(B99<>"",SUM(D$2:D99),"") ->  | I99: =IF(C99<>"",SUM(E$2:E99),"") -> 
H100: =IF(B100<>"",SUM(D$2:D100),"") ->  | I100: =IF(C100<>"",SUM(E$2:E100),"") -> 
H101: =IF(B101<>"",SUM(D$2:D101),"") ->  | I101: =IF(C101<>"",SUM(E$2:E101),"") -> 
H102: =IF(B102<>"",SUM(D$2:D102),"") ->  | I102: =IF(C102<>"",SUM(E$2:E102),"") -> 
H103: =IF(B103<>"",SUM(D$2:D103),"") ->  | I103: =IF(C103<>"",SUM(E$2:E103),"") -> 
H104: =IF(B104<>"",SUM(D$2:D104),"") ->  | I104: =IF(C104<>"",SUM(E$2:E104),"") -> 
H105: =IF(B105<>"",SUM(D$2:D105),"") ->  | I105: =IF(C105<>"",SUM(E$2:E105),"") -> 
H106: =IF(B106<>"",SUM(D$2:D106),"") ->  | I106: =IF(C106<>"",SUM(E$2:E106),"") -> 
H107: =IF(B107<>"",SUM(D$2:D107),"") ->  | I107: =IF(C107<>"",SUM(E$2:E107),"") -> 
H108: =IF(B108<>"",SUM(D$2:D108),"") ->  | I108: =IF(C108<>"",SUM(E$2:E108),"") -> 
H109: =IF(B109<>"",SUM(D$2:D109),"") ->  | I109: =IF(C109<>"",SUM(E$2:E109),"") -> 
H110: =IF(B110<>"",SUM(D$2:D110),"") ->  | I110: =IF(C110<>"",SUM(E$2:E110),"") -> 
H111: =IF(B111<>"",SUM(D$2:D111),"") ->  | I111: =IF(C111<>"",SUM(E$2:E111),"") -> 
H112: =IF(B112<>"",SUM(D$2:D112),"") ->  | I112: =IF(C112<>"",SUM(E$2:E112),"") -> 
H113: =IF(B113<>"",SUM(D$2:D113),"") ->  | I113: =IF(C113<>"",SUM(E$2:E113),"") -> 
H114: =IF(B114<>"",SUM(D$2:D114),"") ->  | I114: =IF(C114<>"",SUM(E$2:E114),"") -> 
H115: =IF(B115<>"",SUM(D$2:D115),"") ->  | I115: =IF(C115<>"",SUM(E$2:E115),"") -> 
H116: =IF(B116<>"",SUM(D$2:D116),"") ->  | I116: =IF(C116<>"",SUM(E$2:E116),"") -> 
H117: =IF(B117<>"",SUM(D$2:D117),"") ->  | I117: =IF(C117<>"",SUM(E$2:E117),"") -> 
H118: =IF(B118<>"",SUM(D$2:D118),"") ->  | I118: =IF(C118<>"",SUM(E$2:E118),"") -> 
H119: =IF(B119<>"",SUM(D$2:D119),"") ->  | I119: =IF(C119<>"",SUM(E$2:E119),"") -> 
H120: =IF(B120<>"",SUM(D$2:D120),"") ->  | I120: =IF(C120<>"",SUM(E$2:E120),"") -> 
H121: =IF(B121<>"",SUM(D$2:D121),"") ->  | I121: =IF(C121<>"",SUM(E$2:E121),"") -> 
H122: =IF(B122<>"",SUM(D$2:D122),"") ->  | I122: =IF(C122<>"",SUM(E$2:E122),"") -> 
H123: =IF(B123<>"",SUM(D$2:D123),"") ->  | I123: =IF(C123<>"",SUM(E$2:E123),"") -> 
H124: =IF(B124<>"",SUM(D$2:D124),"") ->  | I124: =IF(C124<>"",SUM(E$2:E124),"") -> 
H125: =IF(B125<>"",SUM(D$2:D125),"") ->  | I125: =IF(C125<>"",SUM(E$2:E125),"") -> 
H126: =IF(B126<>"",SUM(D$2:D126),"") ->  | I126: =IF(C126<>"",SUM(E$2:E126),"") -> 
H127: =IF(B127<>"",SUM(D$2:D127),"") ->  | I127: =IF(C127<>"",SUM(E$2:E127),"") -> 
H128: =IF(B128<>"",SUM(D$2:D128),"") ->  | I128: =IF(C128<>"",SUM(E$2:E128),"") -> 
H129: =IF(B129<>"",SUM(D$2:D129),"") ->  | I129: =IF(C129<>"",SUM(E$2:E129),"") -> 
H130: =IF(B130<>"",SUM(D$2:D130),"") ->  | I130: =IF(C130<>"",SUM(E$2:E130),"") -> 
H131: =IF(B131<>"",SUM(D$2:D131),"") ->  | I131: =IF(C131<>"",SUM(E$2:E131),"") -> 
H132: =IF(B132<>"",SUM(D$2:D132),"") ->  | I132: =IF(C132<>"",SUM(E$2:E132),"") -> 
H133: =IF(B133<>"",SUM(D$2:D133),"") ->  | I133: =IF(C133<>"",SUM(E$2:E133),"") -> 
D134: =IF(B134<>"",B134/SUM(B$2:B$101),"") ->  | E134: =IF(C134<>"",C134/SUM(C$2:C$101),"") ->  | F134: =IF(B134<>"",D134*$A134,"") ->  | G134: =IF(C134<>"",E134*$A134,"") ->  | H134: =IF(B134<>"",SUM(D$2:D134),"") ->  | I134: =IF(C134<>"",SUM(E$2:E134),"") ->  | J134: =IF(B134<>"",ABS(I134-H134),"") -> 
H135: =IF(B135<>"",SUM(D$2:D135),"") ->  | I135: =IF(C135<>"",SUM(E$2:E135),"") -> 
H136: =IF(B136<>"",SUM(D$2:D136),"") ->  | I136: =IF(C136<>"",SUM(E$2:E136),"") -> 
H137: =IF(B137<>"",SUM(D$2:D137),"") ->  | I137: =IF(C137<>"",SUM(E$2:E137),"") -> 
H138: =IF(B138<>"",SUM(D$2:D138),"") ->  | I138: =IF(C138<>"",SUM(E$2:E138),"") -> 
H139: =IF(B139<>"",SUM(D$2:D139),"") ->  | I139: =IF(C139<>"",SUM(E$2:E139),"") -> 
H140: =IF(B140<>"",SUM(D$2:D140),"") ->  | I140: =IF(C140<>"",SUM(E$2:E140),"") -> 
H141: =IF(B141<>"",SUM(D$2:D141),"") ->  | I141: =IF(C141<>"",SUM(E$2:E141),"") -> 
H142: =IF(B142<>"",SUM(D$2:D142),"") ->  | I142: =IF(C142<>"",SUM(E$2:E142),"") -> 
H143: =IF(B143<>"",SUM(D$2:D143),"") ->  | I143: =IF(C143<>"",SUM(E$2:E143),"") -> 
H144: =IF(B144<>"",SUM(D$2:D144),"") ->  | I144: =IF(C144<>"",SUM(E$2:E144),"") -> 
H145: =IF(B145<>"",SUM(D$2:D145),"") ->  | I145: =IF(C145<>"",SUM(E$2:E145),"") -> 
H146: =IF(B146<>"",SUM(D$2:D146),"") ->  | I146: =IF(C146<>"",SUM(E$2:E146),"") -> 
H147: =IF(B147<>"",SUM(D$2:D147),"") ->  | I147: =IF(C147<>"",SUM(E$2:E147),"") -> 
H148: =IF(B148<>"",SUM(D$2:D148),"") ->  | I148: =IF(C148<>"",SUM(E$2:E148),"") -> 
H149: =IF(B149<>"",SUM(D$2:D149),"") ->  | I149: =IF(C149<>"",SUM(E$2:E149),"") -> 
H150: =IF(B150<>"",SUM(D$2:D150),"") ->  | I150: =IF(C150<>"",SUM(E$2:E150),"") -> 
H151: =IF(B151<>"",SUM(D$2:D151),"") ->  | I151: =IF(C151<>"",SUM(E$2:E151),"") -> 
H152: =IF(B152<>"",SUM(D$2:D152),"") ->  | I152: =IF(C152<>"",SUM(E$2:E152),"") -> 
H153: =IF(B153<>"",SUM(D$2:D153),"") ->  | I153: =IF(C153<>"",SUM(E$2:E153),"") -> 
H154: =IF(B154<>"",SUM(D$2:D154),"") ->  | I154: =IF(C154<>"",SUM(E$2:E154),"") -> 
H155: =IF(B155<>"",SUM(D$2:D155),"") ->  | I155: =IF(C155<>"",SUM(E$2:E155),"") -> 
H156: =IF(B156<>"",SUM(D$2:D156),"") ->  | I156: =IF(C156<>"",SUM(E$2:E156),"") -> 
H157: =IF(B157<>"",SUM(D$2:D157),"") ->  | I157: =IF(C157<>"",SUM(E$2:E157),"") -> 
H158: =IF(B158<>"",SUM(D$2:D158),"") ->  | I158: =IF(C158<>"",SUM(E$2:E158),"") -> 
H159: =IF(B159<>"",SUM(D$2:D159),"") ->  | I159: =IF(C159<>"",SUM(E$2:E159),"") -> 
H160: =IF(B160<>"",SUM(D$2:D160),"") ->  | I160: =IF(C160<>"",SUM(E$2:E160),"") -> 
H161: =IF(B161<>"",SUM(D$2:D161),"") ->  | I161: =IF(C161<>"",SUM(E$2:E161),"") -> 
H162: =IF(B162<>"",SUM(D$2:D162),"") ->  | I162: =IF(C162<>"",SUM(E$2:E162),"") -> 
H163: =IF(B163<>"",SUM(D$2:D163),"") ->  | I163: =IF(C163<>"",SUM(E$2:E163),"") -> 
H164: =IF(B164<>"",SUM(D$2:D164),"") ->  | I164: =IF(C164<>"",SUM(E$2:E164),"") -> 
H165: =IF(B165<>"",SUM(D$2:D165),"") ->  | I165: =IF(C165<>"",SUM(E$2:E165),"") -> 
H166: =IF(B166<>"",SUM(D$2:D166),"") ->  | I166: =IF(C166<>"",SUM(E$2:E166),"") -> 
H167: =IF(B167<>"",SUM(D$2:D167),"") ->  | I167: =IF(C167<>"",SUM(E$2:E167),"") -> 
H168: =IF(B168<>"",SUM(D$2:D168),"") ->  | I168: =IF(C168<>"",SUM(E$2:E168),"") -> 
H169: =IF(B169<>"",SUM(D$2:D169),"") ->  | I169: =IF(C169<>"",SUM(E$2:E169),"") -> 
H170: =IF(B170<>"",SUM(D$2:D170),"") ->  | I170: =IF(C170<>"",SUM(E$2:E170),"") -> 
H171: =IF(B171<>"",SUM(D$2:D171),"") ->  | I171: =IF(C171<>"",SUM(E$2:E171),"") -> 
H172: =IF(B172<>"",SUM(D$2:D172),"") ->  | I172: =IF(C172<>"",SUM(E$2:E172),"") -> 
H173: =IF(B173<>"",SUM(D$2:D173),"") ->  | I173: =IF(C173<>"",SUM(E$2:E173),"") -> 
H174: =IF(B174<>"",SUM(D$2:D174),"") ->  | I174: =IF(C174<>"",SUM(E$2:E174),"") -> 
H175: =IF(B175<>"",SUM(D$2:D175),"") ->  | I175: =IF(C175<>"",SUM(E$2:E175),"") -> 
H176: =IF(B176<>"",SUM(D$2:D176),"") ->  | I176: =IF(C176<>"",SUM(E$2:E176),"") -> 
H177: =IF(B177<>"",SUM(D$2:D177),"") ->  | I177: =IF(C177<>"",SUM(E$2:E177),"") -> 
H178: =IF(B178<>"",SUM(D$2:D178),"") ->  | I178: =IF(C178<>"",SUM(E$2:E178),"") -> 
H179: =IF(B179<>"",SUM(D$2:D179),"") ->  | I179: =IF(C179<>"",SUM(E$2:E179),"") -> 
H180: =IF(B180<>"",SUM(D$2:D180),"") ->  | I180: =IF(C180<>"",SUM(E$2:E180),"") -> 
H181: =IF(B181<>"",SUM(D$2:D181),"") ->  | I181: =IF(C181<>"",SUM(E$2:E181),"") -> 
H182: =IF(B182<>"",SUM(D$2:D182),"") ->  | I182: =IF(C182<>"",SUM(E$2:E182),"") -> 
H183: =IF(B183<>"",SUM(D$2:D183),"") ->  | I183: =IF(C183<>"",SUM(E$2:E183),"") -> 
H184: =IF(B184<>"",SUM(D$2:D184),"") ->  | I184: =IF(C184<>"",SUM(E$2:E184),"") -> 
H185: =IF(B185<>"",SUM(D$2:D185),"") ->  | I185: =IF(C185<>"",SUM(E$2:E185),"") -> 
H186: =IF(B186<>"",SUM(D$2:D186),"") ->  | I186: =IF(C186<>"",SUM(E$2:E186),"") -> 
H187: =IF(B187<>"",SUM(D$2:D187),"") ->  | I187: =IF(C187<>"",SUM(E$2:E187),"") -> 
H188: =IF(B188<>"",SUM(D$2:D188),"") ->  | I188: =IF(C188<>"",SUM(E$2:E188),"") -> 
H189: =IF(B189<>"",SUM(D$2:D189),"") ->  | I189: =IF(C189<>"",SUM(E$2:E189),"") -> 
H190: =IF(B190<>"",SUM(D$2:D190),"") ->  | I190: =IF(C190<>"",SUM(E$2:E190),"") -> 
H191: =IF(B191<>"",SUM(D$2:D191),"") ->  | I191: =IF(C191<>"",SUM(E$2:E191),"") -> 
H192: =IF(B192<>"",SUM(D$2:D192),"") ->  | I192: =IF(C192<>"",SUM(E$2:E192),"") -> 
H193: =IF(B193<>"",SUM(D$2:D193),"") ->  | I193: =IF(C193<>"",SUM(E$2:E193),"") -> 
H194: =IF(B194<>"",SUM(D$2:D194),"") ->  | I194: =IF(C194<>"",SUM(E$2:E194),"") -> 
H195: =IF(B195<>"",SUM(D$2:D195),"") ->  | I195: =IF(C195<>"",SUM(E$2:E195),"") -> 
H196: =IF(B196<>"",SUM(D$2:D196),"") ->  | I196: =IF(C196<>"",SUM(E$2:E196),"") -> 
H197: =IF(B197<>"",SUM(D$2:D197),"") ->  | I197: =IF(C197<>"",SUM(E$2:E197),"") -> 
D198: =IF(B198<>"",B198/SUM(B$2:B$101),"") ->  | E198: =IF(C198<>"",C198/SUM(C$2:C$101),"") ->  | F198: =IF(B198<>"",D198*$A198,"") ->  | G198: =IF(C198<>"",E198*$A198,"") ->  | H198: =IF(B198<>"",SUM(D$2:D198),"") ->  | I198: =IF(C198<>"",SUM(E$2:E198),"") ->  | J198: =IF(B198<>"",ABS(I198-H198),"") -> 
H199: =IF(B199<>"",SUM(D$2:D199),"") ->  | I199: =IF(C199<>"",SUM(E$2:E199),"") -> 
H200: =IF(B200<>"",SUM(D$2:D200),"") ->  | I200: =IF(C200<>"",SUM(E$2:E200),"") -> 
... 825 more rows

Sheet 1-2-sample proportion
A1: x(1) | B1: 77 | D1: n(1) | E1: 100 | G1: proportion=x/n | I1: x(1) | J1: 30 | L1: n(1) | M1: 114 | O1: Written by Peter Nagy
A2: x(2) | B2: 64 | D2: n(2) | E2: 100 | I2: assumed proprotion | J2: 0.4 | O2: peter.v.nagy@gmail.com
A4: sidedness | B4: 2 | I4: sidedness | J4: 2
A5: alpha | B5: 0.05 | I5: alpha | J5: 0.05
A7: proportion(1) | B7: =B1/E1 -> 0.77 | I7: proportion(1) | J7: =J1/M1 -> 0.2631578947
A8: proportion(2) | B8: =B2/E2 -> 0.64
A9: proportion(pooled) | B9: =(B1+B2)/(E1+E2) -> 0.705
A11: SD(pooled) | B11: =SQRT(B9*(1-B9)/E1+B9*(1-B9)/E2) -> 0.06449418578 | I11: SD | J11: =SQRT(J7*(1-J7)/M1) -> 0.04124231105
A12: z | B12: =ABS((B7-B8)/B11) -> 2.015685576 | I12: z | J12: =ABS(J7-J2)/J11 -> 3.318002842
A14: z(critical) | B14: =-_xlfn.NORM.S.INV(B5/B4) -> 1.959963985 | I14: z(critical) | J14: =-_xlfn.NORM.S.INV(J5/J4) -> 1.959963985
A15: p | B15: =(1-_xlfn.NORM.DIST(B12,0,1,1))*B4 -> 0.04383286488 | I15: p | J15: =(1-_xlfn.NORM.DIST(J12,0,1,1))*J4 -> 0.0009066356209
A17: two-sample test | I17: one-sample test

Sheet Marascuilo
A1: Sample ID | B1: Proportion | C1: Sample size | G1: Abs(difference in proportion) | H1: p value
A2: 1 | B2: 0.45 | C2: 300 | D2: Written by Peter Nagy | F2: Sample 1 vs. Sample 2 | G2: 0.05 | H2: 0.8253054269
A3: 2 | B3: 0.5 | C3: 300 | D3: peter.v.nagy@gmail.com | F3: Sample 1 vs. Sample 3 | G3: 0.32 | H3: 3.85881904e-15
A4: 3 | B4: 0.13 | C4: 200 | D4: Run the test with CTRL-P. | F4: Sample 1 vs. Sample 4 | G4: 0.23 | H4: 2.11539757e-05
A5: 4 | B5: 0.22 | C5: 150 | F5: Sample 1 vs. Sample 5 | G5: 0.22 | H5: 1.086409328e-05
A6: 5 | B6: 0.23 | C6: 200 | D6: Level of significance | F6: Sample 2 vs. Sample 3 | G6: 0.37 | H6: 2.797598904e-20
A7: 6 | D7: 0.05 | F7: Sample 2 vs. Sample 4 | G7: 0.28 | H7: 5.114807929e-08
A8: 7 | F8: Sample 2 vs. Sample 5 | G8: 0.27 | H8: 1.369998621e-08
A9: 8 | F9: Sample 3 vs. Sample 4 | G9: 0.09 | H9: 0.3152264402
A10: 9 | F10: Sample 3 vs. Sample 5 | G10: 0.1 | H10: 0.1417178463
A11: 10 | F11: Sample 4 vs. Sample 5 | G11: 0.01 | H11: 0.9997014575
A12: 11
A13: 12
A14: 13
A15: 14
A16: 15
A17: 16
A18: 17
A19: 18
A20: 19
A21: 20
A22: 21
A23: 22
A24: 23
A25: 24
A26: 25
A27: 26
A28: 27
A29: 28
A30: 29
A31: 30
A32: 31
A33: 32
A34: 33
A35: 34
A36: 35
A37: 36
A38: 37
A39: 38
A40: 39
A41: 40
A42: 41
A43: 42
A44: 43
A45: 44
A46: 45
A47: 46
A48: 47
A49: 48
A50: 49
A51: 50
A52: 51
A53: 52
A54: 53
A55: 54
A56: 55
A57: 56
A58: 57
A59: 58
A60: 59
A61: 60
A62: 61
A63: 62
A64: 63
A65: 64
A66: 65
A67: 66
A68: 67
A69: 68
A70: 69
A71: 70
A72: 71
A73: 72
A74: 73
A75: 74
A76: 75
A77: 76
A78: 77
A79: 78
A80: 79
A81: 80
A82: 81
A83: 82
A84: 83
A85: 84
A86: 85
A87: 86
A88: 87
A89: 88
A90: 89
A91: 90
A92: 91
A93: 92
A94: 93
A95: 94
A96: 95
A97: 96
A98: 97
A99: 98
A100: 99
A101: 100

Sheet Wilcoxon
A1: Sample | B1: d | C1: |d| | D1: Rank of |d| | E1: Signed rank of |d| | J1: Basic and Clinical Biostatistics
A2: 12 | B2: =IF(A2<>"",A2-$H$2,"") -> 12 | C2: =IF(A2<>"",ABS(B2),"") -> 12 | D2: =IF(A2<>"",_xlfn.RANK.AVG(C2,C$2:C$31,1),"") -> 5.5 | E2: =IF(A2<>"",SIGN(B2)*D2,"") -> 5.5 | G2: assumed mean | H2: 0 | J2: Assuming approximate t distribution
A3: 7 | B3: 7 | C3: =IF(A3<>"",ABS(B3),"") -> 7 | D3: =IF(A3<>"",_xlfn.RANK.AVG(C3,C$2:C$31,1),"") -> 3 | E3: =IF(A3<>"",SIGN(B3)*D3,"") -> 3 | G3: sidedness | H3: 1
A4: 12 | B4: 12 | C4: 12 | D4: 5.5 | E4: 5.5 | J4: Written by Peter Nagy
A5: 8 | B5: 8 | C5: 8 | D5: 4 | E5: 4 | G5: Mean of signed rank of |d| | H5: =AVERAGE(E2:E31) -> 4.5 | J5: peter.v.nagy@gmail.com
A6: 3 | B6: 3 | C6: 3 | D6: 1 | E6: 1 | G6: SD of signed rank of |d| | H6: =_xlfn.STDEV.S(E2:E31) -> 2.434865793
A7: 19 | B7: 19 | C7: 19 | D7: 8 | E7: 8 | G7: n | H7: =COUNT(A2:A31) -> 8
A8: 4 | B8: 4 | C8: 4 | D8: 2 | E8: 2
A9: 16 | B9: 16 | C9: 16 | D9: 7 | E9: 7 | G9: t | H9: =H5/(H6/SQRT(H7)) -> 5.227360826
G10: p | H10: =_xlfn.T.DIST.RT(ABS(H9),H7-1)*H3 -> 0.0006079789625

Sheet Sign test
A1: Sample 1 | B1: Sample 2 | C1: Sample 1<Sample 2 | J1: Written by Peter Nagy
A2: 33 | B2: 33 | C2: =IF(OR(AND(A2<>"",B2=""),AND(A2="",B2<>"")),"error",IF(AND(A2="",B2=""),"",IF(B2=A2,"0",IF(B2>A2,"+","-")))) -> 0 | F2: Mean 1 | G2: =AVERAGE(A2:A101) -> 36.375 | J2: peter.v.nagy@gmail.com
A3: 43 | B3: 44 | C3: + | F3: Mean 2 | G3: =AVERAGE(B2:B101) -> 41.25
A4: 34 | B4: 47 | C4: +
A5: 42 | B5: 43 | C5: + | F5: Assumed median | G5: 33
A6: 35 | B6: 49 | C6: +
A7: 36 | B7: 36 | C7: 0 | F7: # of + and - | G7: =COUNTIF(C2:C101,"+")+COUNTIF(C2:C101,"-") -> 6
A8: 33 | B8: 44 | C8: + | F8: # of + | G8: =COUNTIF(C2:C101,"+") -> 5
A9: 35 | B9: 34 | C9: - | F9: # of - | G9: =COUNTIF(C2:C101,"-") -> 1
F11: p for H0: sample 1<assumed mean | G11: =1-G12 -> 0.109375
F12: p for H0: sample 1>assumed mean | G12: =IF(G8>0,_xlfn.BINOM.DIST(G8-1,G7,0.5,TRUE),_xlfn.BINOM.DIST(G8,G7,0.5,TRUE)) -> 0.890625
F13: p for H0: sample 1=sample 2 | G13: =MIN(G11:G12)*2 -> 0.21875
F15: p for H0: sample 1<sample 2 | G15: =1-G16 -> 0.109375
F16: p for H0: sample 1>sample 2 | G16: =IF(G8>0,_xlfn.BINOM.DIST(G8-1,G7,0.5,TRUE),_xlfn.BINOM.DIST(G8,G7,0.5,TRUE)) -> 0.890625
F17: p for H0: sample 1=sample 2 | G17: =MIN(G15:G16)*2 -> 0.21875
C34: =IF(OR(AND(A34<>"",B34=""),AND(A34="",B34<>"")),"error",IF(AND(A34="",B34=""),"",IF(B34=A34,"0",IF(B34>A34,"+","-")))) -> 
C66: =IF(OR(AND(A66<>"",B66=""),AND(A66="",B66<>"")),"error",IF(AND(A66="",B66=""),"",IF(B66=A66,"0",IF(B66>A66,"+","-")))) -> 
C98: =IF(OR(AND(A98<>"",B98=""),AND(A98="",B98<>"")),"error",IF(AND(A98="",B98=""),"",IF(B98=A98,"0",IF(B98>A98,"+","-")))) -> 

Sheet Median test
A1: Sample 1 | B1: Sample 2 | C1: Sample 3 | D1: Sample 4 | M1: Written by Peter Nagy
A2: 35 | B2: 29 | G2: Median 1 | H2: =MEDIAN(A2:A101) -> 27 | M2: peter.v.nagy@gmail.com
A3: 26 | B3: 50 | G3: Median 2 | H3: =MEDIAN(B2:B101) -> 39.5
A4: 27 | B4: 43 | G4: Median 3 | H4: =MEDIAN(C2:C101) -> 
A5: 21 | B5: 22 | G5: Median 4 | H5: =MEDIAN(D2:D101) -> 
A6: 27 | B6: 42 | G6: Common median | H6: =MEDIAN(A2:D101) -> 33.5
A7: 38 | B7: 47 | G7: # of samples | H7: 2
A8: 23 | B8: 42
A9: 25 | B9: 32 | G9: observed | H9: Sample 1 | I9: Sample 2 | J9: Sample 3 | K9: Sample 4 | L9: SUM
A10: 25 | B10: 50 | G10: <= common median | H10: =IF(COUNT(A$2:A$101)<>0,COUNTIF(A$2:A$101,"<="&$H$6),"") -> 10 | I10: =IF(COUNT(B$2:B$101)<>0,COUNTIF(B$2:B$101,"<="&$H$6),"") -> 4 | L10: =SUM(H10:K10) -> 14
A11: 27 | B11: 37 | G11: > common median | H11: =IF(COUNT(A$2:A$101)<>0,COUNTIF(A$2:A$101,">"&$H$6),"") -> 6 | I11: =IF(COUNT(B$2:B$101)<>0,COUNTIF(B$2:B$101,">"&$H$6),"") -> 8 | L11: =SUM(H11:K11) -> 14
A12: 45 | B12: 34 | G12: SUM | H12: =SUM(H10:H11) -> 16 | I12: =SUM(I10:I11) -> 12 | J12: =SUM(J10:J11) -> 0 | K12: =SUM(K10:K11) -> 0 | L12: =SUM(H12:K12) -> 28
A13: 46 | B13: 31
A14: 33 | G14: expected | H14: Sample 1 | I14: Sample 2 | J14: Sample 3 | K14: Sample 4
A15: 26 | G15: <= common median | H15: =IF(H10<>"",H$12*$L10/$L$12,"") -> 8 | I15: 6
A16: 46 | G16: > common median | H16: 8 | I16: 6
A17: 41
G18: c2 | H18: Sample 1 | I18: Sample 2 | J18: Sample 3 | K18: Sample 4
G19: <= common median | H19: =IF(H10<>"",(H15-H10)^2/H15,"") -> 0.5 | I19: 0.6666666667
G20: > common median | H20: 0.5 | I20: 0.6666666667
G23: chi2 | H23: =SUM(OFFSET(H19,0,0,2,H7)) -> 2.333333333
G25: p | H25: =_xlfn.CHISQ.DIST.RT(H23,1) -> 0.1266304579

Sheet Mann-Whitney
A1: Sample 1 | B1: Sample 2 | C1: Common rank for 1 | D1: Common rank for 2 | J1: Basic and Clinical Biostatistics
A2: 263 | B2: 60 | C2: =IF(A2<>"",_xlfn.RANK.AVG(A2,$A$2:$B$31,1),"") -> 13 | D2: =IF(B2<>"",_xlfn.RANK.AVG(B2,$A$2:$B$31,1),"") -> 4 | F2: mean(rank1) | G2: =AVERAGE(C2:C31) -> 17.875 | J2: Assuming approximate t distribution
A3: 288 | B3: 119 | C3: =IF(A3<>"",_xlfn.RANK.AVG(A3,$A$2:$B$31,1),"") -> 17 | D3: 6 | F3: mean(rank2) | G3: =AVERAGE(D2:D31) -> 10
A4: 432 | B4: 153 | C4: 20 | D4: 10 | J4: Written by Peter Nagy
A5: 890 | B5: 588 | C5: 27 | D5: 25 | F5: SD(rank1) | G5: =_xlfn.STDEV.S(C2:C31) -> 6.130524719 | J5: peter.v.nagy@gmail.com
A6: 450 | B6: 124 | C6: 21 | D6: 8 | F6: SD(rank2) | G6: =_xlfn.STDEV.S(D2:D31) -> 8.728219646
A7: 1270 | B7: 196 | C7: 28 | D7: 11
A8: 220 | B8: 14 | C8: 12 | D8: 1 | F8: n(sample 1) | G8: =COUNT(A2:A31) -> 16
A9: 350 | B9: 23 | C9: 18 | D9: 2 | F9: n(sample 2) | G9: =COUNT(B2:B31) -> 12
A10: 283 | B10: 43 | C10: 15 | D10: 3
A11: 274 | B11: 854 | C11: 14 | D11: 26 | F11: pooled SD | G11: =SQRT(((G8-1)*G5^2+(G9-1)*G6^2)/G14) -> 7.342578671
A12: 580 | B12: 400 | C12: 24 | D12: 19
A13: 285 | B13: 73 | C13: 16 | D13: 5 | F13: t | G13: =ABS((G2-G3)/(G11*SQRT(1/G8+1/G9))) -> 2.808494339
A14: 524 | C14: 23 | F14: df | G14: =G8+G9-2 -> 26
A15: 135 | C15: 9
A16: 500 | C16: 22 | F16: p | G16: =_xlfn.T.DIST.RT(G13,G14)*G18 -> 0.004659778449
A17: 120 | C17: 7
F18: sidedness | G18: 1

Sheet Levene
A1: Written by Peter Nagy | C1: SDs | D1: =IF(D3<>"",_xlfn.STDEV.S(D3:D102),"") -> 1.67616342 | E1: =IF(E3<>"",_xlfn.STDEV.S(E3:E102),"") -> 11.61751551 | F1: 1.211060142
A2: peter.v.nagy@gmail.com | D2: Group 1 | E2: Group 2 | F2: Group 3 | G2: Group 4 | H2: Group 5 | I2: Group 6 | J2: Group 7 | K2: Group 8 | L2: Group 9 | M2: Group 10 | N2: Group 11 | O2: Group 12 | P2: Group 13 | Q2: Group 14 | R2: Group 15 | S2: Group 16 | T2: Group 17 | U2: Group 18 | V2: Group 19 | W2: Group 20 | X2: Group 21 | Y2: Group 22 | Z2: Group 23 | AA2: Group 24 | AB2: Group 25 | AC2: Group 26 | AD2: Group 27 | AE2: Group 28 | AF2: Group 29 | AG2: Group 30 | AH2: Group 31 | AI2: Group 32
A3: Total number of elements | C3: Data point # 1 | D3: 2 | E3: 4 | F3: 6
A4: =COUNT(Levene_sample) -> 19 | C4: Data point # 2 | D4: 3 | E4: 3 | F4: 4
C5: Data point # 3 | D5: 1 | E5: 10 | F5: 7
A6: Number of groups | C6: Data point # 4 | D6: 4 | E6: 33 | F6: 5
A7: =COUNT(D3:AI3) -> 3 | C7: Data point # 5 | D7: 2 | E7: 5 | F7: 4
C8: Data point # 6 | D8: 4 | E8: 4 | F8: 6
A9: W | C9: Data point # 7 | D9: 6
A10: =(A4-A7)*D110/((A7-1)*D111) -> 1.325370713 | C10: Data point # 8
C11: Data point # 9
A12: p | C12: Data point # 10
A13: =_xlfn.F.DIST.RT(A10,A7-1,A4-A7) -> 0.2933533503 | C13: Data point # 11
C14: Data point # 12
C15: Data point # 13
C16: Data point # 14
C17: Data point # 15
C18: Data point # 16
C19: Data point # 17
C20: Data point # 18
C21: Data point # 19
C22: Data point # 20
C23: Data point # 21
C24: Data point # 22
C25: Data point # 23
C26: Data point # 24
C27: Data point # 25
C28: Data point # 26
C29: Data point # 27
C30: Data point # 28
C31: Data point # 29
C32: Data point # 30
C33: Data point # 31
C34: Data point # 32
C35: Data point # 33
C36: Data point # 34
C37: Data point # 35
C38: Data point # 36
C39: Data point # 37
C40: Data point # 38
C41: Data point # 39
C42: Data point # 40
C43: Data point # 41
C44: Data point # 42
C45: Data point # 43
C46: Data point # 44
C47: Data point # 45
C48: Data point # 46
C49: Data point # 47
C50: Data point # 48
C51: Data point # 49
C52: Data point # 50
C53: Data point # 51
C54: Data point # 52
C55: Data point # 53
C56: Data point # 54
C57: Data point # 55
C58: Data point # 56
C59: Data point # 57
C60: Data point # 58
C61: Data point # 59
C62: Data point # 60
C63: Data point # 61
C64: Data point # 62
C65: Data point # 63
C66: Data point # 64
C67: Data point # 65
C68: Data point # 66
C69: Data point # 67
C70: Data point # 68
C71: Data point # 69
C72: Data point # 70
C73: Data point # 71
C74: Data point # 72
C75: Data point # 73
C76: Data point # 74
C77: Data point # 75
C78: Data point # 76
C79: Data point # 77
C80: Data point # 78
C81: Data point # 79
C82: Data point # 80
C83: Data point # 81
C84: Data point # 82
C85: Data point # 83
C86: Data point # 84
C87: Data point # 85
C88: Data point # 86
C89: Data point # 87
C90: Data point # 88
C91: Data point # 89
C92: Data point # 90
C93: Data point # 91
C94: Data point # 92
C95: Data point # 93
C96: Data point # 94
C97: Data point # 95
C98: Data point # 96
C99: Data point # 97
C100: Data point # 98
C101: Data point # 99
C102: Data point # 100
C104: # of data points | D104: =IF(D3<>"",COUNT(D3:D102),"") -> 7 | E104: =IF(E3<>"",COUNT(E3:E102),"") -> 6 | F104: 6
C105: group means | D105: =IF(D3<>"",MEDIAN(D3:D102),"") -> 3 | E105: =IF(E3<>"",MEDIAN(E3:E102),"") -> 4.5 | F105: 5.5
C106: group Z means | D106: =IF(D3<>"",AVERAGE(D113:D212),"") -> 1.285714286 | E106: =IF(E3<>"",AVERAGE(E114:E213),"") -> 6.166666667 | F106: 1
C107: grand Z mean | D107: =AVERAGE(D114:AI213) -> 2.736842105
C109: N (Zi-<Z>)^2 | D109: =IF(D3<>"",D104*(D106-$D$107)^2,"") -> 14.74040364 | E109: =IF(E3<>"",E104*(E106-$D$107)^2,"") -> 70.58217913 | F109: 18.09972299
C110: SUM(N (Zi-<Z>)^2) | D110: =SUM(D109:AI109) -> 103.4223058
C111: SUM(Zij-Zi)^2 | D111: =SUM(D216:AI315) -> 624.2619048
C113: Z table | D113: Group 1 | E113: Group 2 | F113: Group 3 | G113: Group 4 | H113: Group 5 | I113: Group 6 | J113: Group 7 | K113: Group 8 | L113: Group 9 | M113: Group 10 | N113: Group 11 | O113: Group 12 | P113: Group 13 | Q113: Group 14 | R113: Group 15 | S113: Group 16 | T113: Group 17 | U113: Group 18 | V113: Group 19 | W113: Group 20 | X113: Group 21 | Y113: Group 22 | Z113: Group 23 | AA113: Group 24 | AB113: Group 25 | AC113: Group 26 | AD113: Group 27 | AE113: Group 28 | AF113: Group 29 | AG113: Group 30 | AH113: Group 31 | AI113: Group 32
C114: Data point # 1 | D114: =IF(D3<>"",ABS(D3-D$105),"") -> 1 | E114: =IF(E3<>"",ABS(E3-E$105),"") -> 0.5 | F114: =IF(F3<>"",ABS(F3-F$105),"") -> 0.5
C115: Data point # 2 | D115: =IF(D4<>"",ABS(D4-D$105),"") -> 0 | E115: 1.5 | F115: 1.5
C116: Data point # 3 | D116: =IF(D5<>"",ABS(D5-D$105),"") -> 2 | E116: 5.5 | F116: 1.5
C117: Data point # 4 | D117: =IF(D6<>"",ABS(D6-D$105),"") -> 1 | E117: 28.5 | F117: 0.5
C118: Data point # 5 | D118: =IF(D7<>"",ABS(D7-D$105),"") -> 1 | E118: 0.5 | F118: 1.5
C119: Data point # 6 | D119: =IF(D8<>"",ABS(D8-D$105),"") -> 1 | E119: 0.5 | F119: 0.5
C120: Data point # 7 | D120: =IF(D9<>"",ABS(D9-D$105),"") -> 3
C121: Data point # 8 | D121: =IF(D10<>"",ABS(D10-D$105),"") -> 
C122: Data point # 9 | D122: =IF(D11<>"",ABS(D11-D$105),"") -> 
C123: Data point # 10 | D123: =IF(D12<>"",ABS(D12-D$105),"") -> 
C124: Data point # 11 | D124: =IF(D13<>"",ABS(D13-D$105),"") -> 
C125: Data point # 12 | D125: =IF(D14<>"",ABS(D14-D$105),"") -> 
C126: Data point # 13 | D126: =IF(D15<>"",ABS(D15-D$105),"") -> 
C127: Data point # 14 | D127: =IF(D16<>"",ABS(D16-D$105),"") -> 
C128: Data point # 15 | D128: =IF(D17<>"",ABS(D17-D$105),"") -> 
C129: Data point # 16 | D129: =IF(D18<>"",ABS(D18-D$105),"") -> 
C130: Data point # 17 | D130: =IF(D19<>"",ABS(D19-D$105),"") -> 
C131: Data point # 18 | D131: =IF(D20<>"",ABS(D20-D$105),"") -> 
C132: Data point # 19 | D132: =IF(D21<>"",ABS(D21-D$105),"") -> 
C133: Data point # 20 | D133: =IF(D22<>"",ABS(D22-D$105),"") -> 
C134: Data point # 21 | D134: =IF(D23<>"",ABS(D23-D$105),"") -> 
C135: Data point # 22 | D135: =IF(D24<>"",ABS(D24-D$105),"") -> 
C136: Data point # 23 | D136: =IF(D25<>"",ABS(D25-D$105),"") -> 
C137: Data point # 24 | D137: =IF(D26<>"",ABS(D26-D$105),"") -> 
C138: Data point # 25 | D138: =IF(D27<>"",ABS(D27-D$105),"") -> 
C139: Data point # 26 | D139: =IF(D28<>"",ABS(D28-D$105),"") -> 
C140: Data point # 27 | D140: =IF(D29<>"",ABS(D29-D$105),"") -> 
C141: Data point # 28 | D141: =IF(D30<>"",ABS(D30-D$105),"") -> 
C142: Data point # 29 | D142: =IF(D31<>"",ABS(D31-D$105),"") -> 
C143: Data point # 30 | D143: =IF(D32<>"",ABS(D32-D$105),"") -> 
C144: Data point # 31 | D144: =IF(D33<>"",ABS(D33-D$105),"") -> 
C145: Data point # 32 | D145: =IF(D34<>"",ABS(D34-D$105),"") -> 
C146: Data point # 33 | D146: =IF(D35<>"",ABS(D35-D$105),"") -> 
C147: Data point # 34 | D147: =IF(D36<>"",ABS(D36-D$105),"") -> 
C148: Data point # 35 | D148: =IF(D37<>"",ABS(D37-D$105),"") -> 
C149: Data point # 36 | D149: =IF(D38<>"",ABS(D38-D$105),"") -> 
C150: Data point # 37 | D150: =IF(D39<>"",ABS(D39-D$105),"") -> 
C151: Data point # 38 | D151: =IF(D40<>"",ABS(D40-D$105),"") -> 
C152: Data point # 39 | D152: =IF(D41<>"",ABS(D41-D$105),"") -> 
C153: Data point # 40 | D153: =IF(D42<>"",ABS(D42-D$105),"") -> 
C154: Data point # 41 | D154: =IF(D43<>"",ABS(D43-D$105),"") -> 
C155: Data point # 42 | D155: =IF(D44<>"",ABS(D44-D$105),"") -> 
C156: Data point # 43 | D156: =IF(D45<>"",ABS(D45-D$105),"") -> 
C157: Data point # 44 | D157: =IF(D46<>"",ABS(D46-D$105),"") -> 
C158: Data point # 45 | D158: =IF(D47<>"",ABS(D47-D$105),"") -> 
C159: Data point # 46 | D159: =IF(D48<>"",ABS(D48-D$105),"") -> 
C160: Data point # 47 | D160: =IF(D49<>"",ABS(D49-D$105),"") -> 
C161: Data point # 48 | D161: =IF(D50<>"",ABS(D50-D$105),"") -> 
C162: Data point # 49 | D162: =IF(D51<>"",ABS(D51-D$105),"") -> 
C163: Data point # 50 | D163: =IF(D52<>"",ABS(D52-D$105),"") -> 
C164: Data point # 51 | D164: =IF(D53<>"",ABS(D53-D$105),"") -> 
C165: Data point # 52 | D165: =IF(D54<>"",ABS(D54-D$105),"") -> 
C166: Data point # 53 | D166: =IF(D55<>"",ABS(D55-D$105),"") -> 
C167: Data point # 54 | D167: =IF(D56<>"",ABS(D56-D$105),"") -> 
C168: Data point # 55 | D168: =IF(D57<>"",ABS(D57-D$105),"") -> 
C169: Data point # 56 | D169: =IF(D58<>"",ABS(D58-D$105),"") -> 
C170: Data point # 57 | D170: =IF(D59<>"",ABS(D59-D$105),"") -> 
C171: Data point # 58 | D171: =IF(D60<>"",ABS(D60-D$105),"") -> 
C172: Data point # 59 | D172: =IF(D61<>"",ABS(D61-D$105),"") -> 
C173: Data point # 60 | D173: =IF(D62<>"",ABS(D62-D$105),"") -> 
C174: Data point # 61 | D174: =IF(D63<>"",ABS(D63-D$105),"") -> 
C175: Data point # 62 | D175: =IF(D64<>"",ABS(D64-D$105),"") -> 
C176: Data point # 63 | D176: =IF(D65<>"",ABS(D65-D$105),"") -> 
C177: Data point # 64 | D177: =IF(D66<>"",ABS(D66-D$105),"") -> 
C178: Data point # 65 | D178: =IF(D67<>"",ABS(D67-D$105),"") -> 
C179: Data point # 66 | D179: =IF(D68<>"",ABS(D68-D$105),"") -> 
C180: Data point # 67 | D180: =IF(D69<>"",ABS(D69-D$105),"") -> 
C181: Data point # 68 | D181: =IF(D70<>"",ABS(D70-D$105),"") -> 
C182: Data point # 69 | D182: =IF(D71<>"",ABS(D71-D$105),"") -> 
C183: Data point # 70 | D183: =IF(D72<>"",ABS(D72-D$105),"") -> 
C184: Data point # 71 | D184: =IF(D73<>"",ABS(D73-D$105),"") -> 
C185: Data point # 72 | D185: =IF(D74<>"",ABS(D74-D$105),"") -> 
C186: Data point # 73 | D186: =IF(D75<>"",ABS(D75-D$105),"") -> 
C187: Data point # 74 | D187: =IF(D76<>"",ABS(D76-D$105),"") -> 
C188: Data point # 75 | D188: =IF(D77<>"",ABS(D77-D$105),"") -> 
C189: Data point # 76 | D189: =IF(D78<>"",ABS(D78-D$105),"") -> 
C190: Data point # 77 | D190: =IF(D79<>"",ABS(D79-D$105),"") -> 
C191: Data point # 78 | D191: =IF(D80<>"",ABS(D80-D$105),"") -> 
C192: Data point # 79 | D192: =IF(D81<>"",ABS(D81-D$105),"") -> 
C193: Data point # 80 | D193: =IF(D82<>"",ABS(D82-D$105),"") -> 
C194: Data point # 81 | D194: =IF(D83<>"",ABS(D83-D$105),"") -> 
C195: Data point # 82 | D195: =IF(D84<>"",ABS(D84-D$105),"") -> 
C196: Data point # 83 | D196: =IF(D85<>"",ABS(D85-D$105),"") -> 
C197: Data point # 84 | D197: =IF(D86<>"",ABS(D86-D$105),"") -> 
C198: Data point # 85 | D198: =IF(D87<>"",ABS(D87-D$105),"") -> 
C199: Data point # 86 | D199: =IF(D88<>"",ABS(D88-D$105),"") -> 
C200: Data point # 87 | D200: =IF(D89<>"",ABS(D89-D$105),"") -> 
C201: Data point # 88 | D201: =IF(D90<>"",ABS(D90-D$105),"") -> 
C202: Data point # 89 | D202: =IF(D91<>"",ABS(D91-D$105),"") -> 
C203: Data point # 90 | D203: =IF(D92<>"",ABS(D92-D$105),"") -> 
... 111 more rows

Sheet 1-way ANOVA
B1: Mean | C1: SD | D1: n | F1: Written by Peter Nagy | I1: SCHEFFÉ | J1: G1 | K1: G2 | L1: G3 | M1: G4 | N1: G5 | O1: G6 | P1: G7 | Q1: G8 | R1: G9 | S1: G10 | T1: G11 | U1: G12 | V1: G13 | W1: G14 | X1: G15 | Y1: G16 | Z1: G17 | AA1: G18 | AB1: G19 | AC1: G20 | AD1: G21 | AE1: G22 | AF1: G23 | AG1: G24 | AH1: G25 | AI1: G26 | AJ1: G27 | AK1: G28 | AL1: G29 | AM1: G30 | AN1: G31 | AO1: G32
A2: Group 1 | B2: 4.666666667 | C2: 1.527525232 | D2: 10 | F2: peter.v.nagy@gmail.com | I2: G1 | K2: =IF(AND(ISNUMBER(B2),ISNUMBER(B3)),IF(ABS(B2-B3)/($G$18*SQRT(1/D2+1/D3))>$G$19,"signif.","not sign."),"n.a.") -> signif. | L2: =IF(AND(ISNUMBER(B2),ISNUMBER(B4)),IF(ABS(B2-B4)/($G$18*SQRT(1/D2+1/D4))>$G$19,"signif.","not sign."),"n.a.") -> not sign. | M2: =IF(AND(ISNUMBER(B2),ISNUMBER(B5)),IF(ABS(B2-B5)/($G$18*SQRT(1/D2+1/D5))>$G$19,"signif.","not sign."),"n.a.") -> not sign. | N2: =IF(AND(ISNUMBER(B2),ISNUMBER(B6)),IF(ABS(B2-B6)/($G$18*SQRT(1/D2+1/D6))>$G$19,"signif.","not sign."),"n.a.") -> n.a. | O2: =IF(AND(ISNUMBER(B2),ISNUMBER(B7)),IF(ABS(B2-B7)/($G$18*SQRT(1/D2+1/D7))>$G$19,"signif.","not sign."),"n.a.") -> n.a. | P2: =IF(AND(ISNUMBER(B2),ISNUMBER(B8)),IF(ABS(B2-B8)/($G$18*SQRT(1/D2+1/D8))>$G$19,"signif.","not sign."),"n.a.") -> n.a. | Q2: =IF(AND(ISNUMBER(B2),ISNUMBER(B9)),IF(ABS(B2-B9)/($G$18*SQRT(1/D2+1/D9))>$G$19,"signif.","not sign."),"n.a.") -> n.a. | R2: =IF(AND(ISNUMBER(B2),ISNUMBER(B10)),IF(ABS(B2-B10)/($G$18*SQRT(1/D2+1/D10))>$G$19,"signif.","not sign."),"n.a.") -> n.a. | S2: =IF(AND(ISNUMBER(B2),ISNUMBER(B11)),IF(ABS(B2-B11)/($G$18*SQRT(1/D2+1/D11))>$G$19,"signif.","not sign."),"n.a.") -> n.a. | T2: =IF(AND(ISNUMBER(B2),ISNUMBER(B12)),IF(ABS(B2-B12)/($G$18*SQRT(1/D2+1/D12))>$G$19,"signif.","not sign."),"n.a.") -> n.a. | U2: =IF(AND(ISNUMBER(B2),ISNUMBER(B13)),IF(ABS(B2-B13)/($G$18*SQRT(1/D2+1/D13))>$G$19,"signif.","not sign."),"n.a.") -> n.a. | V2: =IF(AND(ISNUMBER(B2),ISNUMBER(B14)),IF(ABS(B2-B14)/($G$18*SQRT(1/D2+1/D14))>$G$19,"signif.","not sign."),"n.a.") -> n.a. | W2: =IF(AND(ISNUMBER(B2),ISNUMBER(B15)),IF(ABS(B2-B15)/($G$18*SQRT(1/D2+1/D15))>$G$19,"signif.","not sign."),"n.a.") -> n.a. | X2: =IF(AND(ISNUMBER(B2),ISNUMBER(B16)),IF(ABS(B2-B16)/($G$18*SQRT(1/D2+1/D16))>$G$19,"signif.","not sign."),"n.a.") -> n.a. | Y2: =IF(AND(ISNUMBER(B2),ISNUMBER(B17)),IF(ABS(B2-B17)/($G$18*SQRT(1/D2+1/D17))>$G$19,"signif.","not sign."),"n.a.") -> n.a. | Z2: =IF(AND(ISNUMBER(B2),ISNUMBER(B18)),IF(ABS(B2-B18)/($G$18*SQRT(1/D2+1/D18))>$G$19,"signif.","not sign."),"n.a.") -> n.a. | AA2: =IF(AND(ISNUMBER(B2),ISNUMBER(B19)),IF(ABS(B2-B19)/($G$18*SQRT(1/D2+1/D19))>$G$19,"signif.","not sign."),"n.a.") -> n.a. | AB2: =IF(AND(ISNUMBER(B2),ISNUMBER(B20)),IF(ABS(B2-B20)/($G$18*SQRT(1/D2+1/D20))>$G$19,"signif.","not sign."),"n.a.") -> n.a. | AC2: =IF(AND(ISNUMBER(B2),ISNUMBER(B21)),IF(ABS(B2-B21)/($G$18*SQRT(1/D2+1/D21))>$G$19,"signif.","not sign."),"n.a.") -> n.a. | AD2: =IF(AND(ISNUMBER(B2),ISNUMBER(B22)),IF(ABS(B2-B22)/($G$18*SQRT(1/D2+1/D22))>$G$19,"signif.","not sign."),"n.a.") -> n.a. | AE2: =IF(AND(ISNUMBER(B2),ISNUMBER(B23)),IF(ABS(B2-B23)/($G$18*SQRT(1/D2+1/D23))>$G$19,"signif.","not sign."),"n.a.") -> n.a. | AF2: =IF(AND(ISNUMBER(B2),ISNUMBER(B24)),IF(ABS(B2-B24)/($G$18*SQRT(1/D2+1/D24))>$G$19,"signif.","not sign."),"n.a.") -> n.a. | AG2: =IF(AND(ISNUMBER(B2),ISNUMBER(B25)),IF(ABS(B2-B25)/($G$18*SQRT(1/D2+1/D25))>$G$19,"signif.","not sign."),"n.a.") -> n.a. | AH2: =IF(AND(ISNUMBER(B2),ISNUMBER(B26)),IF(ABS(B2-B26)/($G$18*SQRT(1/D2+1/D26))>$G$19,"signif.","not sign."),"n.a.") -> n.a. | AI2: =IF(AND(ISNUMBER(B2),ISNUMBER(B27)),IF(ABS(B2-B27)/($G$18*SQRT(1/D2+1/D27))>$G$19,"signif.","not sign."),"n.a.") -> n.a. | AJ2: =IF(AND(ISNUMBER(B2),ISNUMBER(B28)),IF(ABS(B2-B28)/($G$18*SQRT(1/D2+1/D28))>$G$19,"signif.","not sign."),"n.a.") -> n.a. | AK2: =IF(AND(ISNUMBER(B2),ISNUMBER(B29)),IF(ABS(B2-B29)/($G$18*SQRT(1/D2+1/D29))>$G$19,"signif.","not sign."),"n.a.") -> n.a. | AL2: =IF(AND(ISNUMBER(B2),ISNUMBER(B30)),IF(ABS(B2-B30)/($G$18*SQRT(1/D2+1/D30))>$G$19,"signif.","not sign."),"n.a.") -> n.a. | AM2: =IF(AND(ISNUMBER(B2),ISNUMBER(B31)),IF(ABS(B2-B31)/($G$18*SQRT(1/D2+1/D31))>$G$19,"signif.","not sign."),"n.a.") -> n.a. | AN2: =IF(AND(ISNUMBER(B2),ISNUMBER(B32)),IF(ABS(B2-B32)/($G$18*SQRT(1/D2+1/D32))>$G$19,"signif.","not sign."),"n.a.") -> n.a. | AO2: =IF(AND(ISNUMBER(B2),ISNUMBER(B33)),IF(ABS(B2-B33)/($G$18*SQRT(1/D2+1/D33))>$G$19,"signif.","not sign."),"n.a.") -> n.a.
A3: Group 2 | B3: 22 | C3: 7 | D3: 10 | I3: G2 | L3: =IF(AND(ISNUMBER(B3),ISNUMBER(B4)),IF(ABS(B3-B4)/($G$18*SQRT(1/D3+1/D4))>$G$19,"signif.","not sign."),"n.a.") -> signif. | M3: =IF(AND(ISNUMBER(B3),ISNUMBER(B5)),IF(ABS(B3-B5)/($G$18*SQRT(1/D3+1/D5))>$G$19,"signif.","not sign."),"n.a.") -> signif. | N3: =IF(AND(ISNUMBER(B3),ISNUMBER(B6)),IF(ABS(B3-B6)/($G$18*SQRT(1/D3+1/D6))>$G$19,"signif.","not sign."),"n.a.") -> n.a. | O3: =IF(AND(ISNUMBER(B3),ISNUMBER(B7)),IF(ABS(B3-B7)/($G$18*SQRT(1/D3+1/D7))>$G$19,"signif.","not sign."),"n.a.") -> n.a. | P3: =IF(AND(ISNUMBER(B3),ISNUMBER(B8)),IF(ABS(B3-B8)/($G$18*SQRT(1/D3+1/D8))>$G$19,"signif.","not sign."),"n.a.") -> n.a. | Q3: =IF(AND(ISNUMBER(B3),ISNUMBER(B9)),IF(ABS(B3-B9)/($G$18*SQRT(1/D3+1/D9))>$G$19,"signif.","not sign."),"n.a.") -> n.a. | R3: =IF(AND(ISNUMBER(B3),ISNUMBER(B10)),IF(ABS(B3-B10)/($G$18*SQRT(1/D3+1/D10))>$G$19,"signif.","not sign."),"n.a.") -> n.a. | S3: =IF(AND(ISNUMBER(B3),ISNUMBER(B11)),IF(ABS(B3-B11)/($G$18*SQRT(1/D3+1/D11))>$G$19,"signif.","not sign."),"n.a.") -> n.a. | T3: =IF(AND(ISNUMBER(B3),ISNUMBER(B12)),IF(ABS(B3-B12)/($G$18*SQRT(1/D3+1/D12))>$G$19,"signif.","not sign."),"n.a.") -> n.a. | U3: =IF(AND(ISNUMBER(B3),ISNUMBER(B13)),IF(ABS(B3-B13)/($G$18*SQRT(1/D3+1/D13))>$G$19,"signif.","not sign."),"n.a.") -> n.a. | V3: =IF(AND(ISNUMBER(B3),ISNUMBER(B14)),IF(ABS(B3-B14)/($G$18*SQRT(1/D3+1/D14))>$G$19,"signif.","not sign."),"n.a.") -> n.a. | W3: =IF(AND(ISNUMBER(B3),ISNUMBER(B15)),IF(ABS(B3-B15)/($G$18*SQRT(1/D3+1/D15))>$G$19,"signif.","not sign."),"n.a.") -> n.a. | X3: =IF(AND(ISNUMBER(B3),ISNUMBER(B16)),IF(ABS(B3-B16)/($G$18*SQRT(1/D3+1/D16))>$G$19,"signif.","not sign."),"n.a.") -> n.a. | Y3: =IF(AND(ISNUMBER(B3),ISNUMBER(B17)),IF(ABS(B3-B17)/($G$18*SQRT(1/D3+1/D17))>$G$19,"signif.","not sign."),"n.a.") -> n.a. | Z3: =IF(AND(ISNUMBER(B3),ISNUMBER(B18)),IF(ABS(B3-B18)/($G$18*SQRT(1/D3+1/D18))>$G$19,"signif.","not sign."),"n.a.") -> n.a. | AA3: =IF(AND(ISNUMBER(B3),ISNUMBER(B19)),IF(ABS(B3-B19)/($G$18*SQRT(1/D3+1/D19))>$G$19,"signif.","not sign."),"n.a.") -> n.a. | AB3: =IF(AND(ISNUMBER(B3),ISNUMBER(B20)),IF(ABS(B3-B20)/($G$18*SQRT(1/D3+1/D20))>$G$19,"signif.","not sign."),"n.a.") -> n.a. | AC3: =IF(AND(ISNUMBER(B3),ISNUMBER(B21)),IF(ABS(B3-B21)/($G$18*SQRT(1/D3+1/D21))>$G$19,"signif.","not sign."),"n.a.") -> n.a. | AD3: =IF(AND(ISNUMBER(B3),ISNUMBER(B22)),IF(ABS(B3-B22)/($G$18*SQRT(1/D3+1/D22))>$G$19,"signif.","not sign."),"n.a.") -> n.a. | AE3: =IF(AND(ISNUMBER(B3),ISNUMBER(B23)),IF(ABS(B3-B23)/($G$18*SQRT(1/D3+1/D23))>$G$19,"signif.","not sign."),"n.a.") -> n.a. | AF3: =IF(AND(ISNUMBER(B3),ISNUMBER(B24)),IF(ABS(B3-B24)/($G$18*SQRT(1/D3+1/D24))>$G$19,"signif.","not sign."),"n.a.") -> n.a. | AG3: =IF(AND(ISNUMBER(B3),ISNUMBER(B25)),IF(ABS(B3-B25)/($G$18*SQRT(1/D3+1/D25))>$G$19,"signif.","not sign."),"n.a.") -> n.a. | AH3: =IF(AND(ISNUMBER(B3),ISNUMBER(B26)),IF(ABS(B3-B26)/($G$18*SQRT(1/D3+1/D26))>$G$19,"signif.","not sign."),"n.a.") -> n.a. | AI3: =IF(AND(ISNUMBER(B3),ISNUMBER(B27)),IF(ABS(B3-B27)/($G$18*SQRT(1/D3+1/D27))>$G$19,"signif.","not sign."),"n.a.") -> n.a. | AJ3: =IF(AND(ISNUMBER(B3),ISNUMBER(B28)),IF(ABS(B3-B28)/($G$18*SQRT(1/D3+1/D28))>$G$19,"signif.","not sign."),"n.a.") -> n.a. | AK3: =IF(AND(ISNUMBER(B3),ISNUMBER(B29)),IF(ABS(B3-B29)/($G$18*SQRT(1/D3+1/D29))>$G$19,"signif.","not sign."),"n.a.") -> n.a. | AL3: =IF(AND(ISNUMBER(B3),ISNUMBER(B30)),IF(ABS(B3-B30)/($G$18*SQRT(1/D3+1/D30))>$G$19,"signif.","not sign."),"n.a.") -> n.a. | AM3: =IF(AND(ISNUMBER(B3),ISNUMBER(B31)),IF(ABS(B3-B31)/($G$18*SQRT(1/D3+1/D31))>$G$19,"signif.","not sign."),"n.a.") -> n.a. | AN3: =IF(AND(ISNUMBER(B3),ISNUMBER(B32)),IF(ABS(B3-B32)/($G$18*SQRT(1/D3+1/D32))>$G$19,"signif.","not sign."),"n.a.") -> n.a. | AO3: =IF(AND(ISNUMBER(B3),ISNUMBER(B33)),IF(ABS(B3-B33)/($G$18*SQRT(1/D3+1/D33))>$G$19,"signif.","not sign."),"n.a.") -> n.a.
A4: Group 3 | B4: 5 | C4: 1 | D4: 9 | F4: Grand mean | G4: =SUMPRODUCT(Means,Numbers)/SUM(Numbers) -> 9.936936937 | I4: G3 | M4: =IF(AND(ISNUMBER(B4),ISNUMBER(B5)),IF(ABS(B4-B5)/($G$18*SQRT(1/D4+1/D5))>$G$19,"signif.","not sign."),"n.a.") -> not sign. | N4: =IF(AND(ISNUMBER(B4),ISNUMBER(B6)),IF(ABS(B4-B6)/($G$18*SQRT(1/D4+1/D6))>$G$19,"signif.","not sign."),"n.a.") -> n.a. | O4: =IF(AND(ISNUMBER(B4),ISNUMBER(B7)),IF(ABS(B4-B7)/($G$18*SQRT(1/D4+1/D7))>$G$19,"signif.","not sign."),"n.a.") -> n.a. | P4: =IF(AND(ISNUMBER(B4),ISNUMBER(B8)),IF(ABS(B4-B8)/($G$18*SQRT(1/D4+1/D8))>$G$19,"signif.","not sign."),"n.a.") -> n.a. | Q4: =IF(AND(ISNUMBER(B4),ISNUMBER(B9)),IF(ABS(B4-B9)/($G$18*SQRT(1/D4+1/D9))>$G$19,"signif.","not sign."),"n.a.") -> n.a. | R4: =IF(AND(ISNUMBER(B4),ISNUMBER(B10)),IF(ABS(B4-B10)/($G$18*SQRT(1/D4+1/D10))>$G$19,"signif.","not sign."),"n.a.") -> n.a. | S4: =IF(AND(ISNUMBER(B4),ISNUMBER(B11)),IF(ABS(B4-B11)/($G$18*SQRT(1/D4+1/D11))>$G$19,"signif.","not sign."),"n.a.") -> n.a. | T4: =IF(AND(ISNUMBER(B4),ISNUMBER(B12)),IF(ABS(B4-B12)/($G$18*SQRT(1/D4+1/D12))>$G$19,"signif.","not sign."),"n.a.") -> n.a. | U4: =IF(AND(ISNUMBER(B4),ISNUMBER(B13)),IF(ABS(B4-B13)/($G$18*SQRT(1/D4+1/D13))>$G$19,"signif.","not sign."),"n.a.") -> n.a. | V4: =IF(AND(ISNUMBER(B4),ISNUMBER(B14)),IF(ABS(B4-B14)/($G$18*SQRT(1/D4+1/D14))>$G$19,"signif.","not sign."),"n.a.") -> n.a. | W4: =IF(AND(ISNUMBER(B4),ISNUMBER(B15)),IF(ABS(B4-B15)/($G$18*SQRT(1/D4+1/D15))>$G$19,"signif.","not sign."),"n.a.") -> n.a. | X4: =IF(AND(ISNUMBER(B4),ISNUMBER(B16)),IF(ABS(B4-B16)/($G$18*SQRT(1/D4+1/D16))>$G$19,"signif.","not sign."),"n.a.") -> n.a. | Y4: =IF(AND(ISNUMBER(B4),ISNUMBER(B17)),IF(ABS(B4-B17)/($G$18*SQRT(1/D4+1/D17))>$G$19,"signif.","not sign."),"n.a.") -> n.a. | Z4: =IF(AND(ISNUMBER(B4),ISNUMBER(B18)),IF(ABS(B4-B18)/($G$18*SQRT(1/D4+1/D18))>$G$19,"signif.","not sign."),"n.a.") -> n.a. | AA4: =IF(AND(ISNUMBER(B4),ISNUMBER(B19)),IF(ABS(B4-B19)/($G$18*SQRT(1/D4+1/D19))>$G$19,"signif.","not sign."),"n.a.") -> n.a. | AB4: =IF(AND(ISNUMBER(B4),ISNUMBER(B20)),IF(ABS(B4-B20)/($G$18*SQRT(1/D4+1/D20))>$G$19,"signif.","not sign."),"n.a.") -> n.a. | AC4: =IF(AND(ISNUMBER(B4),ISNUMBER(B21)),IF(ABS(B4-B21)/($G$18*SQRT(1/D4+1/D21))>$G$19,"signif.","not sign."),"n.a.") -> n.a. | AD4: =IF(AND(ISNUMBER(B4),ISNUMBER(B22)),IF(ABS(B4-B22)/($G$18*SQRT(1/D4+1/D22))>$G$19,"signif.","not sign."),"n.a.") -> n.a. | AE4: =IF(AND(ISNUMBER(B4),ISNUMBER(B23)),IF(ABS(B4-B23)/($G$18*SQRT(1/D4+1/D23))>$G$19,"signif.","not sign."),"n.a.") -> n.a. | AF4: =IF(AND(ISNUMBER(B4),ISNUMBER(B24)),IF(ABS(B4-B24)/($G$18*SQRT(1/D4+1/D24))>$G$19,"signif.","not sign."),"n.a.") -> n.a. | AG4: =IF(AND(ISNUMBER(B4),ISNUMBER(B25)),IF(ABS(B4-B25)/($G$18*SQRT(1/D4+1/D25))>$G$19,"signif.","not sign."),"n.a.") -> n.a. | AH4: =IF(AND(ISNUMBER(B4),ISNUMBER(B26)),IF(ABS(B4-B26)/($G$18*SQRT(1/D4+1/D26))>$G$19,"signif.","not sign."),"n.a.") -> n.a. | AI4: =IF(AND(ISNUMBER(B4),ISNUMBER(B27)),IF(ABS(B4-B27)/($G$18*SQRT(1/D4+1/D27))>$G$19,"signif.","not sign."),"n.a.") -> n.a. | AJ4: =IF(AND(ISNUMBER(B4),ISNUMBER(B28)),IF(ABS(B4-B28)/($G$18*SQRT(1/D4+1/D28))>$G$19,"signif.","not sign."),"n.a.") -> n.a. | AK4: =IF(AND(ISNUMBER(B4),ISNUMBER(B29)),IF(ABS(B4-B29)/($G$18*SQRT(1/D4+1/D29))>$G$19,"signif.","not sign."),"n.a.") -> n.a. | AL4: =IF(AND(ISNUMBER(B4),ISNUMBER(B30)),IF(ABS(B4-B30)/($G$18*SQRT(1/D4+1/D30))>$G$19,"signif.","not sign."),"n.a.") -> n.a. | AM4: =IF(AND(ISNUMBER(B4),ISNUMBER(B31)),IF(ABS(B4-B31)/($G$18*SQRT(1/D4+1/D31))>$G$19,"signif.","not sign."),"n.a.") -> n.a. | AN4: =IF(AND(ISNUMBER(B4),ISNUMBER(B32)),IF(ABS(B4-B32)/($G$18*SQRT(1/D4+1/D32))>$G$19,"signif.","not sign."),"n.a.") -> n.a. | AO4: =IF(AND(ISNUMBER(B4),ISNUMBER(B33)),IF(ABS(B4-B33)/($G$18*SQRT(1/D4+1/D33))>$G$19,"signif.","not sign."),"n.a.") -> n.a.
A5: Group 4 | B5: 7 | C5: 1.527525232 | D5: 8 | F5: Number of groups | G5: =COUNT(Means) -> 4 | I5: G4 | N5: =IF(AND(ISNUMBER(B5),ISNUMBER(B6)),IF(ABS(B5-B6)/($G$18*SQRT(1/D5+1/D6))>$G$19,"signif.","not sign."),"n.a.") -> n.a. | O5: =IF(AND(ISNUMBER(B5),ISNUMBER(B7)),IF(ABS(B5-B7)/($G$18*SQRT(1/D5+1/D7))>$G$19,"signif.","not sign."),"n.a.") -> n.a. | P5: =IF(AND(ISNUMBER(B5),ISNUMBER(B8)),IF(ABS(B5-B8)/($G$18*SQRT(1/D5+1/D8))>$G$19,"signif.","not sign."),"n.a.") -> n.a. | Q5: =IF(AND(ISNUMBER(B5),ISNUMBER(B9)),IF(ABS(B5-B9)/($G$18*SQRT(1/D5+1/D9))>$G$19,"signif.","not sign."),"n.a.") -> n.a. | R5: =IF(AND(ISNUMBER(B5),ISNUMBER(B10)),IF(ABS(B5-B10)/($G$18*SQRT(1/D5+1/D10))>$G$19,"signif.","not sign."),"n.a.") -> n.a. | S5: =IF(AND(ISNUMBER(B5),ISNUMBER(B11)),IF(ABS(B5-B11)/($G$18*SQRT(1/D5+1/D11))>$G$19,"signif.","not sign."),"n.a.") -> n.a. | T5: =IF(AND(ISNUMBER(B5),ISNUMBER(B12)),IF(ABS(B5-B12)/($G$18*SQRT(1/D5+1/D12))>$G$19,"signif.","not sign."),"n.a.") -> n.a. | U5: =IF(AND(ISNUMBER(B5),ISNUMBER(B13)),IF(ABS(B5-B13)/($G$18*SQRT(1/D5+1/D13))>$G$19,"signif.","not sign."),"n.a.") -> n.a. | V5: =IF(AND(ISNUMBER(B5),ISNUMBER(B14)),IF(ABS(B5-B14)/($G$18*SQRT(1/D5+1/D14))>$G$19,"signif.","not sign."),"n.a.") -> n.a. | W5: =IF(AND(ISNUMBER(B5),ISNUMBER(B15)),IF(ABS(B5-B15)/($G$18*SQRT(1/D5+1/D15))>$G$19,"signif.","not sign."),"n.a.") -> n.a. | X5: =IF(AND(ISNUMBER(B5),ISNUMBER(B16)),IF(ABS(B5-B16)/($G$18*SQRT(1/D5+1/D16))>$G$19,"signif.","not sign."),"n.a.") -> n.a. | Y5: =IF(AND(ISNUMBER(B5),ISNUMBER(B17)),IF(ABS(B5-B17)/($G$18*SQRT(1/D5+1/D17))>$G$19,"signif.","not sign."),"n.a.") -> n.a. | Z5: =IF(AND(ISNUMBER(B5),ISNUMBER(B18)),IF(ABS(B5-B18)/($G$18*SQRT(1/D5+1/D18))>$G$19,"signif.","not sign."),"n.a.") -> n.a. | AA5: =IF(AND(ISNUMBER(B5),ISNUMBER(B19)),IF(ABS(B5-B19)/($G$18*SQRT(1/D5+1/D19))>$G$19,"signif.","not sign."),"n.a.") -> n.a. | AB5: =IF(AND(ISNUMBER(B5),ISNUMBER(B20)),IF(ABS(B5-B20)/($G$18*SQRT(1/D5+1/D20))>$G$19,"signif.","not sign."),"n.a.") -> n.a. | AC5: =IF(AND(ISNUMBER(B5),ISNUMBER(B21)),IF(ABS(B5-B21)/($G$18*SQRT(1/D5+1/D21))>$G$19,"signif.","not sign."),"n.a.") -> n.a. | AD5: =IF(AND(ISNUMBER(B5),ISNUMBER(B22)),IF(ABS(B5-B22)/($G$18*SQRT(1/D5+1/D22))>$G$19,"signif.","not sign."),"n.a.") -> n.a. | AE5: =IF(AND(ISNUMBER(B5),ISNUMBER(B23)),IF(ABS(B5-B23)/($G$18*SQRT(1/D5+1/D23))>$G$19,"signif.","not sign."),"n.a.") -> n.a. | AF5: =IF(AND(ISNUMBER(B5),ISNUMBER(B24)),IF(ABS(B5-B24)/($G$18*SQRT(1/D5+1/D24))>$G$19,"signif.","not sign."),"n.a.") -> n.a. | AG5: =IF(AND(ISNUMBER(B5),ISNUMBER(B25)),IF(ABS(B5-B25)/($G$18*SQRT(1/D5+1/D25))>$G$19,"signif.","not sign."),"n.a.") -> n.a. | AH5: =IF(AND(ISNUMBER(B5),ISNUMBER(B26)),IF(ABS(B5-B26)/($G$18*SQRT(1/D5+1/D26))>$G$19,"signif.","not sign."),"n.a.") -> n.a. | AI5: =IF(AND(ISNUMBER(B5),ISNUMBER(B27)),IF(ABS(B5-B27)/($G$18*SQRT(1/D5+1/D27))>$G$19,"signif.","not sign."),"n.a.") -> n.a. | AJ5: =IF(AND(ISNUMBER(B5),ISNUMBER(B28)),IF(ABS(B5-B28)/($G$18*SQRT(1/D5+1/D28))>$G$19,"signif.","not sign."),"n.a.") -> n.a. | AK5: =IF(AND(ISNUMBER(B5),ISNUMBER(B29)),IF(ABS(B5-B29)/($G$18*SQRT(1/D5+1/D29))>$G$19,"signif.","not sign."),"n.a.") -> n.a. | AL5: =IF(AND(ISNUMBER(B5),ISNUMBER(B30)),IF(ABS(B5-B30)/($G$18*SQRT(1/D5+1/D30))>$G$19,"signif.","not sign."),"n.a.") -> n.a. | AM5: =IF(AND(ISNUMBER(B5),ISNUMBER(B31)),IF(ABS(B5-B31)/($G$18*SQRT(1/D5+1/D31))>$G$19,"signif.","not sign."),"n.a.") -> n.a. | AN5: =IF(AND(ISNUMBER(B5),ISNUMBER(B32)),IF(ABS(B5-B32)/($G$18*SQRT(1/D5+1/D32))>$G$19,"signif.","not sign."),"n.a.") -> n.a. | AO5: =IF(AND(ISNUMBER(B5),ISNUMBER(B33)),IF(ABS(B5-B33)/($G$18*SQRT(1/D5+1/D33))>$G$19,"signif.","not sign."),"n.a.") -> n.a.
A6: Group 5 | F6: Total # of elements | G6: =SUM(Numbers) -> 37 | I6: G5 | O6: =IF(AND(ISNUMBER(B6),ISNUMBER(B7)),IF(ABS(B6-B7)/($G$18*SQRT(1/D6+1/D7))>$G$19,"signif.","not sign."),"n.a.") -> n.a. | P6: =IF(AND(ISNUMBER(B6),ISNUMBER(B8)),IF(ABS(B6-B8)/($G$18*SQRT(1/D6+1/D8))>$G$19,"signif.","not sign."),"n.a.") -> n.a. | Q6: =IF(AND(ISNUMBER(B6),ISNUMBER(B9)),IF(ABS(B6-B9)/($G$18*SQRT(1/D6+1/D9))>$G$19,"signif.","not sign."),"n.a.") -> n.a. | R6: =IF(AND(ISNUMBER(B6),ISNUMBER(B10)),IF(ABS(B6-B10)/($G$18*SQRT(1/D6+1/D10))>$G$19,"signif.","not sign."),"n.a.") -> n.a. | S6: =IF(AND(ISNUMBER(B6),ISNUMBER(B11)),IF(ABS(B6-B11)/($G$18*SQRT(1/D6+1/D11))>$G$19,"signif.","not sign."),"n.a.") -> n.a. | T6: =IF(AND(ISNUMBER(B6),ISNUMBER(B12)),IF(ABS(B6-B12)/($G$18*SQRT(1/D6+1/D12))>$G$19,"signif.","not sign."),"n.a.") -> n.a. | U6: =IF(AND(ISNUMBER(B6),ISNUMBER(B13)),IF(ABS(B6-B13)/($G$18*SQRT(1/D6+1/D13))>$G$19,"signif.","not sign."),"n.a.") -> n.a. | V6: =IF(AND(ISNUMBER(B6),ISNUMBER(B14)),IF(ABS(B6-B14)/($G$18*SQRT(1/D6+1/D14))>$G$19,"signif.","not sign."),"n.a.") -> n.a. | W6: =IF(AND(ISNUMBER(B6),ISNUMBER(B15)),IF(ABS(B6-B15)/($G$18*SQRT(1/D6+1/D15))>$G$19,"signif.","not sign."),"n.a.") -> n.a. | X6: =IF(AND(ISNUMBER(B6),ISNUMBER(B16)),IF(ABS(B6-B16)/($G$18*SQRT(1/D6+1/D16))>$G$19,"signif.","not sign."),"n.a.") -> n.a. | Y6: =IF(AND(ISNUMBER(B6),ISNUMBER(B17)),IF(ABS(B6-B17)/($G$18*SQRT(1/D6+1/D17))>$G$19,"signif.","not sign."),"n.a.") -> n.a. | Z6: =IF(AND(ISNUMBER(B6),ISNUMBER(B18)),IF(ABS(B6-B18)/($G$18*SQRT(1/D6+1/D18))>$G$19,"signif.","not sign."),"n.a.") -> n.a. | AA6: =IF(AND(ISNUMBER(B6),ISNUMBER(B19)),IF(ABS(B6-B19)/($G$18*SQRT(1/D6+1/D19))>$G$19,"signif.","not sign."),"n.a.") -> n.a. | AB6: =IF(AND(ISNUMBER(B6),ISNUMBER(B20)),IF(ABS(B6-B20)/($G$18*SQRT(1/D6+1/D20))>$G$19,"signif.","not sign."),"n.a.") -> n.a. | AC6: =IF(AND(ISNUMBER(B6),ISNUMBER(B21)),IF(ABS(B6-B21)/($G$18*SQRT(1/D6+1/D21))>$G$19,"signif.","not sign."),"n.a.") -> n.a. | AD6: =IF(AND(ISNUMBER(B6),ISNUMBER(B22)),IF(ABS(B6-B22)/($G$18*SQRT(1/D6+1/D22))>$G$19,"signif.","not sign."),"n.a.") -> n.a. | AE6: =IF(AND(ISNUMBER(B6),ISNUMBER(B23)),IF(ABS(B6-B23)/($G$18*SQRT(1/D6+1/D23))>$G$19,"signif.","not sign."),"n.a.") -> n.a. | AF6: =IF(AND(ISNUMBER(B6),ISNUMBER(B24)),IF(ABS(B6-B24)/($G$18*SQRT(1/D6+1/D24))>$G$19,"signif.","not sign."),"n.a.") -> n.a. | AG6: =IF(AND(ISNUMBER(B6),ISNUMBER(B25)),IF(ABS(B6-B25)/($G$18*SQRT(1/D6+1/D25))>$G$19,"signif.","not sign."),"n.a.") -> n.a. | AH6: =IF(AND(ISNUMBER(B6),ISNUMBER(B26)),IF(ABS(B6-B26)/($G$18*SQRT(1/D6+1/D26))>$G$19,"signif.","not sign."),"n.a.") -> n.a. | AI6: =IF(AND(ISNUMBER(B6),ISNUMBER(B27)),IF(ABS(B6-B27)/($G$18*SQRT(1/D6+1/D27))>$G$19,"signif.","not sign."),"n.a.") -> n.a. | AJ6: =IF(AND(ISNUMBER(B6),ISNUMBER(B28)),IF(ABS(B6-B28)/($G$18*SQRT(1/D6+1/D28))>$G$19,"signif.","not sign."),"n.a.") -> n.a. | AK6: =IF(AND(ISNUMBER(B6),ISNUMBER(B29)),IF(ABS(B6-B29)/($G$18*SQRT(1/D6+1/D29))>$G$19,"signif.","not sign."),"n.a.") -> n.a. | AL6: =IF(AND(ISNUMBER(B6),ISNUMBER(B30)),IF(ABS(B6-B30)/($G$18*SQRT(1/D6+1/D30))>$G$19,"signif.","not sign."),"n.a.") -> n.a. | AM6: =IF(AND(ISNUMBER(B6),ISNUMBER(B31)),IF(ABS(B6-B31)/($G$18*SQRT(1/D6+1/D31))>$G$19,"signif.","not sign."),"n.a.") -> n.a. | AN6: =IF(AND(ISNUMBER(B6),ISNUMBER(B32)),IF(ABS(B6-B32)/($G$18*SQRT(1/D6+1/D32))>$G$19,"signif.","not sign."),"n.a.") -> n.a. | AO6: =IF(AND(ISNUMBER(B6),ISNUMBER(B33)),IF(ABS(B6-B33)/($G$18*SQRT(1/D6+1/D33))>$G$19,"signif.","not sign."),"n.a.") -> n.a.
A7: Group 6 | F7: SS(total) | G7: =G8+G9 -> 2507.630631 | I7: G6 | P7: =IF(AND(ISNUMBER(B7),ISNUMBER(B8)),IF(ABS(B7-B8)/($G$18*SQRT(1/D7+1/D8))>$G$19,"signif.","not sign."),"n.a.") -> n.a. | Q7: =IF(AND(ISNUMBER(B7),ISNUMBER(B9)),IF(ABS(B7-B9)/($G$18*SQRT(1/D7+1/D9))>$G$19,"signif.","not sign."),"n.a.") -> n.a. | R7: =IF(AND(ISNUMBER(B7),ISNUMBER(B10)),IF(ABS(B7-B10)/($G$18*SQRT(1/D7+1/D10))>$G$19,"signif.","not sign."),"n.a.") -> n.a. | S7: =IF(AND(ISNUMBER(B7),ISNUMBER(B11)),IF(ABS(B7-B11)/($G$18*SQRT(1/D7+1/D11))>$G$19,"signif.","not sign."),"n.a.") -> n.a. | T7: =IF(AND(ISNUMBER(B7),ISNUMBER(B12)),IF(ABS(B7-B12)/($G$18*SQRT(1/D7+1/D12))>$G$19,"signif.","not sign."),"n.a.") -> n.a. | U7: =IF(AND(ISNUMBER(B7),ISNUMBER(B13)),IF(ABS(B7-B13)/($G$18*SQRT(1/D7+1/D13))>$G$19,"signif.","not sign."),"n.a.") -> n.a. | V7: =IF(AND(ISNUMBER(B7),ISNUMBER(B14)),IF(ABS(B7-B14)/($G$18*SQRT(1/D7+1/D14))>$G$19,"signif.","not sign."),"n.a.") -> n.a. | W7: =IF(AND(ISNUMBER(B7),ISNUMBER(B15)),IF(ABS(B7-B15)/($G$18*SQRT(1/D7+1/D15))>$G$19,"signif.","not sign."),"n.a.") -> n.a. | X7: =IF(AND(ISNUMBER(B7),ISNUMBER(B16)),IF(ABS(B7-B16)/($G$18*SQRT(1/D7+1/D16))>$G$19,"signif.","not sign."),"n.a.") -> n.a. | Y7: =IF(AND(ISNUMBER(B7),ISNUMBER(B17)),IF(ABS(B7-B17)/($G$18*SQRT(1/D7+1/D17))>$G$19,"signif.","not sign."),"n.a.") -> n.a. | Z7: =IF(AND(ISNUMBER(B7),ISNUMBER(B18)),IF(ABS(B7-B18)/($G$18*SQRT(1/D7+1/D18))>$G$19,"signif.","not sign."),"n.a.") -> n.a. | AA7: =IF(AND(ISNUMBER(B7),ISNUMBER(B19)),IF(ABS(B7-B19)/($G$18*SQRT(1/D7+1/D19))>$G$19,"signif.","not sign."),"n.a.") -> n.a. | AB7: =IF(AND(ISNUMBER(B7),ISNUMBER(B20)),IF(ABS(B7-B20)/($G$18*SQRT(1/D7+1/D20))>$G$19,"signif.","not sign."),"n.a.") -> n.a. | AC7: =IF(AND(ISNUMBER(B7),ISNUMBER(B21)),IF(ABS(B7-B21)/($G$18*SQRT(1/D7+1/D21))>$G$19,"signif.","not sign."),"n.a.") -> n.a. | AD7: =IF(AND(ISNUMBER(B7),ISNUMBER(B22)),IF(ABS(B7-B22)/($G$18*SQRT(1/D7+1/D22))>$G$19,"signif.","not sign."),"n.a.") -> n.a. | AE7: =IF(AND(ISNUMBER(B7),ISNUMBER(B23)),IF(ABS(B7-B23)/($G$18*SQRT(1/D7+1/D23))>$G$19,"signif.","not sign."),"n.a.") -> n.a. | AF7: =IF(AND(ISNUMBER(B7),ISNUMBER(B24)),IF(ABS(B7-B24)/($G$18*SQRT(1/D7+1/D24))>$G$19,"signif.","not sign."),"n.a.") -> n.a. | AG7: =IF(AND(ISNUMBER(B7),ISNUMBER(B25)),IF(ABS(B7-B25)/($G$18*SQRT(1/D7+1/D25))>$G$19,"signif.","not sign."),"n.a.") -> n.a. | AH7: =IF(AND(ISNUMBER(B7),ISNUMBER(B26)),IF(ABS(B7-B26)/($G$18*SQRT(1/D7+1/D26))>$G$19,"signif.","not sign."),"n.a.") -> n.a. | AI7: =IF(AND(ISNUMBER(B7),ISNUMBER(B27)),IF(ABS(B7-B27)/($G$18*SQRT(1/D7+1/D27))>$G$19,"signif.","not sign."),"n.a.") -> n.a. | AJ7: =IF(AND(ISNUMBER(B7),ISNUMBER(B28)),IF(ABS(B7-B28)/($G$18*SQRT(1/D7+1/D28))>$G$19,"signif.","not sign."),"n.a.") -> n.a. | AK7: =IF(AND(ISNUMBER(B7),ISNUMBER(B29)),IF(ABS(B7-B29)/($G$18*SQRT(1/D7+1/D29))>$G$19,"signif.","not sign."),"n.a.") -> n.a. | AL7: =IF(AND(ISNUMBER(B7),ISNUMBER(B30)),IF(ABS(B7-B30)/($G$18*SQRT(1/D7+1/D30))>$G$19,"signif.","not sign."),"n.a.") -> n.a. | AM7: =IF(AND(ISNUMBER(B7),ISNUMBER(B31)),IF(ABS(B7-B31)/($G$18*SQRT(1/D7+1/D31))>$G$19,"signif.","not sign."),"n.a.") -> n.a. | AN7: =IF(AND(ISNUMBER(B7),ISNUMBER(B32)),IF(ABS(B7-B32)/($G$18*SQRT(1/D7+1/D32))>$G$19,"signif.","not sign."),"n.a.") -> n.a. | AO7: =IF(AND(ISNUMBER(B7),ISNUMBER(B33)),IF(ABS(B7-B33)/($G$18*SQRT(1/D7+1/D33))>$G$19,"signif.","not sign."),"n.a.") -> n.a.
A8: Group 7 | F8: SS(between groups) | G8: =SUM((Means-G4)^2*Numbers) -> 2021.297297 | I8: G7 | Q8: =IF(AND(ISNUMBER(B8),ISNUMBER(B9)),IF(ABS(B8-B9)/($G$18*SQRT(1/D8+1/D9))>$G$19,"signif.","not sign."),"n.a.") -> n.a. | R8: =IF(AND(ISNUMBER(B8),ISNUMBER(B10)),IF(ABS(B8-B10)/($G$18*SQRT(1/D8+1/D10))>$G$19,"signif.","not sign."),"n.a.") -> n.a. | S8: =IF(AND(ISNUMBER(B8),ISNUMBER(B11)),IF(ABS(B8-B11)/($G$18*SQRT(1/D8+1/D11))>$G$19,"signif.","not sign."),"n.a.") -> n.a. | T8: =IF(AND(ISNUMBER(B8),ISNUMBER(B12)),IF(ABS(B8-B12)/($G$18*SQRT(1/D8+1/D12))>$G$19,"signif.","not sign."),"n.a.") -> n.a. | U8: =IF(AND(ISNUMBER(B8),ISNUMBER(B13)),IF(ABS(B8-B13)/($G$18*SQRT(1/D8+1/D13))>$G$19,"signif.","not sign."),"n.a.") -> n.a. | V8: =IF(AND(ISNUMBER(B8),ISNUMBER(B14)),IF(ABS(B8-B14)/($G$18*SQRT(1/D8+1/D14))>$G$19,"signif.","not sign."),"n.a.") -> n.a. | W8: =IF(AND(ISNUMBER(B8),ISNUMBER(B15)),IF(ABS(B8-B15)/($G$18*SQRT(1/D8+1/D15))>$G$19,"signif.","not sign."),"n.a.") -> n.a. | X8: =IF(AND(ISNUMBER(B8),ISNUMBER(B16)),IF(ABS(B8-B16)/($G$18*SQRT(1/D8+1/D16))>$G$19,"signif.","not sign."),"n.a.") -> n.a. | Y8: =IF(AND(ISNUMBER(B8),ISNUMBER(B17)),IF(ABS(B8-B17)/($G$18*SQRT(1/D8+1/D17))>$G$19,"signif.","not sign."),"n.a.") -> n.a. | Z8: =IF(AND(ISNUMBER(B8),ISNUMBER(B18)),IF(ABS(B8-B18)/($G$18*SQRT(1/D8+1/D18))>$G$19,"signif.","not sign."),"n.a.") -> n.a. | AA8: =IF(AND(ISNUMBER(B8),ISNUMBER(B19)),IF(ABS(B8-B19)/($G$18*SQRT(1/D8+1/D19))>$G$19,"signif.","not sign."),"n.a.") -> n.a. | AB8: =IF(AND(ISNUMBER(B8),ISNUMBER(B20)),IF(ABS(B8-B20)/($G$18*SQRT(1/D8+1/D20))>$G$19,"signif.","not sign."),"n.a.") -> n.a. | AC8: =IF(AND(ISNUMBER(B8),ISNUMBER(B21)),IF(ABS(B8-B21)/($G$18*SQRT(1/D8+1/D21))>$G$19,"signif.","not sign."),"n.a.") -> n.a. | AD8: =IF(AND(ISNUMBER(B8),ISNUMBER(B22)),IF(ABS(B8-B22)/($G$18*SQRT(1/D8+1/D22))>$G$19,"signif.","not sign."),"n.a.") -> n.a. | AE8: =IF(AND(ISNUMBER(B8),ISNUMBER(B23)),IF(ABS(B8-B23)/($G$18*SQRT(1/D8+1/D23))>$G$19,"signif.","not sign."),"n.a.") -> n.a. | AF8: =IF(AND(ISNUMBER(B8),ISNUMBER(B24)),IF(ABS(B8-B24)/($G$18*SQRT(1/D8+1/D24))>$G$19,"signif.","not sign."),"n.a.") -> n.a. | AG8: =IF(AND(ISNUMBER(B8),ISNUMBER(B25)),IF(ABS(B8-B25)/($G$18*SQRT(1/D8+1/D25))>$G$19,"signif.","not sign."),"n.a.") -> n.a. | AH8: =IF(AND(ISNUMBER(B8),ISNUMBER(B26)),IF(ABS(B8-B26)/($G$18*SQRT(1/D8+1/D26))>$G$19,"signif.","not sign."),"n.a.") -> n.a. | AI8: =IF(AND(ISNUMBER(B8),ISNUMBER(B27)),IF(ABS(B8-B27)/($G$18*SQRT(1/D8+1/D27))>$G$19,"signif.","not sign."),"n.a.") -> n.a. | AJ8: =IF(AND(ISNUMBER(B8),ISNUMBER(B28)),IF(ABS(B8-B28)/($G$18*SQRT(1/D8+1/D28))>$G$19,"signif.","not sign."),"n.a.") -> n.a. | AK8: =IF(AND(ISNUMBER(B8),ISNUMBER(B29)),IF(ABS(B8-B29)/($G$18*SQRT(1/D8+1/D29))>$G$19,"signif.","not sign."),"n.a.") -> n.a. | AL8: =IF(AND(ISNUMBER(B8),ISNUMBER(B30)),IF(ABS(B8-B30)/($G$18*SQRT(1/D8+1/D30))>$G$19,"signif.","not sign."),"n.a.") -> n.a. | AM8: =IF(AND(ISNUMBER(B8),ISNUMBER(B31)),IF(ABS(B8-B31)/($G$18*SQRT(1/D8+1/D31))>$G$19,"signif.","not sign."),"n.a.") -> n.a. | AN8: =IF(AND(ISNUMBER(B8),ISNUMBER(B32)),IF(ABS(B8-B32)/($G$18*SQRT(1/D8+1/D32))>$G$19,"signif.","not sign."),"n.a.") -> n.a. | AO8: =IF(AND(ISNUMBER(B8),ISNUMBER(B33)),IF(ABS(B8-B33)/($G$18*SQRT(1/D8+1/D33))>$G$19,"signif.","not sign."),"n.a.") -> n.a.
A9: Group 8 | F9: SS(within groups) | G9: =SUM(SDs^2*(Numbers-1)) -> 486.3333333 | I9: G8 | R9: =IF(AND(ISNUMBER(B9),ISNUMBER(B10)),IF(ABS(B9-B10)/($G$18*SQRT(1/D9+1/D10))>$G$19,"signif.","not sign."),"n.a.") -> n.a. | S9: =IF(AND(ISNUMBER(B9),ISNUMBER(B11)),IF(ABS(B9-B11)/($G$18*SQRT(1/D9+1/D11))>$G$19,"signif.","not sign."),"n.a.") -> n.a. | T9: =IF(AND(ISNUMBER(B9),ISNUMBER(B12)),IF(ABS(B9-B12)/($G$18*SQRT(1/D9+1/D12))>$G$19,"signif.","not sign."),"n.a.") -> n.a. | U9: =IF(AND(ISNUMBER(B9),ISNUMBER(B13)),IF(ABS(B9-B13)/($G$18*SQRT(1/D9+1/D13))>$G$19,"signif.","not sign."),"n.a.") -> n.a. | V9: =IF(AND(ISNUMBER(B9),ISNUMBER(B14)),IF(ABS(B9-B14)/($G$18*SQRT(1/D9+1/D14))>$G$19,"signif.","not sign."),"n.a.") -> n.a. | W9: =IF(AND(ISNUMBER(B9),ISNUMBER(B15)),IF(ABS(B9-B15)/($G$18*SQRT(1/D9+1/D15))>$G$19,"signif.","not sign."),"n.a.") -> n.a. | X9: =IF(AND(ISNUMBER(B9),ISNUMBER(B16)),IF(ABS(B9-B16)/($G$18*SQRT(1/D9+1/D16))>$G$19,"signif.","not sign."),"n.a.") -> n.a. | Y9: =IF(AND(ISNUMBER(B9),ISNUMBER(B17)),IF(ABS(B9-B17)/($G$18*SQRT(1/D9+1/D17))>$G$19,"signif.","not sign."),"n.a.") -> n.a. | Z9: =IF(AND(ISNUMBER(B9),ISNUMBER(B18)),IF(ABS(B9-B18)/($G$18*SQRT(1/D9+1/D18))>$G$19,"signif.","not sign."),"n.a.") -> n.a. | AA9: =IF(AND(ISNUMBER(B9),ISNUMBER(B19)),IF(ABS(B9-B19)/($G$18*SQRT(1/D9+1/D19))>$G$19,"signif.","not sign."),"n.a.") -> n.a. | AB9: =IF(AND(ISNUMBER(B9),ISNUMBER(B20)),IF(ABS(B9-B20)/($G$18*SQRT(1/D9+1/D20))>$G$19,"signif.","not sign."),"n.a.") -> n.a. | AC9: =IF(AND(ISNUMBER(B9),ISNUMBER(B21)),IF(ABS(B9-B21)/($G$18*SQRT(1/D9+1/D21))>$G$19,"signif.","not sign."),"n.a.") -> n.a. | AD9: =IF(AND(ISNUMBER(B9),ISNUMBER(B22)),IF(ABS(B9-B22)/($G$18*SQRT(1/D9+1/D22))>$G$19,"signif.","not sign."),"n.a.") -> n.a. | AE9: =IF(AND(ISNUMBER(B9),ISNUMBER(B23)),IF(ABS(B9-B23)/($G$18*SQRT(1/D9+1/D23))>$G$19,"signif.","not sign."),"n.a.") -> n.a. | AF9: =IF(AND(ISNUMBER(B9),ISNUMBER(B24)),IF(ABS(B9-B24)/($G$18*SQRT(1/D9+1/D24))>$G$19,"signif.","not sign."),"n.a.") -> n.a. | AG9: =IF(AND(ISNUMBER(B9),ISNUMBER(B25)),IF(ABS(B9-B25)/($G$18*SQRT(1/D9+1/D25))>$G$19,"signif.","not sign."),"n.a.") -> n.a. | AH9: =IF(AND(ISNUMBER(B9),ISNUMBER(B26)),IF(ABS(B9-B26)/($G$18*SQRT(1/D9+1/D26))>$G$19,"signif.","not sign."),"n.a.") -> n.a. | AI9: =IF(AND(ISNUMBER(B9),ISNUMBER(B27)),IF(ABS(B9-B27)/($G$18*SQRT(1/D9+1/D27))>$G$19,"signif.","not sign."),"n.a.") -> n.a. | AJ9: =IF(AND(ISNUMBER(B9),ISNUMBER(B28)),IF(ABS(B9-B28)/($G$18*SQRT(1/D9+1/D28))>$G$19,"signif.","not sign."),"n.a.") -> n.a. | AK9: =IF(AND(ISNUMBER(B9),ISNUMBER(B29)),IF(ABS(B9-B29)/($G$18*SQRT(1/D9+1/D29))>$G$19,"signif.","not sign."),"n.a.") -> n.a. | AL9: =IF(AND(ISNUMBER(B9),ISNUMBER(B30)),IF(ABS(B9-B30)/($G$18*SQRT(1/D9+1/D30))>$G$19,"signif.","not sign."),"n.a.") -> n.a. | AM9: =IF(AND(ISNUMBER(B9),ISNUMBER(B31)),IF(ABS(B9-B31)/($G$18*SQRT(1/D9+1/D31))>$G$19,"signif.","not sign."),"n.a.") -> n.a. | AN9: =IF(AND(ISNUMBER(B9),ISNUMBER(B32)),IF(ABS(B9-B32)/($G$18*SQRT(1/D9+1/D32))>$G$19,"signif.","not sign."),"n.a.") -> n.a. | AO9: =IF(AND(ISNUMBER(B9),ISNUMBER(B33)),IF(ABS(B9-B33)/($G$18*SQRT(1/D9+1/D33))>$G$19,"signif.","not sign."),"n.a.") -> n.a.
A10: Group 9 | I10: G9 | S10: =IF(AND(ISNUMBER(B10),ISNUMBER(B11)),IF(ABS(B10-B11)/($G$18*SQRT(1/D10+1/D11))>$G$19,"signif.","not sign."),"n.a.") -> n.a. | T10: =IF(AND(ISNUMBER(B10),ISNUMBER(B12)),IF(ABS(B10-B12)/($G$18*SQRT(1/D10+1/D12))>$G$19,"signif.","not sign."),"n.a.") -> n.a. | U10: =IF(AND(ISNUMBER(B10),ISNUMBER(B13)),IF(ABS(B10-B13)/($G$18*SQRT(1/D10+1/D13))>$G$19,"signif.","not sign."),"n.a.") -> n.a. | V10: =IF(AND(ISNUMBER(B10),ISNUMBER(B14)),IF(ABS(B10-B14)/($G$18*SQRT(1/D10+1/D14))>$G$19,"signif.","not sign."),"n.a.") -> n.a. | W10: =IF(AND(ISNUMBER(B10),ISNUMBER(B15)),IF(ABS(B10-B15)/($G$18*SQRT(1/D10+1/D15))>$G$19,"signif.","not sign."),"n.a.") -> n.a. | X10: =IF(AND(ISNUMBER(B10),ISNUMBER(B16)),IF(ABS(B10-B16)/($G$18*SQRT(1/D10+1/D16))>$G$19,"signif.","not sign."),"n.a.") -> n.a. | Y10: =IF(AND(ISNUMBER(B10),ISNUMBER(B17)),IF(ABS(B10-B17)/($G$18*SQRT(1/D10+1/D17))>$G$19,"signif.","not sign."),"n.a.") -> n.a. | Z10: =IF(AND(ISNUMBER(B10),ISNUMBER(B18)),IF(ABS(B10-B18)/($G$18*SQRT(1/D10+1/D18))>$G$19,"signif.","not sign."),"n.a.") -> n.a. | AA10: =IF(AND(ISNUMBER(B10),ISNUMBER(B19)),IF(ABS(B10-B19)/($G$18*SQRT(1/D10+1/D19))>$G$19,"signif.","not sign."),"n.a.") -> n.a. | AB10: =IF(AND(ISNUMBER(B10),ISNUMBER(B20)),IF(ABS(B10-B20)/($G$18*SQRT(1/D10+1/D20))>$G$19,"signif.","not sign."),"n.a.") -> n.a. | AC10: =IF(AND(ISNUMBER(B10),ISNUMBER(B21)),IF(ABS(B10-B21)/($G$18*SQRT(1/D10+1/D21))>$G$19,"signif.","not sign."),"n.a.") -> n.a. | AD10: =IF(AND(ISNUMBER(B10),ISNUMBER(B22)),IF(ABS(B10-B22)/($G$18*SQRT(1/D10+1/D22))>$G$19,"signif.","not sign."),"n.a.") -> n.a. | AE10: =IF(AND(ISNUMBER(B10),ISNUMBER(B23)),IF(ABS(B10-B23)/($G$18*SQRT(1/D10+1/D23))>$G$19,"signif.","not sign."),"n.a.") -> n.a. | AF10: =IF(AND(ISNUMBER(B10),ISNUMBER(B24)),IF(ABS(B10-B24)/($G$18*SQRT(1/D10+1/D24))>$G$19,"signif.","not sign."),"n.a.") -> n.a. | AG10: =IF(AND(ISNUMBER(B10),ISNUMBER(B25)),IF(ABS(B10-B25)/($G$18*SQRT(1/D10+1/D25))>$G$19,"signif.","not sign."),"n.a.") -> n.a. | AH10: =IF(AND(ISNUMBER(B10),ISNUMBER(B26)),IF(ABS(B10-B26)/($G$18*SQRT(1/D10+1/D26))>$G$19,"signif.","not sign."),"n.a.") -> n.a. | AI10: =IF(AND(ISNUMBER(B10),ISNUMBER(B27)),IF(ABS(B10-B27)/($G$18*SQRT(1/D10+1/D27))>$G$19,"signif.","not sign."),"n.a.") -> n.a. | AJ10: =IF(AND(ISNUMBER(B10),ISNUMBER(B28)),IF(ABS(B10-B28)/($G$18*SQRT(1/D10+1/D28))>$G$19,"signif.","not sign."),"n.a.") -> n.a. | AK10: =IF(AND(ISNUMBER(B10),ISNUMBER(B29)),IF(ABS(B10-B29)/($G$18*SQRT(1/D10+1/D29))>$G$19,"signif.","not sign."),"n.a.") -> n.a. | AL10: =IF(AND(ISNUMBER(B10),ISNUMBER(B30)),IF(ABS(B10-B30)/($G$18*SQRT(1/D10+1/D30))>$G$19,"signif.","not sign."),"n.a.") -> n.a. | AM10: =IF(AND(ISNUMBER(B10),ISNUMBER(B31)),IF(ABS(B10-B31)/($G$18*SQRT(1/D10+1/D31))>$G$19,"signif.","not sign."),"n.a.") -> n.a. | AN10: =IF(AND(ISNUMBER(B10),ISNUMBER(B32)),IF(ABS(B10-B32)/($G$18*SQRT(1/D10+1/D32))>$G$19,"signif.","not sign."),"n.a.") -> n.a. | AO10: =IF(AND(ISNUMBER(B10),ISNUMBER(B33)),IF(ABS(B10-B33)/($G$18*SQRT(1/D10+1/D33))>$G$19,"signif.","not sign."),"n.a.") -> n.a.
A11: Group 10 | F11: MS(between groups) | G11: =G8/(G5-1) -> 673.7657658 | I11: G10 | T11: =IF(AND(ISNUMBER(B11),ISNUMBER(B12)),IF(ABS(B11-B12)/($G$18*SQRT(1/D11+1/D12))>$G$19,"signif.","not sign."),"n.a.") -> n.a. | U11: =IF(AND(ISNUMBER(B11),ISNUMBER(B13)),IF(ABS(B11-B13)/($G$18*SQRT(1/D11+1/D13))>$G$19,"signif.","not sign."),"n.a.") -> n.a. | V11: =IF(AND(ISNUMBER(B11),ISNUMBER(B14)),IF(ABS(B11-B14)/($G$18*SQRT(1/D11+1/D14))>$G$19,"signif.","not sign."),"n.a.") -> n.a. | W11: =IF(AND(ISNUMBER(B11),ISNUMBER(B15)),IF(ABS(B11-B15)/($G$18*SQRT(1/D11+1/D15))>$G$19,"signif.","not sign."),"n.a.") -> n.a. | X11: =IF(AND(ISNUMBER(B11),ISNUMBER(B16)),IF(ABS(B11-B16)/($G$18*SQRT(1/D11+1/D16))>$G$19,"signif.","not sign."),"n.a.") -> n.a. | Y11: =IF(AND(ISNUMBER(B11),ISNUMBER(B17)),IF(ABS(B11-B17)/($G$18*SQRT(1/D11+1/D17))>$G$19,"signif.","not sign."),"n.a.") -> n.a. | Z11: =IF(AND(ISNUMBER(B11),ISNUMBER(B18)),IF(ABS(B11-B18)/($G$18*SQRT(1/D11+1/D18))>$G$19,"signif.","not sign."),"n.a.") -> n.a. | AA11: =IF(AND(ISNUMBER(B11),ISNUMBER(B19)),IF(ABS(B11-B19)/($G$18*SQRT(1/D11+1/D19))>$G$19,"signif.","not sign."),"n.a.") -> n.a. | AB11: =IF(AND(ISNUMBER(B11),ISNUMBER(B20)),IF(ABS(B11-B20)/($G$18*SQRT(1/D11+1/D20))>$G$19,"signif.","not sign."),"n.a.") -> n.a. | AC11: =IF(AND(ISNUMBER(B11),ISNUMBER(B21)),IF(ABS(B11-B21)/($G$18*SQRT(1/D11+1/D21))>$G$19,"signif.","not sign."),"n.a.") -> n.a. | AD11: =IF(AND(ISNUMBER(B11),ISNUMBER(B22)),IF(ABS(B11-B22)/($G$18*SQRT(1/D11+1/D22))>$G$19,"signif.","not sign."),"n.a.") -> n.a. | AE11: =IF(AND(ISNUMBER(B11),ISNUMBER(B23)),IF(ABS(B11-B23)/($G$18*SQRT(1/D11+1/D23))>$G$19,"signif.","not sign."),"n.a.") -> n.a. | AF11: =IF(AND(ISNUMBER(B11),ISNUMBER(B24)),IF(ABS(B11-B24)/($G$18*SQRT(1/D11+1/D24))>$G$19,"signif.","not sign."),"n.a.") -> n.a. | AG11: =IF(AND(ISNUMBER(B11),ISNUMBER(B25)),IF(ABS(B11-B25)/($G$18*SQRT(1/D11+1/D25))>$G$19,"signif.","not sign."),"n.a.") -> n.a. | AH11: =IF(AND(ISNUMBER(B11),ISNUMBER(B26)),IF(ABS(B11-B26)/($G$18*SQRT(1/D11+1/D26))>$G$19,"signif.","not sign."),"n.a.") -> n.a. | AI11: =IF(AND(ISNUMBER(B11),ISNUMBER(B27)),IF(ABS(B11-B27)/($G$18*SQRT(1/D11+1/D27))>$G$19,"signif.","not sign."),"n.a.") -> n.a. | AJ11: =IF(AND(ISNUMBER(B11),ISNUMBER(B28)),IF(ABS(B11-B28)/($G$18*SQRT(1/D11+1/D28))>$G$19,"signif.","not sign."),"n.a.") -> n.a. | AK11: =IF(AND(ISNUMBER(B11),ISNUMBER(B29)),IF(ABS(B11-B29)/($G$18*SQRT(1/D11+1/D29))>$G$19,"signif.","not sign."),"n.a.") -> n.a. | AL11: =IF(AND(ISNUMBER(B11),ISNUMBER(B30)),IF(ABS(B11-B30)/($G$18*SQRT(1/D11+1/D30))>$G$19,"signif.","not sign."),"n.a.") -> n.a. | AM11: =IF(AND(ISNUMBER(B11),ISNUMBER(B31)),IF(ABS(B11-B31)/($G$18*SQRT(1/D11+1/D31))>$G$19,"signif.","not sign."),"n.a.") -> n.a. | AN11: =IF(AND(ISNUMBER(B11),ISNUMBER(B32)),IF(ABS(B11-B32)/($G$18*SQRT(1/D11+1/D32))>$G$19,"signif.","not sign."),"n.a.") -> n.a. | AO11: =IF(AND(ISNUMBER(B11),ISNUMBER(B33)),IF(ABS(B11-B33)/($G$18*SQRT(1/D11+1/D33))>$G$19,"signif.","not sign."),"n.a.") -> n.a.
A12: Group 11 | F12: MS(within groups) | G12: =G9/(SUM(Numbers)-G5) -> 14.73737374 | I12: G11 | U12: =IF(AND(ISNUMBER(B12),ISNUMBER(B13)),IF(ABS(B12-B13)/($G$18*SQRT(1/D12+1/D13))>$G$19,"signif.","not sign."),"n.a.") -> n.a. | V12: =IF(AND(ISNUMBER(B12),ISNUMBER(B14)),IF(ABS(B12-B14)/($G$18*SQRT(1/D12+1/D14))>$G$19,"signif.","not sign."),"n.a.") -> n.a. | W12: =IF(AND(ISNUMBER(B12),ISNUMBER(B15)),IF(ABS(B12-B15)/($G$18*SQRT(1/D12+1/D15))>$G$19,"signif.","not sign."),"n.a.") -> n.a. | X12: =IF(AND(ISNUMBER(B12),ISNUMBER(B16)),IF(ABS(B12-B16)/($G$18*SQRT(1/D12+1/D16))>$G$19,"signif.","not sign."),"n.a.") -> n.a. | Y12: =IF(AND(ISNUMBER(B12),ISNUMBER(B17)),IF(ABS(B12-B17)/($G$18*SQRT(1/D12+1/D17))>$G$19,"signif.","not sign."),"n.a.") -> n.a. | Z12: =IF(AND(ISNUMBER(B12),ISNUMBER(B18)),IF(ABS(B12-B18)/($G$18*SQRT(1/D12+1/D18))>$G$19,"signif.","not sign."),"n.a.") -> n.a. | AA12: =IF(AND(ISNUMBER(B12),ISNUMBER(B19)),IF(ABS(B12-B19)/($G$18*SQRT(1/D12+1/D19))>$G$19,"signif.","not sign."),"n.a.") -> n.a. | AB12: =IF(AND(ISNUMBER(B12),ISNUMBER(B20)),IF(ABS(B12-B20)/($G$18*SQRT(1/D12+1/D20))>$G$19,"signif.","not sign."),"n.a.") -> n.a. | AC12: =IF(AND(ISNUMBER(B12),ISNUMBER(B21)),IF(ABS(B12-B21)/($G$18*SQRT(1/D12+1/D21))>$G$19,"signif.","not sign."),"n.a.") -> n.a. | AD12: =IF(AND(ISNUMBER(B12),ISNUMBER(B22)),IF(ABS(B12-B22)/($G$18*SQRT(1/D12+1/D22))>$G$19,"signif.","not sign."),"n.a.") -> n.a. | AE12: =IF(AND(ISNUMBER(B12),ISNUMBER(B23)),IF(ABS(B12-B23)/($G$18*SQRT(1/D12+1/D23))>$G$19,"signif.","not sign."),"n.a.") -> n.a. | AF12: =IF(AND(ISNUMBER(B12),ISNUMBER(B24)),IF(ABS(B12-B24)/($G$18*SQRT(1/D12+1/D24))>$G$19,"signif.","not sign."),"n.a.") -> n.a. | AG12: =IF(AND(ISNUMBER(B12),ISNUMBER(B25)),IF(ABS(B12-B25)/($G$18*SQRT(1/D12+1/D25))>$G$19,"signif.","not sign."),"n.a.") -> n.a. | AH12: =IF(AND(ISNUMBER(B12),ISNUMBER(B26)),IF(ABS(B12-B26)/($G$18*SQRT(1/D12+1/D26))>$G$19,"signif.","not sign."),"n.a.") -> n.a. | AI12: =IF(AND(ISNUMBER(B12),ISNUMBER(B27)),IF(ABS(B12-B27)/($G$18*SQRT(1/D12+1/D27))>$G$19,"signif.","not sign."),"n.a.") -> n.a. | AJ12: =IF(AND(ISNUMBER(B12),ISNUMBER(B28)),IF(ABS(B12-B28)/($G$18*SQRT(1/D12+1/D28))>$G$19,"signif.","not sign."),"n.a.") -> n.a. | AK12: =IF(AND(ISNUMBER(B12),ISNUMBER(B29)),IF(ABS(B12-B29)/($G$18*SQRT(1/D12+1/D29))>$G$19,"signif.","not sign."),"n.a.") -> n.a. | AL12: =IF(AND(ISNUMBER(B12),ISNUMBER(B30)),IF(ABS(B12-B30)/($G$18*SQRT(1/D12+1/D30))>$G$19,"signif.","not sign."),"n.a.") -> n.a. | AM12: =IF(AND(ISNUMBER(B12),ISNUMBER(B31)),IF(ABS(B12-B31)/($G$18*SQRT(1/D12+1/D31))>$G$19,"signif.","not sign."),"n.a.") -> n.a. | AN12: =IF(AND(ISNUMBER(B12),ISNUMBER(B32)),IF(ABS(B12-B32)/($G$18*SQRT(1/D12+1/D32))>$G$19,"signif.","not sign."),"n.a.") -> n.a. | AO12: =IF(AND(ISNUMBER(B12),ISNUMBER(B33)),IF(ABS(B12-B33)/($G$18*SQRT(1/D12+1/D33))>$G$19,"signif.","not sign."),"n.a.") -> n.a.
A13: Group 12 | I13: G12 | V13: =IF(AND(ISNUMBER(B13),ISNUMBER(B14)),IF(ABS(B13-B14)/($G$18*SQRT(1/D13+1/D14))>$G$19,"signif.","not sign."),"n.a.") -> n.a. | W13: =IF(AND(ISNUMBER(B13),ISNUMBER(B15)),IF(ABS(B13-B15)/($G$18*SQRT(1/D13+1/D15))>$G$19,"signif.","not sign."),"n.a.") -> n.a. | X13: =IF(AND(ISNUMBER(B13),ISNUMBER(B16)),IF(ABS(B13-B16)/($G$18*SQRT(1/D13+1/D16))>$G$19,"signif.","not sign."),"n.a.") -> n.a. | Y13: =IF(AND(ISNUMBER(B13),ISNUMBER(B17)),IF(ABS(B13-B17)/($G$18*SQRT(1/D13+1/D17))>$G$19,"signif.","not sign."),"n.a.") -> n.a. | Z13: =IF(AND(ISNUMBER(B13),ISNUMBER(B18)),IF(ABS(B13-B18)/($G$18*SQRT(1/D13+1/D18))>$G$19,"signif.","not sign."),"n.a.") -> n.a. | AA13: =IF(AND(ISNUMBER(B13),ISNUMBER(B19)),IF(ABS(B13-B19)/($G$18*SQRT(1/D13+1/D19))>$G$19,"signif.","not sign."),"n.a.") -> n.a. | AB13: =IF(AND(ISNUMBER(B13),ISNUMBER(B20)),IF(ABS(B13-B20)/($G$18*SQRT(1/D13+1/D20))>$G$19,"signif.","not sign."),"n.a.") -> n.a. | AC13: =IF(AND(ISNUMBER(B13),ISNUMBER(B21)),IF(ABS(B13-B21)/($G$18*SQRT(1/D13+1/D21))>$G$19,"signif.","not sign."),"n.a.") -> n.a. | AD13: =IF(AND(ISNUMBER(B13),ISNUMBER(B22)),IF(ABS(B13-B22)/($G$18*SQRT(1/D13+1/D22))>$G$19,"signif.","not sign."),"n.a.") -> n.a. | AE13: =IF(AND(ISNUMBER(B13),ISNUMBER(B23)),IF(ABS(B13-B23)/($G$18*SQRT(1/D13+1/D23))>$G$19,"signif.","not sign."),"n.a.") -> n.a. | AF13: =IF(AND(ISNUMBER(B13),ISNUMBER(B24)),IF(ABS(B13-B24)/($G$18*SQRT(1/D13+1/D24))>$G$19,"signif.","not sign."),"n.a.") -> n.a. | AG13: =IF(AND(ISNUMBER(B13),ISNUMBER(B25)),IF(ABS(B13-B25)/($G$18*SQRT(1/D13+1/D25))>$G$19,"signif.","not sign."),"n.a.") -> n.a. | AH13: =IF(AND(ISNUMBER(B13),ISNUMBER(B26)),IF(ABS(B13-B26)/($G$18*SQRT(1/D13+1/D26))>$G$19,"signif.","not sign."),"n.a.") -> n.a. | AI13: =IF(AND(ISNUMBER(B13),ISNUMBER(B27)),IF(ABS(B13-B27)/($G$18*SQRT(1/D13+1/D27))>$G$19,"signif.","not sign."),"n.a.") -> n.a. | AJ13: =IF(AND(ISNUMBER(B13),ISNUMBER(B28)),IF(ABS(B13-B28)/($G$18*SQRT(1/D13+1/D28))>$G$19,"signif.","not sign."),"n.a.") -> n.a. | AK13: =IF(AND(ISNUMBER(B13),ISNUMBER(B29)),IF(ABS(B13-B29)/($G$18*SQRT(1/D13+1/D29))>$G$19,"signif.","not sign."),"n.a.") -> n.a. | AL13: =IF(AND(ISNUMBER(B13),ISNUMBER(B30)),IF(ABS(B13-B30)/($G$18*SQRT(1/D13+1/D30))>$G$19,"signif.","not sign."),"n.a.") -> n.a. | AM13: =IF(AND(ISNUMBER(B13),ISNUMBER(B31)),IF(ABS(B13-B31)/($G$18*SQRT(1/D13+1/D31))>$G$19,"signif.","not sign."),"n.a.") -> n.a. | AN13: =IF(AND(ISNUMBER(B13),ISNUMBER(B32)),IF(ABS(B13-B32)/($G$18*SQRT(1/D13+1/D32))>$G$19,"signif.","not sign."),"n.a.") -> n.a. | AO13: =IF(AND(ISNUMBER(B13),ISNUMBER(B33)),IF(ABS(B13-B33)/($G$18*SQRT(1/D13+1/D33))>$G$19,"signif.","not sign."),"n.a.") -> n.a.
A14: Group 13 | F14: F | G14: =G11/G12 -> 45.71817054 | I14: G13 | W14: =IF(AND(ISNUMBER(B14),ISNUMBER(B15)),IF(ABS(B14-B15)/($G$18*SQRT(1/D14+1/D15))>$G$19,"signif.","not sign."),"n.a.") -> n.a. | X14: =IF(AND(ISNUMBER(B14),ISNUMBER(B16)),IF(ABS(B14-B16)/($G$18*SQRT(1/D14+1/D16))>$G$19,"signif.","not sign."),"n.a.") -> n.a. | Y14: =IF(AND(ISNUMBER(B14),ISNUMBER(B17)),IF(ABS(B14-B17)/($G$18*SQRT(1/D14+1/D17))>$G$19,"signif.","not sign."),"n.a.") -> n.a. | Z14: =IF(AND(ISNUMBER(B14),ISNUMBER(B18)),IF(ABS(B14-B18)/($G$18*SQRT(1/D14+1/D18))>$G$19,"signif.","not sign."),"n.a.") -> n.a. | AA14: =IF(AND(ISNUMBER(B14),ISNUMBER(B19)),IF(ABS(B14-B19)/($G$18*SQRT(1/D14+1/D19))>$G$19,"signif.","not sign."),"n.a.") -> n.a. | AB14: =IF(AND(ISNUMBER(B14),ISNUMBER(B20)),IF(ABS(B14-B20)/($G$18*SQRT(1/D14+1/D20))>$G$19,"signif.","not sign."),"n.a.") -> n.a. | AC14: =IF(AND(ISNUMBER(B14),ISNUMBER(B21)),IF(ABS(B14-B21)/($G$18*SQRT(1/D14+1/D21))>$G$19,"signif.","not sign."),"n.a.") -> n.a. | AD14: =IF(AND(ISNUMBER(B14),ISNUMBER(B22)),IF(ABS(B14-B22)/($G$18*SQRT(1/D14+1/D22))>$G$19,"signif.","not sign."),"n.a.") -> n.a. | AE14: =IF(AND(ISNUMBER(B14),ISNUMBER(B23)),IF(ABS(B14-B23)/($G$18*SQRT(1/D14+1/D23))>$G$19,"signif.","not sign."),"n.a.") -> n.a. | AF14: =IF(AND(ISNUMBER(B14),ISNUMBER(B24)),IF(ABS(B14-B24)/($G$18*SQRT(1/D14+1/D24))>$G$19,"signif.","not sign."),"n.a.") -> n.a. | AG14: =IF(AND(ISNUMBER(B14),ISNUMBER(B25)),IF(ABS(B14-B25)/($G$18*SQRT(1/D14+1/D25))>$G$19,"signif.","not sign."),"n.a.") -> n.a. | AH14: =IF(AND(ISNUMBER(B14),ISNUMBER(B26)),IF(ABS(B14-B26)/($G$18*SQRT(1/D14+1/D26))>$G$19,"signif.","not sign."),"n.a.") -> n.a. | AI14: =IF(AND(ISNUMBER(B14),ISNUMBER(B27)),IF(ABS(B14-B27)/($G$18*SQRT(1/D14+1/D27))>$G$19,"signif.","not sign."),"n.a.") -> n.a. | AJ14: =IF(AND(ISNUMBER(B14),ISNUMBER(B28)),IF(ABS(B14-B28)/($G$18*SQRT(1/D14+1/D28))>$G$19,"signif.","not sign."),"n.a.") -> n.a. | AK14: =IF(AND(ISNUMBER(B14),ISNUMBER(B29)),IF(ABS(B14-B29)/($G$18*SQRT(1/D14+1/D29))>$G$19,"signif.","not sign."),"n.a.") -> n.a. | AL14: =IF(AND(ISNUMBER(B14),ISNUMBER(B30)),IF(ABS(B14-B30)/($G$18*SQRT(1/D14+1/D30))>$G$19,"signif.","not sign."),"n.a.") -> n.a. | AM14: =IF(AND(ISNUMBER(B14),ISNUMBER(B31)),IF(ABS(B14-B31)/($G$18*SQRT(1/D14+1/D31))>$G$19,"signif.","not sign."),"n.a.") -> n.a. | AN14: =IF(AND(ISNUMBER(B14),ISNUMBER(B32)),IF(ABS(B14-B32)/($G$18*SQRT(1/D14+1/D32))>$G$19,"signif.","not sign."),"n.a.") -> n.a. | AO14: =IF(AND(ISNUMBER(B14),ISNUMBER(B33)),IF(ABS(B14-B33)/($G$18*SQRT(1/D14+1/D33))>$G$19,"signif.","not sign."),"n.a.") -> n.a.
A15: Group 14 | F15: p | G15: =_xlfn.F.DIST.RT(G14,G5-1,SUM(Numbers)-G5) -> 7.474374595e-12 | I15: G14 | X15: =IF(AND(ISNUMBER(B15),ISNUMBER(B16)),IF(ABS(B15-B16)/($G$18*SQRT(1/D15+1/D16))>$G$19,"signif.","not sign."),"n.a.") -> n.a. | Y15: =IF(AND(ISNUMBER(B15),ISNUMBER(B17)),IF(ABS(B15-B17)/($G$18*SQRT(1/D15+1/D17))>$G$19,"signif.","not sign."),"n.a.") -> n.a. | Z15: =IF(AND(ISNUMBER(B15),ISNUMBER(B18)),IF(ABS(B15-B18)/($G$18*SQRT(1/D15+1/D18))>$G$19,"signif.","not sign."),"n.a.") -> n.a. | AA15: =IF(AND(ISNUMBER(B15),ISNUMBER(B19)),IF(ABS(B15-B19)/($G$18*SQRT(1/D15+1/D19))>$G$19,"signif.","not sign."),"n.a.") -> n.a. | AB15: =IF(AND(ISNUMBER(B15),ISNUMBER(B20)),IF(ABS(B15-B20)/($G$18*SQRT(1/D15+1/D20))>$G$19,"signif.","not sign."),"n.a.") -> n.a. | AC15: =IF(AND(ISNUMBER(B15),ISNUMBER(B21)),IF(ABS(B15-B21)/($G$18*SQRT(1/D15+1/D21))>$G$19,"signif.","not sign."),"n.a.") -> n.a. | AD15: =IF(AND(ISNUMBER(B15),ISNUMBER(B22)),IF(ABS(B15-B22)/($G$18*SQRT(1/D15+1/D22))>$G$19,"signif.","not sign."),"n.a.") -> n.a. | AE15: =IF(AND(ISNUMBER(B15),ISNUMBER(B23)),IF(ABS(B15-B23)/($G$18*SQRT(1/D15+1/D23))>$G$19,"signif.","not sign."),"n.a.") -> n.a. | AF15: =IF(AND(ISNUMBER(B15),ISNUMBER(B24)),IF(ABS(B15-B24)/($G$18*SQRT(1/D15+1/D24))>$G$19,"signif.","not sign."),"n.a.") -> n.a. | AG15: =IF(AND(ISNUMBER(B15),ISNUMBER(B25)),IF(ABS(B15-B25)/($G$18*SQRT(1/D15+1/D25))>$G$19,"signif.","not sign."),"n.a.") -> n.a. | AH15: =IF(AND(ISNUMBER(B15),ISNUMBER(B26)),IF(ABS(B15-B26)/($G$18*SQRT(1/D15+1/D26))>$G$19,"signif.","not sign."),"n.a.") -> n.a. | AI15: =IF(AND(ISNUMBER(B15),ISNUMBER(B27)),IF(ABS(B15-B27)/($G$18*SQRT(1/D15+1/D27))>$G$19,"signif.","not sign."),"n.a.") -> n.a. | AJ15: =IF(AND(ISNUMBER(B15),ISNUMBER(B28)),IF(ABS(B15-B28)/($G$18*SQRT(1/D15+1/D28))>$G$19,"signif.","not sign."),"n.a.") -> n.a. | AK15: =IF(AND(ISNUMBER(B15),ISNUMBER(B29)),IF(ABS(B15-B29)/($G$18*SQRT(1/D15+1/D29))>$G$19,"signif.","not sign."),"n.a.") -> n.a. | AL15: =IF(AND(ISNUMBER(B15),ISNUMBER(B30)),IF(ABS(B15-B30)/($G$18*SQRT(1/D15+1/D30))>$G$19,"signif.","not sign."),"n.a.") -> n.a. | AM15: =IF(AND(ISNUMBER(B15),ISNUMBER(B31)),IF(ABS(B15-B31)/($G$18*SQRT(1/D15+1/D31))>$G$19,"signif.","not sign."),"n.a.") -> n.a. | AN15: =IF(AND(ISNUMBER(B15),ISNUMBER(B32)),IF(ABS(B15-B32)/($G$18*SQRT(1/D15+1/D32))>$G$19,"signif.","not sign."),"n.a.") -> n.a. | AO15: =IF(AND(ISNUMBER(B15),ISNUMBER(B33)),IF(ABS(B15-B33)/($G$18*SQRT(1/D15+1/D33))>$G$19,"signif.","not sign."),"n.a.") -> n.a.
A16: Group 15 | I16: G15 | Y16: =IF(AND(ISNUMBER(B16),ISNUMBER(B17)),IF(ABS(B16-B17)/($G$18*SQRT(1/D16+1/D17))>$G$19,"signif.","not sign."),"n.a.") -> n.a. | Z16: =IF(AND(ISNUMBER(B16),ISNUMBER(B18)),IF(ABS(B16-B18)/($G$18*SQRT(1/D16+1/D18))>$G$19,"signif.","not sign."),"n.a.") -> n.a. | AA16: =IF(AND(ISNUMBER(B16),ISNUMBER(B19)),IF(ABS(B16-B19)/($G$18*SQRT(1/D16+1/D19))>$G$19,"signif.","not sign."),"n.a.") -> n.a. | AB16: =IF(AND(ISNUMBER(B16),ISNUMBER(B20)),IF(ABS(B16-B20)/($G$18*SQRT(1/D16+1/D20))>$G$19,"signif.","not sign."),"n.a.") -> n.a. | AC16: =IF(AND(ISNUMBER(B16),ISNUMBER(B21)),IF(ABS(B16-B21)/($G$18*SQRT(1/D16+1/D21))>$G$19,"signif.","not sign."),"n.a.") -> n.a. | AD16: =IF(AND(ISNUMBER(B16),ISNUMBER(B22)),IF(ABS(B16-B22)/($G$18*SQRT(1/D16+1/D22))>$G$19,"signif.","not sign."),"n.a.") -> n.a. | AE16: =IF(AND(ISNUMBER(B16),ISNUMBER(B23)),IF(ABS(B16-B23)/($G$18*SQRT(1/D16+1/D23))>$G$19,"signif.","not sign."),"n.a.") -> n.a. | AF16: =IF(AND(ISNUMBER(B16),ISNUMBER(B24)),IF(ABS(B16-B24)/($G$18*SQRT(1/D16+1/D24))>$G$19,"signif.","not sign."),"n.a.") -> n.a. | AG16: =IF(AND(ISNUMBER(B16),ISNUMBER(B25)),IF(ABS(B16-B25)/($G$18*SQRT(1/D16+1/D25))>$G$19,"signif.","not sign."),"n.a.") -> n.a. | AH16: =IF(AND(ISNUMBER(B16),ISNUMBER(B26)),IF(ABS(B16-B26)/($G$18*SQRT(1/D16+1/D26))>$G$19,"signif.","not sign."),"n.a.") -> n.a. | AI16: =IF(AND(ISNUMBER(B16),ISNUMBER(B27)),IF(ABS(B16-B27)/($G$18*SQRT(1/D16+1/D27))>$G$19,"signif.","not sign."),"n.a.") -> n.a. | AJ16: =IF(AND(ISNUMBER(B16),ISNUMBER(B28)),IF(ABS(B16-B28)/($G$18*SQRT(1/D16+1/D28))>$G$19,"signif.","not sign."),"n.a.") -> n.a. | AK16: =IF(AND(ISNUMBER(B16),ISNUMBER(B29)),IF(ABS(B16-B29)/($G$18*SQRT(1/D16+1/D29))>$G$19,"signif.","not sign."),"n.a.") -> n.a. | AL16: =IF(AND(ISNUMBER(B16),ISNUMBER(B30)),IF(ABS(B16-B30)/($G$18*SQRT(1/D16+1/D30))>$G$19,"signif.","not sign."),"n.a.") -> n.a. | AM16: =IF(AND(ISNUMBER(B16),ISNUMBER(B31)),IF(ABS(B16-B31)/($G$18*SQRT(1/D16+1/D31))>$G$19,"signif.","not sign."),"n.a.") -> n.a. | AN16: =IF(AND(ISNUMBER(B16),ISNUMBER(B32)),IF(ABS(B16-B32)/($G$18*SQRT(1/D16+1/D32))>$G$19,"signif.","not sign."),"n.a.") -> n.a. | AO16: =IF(AND(ISNUMBER(B16),ISNUMBER(B33)),IF(ABS(B16-B33)/($G$18*SQRT(1/D16+1/D33))>$G$19,"signif.","not sign."),"n.a.") -> n.a.
A17: Group 16 | F17: FEW (familywise error) for posthoc | G17: 0.05 | I17: G16 | Z17: =IF(AND(ISNUMBER(B17),ISNUMBER(B18)),IF(ABS(B17-B18)/($G$18*SQRT(1/D17+1/D18))>$G$19,"signif.","not sign."),"n.a.") -> n.a. | AA17: =IF(AND(ISNUMBER(B17),ISNUMBER(B19)),IF(ABS(B17-B19)/($G$18*SQRT(1/D17+1/D19))>$G$19,"signif.","not sign."),"n.a.") -> n.a. | AB17: =IF(AND(ISNUMBER(B17),ISNUMBER(B20)),IF(ABS(B17-B20)/($G$18*SQRT(1/D17+1/D20))>$G$19,"signif.","not sign."),"n.a.") -> n.a. | AC17: =IF(AND(ISNUMBER(B17),ISNUMBER(B21)),IF(ABS(B17-B21)/($G$18*SQRT(1/D17+1/D21))>$G$19,"signif.","not sign."),"n.a.") -> n.a. | AD17: =IF(AND(ISNUMBER(B17),ISNUMBER(B22)),IF(ABS(B17-B22)/($G$18*SQRT(1/D17+1/D22))>$G$19,"signif.","not sign."),"n.a.") -> n.a. | AE17: =IF(AND(ISNUMBER(B17),ISNUMBER(B23)),IF(ABS(B17-B23)/($G$18*SQRT(1/D17+1/D23))>$G$19,"signif.","not sign."),"n.a.") -> n.a. | AF17: =IF(AND(ISNUMBER(B17),ISNUMBER(B24)),IF(ABS(B17-B24)/($G$18*SQRT(1/D17+1/D24))>$G$19,"signif.","not sign."),"n.a.") -> n.a. | AG17: =IF(AND(ISNUMBER(B17),ISNUMBER(B25)),IF(ABS(B17-B25)/($G$18*SQRT(1/D17+1/D25))>$G$19,"signif.","not sign."),"n.a.") -> n.a. | AH17: =IF(AND(ISNUMBER(B17),ISNUMBER(B26)),IF(ABS(B17-B26)/($G$18*SQRT(1/D17+1/D26))>$G$19,"signif.","not sign."),"n.a.") -> n.a. | AI17: =IF(AND(ISNUMBER(B17),ISNUMBER(B27)),IF(ABS(B17-B27)/($G$18*SQRT(1/D17+1/D27))>$G$19,"signif.","not sign."),"n.a.") -> n.a. | AJ17: =IF(AND(ISNUMBER(B17),ISNUMBER(B28)),IF(ABS(B17-B28)/($G$18*SQRT(1/D17+1/D28))>$G$19,"signif.","not sign."),"n.a.") -> n.a. | AK17: =IF(AND(ISNUMBER(B17),ISNUMBER(B29)),IF(ABS(B17-B29)/($G$18*SQRT(1/D17+1/D29))>$G$19,"signif.","not sign."),"n.a.") -> n.a. | AL17: =IF(AND(ISNUMBER(B17),ISNUMBER(B30)),IF(ABS(B17-B30)/($G$18*SQRT(1/D17+1/D30))>$G$19,"signif.","not sign."),"n.a.") -> n.a. | AM17: =IF(AND(ISNUMBER(B17),ISNUMBER(B31)),IF(ABS(B17-B31)/($G$18*SQRT(1/D17+1/D31))>$G$19,"signif.","not sign."),"n.a.") -> n.a. | AN17: =IF(AND(ISNUMBER(B17),ISNUMBER(B32)),IF(ABS(B17-B32)/($G$18*SQRT(1/D17+1/D32))>$G$19,"signif.","not sign."),"n.a.") -> n.a. | AO17: =IF(AND(ISNUMBER(B17),ISNUMBER(B33)),IF(ABS(B17-B33)/($G$18*SQRT(1/D17+1/D33))>$G$19,"signif.","not sign."),"n.a.") -> n.a.
A18: Group 17 | F18: SD(pooled) | G18: =SQRT(G9/(SUM(Numbers)-G5)) -> 3.838928723 | I18: G17 | AA18: =IF(AND(ISNUMBER(B18),ISNUMBER(B19)),IF(ABS(B18-B19)/($G$18*SQRT(1/D18+1/D19))>$G$19,"signif.","not sign."),"n.a.") -> n.a. | AB18: =IF(AND(ISNUMBER(B18),ISNUMBER(B20)),IF(ABS(B18-B20)/($G$18*SQRT(1/D18+1/D20))>$G$19,"signif.","not sign."),"n.a.") -> n.a. | AC18: =IF(AND(ISNUMBER(B18),ISNUMBER(B21)),IF(ABS(B18-B21)/($G$18*SQRT(1/D18+1/D21))>$G$19,"signif.","not sign."),"n.a.") -> n.a. | AD18: =IF(AND(ISNUMBER(B18),ISNUMBER(B22)),IF(ABS(B18-B22)/($G$18*SQRT(1/D18+1/D22))>$G$19,"signif.","not sign."),"n.a.") -> n.a. | AE18: =IF(AND(ISNUMBER(B18),ISNUMBER(B23)),IF(ABS(B18-B23)/($G$18*SQRT(1/D18+1/D23))>$G$19,"signif.","not sign."),"n.a.") -> n.a. | AF18: =IF(AND(ISNUMBER(B18),ISNUMBER(B24)),IF(ABS(B18-B24)/($G$18*SQRT(1/D18+1/D24))>$G$19,"signif.","not sign."),"n.a.") -> n.a. | AG18: =IF(AND(ISNUMBER(B18),ISNUMBER(B25)),IF(ABS(B18-B25)/($G$18*SQRT(1/D18+1/D25))>$G$19,"signif.","not sign."),"n.a.") -> n.a. | AH18: =IF(AND(ISNUMBER(B18),ISNUMBER(B26)),IF(ABS(B18-B26)/($G$18*SQRT(1/D18+1/D26))>$G$19,"signif.","not sign."),"n.a.") -> n.a. | AI18: =IF(AND(ISNUMBER(B18),ISNUMBER(B27)),IF(ABS(B18-B27)/($G$18*SQRT(1/D18+1/D27))>$G$19,"signif.","not sign."),"n.a.") -> n.a. | AJ18: =IF(AND(ISNUMBER(B18),ISNUMBER(B28)),IF(ABS(B18-B28)/($G$18*SQRT(1/D18+1/D28))>$G$19,"signif.","not sign."),"n.a.") -> n.a. | AK18: =IF(AND(ISNUMBER(B18),ISNUMBER(B29)),IF(ABS(B18-B29)/($G$18*SQRT(1/D18+1/D29))>$G$19,"signif.","not sign."),"n.a.") -> n.a. | AL18: =IF(AND(ISNUMBER(B18),ISNUMBER(B30)),IF(ABS(B18-B30)/($G$18*SQRT(1/D18+1/D30))>$G$19,"signif.","not sign."),"n.a.") -> n.a. | AM18: =IF(AND(ISNUMBER(B18),ISNUMBER(B31)),IF(ABS(B18-B31)/($G$18*SQRT(1/D18+1/D31))>$G$19,"signif.","not sign."),"n.a.") -> n.a. | AN18: =IF(AND(ISNUMBER(B18),ISNUMBER(B32)),IF(ABS(B18-B32)/($G$18*SQRT(1/D18+1/D32))>$G$19,"signif.","not sign."),"n.a.") -> n.a. | AO18: =IF(AND(ISNUMBER(B18),ISNUMBER(B33)),IF(ABS(B18-B33)/($G$18*SQRT(1/D18+1/D33))>$G$19,"signif.","not sign."),"n.a.") -> n.a.
A19: Group 18 | F19: F(critical, Scheffé) | G19: =_xlfn.F.INV.RT(G17,G5-1,SUM(Numbers)-G5) -> 2.891563517 | I19: G18 | AB19: =IF(AND(ISNUMBER(B19),ISNUMBER(B20)),IF(ABS(B19-B20)/($G$18*SQRT(1/D19+1/D20))>$G$19,"signif.","not sign."),"n.a.") -> n.a. | AC19: =IF(AND(ISNUMBER(B19),ISNUMBER(B21)),IF(ABS(B19-B21)/($G$18*SQRT(1/D19+1/D21))>$G$19,"signif.","not sign."),"n.a.") -> n.a. | AD19: =IF(AND(ISNUMBER(B19),ISNUMBER(B22)),IF(ABS(B19-B22)/($G$18*SQRT(1/D19+1/D22))>$G$19,"signif.","not sign."),"n.a.") -> n.a. | AE19: =IF(AND(ISNUMBER(B19),ISNUMBER(B23)),IF(ABS(B19-B23)/($G$18*SQRT(1/D19+1/D23))>$G$19,"signif.","not sign."),"n.a.") -> n.a. | AF19: =IF(AND(ISNUMBER(B19),ISNUMBER(B24)),IF(ABS(B19-B24)/($G$18*SQRT(1/D19+1/D24))>$G$19,"signif.","not sign."),"n.a.") -> n.a. | AG19: =IF(AND(ISNUMBER(B19),ISNUMBER(B25)),IF(ABS(B19-B25)/($G$18*SQRT(1/D19+1/D25))>$G$19,"signif.","not sign."),"n.a.") -> n.a. | AH19: =IF(AND(ISNUMBER(B19),ISNUMBER(B26)),IF(ABS(B19-B26)/($G$18*SQRT(1/D19+1/D26))>$G$19,"signif.","not sign."),"n.a.") -> n.a. | AI19: =IF(AND(ISNUMBER(B19),ISNUMBER(B27)),IF(ABS(B19-B27)/($G$18*SQRT(1/D19+1/D27))>$G$19,"signif.","not sign."),"n.a.") -> n.a. | AJ19: =IF(AND(ISNUMBER(B19),ISNUMBER(B28)),IF(ABS(B19-B28)/($G$18*SQRT(1/D19+1/D28))>$G$19,"signif.","not sign."),"n.a.") -> n.a. | AK19: =IF(AND(ISNUMBER(B19),ISNUMBER(B29)),IF(ABS(B19-B29)/($G$18*SQRT(1/D19+1/D29))>$G$19,"signif.","not sign."),"n.a.") -> n.a. | AL19: =IF(AND(ISNUMBER(B19),ISNUMBER(B30)),IF(ABS(B19-B30)/($G$18*SQRT(1/D19+1/D30))>$G$19,"signif.","not sign."),"n.a.") -> n.a. | AM19: =IF(AND(ISNUMBER(B19),ISNUMBER(B31)),IF(ABS(B19-B31)/($G$18*SQRT(1/D19+1/D31))>$G$19,"signif.","not sign."),"n.a.") -> n.a. | AN19: =IF(AND(ISNUMBER(B19),ISNUMBER(B32)),IF(ABS(B19-B32)/($G$18*SQRT(1/D19+1/D32))>$G$19,"signif.","not sign."),"n.a.") -> n.a. | AO19: =IF(AND(ISNUMBER(B19),ISNUMBER(B33)),IF(ABS(B19-B33)/($G$18*SQRT(1/D19+1/D33))>$G$19,"signif.","not sign."),"n.a.") -> n.a.
A20: Group 19 | I20: G19 | AC20: =IF(AND(ISNUMBER(B20),ISNUMBER(B21)),IF(ABS(B20-B21)/($G$18*SQRT(1/D20+1/D21))>$G$19,"signif.","not sign."),"n.a.") -> n.a. | AD20: =IF(AND(ISNUMBER(B20),ISNUMBER(B22)),IF(ABS(B20-B22)/($G$18*SQRT(1/D20+1/D22))>$G$19,"signif.","not sign."),"n.a.") -> n.a. | AE20: =IF(AND(ISNUMBER(B20),ISNUMBER(B23)),IF(ABS(B20-B23)/($G$18*SQRT(1/D20+1/D23))>$G$19,"signif.","not sign."),"n.a.") -> n.a. | AF20: =IF(AND(ISNUMBER(B20),ISNUMBER(B24)),IF(ABS(B20-B24)/($G$18*SQRT(1/D20+1/D24))>$G$19,"signif.","not sign."),"n.a.") -> n.a. | AG20: =IF(AND(ISNUMBER(B20),ISNUMBER(B25)),IF(ABS(B20-B25)/($G$18*SQRT(1/D20+1/D25))>$G$19,"signif.","not sign."),"n.a.") -> n.a. | AH20: =IF(AND(ISNUMBER(B20),ISNUMBER(B26)),IF(ABS(B20-B26)/($G$18*SQRT(1/D20+1/D26))>$G$19,"signif.","not sign."),"n.a.") -> n.a. | AI20: =IF(AND(ISNUMBER(B20),ISNUMBER(B27)),IF(ABS(B20-B27)/($G$18*SQRT(1/D20+1/D27))>$G$19,"signif.","not sign."),"n.a.") -> n.a. | AJ20: =IF(AND(ISNUMBER(B20),ISNUMBER(B28)),IF(ABS(B20-B28)/($G$18*SQRT(1/D20+1/D28))>$G$19,"signif.","not sign."),"n.a.") -> n.a. | AK20: =IF(AND(ISNUMBER(B20),ISNUMBER(B29)),IF(ABS(B20-B29)/($G$18*SQRT(1/D20+1/D29))>$G$19,"signif.","not sign."),"n.a.") -> n.a. | AL20: =IF(AND(ISNUMBER(B20),ISNUMBER(B30)),IF(ABS(B20-B30)/($G$18*SQRT(1/D20+1/D30))>$G$19,"signif.","not sign."),"n.a.") -> n.a. | AM20: =IF(AND(ISNUMBER(B20),ISNUMBER(B31)),IF(ABS(B20-B31)/($G$18*SQRT(1/D20+1/D31))>$G$19,"signif.","not sign."),"n.a.") -> n.a. | AN20: =IF(AND(ISNUMBER(B20),ISNUMBER(B32)),IF(ABS(B20-B32)/($G$18*SQRT(1/D20+1/D32))>$G$19,"signif.","not sign."),"n.a.") -> n.a. | AO20: =IF(AND(ISNUMBER(B20),ISNUMBER(B33)),IF(ABS(B20-B33)/($G$18*SQRT(1/D20+1/D33))>$G$19,"signif.","not sign."),"n.a.") -> n.a.
A21: Group 20 | I21: G20 | AD21: =IF(AND(ISNUMBER(B21),ISNUMBER(B22)),IF(ABS(B21-B22)/($G$18*SQRT(1/D21+1/D22))>$G$19,"signif.","not sign."),"n.a.") -> n.a. | AE21: =IF(AND(ISNUMBER(B21),ISNUMBER(B23)),IF(ABS(B21-B23)/($G$18*SQRT(1/D21+1/D23))>$G$19,"signif.","not sign."),"n.a.") -> n.a. | AF21: =IF(AND(ISNUMBER(B21),ISNUMBER(B24)),IF(ABS(B21-B24)/($G$18*SQRT(1/D21+1/D24))>$G$19,"signif.","not sign."),"n.a.") -> n.a. | AG21: =IF(AND(ISNUMBER(B21),ISNUMBER(B25)),IF(ABS(B21-B25)/($G$18*SQRT(1/D21+1/D25))>$G$19,"signif.","not sign."),"n.a.") -> n.a. | AH21: =IF(AND(ISNUMBER(B21),ISNUMBER(B26)),IF(ABS(B21-B26)/($G$18*SQRT(1/D21+1/D26))>$G$19,"signif.","not sign."),"n.a.") -> n.a. | AI21: =IF(AND(ISNUMBER(B21),ISNUMBER(B27)),IF(ABS(B21-B27)/($G$18*SQRT(1/D21+1/D27))>$G$19,"signif.","not sign."),"n.a.") -> n.a. | AJ21: =IF(AND(ISNUMBER(B21),ISNUMBER(B28)),IF(ABS(B21-B28)/($G$18*SQRT(1/D21+1/D28))>$G$19,"signif.","not sign."),"n.a.") -> n.a. | AK21: =IF(AND(ISNUMBER(B21),ISNUMBER(B29)),IF(ABS(B21-B29)/($G$18*SQRT(1/D21+1/D29))>$G$19,"signif.","not sign."),"n.a.") -> n.a. | AL21: =IF(AND(ISNUMBER(B21),ISNUMBER(B30)),IF(ABS(B21-B30)/($G$18*SQRT(1/D21+1/D30))>$G$19,"signif.","not sign."),"n.a.") -> n.a. | AM21: =IF(AND(ISNUMBER(B21),ISNUMBER(B31)),IF(ABS(B21-B31)/($G$18*SQRT(1/D21+1/D31))>$G$19,"signif.","not sign."),"n.a.") -> n.a. | AN21: =IF(AND(ISNUMBER(B21),ISNUMBER(B32)),IF(ABS(B21-B32)/($G$18*SQRT(1/D21+1/D32))>$G$19,"signif.","not sign."),"n.a.") -> n.a. | AO21: =IF(AND(ISNUMBER(B21),ISNUMBER(B33)),IF(ABS(B21-B33)/($G$18*SQRT(1/D21+1/D33))>$G$19,"signif.","not sign."),"n.a.") -> n.a.
A22: Group 21 | I22: G21 | AE22: =IF(AND(ISNUMBER(B22),ISNUMBER(B23)),IF(ABS(B22-B23)/($G$18*SQRT(1/D22+1/D23))>$G$19,"signif.","not sign."),"n.a.") -> n.a. | AF22: =IF(AND(ISNUMBER(B22),ISNUMBER(B24)),IF(ABS(B22-B24)/($G$18*SQRT(1/D22+1/D24))>$G$19,"signif.","not sign."),"n.a.") -> n.a. | AG22: =IF(AND(ISNUMBER(B22),ISNUMBER(B25)),IF(ABS(B22-B25)/($G$18*SQRT(1/D22+1/D25))>$G$19,"signif.","not sign."),"n.a.") -> n.a. | AH22: =IF(AND(ISNUMBER(B22),ISNUMBER(B26)),IF(ABS(B22-B26)/($G$18*SQRT(1/D22+1/D26))>$G$19,"signif.","not sign."),"n.a.") -> n.a. | AI22: =IF(AND(ISNUMBER(B22),ISNUMBER(B27)),IF(ABS(B22-B27)/($G$18*SQRT(1/D22+1/D27))>$G$19,"signif.","not sign."),"n.a.") -> n.a. | AJ22: =IF(AND(ISNUMBER(B22),ISNUMBER(B28)),IF(ABS(B22-B28)/($G$18*SQRT(1/D22+1/D28))>$G$19,"signif.","not sign."),"n.a.") -> n.a. | AK22: =IF(AND(ISNUMBER(B22),ISNUMBER(B29)),IF(ABS(B22-B29)/($G$18*SQRT(1/D22+1/D29))>$G$19,"signif.","not sign."),"n.a.") -> n.a. | AL22: =IF(AND(ISNUMBER(B22),ISNUMBER(B30)),IF(ABS(B22-B30)/($G$18*SQRT(1/D22+1/D30))>$G$19,"signif.","not sign."),"n.a.") -> n.a. | AM22: =IF(AND(ISNUMBER(B22),ISNUMBER(B31)),IF(ABS(B22-B31)/($G$18*SQRT(1/D22+1/D31))>$G$19,"signif.","not sign."),"n.a.") -> n.a. | AN22: =IF(AND(ISNUMBER(B22),ISNUMBER(B32)),IF(ABS(B22-B32)/($G$18*SQRT(1/D22+1/D32))>$G$19,"signif.","not sign."),"n.a.") -> n.a. | AO22: =IF(AND(ISNUMBER(B22),ISNUMBER(B33)),IF(ABS(B22-B33)/($G$18*SQRT(1/D22+1/D33))>$G$19,"signif.","not sign."),"n.a.") -> n.a.
A23: Group 22 | I23: G22 | AF23: =IF(AND(ISNUMBER(B23),ISNUMBER(B24)),IF(ABS(B23-B24)/($G$18*SQRT(1/D23+1/D24))>$G$19,"signif.","not sign."),"n.a.") -> n.a. | AG23: =IF(AND(ISNUMBER(B23),ISNUMBER(B25)),IF(ABS(B23-B25)/($G$18*SQRT(1/D23+1/D25))>$G$19,"signif.","not sign."),"n.a.") -> n.a. | AH23: =IF(AND(ISNUMBER(B23),ISNUMBER(B26)),IF(ABS(B23-B26)/($G$18*SQRT(1/D23+1/D26))>$G$19,"signif.","not sign."),"n.a.") -> n.a. | AI23: =IF(AND(ISNUMBER(B23),ISNUMBER(B27)),IF(ABS(B23-B27)/($G$18*SQRT(1/D23+1/D27))>$G$19,"signif.","not sign."),"n.a.") -> n.a. | AJ23: =IF(AND(ISNUMBER(B23),ISNUMBER(B28)),IF(ABS(B23-B28)/($G$18*SQRT(1/D23+1/D28))>$G$19,"signif.","not sign."),"n.a.") -> n.a. | AK23: =IF(AND(ISNUMBER(B23),ISNUMBER(B29)),IF(ABS(B23-B29)/($G$18*SQRT(1/D23+1/D29))>$G$19,"signif.","not sign."),"n.a.") -> n.a. | AL23: =IF(AND(ISNUMBER(B23),ISNUMBER(B30)),IF(ABS(B23-B30)/($G$18*SQRT(1/D23+1/D30))>$G$19,"signif.","not sign."),"n.a.") -> n.a. | AM23: =IF(AND(ISNUMBER(B23),ISNUMBER(B31)),IF(ABS(B23-B31)/($G$18*SQRT(1/D23+1/D31))>$G$19,"signif.","not sign."),"n.a.") -> n.a. | AN23: =IF(AND(ISNUMBER(B23),ISNUMBER(B32)),IF(ABS(B23-B32)/($G$18*SQRT(1/D23+1/D32))>$G$19,"signif.","not sign."),"n.a.") -> n.a. | AO23: =IF(AND(ISNUMBER(B23),ISNUMBER(B33)),IF(ABS(B23-B33)/($G$18*SQRT(1/D23+1/D33))>$G$19,"signif.","not sign."),"n.a.") -> n.a.
A24: Group 23 | I24: G23 | AG24: =IF(AND(ISNUMBER(B24),ISNUMBER(B25)),IF(ABS(B24-B25)/($G$18*SQRT(1/D24+1/D25))>$G$19,"signif.","not sign."),"n.a.") -> n.a. | AH24: =IF(AND(ISNUMBER(B24),ISNUMBER(B26)),IF(ABS(B24-B26)/($G$18*SQRT(1/D24+1/D26))>$G$19,"signif.","not sign."),"n.a.") -> n.a. | AI24: =IF(AND(ISNUMBER(B24),ISNUMBER(B27)),IF(ABS(B24-B27)/($G$18*SQRT(1/D24+1/D27))>$G$19,"signif.","not sign."),"n.a.") -> n.a. | AJ24: =IF(AND(ISNUMBER(B24),ISNUMBER(B28)),IF(ABS(B24-B28)/($G$18*SQRT(1/D24+1/D28))>$G$19,"signif.","not sign."),"n.a.") -> n.a. | AK24: =IF(AND(ISNUMBER(B24),ISNUMBER(B29)),IF(ABS(B24-B29)/($G$18*SQRT(1/D24+1/D29))>$G$19,"signif.","not sign."),"n.a.") -> n.a. | AL24: =IF(AND(ISNUMBER(B24),ISNUMBER(B30)),IF(ABS(B24-B30)/($G$18*SQRT(1/D24+1/D30))>$G$19,"signif.","not sign."),"n.a.") -> n.a. | AM24: =IF(AND(ISNUMBER(B24),ISNUMBER(B31)),IF(ABS(B24-B31)/($G$18*SQRT(1/D24+1/D31))>$G$19,"signif.","not sign."),"n.a.") -> n.a. | AN24: =IF(AND(ISNUMBER(B24),ISNUMBER(B32)),IF(ABS(B24-B32)/($G$18*SQRT(1/D24+1/D32))>$G$19,"signif.","not sign."),"n.a.") -> n.a. | AO24: =IF(AND(ISNUMBER(B24),ISNUMBER(B33)),IF(ABS(B24-B33)/($G$18*SQRT(1/D24+1/D33))>$G$19,"signif.","not sign."),"n.a.") -> n.a.
A25: Group 24 | I25: G24 | AH25: =IF(AND(ISNUMBER(B25),ISNUMBER(B26)),IF(ABS(B25-B26)/($G$18*SQRT(1/D25+1/D26))>$G$19,"signif.","not sign."),"n.a.") -> n.a. | AI25: =IF(AND(ISNUMBER(B25),ISNUMBER(B27)),IF(ABS(B25-B27)/($G$18*SQRT(1/D25+1/D27))>$G$19,"signif.","not sign."),"n.a.") -> n.a. | AJ25: =IF(AND(ISNUMBER(B25),ISNUMBER(B28)),IF(ABS(B25-B28)/($G$18*SQRT(1/D25+1/D28))>$G$19,"signif.","not sign."),"n.a.") -> n.a. | AK25: =IF(AND(ISNUMBER(B25),ISNUMBER(B29)),IF(ABS(B25-B29)/($G$18*SQRT(1/D25+1/D29))>$G$19,"signif.","not sign."),"n.a.") -> n.a. | AL25: =IF(AND(ISNUMBER(B25),ISNUMBER(B30)),IF(ABS(B25-B30)/($G$18*SQRT(1/D25+1/D30))>$G$19,"signif.","not sign."),"n.a.") -> n.a. | AM25: =IF(AND(ISNUMBER(B25),ISNUMBER(B31)),IF(ABS(B25-B31)/($G$18*SQRT(1/D25+1/D31))>$G$19,"signif.","not sign."),"n.a.") -> n.a. | AN25: =IF(AND(ISNUMBER(B25),ISNUMBER(B32)),IF(ABS(B25-B32)/($G$18*SQRT(1/D25+1/D32))>$G$19,"signif.","not sign."),"n.a.") -> n.a. | AO25: =IF(AND(ISNUMBER(B25),ISNUMBER(B33)),IF(ABS(B25-B33)/($G$18*SQRT(1/D25+1/D33))>$G$19,"signif.","not sign."),"n.a.") -> n.a.
A26: Group 25 | I26: G25 | AI26: =IF(AND(ISNUMBER(B26),ISNUMBER(B27)),IF(ABS(B26-B27)/($G$18*SQRT(1/D26+1/D27))>$G$19,"signif.","not sign."),"n.a.") -> n.a. | AJ26: =IF(AND(ISNUMBER(B26),ISNUMBER(B28)),IF(ABS(B26-B28)/($G$18*SQRT(1/D26+1/D28))>$G$19,"signif.","not sign."),"n.a.") -> n.a. | AK26: =IF(AND(ISNUMBER(B26),ISNUMBER(B29)),IF(ABS(B26-B29)/($G$18*SQRT(1/D26+1/D29))>$G$19,"signif.","not sign."),"n.a.") -> n.a. | AL26: =IF(AND(ISNUMBER(B26),ISNUMBER(B30)),IF(ABS(B26-B30)/($G$18*SQRT(1/D26+1/D30))>$G$19,"signif.","not sign."),"n.a.") -> n.a. | AM26: =IF(AND(ISNUMBER(B26),ISNUMBER(B31)),IF(ABS(B26-B31)/($G$18*SQRT(1/D26+1/D31))>$G$19,"signif.","not sign."),"n.a.") -> n.a. | AN26: =IF(AND(ISNUMBER(B26),ISNUMBER(B32)),IF(ABS(B26-B32)/($G$18*SQRT(1/D26+1/D32))>$G$19,"signif.","not sign."),"n.a.") -> n.a. | AO26: =IF(AND(ISNUMBER(B26),ISNUMBER(B33)),IF(ABS(B26-B33)/($G$18*SQRT(1/D26+1/D33))>$G$19,"signif.","not sign."),"n.a.") -> n.a.
A27: Group 26 | I27: G26 | AJ27: =IF(AND(ISNUMBER(B27),ISNUMBER(B28)),IF(ABS(B27-B28)/($G$18*SQRT(1/D27+1/D28))>$G$19,"signif.","not sign."),"n.a.") -> n.a. | AK27: =IF(AND(ISNUMBER(B27),ISNUMBER(B29)),IF(ABS(B27-B29)/($G$18*SQRT(1/D27+1/D29))>$G$19,"signif.","not sign."),"n.a.") -> n.a. | AL27: =IF(AND(ISNUMBER(B27),ISNUMBER(B30)),IF(ABS(B27-B30)/($G$18*SQRT(1/D27+1/D30))>$G$19,"signif.","not sign."),"n.a.") -> n.a. | AM27: =IF(AND(ISNUMBER(B27),ISNUMBER(B31)),IF(ABS(B27-B31)/($G$18*SQRT(1/D27+1/D31))>$G$19,"signif.","not sign."),"n.a.") -> n.a. | AN27: =IF(AND(ISNUMBER(B27),ISNUMBER(B32)),IF(ABS(B27-B32)/($G$18*SQRT(1/D27+1/D32))>$G$19,"signif.","not sign."),"n.a.") -> n.a. | AO27: =IF(AND(ISNUMBER(B27),ISNUMBER(B33)),IF(ABS(B27-B33)/($G$18*SQRT(1/D27+1/D33))>$G$19,"signif.","not sign."),"n.a.") -> n.a.
A28: Group 27 | I28: G27 | AK28: =IF(AND(ISNUMBER(B28),ISNUMBER(B29)),IF(ABS(B28-B29)/($G$18*SQRT(1/D28+1/D29))>$G$19,"signif.","not sign."),"n.a.") -> n.a. | AL28: =IF(AND(ISNUMBER(B28),ISNUMBER(B30)),IF(ABS(B28-B30)/($G$18*SQRT(1/D28+1/D30))>$G$19,"signif.","not sign."),"n.a.") -> n.a. | AM28: =IF(AND(ISNUMBER(B28),ISNUMBER(B31)),IF(ABS(B28-B31)/($G$18*SQRT(1/D28+1/D31))>$G$19,"signif.","not sign."),"n.a.") -> n.a. | AN28: =IF(AND(ISNUMBER(B28),ISNUMBER(B32)),IF(ABS(B28-B32)/($G$18*SQRT(1/D28+1/D32))>$G$19,"signif.","not sign."),"n.a.") -> n.a. | AO28: =IF(AND(ISNUMBER(B28),ISNUMBER(B33)),IF(ABS(B28-B33)/($G$18*SQRT(1/D28+1/D33))>$G$19,"signif.","not sign."),"n.a.") -> n.a.
A29: Group 28 | I29: G28 | AL29: =IF(AND(ISNUMBER(B29),ISNUMBER(B30)),IF(ABS(B29-B30)/($G$18*SQRT(1/D29+1/D30))>$G$19,"signif.","not sign."),"n.a.") -> n.a. | AM29: =IF(AND(ISNUMBER(B29),ISNUMBER(B31)),IF(ABS(B29-B31)/($G$18*SQRT(1/D29+1/D31))>$G$19,"signif.","not sign."),"n.a.") -> n.a. | AN29: =IF(AND(ISNUMBER(B29),ISNUMBER(B32)),IF(ABS(B29-B32)/($G$18*SQRT(1/D29+1/D32))>$G$19,"signif.","not sign."),"n.a.") -> n.a. | AO29: =IF(AND(ISNUMBER(B29),ISNUMBER(B33)),IF(ABS(B29-B33)/($G$18*SQRT(1/D29+1/D33))>$G$19,"signif.","not sign."),"n.a.") -> n.a.
A30: Group 29 | I30: G29 | AM30: =IF(AND(ISNUMBER(B30),ISNUMBER(B31)),IF(ABS(B30-B31)/($G$18*SQRT(1/D30+1/D31))>$G$19,"signif.","not sign."),"n.a.") -> n.a. | AN30: =IF(AND(ISNUMBER(B30),ISNUMBER(B32)),IF(ABS(B30-B32)/($G$18*SQRT(1/D30+1/D32))>$G$19,"signif.","not sign."),"n.a.") -> n.a. | AO30: =IF(AND(ISNUMBER(B30),ISNUMBER(B33)),IF(ABS(B30-B33)/($G$18*SQRT(1/D30+1/D33))>$G$19,"signif.","not sign."),"n.a.") -> n.a.
A31: Group 30 | I31: G30 | AN31: =IF(AND(ISNUMBER(B31),ISNUMBER(B32)),IF(ABS(B31-B32)/($G$18*SQRT(1/D31+1/D32))>$G$19,"signif.","not sign."),"n.a.") -> n.a. | AO31: =IF(AND(ISNUMBER(B31),ISNUMBER(B33)),IF(ABS(B31-B33)/($G$18*SQRT(1/D31+1/D33))>$G$19,"signif.","not sign."),"n.a.") -> n.a.
A32: Group 31 | I32: G31 | AO32: =IF(AND(ISNUMBER(B32),ISNUMBER(B33)),IF(ABS(B32-B33)/($G$18*SQRT(1/D32+1/D33))>$G$19,"signif.","not sign."),"n.a.") -> n.a.
A33: Group 32 | I33: G32
I36: p values
I37: Tukey's HSD | J37: G1 | K37: G2 | L37: G3 | M37: G4 | N37: G5 | O37: G6 | P37: G7 | Q37: G8 | R37: G9 | S37: G10 | T37: G11 | U37: G12 | V37: G13 | W37: G14 | X37: G15 | Y37: G16 | Z37: G17 | AA37: G18 | AB37: G19 | AC37: G20 | AD37: G21 | AE37: G22 | AF37: G23 | AG37: G24 | AH37: G25 | AI37: G26 | AJ37: G27 | AK37: G28 | AL37: G29 | AM37: G30 | AN37: G31 | AO37: G32
I38: G1 | K38: 0.001228574216 | L38: 0.9979683268 | M38: 0.5814839893 | N38: n.a. | O38: n.a. | P38: n.a. | Q38: n.a. | R38: n.a. | S38: n.a. | T38: n.a. | U38: n.a. | V38: n.a. | W38: n.a. | X38: n.a. | Y38: n.a. | Z38: n.a. | AA38: n.a. | AB38: n.a. | AC38: n.a. | AD38: n.a. | AE38: n.a. | AF38: n.a. | AG38: n.a. | AH38: n.a. | AI38: n.a. | AJ38: n.a. | AK38: n.a. | AL38: n.a. | AM38: n.a. | AN38: n.a. | AO38: n.a.
I39: G2 | L39: 0.001228574216 | M39: 0.001228574264 | N39: n.a. | O39: n.a. | P39: n.a. | Q39: n.a. | R39: n.a. | S39: n.a. | T39: n.a. | U39: n.a. | V39: n.a. | W39: n.a. | X39: n.a. | Y39: n.a. | Z39: n.a. | AA39: n.a. | AB39: n.a. | AC39: n.a. | AD39: n.a. | AE39: n.a. | AF39: n.a. | AG39: n.a. | AH39: n.a. | AI39: n.a. | AJ39: n.a. | AK39: n.a. | AL39: n.a. | AM39: n.a. | AN39: n.a. | AO39: n.a.
I40: G3 | M40: 0.7091233583 | N40: n.a. | O40: n.a. | P40: n.a. | Q40: n.a. | R40: n.a. | S40: n.a. | T40: n.a. | U40: n.a. | V40: n.a. | W40: n.a. | X40: n.a. | Y40: n.a. | Z40: n.a. | AA40: n.a. | AB40: n.a. | AC40: n.a. | AD40: n.a. | AE40: n.a. | AF40: n.a. | AG40: n.a. | AH40: n.a. | AI40: n.a. | AJ40: n.a. | AK40: n.a. | AL40: n.a. | AM40: n.a. | AN40: n.a. | AO40: n.a.
I41: G4 | N41: n.a. | O41: n.a. | P41: n.a. | Q41: n.a. | R41: n.a. | S41: n.a. | T41: n.a. | U41: n.a. | V41: n.a. | W41: n.a. | X41: n.a. | Y41: n.a. | Z41: n.a. | AA41: n.a. | AB41: n.a. | AC41: n.a. | AD41: n.a. | AE41: n.a. | AF41: n.a. | AG41: n.a. | AH41: n.a. | AI41: n.a. | AJ41: n.a. | AK41: n.a. | AL41: n.a. | AM41: n.a. | AN41: n.a. | AO41: n.a.
I42: G5 | O42: n.a. | P42: n.a. | Q42: n.a. | R42: n.a. | S42: n.a. | T42: n.a. | U42: n.a. | V42: n.a. | W42: n.a. | X42: n.a. | Y42: n.a. | Z42: n.a. | AA42: n.a. | AB42: n.a. | AC42: n.a. | AD42: n.a. | AE42: n.a. | AF42: n.a. | AG42: n.a. | AH42: n.a. | AI42: n.a. | AJ42: n.a. | AK42: n.a. | AL42: n.a. | AM42: n.a. | AN42: n.a. | AO42: n.a.
I43: G6 | P43: n.a. | Q43: n.a. | R43: n.a. | S43: n.a. | T43: n.a. | U43: n.a. | V43: n.a. | W43: n.a. | X43: n.a. | Y43: n.a. | Z43: n.a. | AA43: n.a. | AB43: n.a. | AC43: n.a. | AD43: n.a. | AE43: n.a. | AF43: n.a. | AG43: n.a. | AH43: n.a. | AI43: n.a. | AJ43: n.a. | AK43: n.a. | AL43: n.a. | AM43: n.a. | AN43: n.a. | AO43: n.a.
I44: G7 | Q44: n.a. | R44: n.a. | S44: n.a. | T44: n.a. | U44: n.a. | V44: n.a. | W44: n.a. | X44: n.a. | Y44: n.a. | Z44: n.a. | AA44: n.a. | AB44: n.a. | AC44: n.a. | AD44: n.a. | AE44: n.a. | AF44: n.a. | AG44: n.a. | AH44: n.a. | AI44: n.a. | AJ44: n.a. | AK44: n.a. | AL44: n.a. | AM44: n.a. | AN44: n.a. | AO44: n.a.
I45: G8 | R45: n.a. | S45: n.a. | T45: n.a. | U45: n.a. | V45: n.a. | W45: n.a. | X45: n.a. | Y45: n.a. | Z45: n.a. | AA45: n.a. | AB45: n.a. | AC45: n.a. | AD45: n.a. | AE45: n.a. | AF45: n.a. | AG45: n.a. | AH45: n.a. | AI45: n.a. | AJ45: n.a. | AK45: n.a. | AL45: n.a. | AM45: n.a. | AN45: n.a. | AO45: n.a.
I46: G9 | S46: n.a. | T46: n.a. | U46: n.a. | V46: n.a. | W46: n.a. | X46: n.a. | Y46: n.a. | Z46: n.a. | AA46: n.a. | AB46: n.a. | AC46: n.a. | AD46: n.a. | AE46: n.a. | AF46: n.a. | AG46: n.a. | AH46: n.a. | AI46: n.a. | AJ46: n.a. | AK46: n.a. | AL46: n.a. | AM46: n.a. | AN46: n.a. | AO46: n.a.
I47: G10 | T47: n.a. | U47: n.a. | V47: n.a. | W47: n.a. | X47: n.a. | Y47: n.a. | Z47: n.a. | AA47: n.a. | AB47: n.a. | AC47: n.a. | AD47: n.a. | AE47: n.a. | AF47: n.a. | AG47: n.a. | AH47: n.a. | AI47: n.a. | AJ47: n.a. | AK47: n.a. | AL47: n.a. | AM47: n.a. | AN47: n.a. | AO47: n.a.
I48: G11 | U48: n.a. | V48: n.a. | W48: n.a. | X48: n.a. | Y48: n.a. | Z48: n.a. | AA48: n.a. | AB48: n.a. | AC48: n.a. | AD48: n.a. | AE48: n.a. | AF48: n.a. | AG48: n.a. | AH48: n.a. | AI48: n.a. | AJ48: n.a. | AK48: n.a. | AL48: n.a. | AM48: n.a. | AN48: n.a. | AO48: n.a.
I49: G12 | V49: n.a. | W49: n.a. | X49: n.a. | Y49: n.a. | Z49: n.a. | AA49: n.a. | AB49: n.a. | AC49: n.a. | AD49: n.a. | AE49: n.a. | AF49: n.a. | AG49: n.a. | AH49: n.a. | AI49: n.a. | AJ49: n.a. | AK49: n.a. | AL49: n.a. | AM49: n.a. | AN49: n.a. | AO49: n.a.
I50: G13 | W50: n.a. | X50: n.a. | Y50: n.a. | Z50: n.a. | AA50: n.a. | AB50: n.a. | AC50: n.a. | AD50: n.a. | AE50: n.a. | AF50: n.a. | AG50: n.a. | AH50: n.a. | AI50: n.a. | AJ50: n.a. | AK50: n.a. | AL50: n.a. | AM50: n.a. | AN50: n.a. | AO50: n.a.
I51: G14 | X51: n.a. | Y51: n.a. | Z51: n.a. | AA51: n.a. | AB51: n.a. | AC51: n.a. | AD51: n.a. | AE51: n.a. | AF51: n.a. | AG51: n.a. | AH51: n.a. | AI51: n.a. | AJ51: n.a. | AK51: n.a. | AL51: n.a. | AM51: n.a. | AN51: n.a. | AO51: n.a.
I52: G15 | Y52: n.a. | Z52: n.a. | AA52: n.a. | AB52: n.a. | AC52: n.a. | AD52: n.a. | AE52: n.a. | AF52: n.a. | AG52: n.a. | AH52: n.a. | AI52: n.a. | AJ52: n.a. | AK52: n.a. | AL52: n.a. | AM52: n.a. | AN52: n.a. | AO52: n.a.
I53: G16 | Z53: n.a. | AA53: n.a. | AB53: n.a. | AC53: n.a. | AD53: n.a. | AE53: n.a. | AF53: n.a. | AG53: n.a. | AH53: n.a. | AI53: n.a. | AJ53: n.a. | AK53: n.a. | AL53: n.a. | AM53: n.a. | AN53: n.a. | AO53: n.a.
I54: G17 | AA54: n.a. | AB54: n.a. | AC54: n.a. | AD54: n.a. | AE54: n.a. | AF54: n.a. | AG54: n.a. | AH54: n.a. | AI54: n.a. | AJ54: n.a. | AK54: n.a. | AL54: n.a. | AM54: n.a. | AN54: n.a. | AO54: n.a.
I55: G18 | AB55: n.a. | AC55: n.a. | AD55: n.a. | AE55: n.a. | AF55: n.a. | AG55: n.a. | AH55: n.a. | AI55: n.a. | AJ55: n.a. | AK55: n.a. | AL55: n.a. | AM55: n.a. | AN55: n.a. | AO55: n.a.
I56: G19 | AC56: n.a. | AD56: n.a. | AE56: n.a. | AF56: n.a. | AG56: n.a. | AH56: n.a. | AI56: n.a. | AJ56: n.a. | AK56: n.a. | AL56: n.a. | AM56: n.a. | AN56: n.a. | AO56: n.a.
I57: G20 | AD57: n.a. | AE57: n.a. | AF57: n.a. | AG57: n.a. | AH57: n.a. | AI57: n.a. | AJ57: n.a. | AK57: n.a. | AL57: n.a. | AM57: n.a. | AN57: n.a. | AO57: n.a.
I58: G21 | AE58: n.a. | AF58: n.a. | AG58: n.a. | AH58: n.a. | AI58: n.a. | AJ58: n.a. | AK58: n.a. | AL58: n.a. | AM58: n.a. | AN58: n.a. | AO58: n.a.
I59: G22 | AF59: n.a. | AG59: n.a. | AH59: n.a. | AI59: n.a. | AJ59: n.a. | AK59: n.a. | AL59: n.a. | AM59: n.a. | AN59: n.a. | AO59: n.a.
I60: G23 | AG60: n.a. | AH60: n.a. | AI60: n.a. | AJ60: n.a. | AK60: n.a. | AL60: n.a. | AM60: n.a. | AN60: n.a. | AO60: n.a.
I61: G24 | AH61: n.a. | AI61: n.a. | AJ61: n.a. | AK61: n.a. | AL61: n.a. | AM61: n.a. | AN61: n.a. | AO61: n.a.
I62: G25 | AI62: n.a. | AJ62: n.a. | AK62: n.a. | AL62: n.a. | AM62: n.a. | AN62: n.a. | AO62: n.a.
I63: G26 | AJ63: n.a. | AK63: n.a. | AL63: n.a. | AM63: n.a. | AN63: n.a. | AO63: n.a.
I64: G27 | AK64: n.a. | AL64: n.a. | AM64: n.a. | AN64: n.a. | AO64: n.a.
I65: G28 | AL65: n.a. | AM65: n.a. | AN65: n.a. | AO65: n.a.
I66: G29 | AM66: n.a. | AN66: n.a. | AO66: n.a.
I67: G30 | AN67: n.a. | AO67: n.a.
I68: G31 | AO68: n.a.
I69: G32

Sheet 2-3-way ANOVA
A1: Levels of factor A | B1: Levels of factor B | C1: Mean | D1: SD | E1: n | H1: Number of factors | I1: 2 | J1: Written by Peter Nagy
A2: level 1 | B2: level 1 | C2: 1 | D2: 0.3026330161 | E2: 4 | H2: Number of levels of factor A | I2: 3 | J2: peter.v.nagy@gmail.com
A3: level 1 | B3: level 2 | C3: 1.640395487 | D3: 0.5205751996 | E3: 4 | H3: Number of levels of factor B | I3: 2
A4: level 2 | B4: level 1 | C4: 0.8544477279 | D4: 0.3026330161 | E4: 4
A5: level 2 | B5: level 2 | C5: 1.237146351 | D5: 0.1331989657 | E5: 4
A6: level 3 | B6: level 1 | C6: 0.975834549 | D6: 0.1353668624 | E6: 4 | H6: Grand mean | I6: =SUMPRODUCT(OFFSET(C2,0,I1-2,I7,1),OFFSET(E2,0,I1-2,I7,1))/SUM(OFFSET(E2,0,0,I7,1)) -> 1.304936446
A7: level 3 | B7: level 2 | C7: 2.121794562 | D7: 0.1599993574 | E7: 4 | H7: Total number of groups | I7: =IF(I1=2,I2*I3,I2*I3*I4) -> 6
H8: Total # of elements (corrected) | I8: 24
H9: SS(total) | I9: =I10+I11 -> 6.301993216
H10: SS(between groups) | I10: 4.754479307
H11: SS(within groups) | I11: 1.547513909
H13: MS(between groups) | I13: =I10/(I7-1) -> 0.9508958615
H14: MS(within groups) | I14: =I11/(I8-I7) -> 0.08597299494
H15: level of significance (posthoc) | I15: 0.05
N16: Variances assumed to be equal.
H17: Bartlett test c2 | I17: 8.128612901 | N17: p values of Tukey's HSD tests | O17: p values of Dunn-Bonferroni tests (significant if p<FWE/# of contrasts tested)
H18: Bartlett test p value | I18: 0.2288314533
H20: 2-way ANOVA results | J20: 3-way ANOVA results | N20: Number of elements when p values were calculated: 6 | O20: Number of contrasts when p values were calculated: 15
H21: SS(A) | I21: 1.014901372 | J21: SS(A) | K21: 3485.045859
H22: SS(B) | I22: 3.136530527 | J22: SS(B) | K22: 8323.787216 | M22: A(1), B(1) vs. A(1), B(2) | N22: 0.06070968512 | O22: 0.006333271893
H23: SS(AB) | I23: =I10-I21-I22 -> 0.6030474086 | J23: SS(C) | K23: 360.5587696 | M23: A(1), B(1) vs. A(2), B(1) | N23: 0.9798340274 | O23: 0.4916420008
J24: SS(AB) | K24: 6480.457175 | M24: A(1), B(1) vs. A(2), B(2) | N24: 0.8572119764 | O24: 0.2676901975
H25: MS(A) | I25: =I21/(I2-1) -> 0.5074506859 | J25: SS(AC) | K25: 172.8121913 | M25: A(1), B(1) vs. A(3), B(1) | N25: 0.9999967434 | O25: 0.9085037179
H26: MS(B) | I26: =I22/(I3-1) -> 3.136530527 | J26: SS(BC) | K26: 172.8121913 | M26: A(1), B(1) vs. A(3), B(2) | N26: 0.002200184369 | O26: 3.851142239e-05
H27: MS(AB) | I27: =I23/((I2-1)*(I3-1)) -> 0.3015237043 | J27: SS(ABC) | K27: =I10-SUM(K21:K26) -> -18990.71892 | M27: A(1), B(2) vs. A(2), B(1) | N27: 0.01558071497 | O27: 0.001338636849
M28: A(1), B(2) vs. A(2), B(2) | N28: 0.4094862393 | O28: 0.06757399908
H29: F(A) | I29: =I25/I$14 -> 5.902442811 | J29: MS(A) | K29: =K21/(I2-1) -> 1742.522929 | M29: A(1), B(2) vs. A(3), B(1) | N29: 0.04857334518 | O29: 0.004904993199
H30: F(B) | I30: =I26/I$14 -> 36.48274123 | J30: MS(B) | K30: =K22/(I3-1) -> 8323.787216 | M30: A(1), B(2) vs. A(3), B(2) | N30: 0.2369326365 | O30: 0.03216939622
H31: F(AB) | I31: =I27/I$14 -> 3.507190886 | J31: MS(C) | K31: =K23/(I4-1) -> -360.5587696 | M31: A(2), B(1) vs. A(2), B(2) | N31: 0.4642010055 | O31: 0.08143105888
J32: MS(AB) | K32: =K24/((I2-1)*(I3-1)) -> 3240.228588 | M32: A(2), B(1) vs. A(3), B(1) | N32: 0.9912476102 | O32: 0.5654996614
H33: p(A) | I33: =_xlfn.F.DIST.RT(I29,I2-1,I$8-I$2*I$3) -> 0.01068723626 | J33: MS(AC) | K33: =K25/((I2-1)*(I4-1)) -> -86.40609567 | M33: A(2), B(1) vs. A(3), B(2) | N33: 0.001949038427 | O33: 8.955399328e-06
H34: p(B) | I34: =_xlfn.F.DIST.RT(I30,I3-1,I$8-I$2*I$3) -> 1.038259709e-05 | J34: MS(BC) | K34: =K26/((I3-1)*(I4-1)) -> -172.8121913 | M34: A(2), B(2) vs. A(3), B(1) | N34: 0.8023458423 | O34: 0.2236357601
H35: p(AB) | I35: =_xlfn.F.DIST.RT(I31,(I2-1)*(I3-1),I$8-I$2*I$3) -> 0.05173025053 | J35: MS(ABC) | K35: =K27/((I2-1)*(I3-1)*(I4-1)) -> 9495.359461 | M35: A(2), B(2) vs. A(3), B(2) | N35: 0.006662424661 | O35: 0.0004640143615
M36: A(3), B(1) vs. A(3), B(2) | N36: 0.002127009482 | O36: 3.010216945e-05
J37: F(A) | K37: =K29/I$14 -> 20268.25901
J38: F(B) | K38: =K30/I$14 -> 96818.62569
J39: F(C) | K39: -4193.860756
J40: F(AB) | K40: 37688.91138
J41: F(AC) | K41: -1005.037637
J42: F(BC) | K42: -2010.075274
J43: F(ABC) | K43: 110445.8379
J45: p(A) | K45: =_xlfn.F.DIST.RT(K37,I2-1,I$8-I$2*I$3*I$4) -> 1.842014247e-39
J46: p(B) | K46: =_xlfn.F.DIST.RT(K38,I3-1,I$8-I$2*I$3*I$4) -> 8.651626379e-45
J47: p(C) | K47: =_xlfn.F.DIST.RT(K39,I4-1,I$8-I$2*I$3*I$4) -> 
J48: p(AB) | K48: =_xlfn.F.DIST.RT(K40,(I2-1)*(I3-1),I$8-I$2*I$3*I$4) -> 1.081316338e-42
J49: p(AC) | K49: =_xlfn.F.DIST.RT(K41,(I2-1)*(I4-1),I$8-I$2*I$3*I$4) -> 
J50: p(BC) | K50: =_xlfn.F.DIST.RT(K42,(I3-1)*(I4-1),I$8-I$2*I$3*I$4) -> 
J51: p(ABC) | K51: =_xlfn.F.DIST.RT(K43,(I2-1)*(I3-1)*(I4-1),I$8-I$2*I$3*I$4) -> 

Sheet rep. meas. ANOVA(1)
B1: Treat 1 | C1: Treat 2 | D1: Treat 3 | E1: Treat 4 | G1: Repeated-measures ANOVA report | J1: Written by Peter Nagy
A2: Subject 1 | B2: 80 | C2: 60 | D2: 95 | E2: 100 | G2: Grand mean | H2: 66.25 | J2: peter.v.nagy@gmail.com
A3: Subject 2 | B3: 95 | C3: 90 | D3: 95 | E3: 95 | G3: SS(total) | H3: 30037.5
A4: Subject 3 | B4: 65 | C4: 55 | D4: 50 | E4: 45 | G4: SS(subject) | H4: 20237.5
A5: Subject 4 | B5: 50 | C5: 45 | D5: 70 | E5: 70 | G5: SS(treatment) | H5: 2395.833333
A6: Subject 5 | B6: 60 | C6: 75 | D6: 80 | E6: 85 | G6: SS(error) | H6: 7404.166667
A7: Subject 6 | B7: 70 | C7: 70 | D7: 75 | E7: 70 | G7: MS(subject) | H7: 1190.441176
A8: Subject 7 | B8: 80 | C8: 80 | D8: 85 | E8: 80 | G8: MS(treatment) | H8: 798.6111111
A9: Subject 8 | B9: 70 | C9: 60 | D9: 75 | E9: 65 | G9: MS(error) | H9: 145.1797386
A10: Subject 9 | B10: 80 | C10: 80 | D10: 70 | E10: 65 | G10: F(subject) | H10: 8.199774902
A11: Subject 10 | B11: 65 | C11: 30 | D11: 45 | E11: 60 | G11: F(treatment) | H11: 5.500844119
A12: Subject 11 | B12: 60 | C12: 70 | D12: 95 | E12: 80 | G12: p(subject) | H12: 2.17875421e-09
A13: Subject 12 | B13: 50 | C13: 50 | D13: 70 | E13: 60 | G13: p(treatment) | H13: 0.002371183739
A14: Subject 13 | B14: 50 | C14: 65 | D14: 80 | E14: 65
A15: Subject 14 | B15: 85 | C15: 45 | D15: 85 | E15: 80 | G15: Posthoc Tukey's HSD test p values
A16: Subject 15 | B16: 50 | C16: 65 | D16: 90 | E16: 70 | G16: T 1 vs. T 2 | H16: 0.924879539
A17: Subject 16 | B17: 15 | C17: 30 | D17: 20 | E17: 25 | G17: T 1 vs. T 3 | H17: 0.02556962158
A18: Subject 17 | B18: 10 | C18: 15 | D18: 55 | E18: 75 | G18: T 1 vs. T 4 | H18: 0.1965127161
A19: Subject 18 | B19: 80 | C19: 85 | D19: 90 | E19: 70 | G19: T 2 vs. T 3 | H19: 0.004793463575
G20: T 2 vs. T 4 | H20: 0.05125279239
G21: T 3 vs. T 4 | H21: 0.8056191602
G23: Alpha | H23: 0.05
G25: Treatment group | H25: Means | I25: SDs
G26: T 1 | H26: 61.94444444 | I26: 22.43545572
G27: T 2 | H27: 59.44444444 | I27: 20.57188894
G28: T 3 | H28: 73.61111111 | I28: 20.1323237
G29: T 4 | H29: 70 | I29: 17.14985851

Sheet poly. reg.
A1: known x | B1: known y | AD1: x | AE1: x2 | AF1: x3 | AG1: x4 | AH1: x5 | AI1: x6 | AJ1: x7 | AK1: x8 | AL1: x9 | AM1: x10 | AO1: linear | AP1: 2nd order | AQ1: 3rd order | AR1: 4th order | AS1: 5th order | AT1: 6th order | AU1: 7th order | AV1: 8th order | AW1: 9th order | AX1: 10th order
A2: 1 | B2: 11.56 | E2: linear | F2: 2nd order | G2: 3rd order | H2: 4th order | I2: 5th order | J2: 6th order | K2: 7th order | L2: 8th order | M2: 9th order | N2: 10th order | Q2: linear | R2: x | S2: intercept | AD2: =IF($A2<>"",$A2^(COLUMN(AD1)-29),"") -> 1 | AE2: =IF($A2<>"",$A2^(COLUMN(AE1)-29),"") -> 1 | AF2: =IF($A2<>"",$A2^(COLUMN(AF1)-29),"") -> 1 | AG2: =IF($A2<>"",$A2^(COLUMN(AG1)-29),"") -> 1 | AH2: =IF($A2<>"",$A2^(COLUMN(AH1)-29),"") -> 1 | AI2: =IF($A2<>"",$A2^(COLUMN(AI1)-29),"") -> 1 | AJ2: =IF($A2<>"",$A2^(COLUMN(AJ1)-29),"") -> 1 | AK2: =IF($A2<>"",$A2^(COLUMN(AK1)-29),"") -> 1 | AL2: =IF($A2<>"",$A2^(COLUMN(AL1)-29),"") -> 1 | AM2: =IF($A2<>"",$A2^(COLUMN(AM1)-29),"") -> 1 | AO2: =IF($A2<>"",SUM($AD2:AD2*TRANSPOSE(OFFSET(E$8,0,0,1,1)))+E$7,"") -> 1928.305 | AP2: =IF($A2<>"",SUM($AD2:AE2*TRANSPOSE(OFFSET(F$8,0,0,2,1)))+F$7,"") -> -278.1888235 | AQ2: =IF($A2<>"",SUM($AD2:AF2*TRANSPOSE(OFFSET(G$8,0,0,3,1)))+G$7,"") -> 41.85007843 | AR2: =IF($A2<>"",SUM($AD2:AG2*TRANSPOSE(OFFSET(H$8,0,0,4,1)))+H$7,"") -> -84.11094943 | AS2: =IF($A2<>"",SUM($AD2:AH2*TRANSPOSE(OFFSET(I$8,0,0,5,1)))+I$7,"") -> 50.06651703 | AT2: =IF($A2<>"",SUM($AD2:AI2*TRANSPOSE(OFFSET(J$8,0,0,6,1)))+J$7,"") -> 33.48142828 | AU2: =IF($A2<>"",SUM($AD2:AJ2*TRANSPOSE(OFFSET(K$8,0,0,7,1)))+K$7,"") -> -9.570398352 | AV2: =IF($A2<>"",SUM($AD2:AK2*TRANSPOSE(OFFSET(L$8,0,0,8,1)))+L$7,"") -> 15.63146589 | AW2: =IF($A2<>"",SUM($AD2:AL2*TRANSPOSE(OFFSET(M$8,0,0,9,1)))+M$7,"") -> 10.31678982 | AX2: =IF($A2<>"",SUM($AD2:AM2*TRANSPOSE(OFFSET(N$8,0,0,10,1)))+N$7,"") -> 13.61189627
A3: 2 | B3: 5.48 | D3: r2 | E3: =R5 -> 0.8516809756 | F3: =R13 -> 0.9917465621 | G3: =R21 -> 0.9949037089 | H3: =R29 -> 0.9955607281 | I3: =R37 -> 0.9967806856 | J3: =R45 -> 0.9968174855 | K3: =R53 -> 0.9974084747 | L3: =R61 -> 0.9979956042 | M3: =R69 -> 0.9980890538 | N3: =R77 -> 0.9982515589 | Q3: coefficients | R3: =LINEST(OFFSET($B$2,0,0,$E$19,1),OFFSET($AD$2,0,0,$E$19,1),TRUE,TRUE) -> -688.503 | S3: 2616.808 | AD3: 2 | AE3: 4 | AF3: 8 | AG3: 16 | AH3: 32 | AI3: 64 | AJ3: 128 | AK3: 256 | AL3: 512 | AM3: 1024 | AO3: =IF($A3<>"",SUM($AD3:AD3*TRANSPOSE(OFFSET(E$8,0,0,1,1)))+E$7,"") -> 1239.802 | AP3: =IF($A3<>"",SUM($AD3:AE3*TRANSPOSE(OFFSET(F$8,0,0,2,1)))+F$7,"") -> -21.05161345 | AQ3: =IF($A3<>"",SUM($AD3:AF3*TRANSPOSE(OFFSET(G$8,0,0,3,1)))+G$7,"") -> 24.66822969 | AR3: =IF($A3<>"",SUM($AD3:AG3*TRANSPOSE(OFFSET(H$8,0,0,4,1)))+H$7,"") -> 78.65152735 | AS3: =IF($A3<>"",SUM($AD3:AH3*TRANSPOSE(OFFSET(I$8,0,0,5,1)))+I$7,"") -> -74.69414861 | AT3: =IF($A3<>"",SUM($AD3:AI3*TRANSPOSE(OFFSET(J$8,0,0,6,1)))+J$7,"") -> -41.5239711 | AU3: =IF($A3<>"",SUM($AD3:AJ3*TRANSPOSE(OFFSET(K$8,0,0,7,1)))+K$7,"") -> 87.63150877 | AV3: =IF($A3<>"",SUM($AD3:AK3*TRANSPOSE(OFFSET(L$8,0,0,8,1)))+L$7,"") -> -16.77621445 | AW3: =IF($A3<>"",SUM($AD3:AL3*TRANSPOSE(OFFSET(M$8,0,0,9,1)))+M$7,"") -> 12.07488406 | AX3: =IF($A3<>"",SUM($AD3:AM3*TRANSPOSE(OFFSET(N$8,0,0,10,1)))+N$7,"") -> -10.52013137
A4: 3 | B4: -31.88 | D4: d.f. | E4: =S6 -> 13 | F4: =S14 -> 12 | G4: =S22 -> 11 | H4: =S30 -> 10 | I4: =S38 -> 9 | J4: =S46 -> 8 | K4: =S54 -> 7 | L4: =S62 -> 6 | M4: =S70 -> 5 | N4: =S78 -> 4 | Q4: SEcoefficient | R4: 79.68821846 | S4: 724.534935 | AD4: 3 | AE4: 9 | AF4: 27 | AG4: 81 | AH4: 243 | AI4: 729 | AJ4: 2187 | AK4: 6561 | AL4: 19683 | AM4: 59049 | AO4: =IF($A4<>"",SUM($AD4:AD4*TRANSPOSE(OFFSET(E$8,0,0,1,1)))+E$7,"") -> 551.299 | AP4: =IF($A4<>"",SUM($AD4:AE4*TRANSPOSE(OFFSET(F$8,0,0,2,1)))+F$7,"") -> 90.60248739 | AQ4: =IF($A4<>"",SUM($AD4:AF4*TRANSPOSE(OFFSET(G$8,0,0,3,1)))+G$7,"") -> -32.48939797 | AR4: =IF($A4<>"",SUM($AD4:AG4*TRANSPOSE(OFFSET(H$8,0,0,4,1)))+H$7,"") -> 76.86138446 | AS4: =IF($A4<>"",SUM($AD4:AH4*TRANSPOSE(OFFSET(I$8,0,0,5,1)))+I$7,"") -> -54.3671267 | AT4: =IF($A4<>"",SUM($AD4:AI4*TRANSPOSE(OFFSET(J$8,0,0,6,1)))+J$7,"") -> -47.98824641 | AU4: =IF($A4<>"",SUM($AD4:AJ4*TRANSPOSE(OFFSET(K$8,0,0,7,1)))+K$7,"") -> -104.2867889 | AV4: =IF($A4<>"",SUM($AD4:AK4*TRANSPOSE(OFFSET(L$8,0,0,8,1)))+L$7,"") -> 10.64478969 | AW4: =IF($A4<>"",SUM($AD4:AL4*TRANSPOSE(OFFSET(M$8,0,0,9,1)))+M$7,"") -> -41.97634346 | AX4: =IF($A4<>"",SUM($AD4:AM4*TRANSPOSE(OFFSET(N$8,0,0,10,1)))+N$7,"") -> 17.08210295
A5: 4 | B5: -121.16 | D5: p value of fit | E5: =1-_xlfn.F.DIST(E3/(1-E3)*E4/(COLUMN(E1)-4),COLUMN(E1)-4,E4,TRUE) -> 9.535516119e-07 | F5: 3.160804951e-13 | G5: 6.910028105e-13 | H5: 1.030620034e-11 | I5: 6.281397624e-11 | J5: 1.530941818e-09 | K5: 1.641971514e-08 | L5: 1.603321249e-07 | M5: 2.959084036e-06 | N5: 4.564231031e-05 | Q5: r2;SEres | R5: 0.8516809756 | S5: 1333.438939 | AD5: 4 | AE5: 16 | AF5: 64 | AG5: 256 | AH5: 1024 | AI5: 4096 | AJ5: 16384 | AK5: 65536 | AL5: 262144 | AM5: 1048576 | AO5: =IF($A5<>"",SUM($AD5:AD5*TRANSPOSE(OFFSET(E$8,0,0,1,1)))+E$7,"") -> -137.204 | AP5: =IF($A5<>"",SUM($AD5:AE5*TRANSPOSE(OFFSET(F$8,0,0,2,1)))+F$7,"") -> 56.77347899 | AQ5: =IF($A5<>"",SUM($AD5:AF5*TRANSPOSE(OFFSET(G$8,0,0,3,1)))+G$7,"") -> -147.2073596 | AR5: =IF($A5<>"",SUM($AD5:AG5*TRANSPOSE(OFFSET(H$8,0,0,4,1)))+H$7,"") -> -58.61938398 | AS5: =IF($A5<>"",SUM($AD5:AH5*TRANSPOSE(OFFSET(I$8,0,0,5,1)))+I$7,"") -> -64.51729459 | AT5: =IF($A5<>"",SUM($AD5:AI5*TRANSPOSE(OFFSET(J$8,0,0,6,1)))+J$7,"") -> -84.92971152 | AU5: =IF($A5<>"",SUM($AD5:AJ5*TRANSPOSE(OFFSET(K$8,0,0,7,1)))+K$7,"") -> -187.5917596 | AV5: =IF($A5<>"",SUM($AD5:AK5*TRANSPOSE(OFFSET(L$8,0,0,8,1)))+L$7,"") -> -144.1116202 | AW5: =IF($A5<>"",SUM($AD5:AL5*TRANSPOSE(OFFSET(M$8,0,0,9,1)))+M$7,"") -> -124.0209767 | AX5: =IF($A5<>"",SUM($AD5:AM5*TRANSPOSE(OFFSET(N$8,0,0,10,1)))+N$7,"") -> -186.4469494
A6: 5 | B6: -300 | D6: p value of better fit | F6: =1-_xlfn.F.DIST((F3-E3)/(1-F3)*F4,1,F4,TRUE) -> 6.863743907e-09 | G6: 0.02423772431 | H6: 0.2517060629 | I6: 0.0978531254 | J6: 0.7687768508 | K6: 0.2468752753 | L6: 0.2331709277 | M6: 0.6419242156 | N6: 0.5749773839 | Q6: F;d.f. | R6: 74.64890447 | S6: 13 | AD6: 5 | AE6: 25 | AF6: 125 | AG6: 625 | AH6: 3125 | AI6: 15625 | AJ6: 78125 | AK6: 390625 | AL6: 1953125 | AM6: 9765625 | AO6: =IF($A6<>"",SUM($AD6:AD6*TRANSPOSE(OFFSET(E$8,0,0,1,1)))+E$7,"") -> -825.707 | AP6: =IF($A6<>"",SUM($AD6:AE6*TRANSPOSE(OFFSET(F$8,0,0,2,1)))+F$7,"") -> -122.5386387 | AQ6: =IF($A6<>"",SUM($AD6:AF6*TRANSPOSE(OFFSET(G$8,0,0,3,1)))+G$7,"") -> -337.0702103 | AR6: =IF($A6<>"",SUM($AD6:AG6*TRANSPOSE(OFFSET(H$8,0,0,4,1)))+H$7,"") -> -305.7372473 | AS6: =IF($A6<>"",SUM($AD6:AH6*TRANSPOSE(OFFSET(I$8,0,0,5,1)))+I$7,"") -> -205.0706366 | AT6: =IF($A6<>"",SUM($AD6:AI6*TRANSPOSE(OFFSET(J$8,0,0,6,1)))+J$7,"") -> -227.918626 | AU6: =IF($A6<>"",SUM($AD6:AJ6*TRANSPOSE(OFFSET(K$8,0,0,7,1)))+K$7,"") -> -237.8536629 | AV6: =IF($A6<>"",SUM($AD6:AK6*TRANSPOSE(OFFSET(L$8,0,0,8,1)))+L$7,"") -> -323.983111 | AW6: =IF($A6<>"",SUM($AD6:AL6*TRANSPOSE(OFFSET(M$8,0,0,9,1)))+M$7,"") -> -285.495512 | AX6: =IF($A6<>"",SUM($AD6:AM6*TRANSPOSE(OFFSET(N$8,0,0,10,1)))+N$7,"") -> -291.2528957
A7: 6 | B7: -538.04 | D7: intercept | E7: =OFFSET($S$3,0,-ROW(E7)+7,1,1) -> 2616.808 | F7: =OFFSET($T$11,0,-ROW(F7)+7,1,1) -> -680.8091429 | G7: =OFFSET($U$19,0,-ROW(G7)+7,1,1) -> 36.6407033 | H7: =OFFSET($V$27,0,-ROW(H7)+7,1,1) -> -451.0965035 | I7: =OFFSET($W$35,0,-ROW(I7)+7,1,1) -> 588.0081119 | J7: =OFFSET($X$43,0,-ROW(J7)+7,1,1) -> 288.3167179 | K7: =OFFSET($Y$51,0,-ROW(K7)+7,1,1) -> -1851.027897 | L7: =OFFSET($Z$59,0,-ROW(L7)+7,1,1) -> 2263.799561 | M7: =OFFSET($AA$67,0,-ROW(M7)+7,1,1) -> -1207.209524 | N7: =OFFSET($AB$75,0,-ROW(N7)+7,1,1) -> 9552.942472 | Q7: Ssreg;Ssres | R7: 132730186.7 | S7: 23114772.27 | AD7: 6 | AE7: 36 | AF7: 216 | AG7: 1296 | AH7: 7776 | AI7: 46656 | AJ7: 279936 | AK7: 1679616 | AL7: 10077696 | AM7: 60466176 | AO7: =IF($A7<>"",SUM($AD7:AD7*TRANSPOSE(OFFSET(E$8,0,0,1,1)))+E$7,"") -> -1514.21 | AP7: =IF($A7<>"",SUM($AD7:AE7*TRANSPOSE(OFFSET(F$8,0,0,2,1)))+F$7,"") -> -447.3338655 | AQ7: =IF($A7<>"",SUM($AD7:AF7*TRANSPOSE(OFFSET(G$8,0,0,3,1)))+G$7,"") -> -619.6625051 | AR7: =IF($A7<>"",SUM($AD7:AG7*TRANSPOSE(OFFSET(H$8,0,0,4,1)))+H$7,"") -> -651.2471384 | AS7: =IF($A7<>"",SUM($AD7:AH7*TRANSPOSE(OFFSET(I$8,0,0,5,1)))+I$7,"") -> -517.2037154 | AT7: =IF($A7<>"",SUM($AD7:AI7*TRANSPOSE(OFFSET(J$8,0,0,6,1)))+J$7,"") -> -523.0026975 | AU7: =IF($A7<>"",SUM($AD7:AJ7*TRANSPOSE(OFFSET(K$8,0,0,7,1)))+K$7,"") -> -440.2107232 | AV7: =IF($A7<>"",SUM($AD7:AK7*TRANSPOSE(OFFSET(L$8,0,0,8,1)))+L$7,"") -> -516.370203 | AW7: =IF($A7<>"",SUM($AD7:AL7*TRANSPOSE(OFFSET(M$8,0,0,9,1)))+M$7,"") -> -530.9709614 | AX7: =IF($A7<>"",SUM($AD7:AM7*TRANSPOSE(OFFSET(N$8,0,0,10,1)))+N$7,"") -> -474.1937426
A8: 7 | B8: -906.92 | D8: coefficient of x | E8: =OFFSET($S$3,0,-ROW(E8)+7,1,1) -> -688.503 | F8: =OFFSET($T$11,0,-ROW(F8)+7,1,1) -> 475.3618739 | G8: =OFFSET($U$19,0,-ROW(G8)+7,1,1) -> 10.54346872 | H8: =OFFSET($V$27,0,-ROW(H8)+7,1,1) -> 484.5226944 | I8: -860.4064587 | J8: -381.8280655 | K8: 3622.677801 | L8: -5094.817157 | M8: 3027.094877 | N8: -24300.94154 | AD8: 7 | AE8: 49 | AF8: 343 | AG8: 2401 | AH8: 16807 | AI8: 117649 | AJ8: 823543 | AK8: 5764801 | AL8: 40353607 | AM8: 282475249 | AO8: =IF($A8<>"",SUM($AD8:AD8*TRANSPOSE(OFFSET(E$8,0,0,1,1)))+E$7,"") -> -2202.713 | AP8: =IF($A8<>"",SUM($AD8:AE8*TRANSPOSE(OFFSET(F$8,0,0,2,1)))+F$7,"") -> -917.6122017 | AQ8: =IF($A8<>"",SUM($AD8:AF8*TRANSPOSE(OFFSET(G$8,0,0,3,1)))+G$7,"") -> -1012.568799 | AR8: =IF($A8<>"",SUM($AD8:AG8*TRANSPOSE(OFFSET(H$8,0,0,4,1)))+H$7,"") -> -1090.712454 | AS8: =IF($A8<>"",SUM($AD8:AH8*TRANSPOSE(OFFSET(I$8,0,0,5,1)))+I$7,"") -> -1000.233143 | AT8: =IF($A8<>"",SUM($AD8:AI8*TRANSPOSE(OFFSET(J$8,0,0,6,1)))+J$7,"") -> -985.7356879 | AU8: =IF($A8<>"",SUM($AD8:AJ8*TRANSPOSE(OFFSET(K$8,0,0,7,1)))+K$7,"") -> -902.9437136 | AV8: =IF($A8<>"",SUM($AD8:AK8*TRANSPOSE(OFFSET(L$8,0,0,8,1)))+L$7,"") -> -868.3257682 | AW8: =IF($A8<>"",SUM($AD8:AL8*TRANSPOSE(OFFSET(M$8,0,0,9,1)))+M$7,"") -> -907.7478158 | AX8: =IF($A8<>"",SUM($AD8:AM8*TRANSPOSE(OFFSET(N$8,0,0,10,1)))+N$7,"") -> -908.7254847
A9: 8 | B9: -1410.28 | D9: coefficient of x2 | F9: =OFFSET($T$11,0,-ROW(F9)+7,1,1) -> -72.74155462 | G9: =OFFSET($U$19,0,-ROW(G9)+7,1,1) -> -2.403334411 | H9: =OFFSET($V$27,0,-ROW(H9)+7,1,1) -> -125.9839799 | I9: 390.0831988 | J9: 144.5839368 | K9: -2426.640413 | L9: 4253.946564 | M9: -2918.328345 | N9: 24171.97244 | AD9: 8 | AE9: 64 | AF9: 512 | AG9: 4096 | AH9: 32768 | AI9: 262144 | AJ9: 2097152 | AK9: 16777216 | AL9: 134217728 | AM9: 1073741824 | AO9: =IF($A9<>"",SUM($AD9:AD9*TRANSPOSE(OFFSET(E$8,0,0,1,1)))+E$7,"") -> -2891.216 | AP9: =IF($A9<>"",SUM($AD9:AE9*TRANSPOSE(OFFSET(F$8,0,0,2,1)))+F$7,"") -> -1533.373647 | AQ9: =IF($A9<>"",SUM($AD9:AF9*TRANSPOSE(OFFSET(G$8,0,0,3,1)))+G$7,"") -> -1533.373647 | AR9: =IF($A9<>"",SUM($AD9:AG9*TRANSPOSE(OFFSET(H$8,0,0,4,1)))+H$7,"") -> -1628.505053 | AS9: =IF($A9<>"",SUM($AD9:AH9*TRANSPOSE(OFFSET(I$8,0,0,5,1)))+I$7,"") -> -1628.505053 | AT9: =IF($A9<>"",SUM($AD9:AI9*TRANSPOSE(OFFSET(J$8,0,0,6,1)))+J$7,"") -> -1605.309124 | AU9: =IF($A9<>"",SUM($AD9:AJ9*TRANSPOSE(OFFSET(K$8,0,0,7,1)))+K$7,"") -> -1605.309124 | AV9: =IF($A9<>"",SUM($AD9:AK9*TRANSPOSE(OFFSET(L$8,0,0,8,1)))+L$7,"") -> -1508.378877 | AW9: =IF($A9<>"",SUM($AD9:AL9*TRANSPOSE(OFFSET(M$8,0,0,9,1)))+M$7,"") -> -1508.378877 | AX9: =IF($A9<>"",SUM($AD9:AM9*TRANSPOSE(OFFSET(N$8,0,0,10,1)))+N$7,"") -> -1563.128338
A10: 9 | B10: -2500 | D10: coefficient of x3 | G10: =OFFSET($U$19,0,-ROW(G10)+7,1,1) -> -2.930759175 | H10: =OFFSET($V$27,0,-ROW(H10)+7,1,1) -> 8.813858807 | I10: -72.74039383 | J10: -16.76088681 | K10: 759.9704181 | L10: -1761.092992 | M10: 1477.178735 | N10: -12685.4395 | Q10: quadratic | R10: x2 | S10: x | T10: intercept | AD10: 9 | AE10: 81 | AF10: 729 | AG10: 6561 | AH10: 59049 | AI10: 531441 | AJ10: 4782969 | AK10: 43046721 | AL10: 387420489 | AM10: 3486784401 | AO10: =IF($A10<>"",SUM($AD10:AD10*TRANSPOSE(OFFSET(E$8,0,0,1,1)))+E$7,"") -> -3579.719 | AP10: =IF($A10<>"",SUM($AD10:AE10*TRANSPOSE(OFFSET(F$8,0,0,2,1)))+F$7,"") -> -2294.618202 | AQ10: =IF($A10<>"",SUM($AD10:AF10*TRANSPOSE(OFFSET(G$8,0,0,3,1)))+G$7,"") -> -2199.661604 | AR10: =IF($A10<>"",SUM($AD10:AG10*TRANSPOSE(OFFSET(H$8,0,0,4,1)))+H$7,"") -> -2277.805259 | AS10: =IF($A10<>"",SUM($AD10:AH10*TRANSPOSE(OFFSET(I$8,0,0,5,1)))+I$7,"") -> -2368.28457 | AT10: =IF($A10<>"",SUM($AD10:AI10*TRANSPOSE(OFFSET(J$8,0,0,6,1)))+J$7,"") -> -2353.787114 | AU10: =IF($A10<>"",SUM($AD10:AJ10*TRANSPOSE(OFFSET(K$8,0,0,7,1)))+K$7,"") -> -2436.579089 | AV10: =IF($A10<>"",SUM($AD10:AK10*TRANSPOSE(OFFSET(L$8,0,0,8,1)))+L$7,"") -> -2401.961143 | AW10: =IF($A10<>"",SUM($AD10:AL10*TRANSPOSE(OFFSET(M$8,0,0,9,1)))+M$7,"") -> -2362.539096 | AX10: =IF($A10<>"",SUM($AD10:AM10*TRANSPOSE(OFFSET(N$8,0,0,10,1)))+N$7,"") -> -2363.516765
A11: 10 | B11: -3400 | D11: coefficient of x4 | H11: =OFFSET($V$27,0,-ROW(H11)+7,1,1) -> -0.367019312 | I11: 5.262804456 | J11: -1.022647789 | K11: -125.026627 | L11: 403.3898647 | M11: -440.4942223 | N11: 3968.027904 | Q11: coefficients | R11: =LINEST(OFFSET($B$2,0,0,$E$19,1),OFFSET($AD$2,0,0,$E$19,2),TRUE,TRUE) -> -72.74155462 | S11: 475.3618739 | T11: -680.8091429 | AD11: 10 | AE11: 100 | AF11: 1000 | AG11: 10000 | AH11: 100000 | AI11: 1000000 | AJ11: 10000000 | AK11: 100000000 | AL11: 1000000000 | AM11: 10000000000 | AO11: =IF($A11<>"",SUM($AD11:AD11*TRANSPOSE(OFFSET(E$8,0,0,1,1)))+E$7,"") -> -4268.222 | AP11: =IF($A11<>"",SUM($AD11:AE11*TRANSPOSE(OFFSET(F$8,0,0,2,1)))+F$7,"") -> -3201.345866 | AQ11: =IF($A11<>"",SUM($AD11:AF11*TRANSPOSE(OFFSET(G$8,0,0,3,1)))+G$7,"") -> -3029.017226 | AR11: =IF($A11<>"",SUM($AD11:AG11*TRANSPOSE(OFFSET(H$8,0,0,4,1)))+H$7,"") -> -3060.601859 | AS11: =IF($A11<>"",SUM($AD11:AH11*TRANSPOSE(OFFSET(I$8,0,0,5,1)))+I$7,"") -> -3194.645282 | AT11: =IF($A11<>"",SUM($AD11:AI11*TRANSPOSE(OFFSET(J$8,0,0,6,1)))+J$7,"") -> -3200.444265 | AU11: =IF($A11<>"",SUM($AD11:AJ11*TRANSPOSE(OFFSET(K$8,0,0,7,1)))+K$7,"") -> -3283.236239 | AV11: =IF($A11<>"",SUM($AD11:AK11*TRANSPOSE(OFFSET(L$8,0,0,8,1)))+L$7,"") -> -3359.395719 | AW11: =IF($A11<>"",SUM($AD11:AL11*TRANSPOSE(OFFSET(M$8,0,0,9,1)))+M$7,"") -> -3344.79496 | AX11: =IF($A11<>"",SUM($AD11:AM11*TRANSPOSE(OFFSET(N$8,0,0,10,1)))+N$7,"") -> -3288.017741
A12: 11 | B12: -3933.64 | D12: coefficient of x5 | I12: -0.1407455942 | J12: 0.1994613546 | K12: 10.9532189 | L12: -53.49154819 | M12: 80.60287789 | N12: -786.1190828 | Q12: SEcoefficient | R12: 5.097340882 | S12: 83.87152564 | T12: 291.6225501 | AD12: 11 | AE12: 121 | AF12: 1331 | AG12: 14641 | AH12: 161051 | AI12: 1771561 | AJ12: 19487171 | AK12: 214358881 | AL12: 2357947691 | AM12: 25937424601 | AO12: =IF($A12<>"",SUM($AD12:AD12*TRANSPOSE(OFFSET(E$8,0,0,1,1)))+E$7,"") -> -4956.725 | AP12: =IF($A12<>"",SUM($AD12:AE12*TRANSPOSE(OFFSET(F$8,0,0,2,1)))+F$7,"") -> -4253.556639 | AQ12: =IF($A12<>"",SUM($AD12:AF12*TRANSPOSE(OFFSET(G$8,0,0,3,1)))+G$7,"") -> -4039.025067 | AR12: =IF($A12<>"",SUM($AD12:AG12*TRANSPOSE(OFFSET(H$8,0,0,4,1)))+H$7,"") -> -4007.692104 | AS12: =IF($A12<>"",SUM($AD12:AH12*TRANSPOSE(OFFSET(I$8,0,0,5,1)))+I$7,"") -> -4108.358715 | AT12: =IF($A12<>"",SUM($AD12:AI12*TRANSPOSE(OFFSET(J$8,0,0,6,1)))+J$7,"") -> -4131.206704 | AU12: =IF($A12<>"",SUM($AD12:AJ12*TRANSPOSE(OFFSET(K$8,0,0,7,1)))+K$7,"") -> -4121.271667 | AV12: =IF($A12<>"",SUM($AD12:AK12*TRANSPOSE(OFFSET(L$8,0,0,8,1)))+L$7,"") -> -4207.401115 | AW12: =IF($A12<>"",SUM($AD12:AL12*TRANSPOSE(OFFSET(M$8,0,0,9,1)))+M$7,"") -> -4245.888714 | AX12: =IF($A12<>"",SUM($AD12:AM12*TRANSPOSE(OFFSET(N$8,0,0,10,1)))+N$7,"") -> -4251.646098
A13: 12 | B13: -5400 | D13: coefficient of x6 | J13: -0.007087644765 | K13: -0.4854412739 | L13: 4.057394768 | M13: -9.123845422 | N13: 101.1837547 | Q13: r2;SEres | R13: 0.9917465621 | S13: 327.3958731 | AD13: 12 | AE13: 144 | AF13: 1728 | AG13: 20736 | AH13: 248832 | AI13: 2985984 | AJ13: 35831808 | AK13: 429981696 | AL13: 5159780352 | AM13: 61917364224 | AO13: =IF($A13<>"",SUM($AD13:AD13*TRANSPOSE(OFFSET(E$8,0,0,1,1)))+E$7,"") -> -5645.228 | AP13: =IF($A13<>"",SUM($AD13:AE13*TRANSPOSE(OFFSET(F$8,0,0,2,1)))+F$7,"") -> -5451.250521 | AQ13: =IF($A13<>"",SUM($AD13:AF13*TRANSPOSE(OFFSET(G$8,0,0,3,1)))+G$7,"") -> -5247.269682 | AR13: =IF($A13<>"",SUM($AD13:AG13*TRANSPOSE(OFFSET(H$8,0,0,4,1)))+H$7,"") -> -5158.681707 | AS13: =IF($A13<>"",SUM($AD13:AH13*TRANSPOSE(OFFSET(I$8,0,0,5,1)))+I$7,"") -> -5152.783796 | AT13: =IF($A13<>"",SUM($AD13:AI13*TRANSPOSE(OFFSET(J$8,0,0,6,1)))+J$7,"") -> -5173.196213 | AU13: =IF($A13<>"",SUM($AD13:AJ13*TRANSPOSE(OFFSET(K$8,0,0,7,1)))+K$7,"") -> -5070.534165 | AV13: =IF($A13<>"",SUM($AD13:AK13*TRANSPOSE(OFFSET(L$8,0,0,8,1)))+L$7,"") -> -5027.054026 | AW13: =IF($A13<>"",SUM($AD13:AL13*TRANSPOSE(OFFSET(M$8,0,0,9,1)))+M$7,"") -> -5047.144669 | AX13: =IF($A13<>"",SUM($AD13:AM13*TRANSPOSE(OFFSET(N$8,0,0,10,1)))+N$7,"") -> -5109.570642
A14: 13 | B14: -6000 | D14: coefficient of x7 | K14: 0.008542029092 | L14: -0.1628992241 | M14: 0.6188110869 | N14: -8.442108984 | Q14: F;d.f. | R14: 720.9697867 | S14: 12 | AD14: 13 | AE14: 169 | AF14: 2197 | AG14: 28561 | AH14: 371293 | AI14: 4826809 | AJ14: 62748517 | AK14: 815730721 | AL14: 10604499373 | AM14: 137858491849 | AO14: =IF($A14<>"",SUM($AD14:AD14*TRANSPOSE(OFFSET(E$8,0,0,1,1)))+E$7,"") -> -6333.731 | AP14: =IF($A14<>"",SUM($AD14:AE14*TRANSPOSE(OFFSET(F$8,0,0,2,1)))+F$7,"") -> -6794.427513 | AQ14: =IF($A14<>"",SUM($AD14:AF14*TRANSPOSE(OFFSET(G$8,0,0,3,1)))+G$7,"") -> -6671.335627 | AR14: =IF($A14<>"",SUM($AD14:AG14*TRANSPOSE(OFFSET(H$8,0,0,4,1)))+H$7,"") -> -6561.984845 | AS14: =IF($A14<>"",SUM($AD14:AH14*TRANSPOSE(OFFSET(I$8,0,0,5,1)))+I$7,"") -> -6430.756334 | AT14: =IF($A14<>"",SUM($AD14:AI14*TRANSPOSE(OFFSET(J$8,0,0,6,1)))+J$7,"") -> -6424.377453 | AU14: =IF($A14<>"",SUM($AD14:AJ14*TRANSPOSE(OFFSET(K$8,0,0,7,1)))+K$7,"") -> -6368.078911 | AV14: =IF($A14<>"",SUM($AD14:AK14*TRANSPOSE(OFFSET(L$8,0,0,8,1)))+L$7,"") -> -6253.147332 | AW14: =IF($A14<>"",SUM($AD14:AL14*TRANSPOSE(OFFSET(M$8,0,0,9,1)))+M$7,"") -> -6200.526199 | AX14: =IF($A14<>"",SUM($AD14:AM14*TRANSPOSE(OFFSET(N$8,0,0,10,1)))+N$7,"") -> -6141.467753
A15: 14 | B15: -8410.36 | D15: coefficient of x8 | L15: 0.002678769582 | M15: -0.02293049707 | N15: 0.4404360638 | Q15: Ssreg;Ssres | R15: 154558702.3 | S15: 1286256.693 | AD15: 14 | AE15: 196 | AF15: 2744 | AG15: 38416 | AH15: 537824 | AI15: 7529536 | AJ15: 105413504 | AK15: 1475789056 | AL15: 20661046784 | AM15: 289254654976 | AO15: =IF($A15<>"",SUM($AD15:AD15*TRANSPOSE(OFFSET(E$8,0,0,1,1)))+E$7,"") -> -7022.234 | AP15: =IF($A15<>"",SUM($AD15:AE15*TRANSPOSE(OFFSET(F$8,0,0,2,1)))+F$7,"") -> -8283.087613 | AQ15: =IF($A15<>"",SUM($AD15:AF15*TRANSPOSE(OFFSET(G$8,0,0,3,1)))+G$7,"") -> -8328.807457 | AR15: =IF($A15<>"",SUM($AD15:AG15*TRANSPOSE(OFFSET(H$8,0,0,4,1)))+H$7,"") -> -8274.824159 | AS15: =IF($A15<>"",SUM($AD15:AH15*TRANSPOSE(OFFSET(I$8,0,0,5,1)))+I$7,"") -> -8121.478483 | AT15: =IF($A15<>"",SUM($AD15:AI15*TRANSPOSE(OFFSET(J$8,0,0,6,1)))+J$7,"") -> -8088.308305 | AU15: =IF($A15<>"",SUM($AD15:AJ15*TRANSPOSE(OFFSET(K$8,0,0,7,1)))+K$7,"") -> -8217.463785 | AV15: =IF($A15<>"",SUM($AD15:AK15*TRANSPOSE(OFFSET(L$8,0,0,8,1)))+L$7,"") -> -8321.871509 | AW15: =IF($A15<>"",SUM($AD15:AL15*TRANSPOSE(OFFSET(M$8,0,0,9,1)))+M$7,"") -> -8350.722607 | AX15: =IF($A15<>"",SUM($AD15:AM15*TRANSPOSE(OFFSET(N$8,0,0,10,1)))+N$7,"") -> -8373.317623
A16: 15 | B16: -10433 | D16: coefficient of x9 | M16: 0.0003556842591 | N16: -0.01305221927 | Q16: F and p of new parameter | R16: =(S7-S15)/($E$19-COUNT(R3:AB3)-($E$19-COUNT(R11:AB11)))/(S15/($E$19-COUNT(R11:AB11))) -> 203.646899 | S16: =1-_xlfn.F.DIST(R16,$E$19-COUNT(R3:AB3)-($E$19-COUNT(R11:AB11)),$E$19-COUNT(R11:AB11),TRUE) -> 6.863743907e-09 | AD16: 15 | AE16: 225 | AF16: 3375 | AG16: 50625 | AH16: 759375 | AI16: 11390625 | AJ16: 170859375 | AK16: 2562890625 | AL16: 38443359375 | AM16: 576650390625 | AO16: =IF($A16<>"",SUM($AD16:AD16*TRANSPOSE(OFFSET(E$8,0,0,1,1)))+E$7,"") -> -7710.737 | AP16: =IF($A16<>"",SUM($AD16:AE16*TRANSPOSE(OFFSET(F$8,0,0,2,1)))+F$7,"") -> -9917.230824 | AQ16: =IF($A16<>"",SUM($AD16:AF16*TRANSPOSE(OFFSET(G$8,0,0,3,1)))+G$7,"") -> -10237.26973 | AR16: =IF($A16<>"",SUM($AD16:AG16*TRANSPOSE(OFFSET(H$8,0,0,4,1)))+H$7,"") -> -10363.23075 | AS16: =IF($A16<>"",SUM($AD16:AH16*TRANSPOSE(OFFSET(I$8,0,0,5,1)))+I$7,"") -> -10497.40822 | AT16: =IF($A16<>"",SUM($AD16:AI16*TRANSPOSE(OFFSET(J$8,0,0,6,1)))+J$7,"") -> -10513.99331 | AU16: =IF($A16<>"",SUM($AD16:AJ16*TRANSPOSE(OFFSET(K$8,0,0,7,1)))+K$7,"") -> -10470.94148 | AV16: =IF($A16<>"",SUM($AD16:AK16*TRANSPOSE(OFFSET(L$8,0,0,8,1)))+L$7,"") -> -10445.73962 | AW16: =IF($A16<>"",SUM($AD16:AL16*TRANSPOSE(OFFSET(M$8,0,0,9,1)))+M$7,"") -> -10440.42494 | AX16: =IF($A16<>"",SUM($AD16:AM16*TRANSPOSE(OFFSET(N$8,0,0,10,1)))+N$7,"") -> -10437.12984
D17: coefficient of x10 | N17: 0.0001675987942 | AO17: =IF($A17<>"",SUM($AD17:AD17*TRANSPOSE(OFFSET(E$8,0,0,1,1)))+E$7,"") ->  | AP17: =IF($A17<>"",SUM($AD17:AE17*TRANSPOSE(OFFSET(F$8,0,0,2,1)))+F$7,"") ->  | AQ17: =IF($A17<>"",SUM($AD17:AF17*TRANSPOSE(OFFSET(G$8,0,0,3,1)))+G$7,"") ->  | AR17: =IF($A17<>"",SUM($AD17:AG17*TRANSPOSE(OFFSET(H$8,0,0,4,1)))+H$7,"") ->  | AS17: =IF($A17<>"",SUM($AD17:AH17*TRANSPOSE(OFFSET(I$8,0,0,5,1)))+I$7,"") ->  | AT17: =IF($A17<>"",SUM($AD17:AI17*TRANSPOSE(OFFSET(J$8,0,0,6,1)))+J$7,"") ->  | AU17: =IF($A17<>"",SUM($AD17:AJ17*TRANSPOSE(OFFSET(K$8,0,0,7,1)))+K$7,"") ->  | AV17: =IF($A17<>"",SUM($AD17:AK17*TRANSPOSE(OFFSET(L$8,0,0,8,1)))+L$7,"") ->  | AW17: =IF($A17<>"",SUM($AD17:AL17*TRANSPOSE(OFFSET(M$8,0,0,9,1)))+M$7,"") ->  | AX17: =IF($A17<>"",SUM($AD17:AM17*TRANSPOSE(OFFSET(N$8,0,0,10,1)))+N$7,"") -> 
Q18: cubic | R18: x3 | S18: x2 | T18: x | U18: intercept | AO18: =IF($A18<>"",SUM($AD18:AD18*TRANSPOSE(OFFSET(E$8,0,0,1,1)))+E$7,"") ->  | AP18: =IF($A18<>"",SUM($AD18:AE18*TRANSPOSE(OFFSET(F$8,0,0,2,1)))+F$7,"") ->  | AQ18: =IF($A18<>"",SUM($AD18:AF18*TRANSPOSE(OFFSET(G$8,0,0,3,1)))+G$7,"") ->  | AR18: =IF($A18<>"",SUM($AD18:AG18*TRANSPOSE(OFFSET(H$8,0,0,4,1)))+H$7,"") ->  | AS18: =IF($A18<>"",SUM($AD18:AH18*TRANSPOSE(OFFSET(I$8,0,0,5,1)))+I$7,"") ->  | AT18: =IF($A18<>"",SUM($AD18:AI18*TRANSPOSE(OFFSET(J$8,0,0,6,1)))+J$7,"") ->  | AU18: =IF($A18<>"",SUM($AD18:AJ18*TRANSPOSE(OFFSET(K$8,0,0,7,1)))+K$7,"") ->  | AV18: =IF($A18<>"",SUM($AD18:AK18*TRANSPOSE(OFFSET(L$8,0,0,8,1)))+L$7,"") ->  | AW18: =IF($A18<>"",SUM($AD18:AL18*TRANSPOSE(OFFSET(M$8,0,0,9,1)))+M$7,"") ->  | AX18: =IF($A18<>"",SUM($AD18:AM18*TRANSPOSE(OFFSET(N$8,0,0,10,1)))+N$7,"") -> 
D19: Number of data points | E19: =COUNT(A2:A101) -> 15 | Q19: coefficients | R19: =LINEST(OFFSET($B$2,0,0,$E$19,1),OFFSET($AD$2,0,0,$E$19,3),TRUE,TRUE) -> -2.930759175 | S19: -2.403334411 | T19: 10.54346872 | U19: 36.6407033 | AO19: =IF($A19<>"",SUM($AD19:AD19*TRANSPOSE(OFFSET(E$8,0,0,1,1)))+E$7,"") ->  | AP19: =IF($A19<>"",SUM($AD19:AE19*TRANSPOSE(OFFSET(F$8,0,0,2,1)))+F$7,"") ->  | AQ19: =IF($A19<>"",SUM($AD19:AF19*TRANSPOSE(OFFSET(G$8,0,0,3,1)))+G$7,"") ->  | AR19: =IF($A19<>"",SUM($AD19:AG19*TRANSPOSE(OFFSET(H$8,0,0,4,1)))+H$7,"") ->  | AS19: =IF($A19<>"",SUM($AD19:AH19*TRANSPOSE(OFFSET(I$8,0,0,5,1)))+I$7,"") ->  | AT19: =IF($A19<>"",SUM($AD19:AI19*TRANSPOSE(OFFSET(J$8,0,0,6,1)))+J$7,"") ->  | AU19: =IF($A19<>"",SUM($AD19:AJ19*TRANSPOSE(OFFSET(K$8,0,0,7,1)))+K$7,"") ->  | AV19: =IF($A19<>"",SUM($AD19:AK19*TRANSPOSE(OFFSET(L$8,0,0,8,1)))+L$7,"") ->  | AW19: =IF($A19<>"",SUM($AD19:AL19*TRANSPOSE(OFFSET(M$8,0,0,9,1)))+M$7,"") ->  | AX19: =IF($A19<>"",SUM($AD19:AM19*TRANSPOSE(OFFSET(N$8,0,0,10,1)))+N$7,"") -> 
Q20: SEcoefficient | R20: 1.122699462 | S20: 27.26763387 | T20: 190.9027738 | U20: 364.4468332 | AO20: =IF($A20<>"",SUM($AD20:AD20*TRANSPOSE(OFFSET(E$8,0,0,1,1)))+E$7,"") ->  | AP20: =IF($A20<>"",SUM($AD20:AE20*TRANSPOSE(OFFSET(F$8,0,0,2,1)))+F$7,"") ->  | AQ20: =IF($A20<>"",SUM($AD20:AF20*TRANSPOSE(OFFSET(G$8,0,0,3,1)))+G$7,"") ->  | AR20: =IF($A20<>"",SUM($AD20:AG20*TRANSPOSE(OFFSET(H$8,0,0,4,1)))+H$7,"") ->  | AS20: =IF($A20<>"",SUM($AD20:AH20*TRANSPOSE(OFFSET(I$8,0,0,5,1)))+I$7,"") ->  | AT20: =IF($A20<>"",SUM($AD20:AI20*TRANSPOSE(OFFSET(J$8,0,0,6,1)))+J$7,"") ->  | AU20: =IF($A20<>"",SUM($AD20:AJ20*TRANSPOSE(OFFSET(K$8,0,0,7,1)))+K$7,"") ->  | AV20: =IF($A20<>"",SUM($AD20:AK20*TRANSPOSE(OFFSET(L$8,0,0,8,1)))+L$7,"") ->  | AW20: =IF($A20<>"",SUM($AD20:AL20*TRANSPOSE(OFFSET(M$8,0,0,9,1)))+M$7,"") ->  | AX20: =IF($A20<>"",SUM($AD20:AM20*TRANSPOSE(OFFSET(N$8,0,0,10,1)))+N$7,"") -> 
D21: Written by Peter Nagy | Q21: r2;SEres | R21: 0.9949037089 | S21: 268.7058677 | AO21: =IF($A21<>"",SUM($AD21:AD21*TRANSPOSE(OFFSET(E$8,0,0,1,1)))+E$7,"") ->  | AP21: =IF($A21<>"",SUM($AD21:AE21*TRANSPOSE(OFFSET(F$8,0,0,2,1)))+F$7,"") ->  | AQ21: =IF($A21<>"",SUM($AD21:AF21*TRANSPOSE(OFFSET(G$8,0,0,3,1)))+G$7,"") ->  | AR21: =IF($A21<>"",SUM($AD21:AG21*TRANSPOSE(OFFSET(H$8,0,0,4,1)))+H$7,"") ->  | AS21: =IF($A21<>"",SUM($AD21:AH21*TRANSPOSE(OFFSET(I$8,0,0,5,1)))+I$7,"") ->  | AT21: =IF($A21<>"",SUM($AD21:AI21*TRANSPOSE(OFFSET(J$8,0,0,6,1)))+J$7,"") ->  | AU21: =IF($A21<>"",SUM($AD21:AJ21*TRANSPOSE(OFFSET(K$8,0,0,7,1)))+K$7,"") ->  | AV21: =IF($A21<>"",SUM($AD21:AK21*TRANSPOSE(OFFSET(L$8,0,0,8,1)))+L$7,"") ->  | AW21: =IF($A21<>"",SUM($AD21:AL21*TRANSPOSE(OFFSET(M$8,0,0,9,1)))+M$7,"") ->  | AX21: =IF($A21<>"",SUM($AD21:AM21*TRANSPOSE(OFFSET(N$8,0,0,10,1)))+N$7,"") -> 
D22: peter.v.nagy@gmail.com | Q22: F;d.f. | R22: 715.8108117 | S22: 11 | AO22: =IF($A22<>"",SUM($AD22:AD22*TRANSPOSE(OFFSET(E$8,0,0,1,1)))+E$7,"") ->  | AP22: =IF($A22<>"",SUM($AD22:AE22*TRANSPOSE(OFFSET(F$8,0,0,2,1)))+F$7,"") ->  | AQ22: =IF($A22<>"",SUM($AD22:AF22*TRANSPOSE(OFFSET(G$8,0,0,3,1)))+G$7,"") ->  | AR22: =IF($A22<>"",SUM($AD22:AG22*TRANSPOSE(OFFSET(H$8,0,0,4,1)))+H$7,"") ->  | AS22: =IF($A22<>"",SUM($AD22:AH22*TRANSPOSE(OFFSET(I$8,0,0,5,1)))+I$7,"") ->  | AT22: =IF($A22<>"",SUM($AD22:AI22*TRANSPOSE(OFFSET(J$8,0,0,6,1)))+J$7,"") ->  | AU22: =IF($A22<>"",SUM($AD22:AJ22*TRANSPOSE(OFFSET(K$8,0,0,7,1)))+K$7,"") ->  | AV22: =IF($A22<>"",SUM($AD22:AK22*TRANSPOSE(OFFSET(L$8,0,0,8,1)))+L$7,"") ->  | AW22: =IF($A22<>"",SUM($AD22:AL22*TRANSPOSE(OFFSET(M$8,0,0,9,1)))+M$7,"") ->  | AX22: =IF($A22<>"",SUM($AD22:AM22*TRANSPOSE(OFFSET(N$8,0,0,10,1)))+N$7,"") -> 
Q23: Ssreg;Ssres | R23: 155050727.7 | S23: 794231.2766 | AO23: =IF($A23<>"",SUM($AD23:AD23*TRANSPOSE(OFFSET(E$8,0,0,1,1)))+E$7,"") ->  | AP23: =IF($A23<>"",SUM($AD23:AE23*TRANSPOSE(OFFSET(F$8,0,0,2,1)))+F$7,"") ->  | AQ23: =IF($A23<>"",SUM($AD23:AF23*TRANSPOSE(OFFSET(G$8,0,0,3,1)))+G$7,"") ->  | AR23: =IF($A23<>"",SUM($AD23:AG23*TRANSPOSE(OFFSET(H$8,0,0,4,1)))+H$7,"") ->  | AS23: =IF($A23<>"",SUM($AD23:AH23*TRANSPOSE(OFFSET(I$8,0,0,5,1)))+I$7,"") ->  | AT23: =IF($A23<>"",SUM($AD23:AI23*TRANSPOSE(OFFSET(J$8,0,0,6,1)))+J$7,"") ->  | AU23: =IF($A23<>"",SUM($AD23:AJ23*TRANSPOSE(OFFSET(K$8,0,0,7,1)))+K$7,"") ->  | AV23: =IF($A23<>"",SUM($AD23:AK23*TRANSPOSE(OFFSET(L$8,0,0,8,1)))+L$7,"") ->  | AW23: =IF($A23<>"",SUM($AD23:AL23*TRANSPOSE(OFFSET(M$8,0,0,9,1)))+M$7,"") ->  | AX23: =IF($A23<>"",SUM($AD23:AM23*TRANSPOSE(OFFSET(N$8,0,0,10,1)))+N$7,"") -> 
Q24: F and p of new parameter | R24: =(S15-S23)/($E$19-COUNT(R11:AB11)-($E$19-COUNT(R19:AB19)))/(S23/($E$19-COUNT(R19:AB19))) -> 6.814488096 | S24: =1-_xlfn.F.DIST(R24,$E$19-COUNT(R11:AB11)-($E$19-COUNT(R19:AB19)),$E$19-COUNT(R19:AB19),TRUE) -> 0.02423772431 | AO24: =IF($A24<>"",SUM($AD24:AD24*TRANSPOSE(OFFSET(E$8,0,0,1,1)))+E$7,"") ->  | AP24: =IF($A24<>"",SUM($AD24:AE24*TRANSPOSE(OFFSET(F$8,0,0,2,1)))+F$7,"") ->  | AQ24: =IF($A24<>"",SUM($AD24:AF24*TRANSPOSE(OFFSET(G$8,0,0,3,1)))+G$7,"") ->  | AR24: =IF($A24<>"",SUM($AD24:AG24*TRANSPOSE(OFFSET(H$8,0,0,4,1)))+H$7,"") ->  | AS24: =IF($A24<>"",SUM($AD24:AH24*TRANSPOSE(OFFSET(I$8,0,0,5,1)))+I$7,"") ->  | AT24: =IF($A24<>"",SUM($AD24:AI24*TRANSPOSE(OFFSET(J$8,0,0,6,1)))+J$7,"") ->  | AU24: =IF($A24<>"",SUM($AD24:AJ24*TRANSPOSE(OFFSET(K$8,0,0,7,1)))+K$7,"") ->  | AV24: =IF($A24<>"",SUM($AD24:AK24*TRANSPOSE(OFFSET(L$8,0,0,8,1)))+L$7,"") ->  | AW24: =IF($A24<>"",SUM($AD24:AL24*TRANSPOSE(OFFSET(M$8,0,0,9,1)))+M$7,"") ->  | AX24: =IF($A24<>"",SUM($AD24:AM24*TRANSPOSE(OFFSET(N$8,0,0,10,1)))+N$7,"") -> 
AD25: =IF($A25<>"",$A25^(COLUMN(AD24)-29),"") ->  | AE25: =IF($A25<>"",$A25^(COLUMN(AE24)-29),"") ->  | AF25: =IF($A25<>"",$A25^(COLUMN(AF24)-29),"") ->  | AG25: =IF($A25<>"",$A25^(COLUMN(AG24)-29),"") ->  | AH25: =IF($A25<>"",$A25^(COLUMN(AH24)-29),"") ->  | AI25: =IF($A25<>"",$A25^(COLUMN(AI24)-29),"") ->  | AJ25: =IF($A25<>"",$A25^(COLUMN(AJ24)-29),"") ->  | AL25: =IF($A25<>"",$A25^(COLUMN(AL24)-29),"") ->  | AM25: =IF($A25<>"",$A25^(COLUMN(AM24)-29),"") ->  | AO25: =IF($A25<>"",SUM($AD25:AD25*TRANSPOSE(OFFSET(E$8,0,0,1,1)))+E$7,"") ->  | AP25: =IF($A25<>"",SUM($AD25:AE25*TRANSPOSE(OFFSET(F$8,0,0,2,1)))+F$7,"") ->  | AQ25: =IF($A25<>"",SUM($AD25:AF25*TRANSPOSE(OFFSET(G$8,0,0,3,1)))+G$7,"") ->  | AR25: =IF($A25<>"",SUM($AD25:AG25*TRANSPOSE(OFFSET(H$8,0,0,4,1)))+H$7,"") ->  | AS25: =IF($A25<>"",SUM($AD25:AH25*TRANSPOSE(OFFSET(I$8,0,0,5,1)))+I$7,"") ->  | AT25: =IF($A25<>"",SUM($AD25:AI25*TRANSPOSE(OFFSET(J$8,0,0,6,1)))+J$7,"") ->  | AU25: =IF($A25<>"",SUM($AD25:AJ25*TRANSPOSE(OFFSET(K$8,0,0,7,1)))+K$7,"") ->  | AV25: =IF($A25<>"",SUM($AD25:AK25*TRANSPOSE(OFFSET(L$8,0,0,8,1)))+L$7,"") ->  | AW25: =IF($A25<>"",SUM($AD25:AL25*TRANSPOSE(OFFSET(M$8,0,0,9,1)))+M$7,"") ->  | AX25: =IF($A25<>"",SUM($AD25:AM25*TRANSPOSE(OFFSET(N$8,0,0,10,1)))+N$7,"") -> 
Q26: quartic | R26: x4 | S26: x3 | T26: x2 | U26: x | V26: intercept | AK26: =IF($A26<>"",$A26^(COLUMN(AK25)-29),"") ->  | AO26: =IF($A26<>"",SUM($AD26:AD26*TRANSPOSE(OFFSET(E$8,0,0,1,1)))+E$7,"") ->  | AP26: =IF($A26<>"",SUM($AD26:AE26*TRANSPOSE(OFFSET(F$8,0,0,2,1)))+F$7,"") ->  | AQ26: =IF($A26<>"",SUM($AD26:AF26*TRANSPOSE(OFFSET(G$8,0,0,3,1)))+G$7,"") ->  | AR26: =IF($A26<>"",SUM($AD26:AG26*TRANSPOSE(OFFSET(H$8,0,0,4,1)))+H$7,"") ->  | AS26: =IF($A26<>"",SUM($AD26:AH26*TRANSPOSE(OFFSET(I$8,0,0,5,1)))+I$7,"") ->  | AT26: =IF($A26<>"",SUM($AD26:AI26*TRANSPOSE(OFFSET(J$8,0,0,6,1)))+J$7,"") ->  | AU26: =IF($A26<>"",SUM($AD26:AJ26*TRANSPOSE(OFFSET(K$8,0,0,7,1)))+K$7,"") ->  | AV26: =IF($A26<>"",SUM($AD26:AK26*TRANSPOSE(OFFSET(L$8,0,0,8,1)))+L$7,"") ->  | AW26: =IF($A26<>"",SUM($AD26:AL26*TRANSPOSE(OFFSET(M$8,0,0,9,1)))+M$7,"") ->  | AX26: =IF($A26<>"",SUM($AD26:AM26*TRANSPOSE(OFFSET(N$8,0,0,10,1)))+N$7,"") -> 
